Workbook

Sheet 必ずこのシートから始めてください
E3: 空調年間活動量算定ツール(GHP版) | M3: Ver.1.2
C5: ガスエンジン・ヒートポンプ(GHP)の年間ガスおよび電力使用量の算定
D8: ここから スタート | E8: GHPを設置する都道府県を選択 | K8: 選択
D10: γ 既定値 | E10: 選択した都道府県庁所在地 | K10: 自動表示 | L10: =IF($L$8="","",VLOOKUP($L$8,γ一覧表!$C$3:$F$50,2,FALSE)) -> 
E12: 都道府県庁所在地の【暖・冷房負荷比：γ値】 | K12: 自動表示 | L12: =IF($L$8="","",VLOOKUP($L$8,γ一覧表!$C$3:$F$50,3,FALSE)) -> 
E14: 表示された【γ値】で使用するシート | K14: 自動表示 | L14: =IF($L$8="","",VLOOKUP($L$8,γ一覧表!$C$3:$F$50,4,FALSE)) -> 
D16: 使用するシートを選択(各シートが開く)
G17: 温暖地(γ既定値) | I17: 寒冷地(γ既定値)
D20: 都道府県庁所在地と気候条件が大きく異なる場合、以下にγ値を入力し、表示されたシートを使用
D22: γ 個別入力 | E22: 都道府県庁所在地の既定値以外を使用する場合の【γ値】 | K22: 入力 | N22: =ROUNDUP($L$22,1) -> 0
E24: 入力した【γ値】で使用するシート | K24: 自動表示 | L24: =IF($L$22="","",VLOOKUP($N$22,γ一覧表!$I$3:$J$50,2)) -> 
D26: 使用するシートを選択(各シートが開く)
G27: 温暖地(γ個別入力) | I27: 寒冷地(γ個別入力)
D30: 注意事項 | E30: ●【γ値】とは設備設計時の空調負荷計算における最大暖房負荷と最大冷房負荷の比率。
E31: 負荷の大きな方で空調機の機種選定がなされたものとする。冷房負荷に対して選択した場合はγ≦1である。
E32: ● 本ツールは環境省SHIFT事業で年間活動量(ガス消費量)を算出するために開発。他の目的に利用することは想定されていません。
E33: ● あらゆる入力に対して正しい計算結果が得られることを保証するものではありません。
E34: 計算結果の取り扱いについては、自己責任でお願いします。

Sheet 温暖地(γ既定値)
C2: GHPの設置場所
C3: =IF(必ずこのシートから始めてください!$L$8="","",必ずこのシートから始めてください!$L$8) ->  | F3: 手順1：空調を行う月、時間を下記の指定の色で塗る(指定の色以外で塗ると計算できません。)
C4: =VLOOKUP($C$3,γ一覧表!$C$3:$E$50,2,FALSE) ->  | G4: 冷房 | H4: 青 | I4: 【左から5列目、一番薄い色(アクセント1,白＋基本色80％)】
G5: 暖房 | H5: オレンジ | I5: 【左から6番目、一番薄い色(アクセント2,白＋基本色80％)】
C6: 使用するγ値 | F6: 手順2：各月の運転日数を入力する
C7: =IFERROR(IF(VLOOKUP($C$3,γ一覧表!$C$3:$E$50,3,FALSE)>1,"---",IFERROR(VLOOKUP($C$3,γ一覧表!$C$3:$E$50,3,FALSE),"---")),"---") -> --- | F7: 手順3：Ctrl + Alt + F9を同時に押す | R7: ●時刻別平均気温表記載の数値は、選択された都道府県の県庁所在地の月別、時刻別平均気温
F8: 手順4：黄色のセルに値を入力する(緑は自動計算) | R8: ●本データは気象庁発表の1992年4月1日から2022年3月31日までの30年の1時間データを整理したもの
C9: 時刻別平均気温[℃] | R9: ●2月はうるう日を含みます
D10: 時刻 | AB10: =SUM(AB12:AB23) -> 0 | AC10: =必ずこのシートから始めてください!$M$3 -> Ver.1.2
C11: 月 | D11: 0 | E11: 1 | F11: 2 | G11: 3 | H11: 4 | I11: 5 | J11: 6 | K11: 7 | L11: 8 | M11: 9 | N11: 10 | O11: 11 | P11: 12 | Q11: 13 | R11: 14 | S11: 15 | T11: 16 | U11: 17 | V11: 18 | W11: 19 | X11: 20 | Y11: 21 | Z11: 22 | AA11: 23 | AB11: 運転日数 | AC11: 月
C12: 4 | D12: =IFERROR(INDIRECT($C$4&"!B5"),"") ->  | E12: =IFERROR(INDIRECT($C$4&"!C5"),"") ->  | F12: =IFERROR(INDIRECT($C$4&"!D5"),"") ->  | G12: =IFERROR(INDIRECT($C$4&"!E5"),"") ->  | H12: =IFERROR(INDIRECT($C$4&"!F5"),"") ->  | I12: =IFERROR(INDIRECT($C$4&"!G5"),"") ->  | J12: =IFERROR(INDIRECT($C$4&"!H5"),"") ->  | K12: =IFERROR(INDIRECT($C$4&"!I5"),"") ->  | L12: =IFERROR(INDIRECT($C$4&"!J5"),"") ->  | M12: =IFERROR(INDIRECT($C$4&"!K5"),"") ->  | N12: =IFERROR(INDIRECT($C$4&"!L5"),"") ->  | O12: =IFERROR(INDIRECT($C$4&"!M5"),"") ->  | P12: =IFERROR(INDIRECT($C$4&"!N5"),"") ->  | Q12: =IFERROR(INDIRECT($C$4&"!O5"),"") ->  | R12: =IFERROR(INDIRECT($C$4&"!P5"),"") ->  | S12: =IFERROR(INDIRECT($C$4&"!Q5"),"") ->  | T12: =IFERROR(INDIRECT($C$4&"!R5"),"") ->  | U12: =IFERROR(INDIRECT($C$4&"!S5"),"") ->  | V12: =IFERROR(INDIRECT($C$4&"!T5"),"") ->  | W12: =IFERROR(INDIRECT($C$4&"!U5"),"") ->  | X12: =IFERROR(INDIRECT($C$4&"!V5"),"") ->  | Y12: =IFERROR(INDIRECT($C$4&"!W5"),"") ->  | Z12: =IFERROR(INDIRECT($C$4&"!X5"),"") ->  | AA12: =IFERROR(INDIRECT($C$4&"!Y5"),"") ->  | AC12: 4
C13: 5 | D13: =IFERROR(INDIRECT($C$4&"!B6"),"") ->  | E13: =IFERROR(INDIRECT($C$4&"!C6"),"") ->  | F13: =IFERROR(INDIRECT($C$4&"!D6"),"") ->  | G13: =IFERROR(INDIRECT($C$4&"!E6"),"") ->  | H13: =IFERROR(INDIRECT($C$4&"!F6"),"") ->  | I13: =IFERROR(INDIRECT($C$4&"!G6"),"") ->  | J13: =IFERROR(INDIRECT($C$4&"!H6"),"") ->  | K13: =IFERROR(INDIRECT($C$4&"!I6"),"") ->  | L13: =IFERROR(INDIRECT($C$4&"!J6"),"") ->  | M13: =IFERROR(INDIRECT($C$4&"!K6"),"") ->  | N13: =IFERROR(INDIRECT($C$4&"!L6"),"") ->  | O13: =IFERROR(INDIRECT($C$4&"!M6"),"") ->  | P13: =IFERROR(INDIRECT($C$4&"!N6"),"") ->  | Q13: =IFERROR(INDIRECT($C$4&"!O6"),"") ->  | R13: =IFERROR(INDIRECT($C$4&"!P6"),"") ->  | S13: =IFERROR(INDIRECT($C$4&"!Q6"),"") ->  | T13: =IFERROR(INDIRECT($C$4&"!R6"),"") ->  | U13: =IFERROR(INDIRECT($C$4&"!S6"),"") ->  | V13: =IFERROR(INDIRECT($C$4&"!T6"),"") ->  | W13: =IFERROR(INDIRECT($C$4&"!U6"),"") ->  | X13: =IFERROR(INDIRECT($C$4&"!V6"),"") ->  | Y13: =IFERROR(INDIRECT($C$4&"!W6"),"") ->  | Z13: =IFERROR(INDIRECT($C$4&"!X6"),"") ->  | AA13: =IFERROR(INDIRECT($C$4&"!Y6"),"") ->  | AC13: 5
C14: 6 | D14: =IFERROR(INDIRECT($C$4&"!B7"),"") ->  | E14: =IFERROR(INDIRECT($C$4&"!C7"),"") ->  | F14: =IFERROR(INDIRECT($C$4&"!D7"),"") ->  | G14: =IFERROR(INDIRECT($C$4&"!E7"),"") ->  | H14: =IFERROR(INDIRECT($C$4&"!F7"),"") ->  | I14: =IFERROR(INDIRECT($C$4&"!G7"),"") ->  | J14: =IFERROR(INDIRECT($C$4&"!H7"),"") ->  | K14: =IFERROR(INDIRECT($C$4&"!I7"),"") ->  | L14: =IFERROR(INDIRECT($C$4&"!J7"),"") ->  | M14: =IFERROR(INDIRECT($C$4&"!K7"),"") ->  | N14: =IFERROR(INDIRECT($C$4&"!L7"),"") ->  | O14: =IFERROR(INDIRECT($C$4&"!M7"),"") ->  | P14: =IFERROR(INDIRECT($C$4&"!N7"),"") ->  | Q14: =IFERROR(INDIRECT($C$4&"!O7"),"") ->  | R14: =IFERROR(INDIRECT($C$4&"!P7"),"") ->  | S14: =IFERROR(INDIRECT($C$4&"!Q7"),"") ->  | T14: =IFERROR(INDIRECT($C$4&"!R7"),"") ->  | U14: =IFERROR(INDIRECT($C$4&"!S7"),"") ->  | V14: =IFERROR(INDIRECT($C$4&"!T7"),"") ->  | W14: =IFERROR(INDIRECT($C$4&"!U7"),"") ->  | X14: =IFERROR(INDIRECT($C$4&"!V7"),"") ->  | Y14: =IFERROR(INDIRECT($C$4&"!W7"),"") ->  | Z14: =IFERROR(INDIRECT($C$4&"!X7"),"") ->  | AA14: =IFERROR(INDIRECT($C$4&"!Y7"),"") ->  | AC14: 6
C15: 7 | D15: =IFERROR(INDIRECT($C$4&"!B8"),"") ->  | E15: =IFERROR(INDIRECT($C$4&"!C8"),"") ->  | F15: =IFERROR(INDIRECT($C$4&"!D8"),"") ->  | G15: =IFERROR(INDIRECT($C$4&"!E8"),"") ->  | H15: =IFERROR(INDIRECT($C$4&"!F8"),"") ->  | I15: =IFERROR(INDIRECT($C$4&"!G8"),"") ->  | J15: =IFERROR(INDIRECT($C$4&"!H8"),"") ->  | K15: =IFERROR(INDIRECT($C$4&"!I8"),"") ->  | L15: =IFERROR(INDIRECT($C$4&"!J8"),"") ->  | M15: =IFERROR(INDIRECT($C$4&"!K8"),"") ->  | N15: =IFERROR(INDIRECT($C$4&"!L8"),"") ->  | O15: =IFERROR(INDIRECT($C$4&"!M8"),"") ->  | P15: =IFERROR(INDIRECT($C$4&"!N8"),"") ->  | Q15: =IFERROR(INDIRECT($C$4&"!O8"),"") ->  | R15: =IFERROR(INDIRECT($C$4&"!P8"),"") ->  | S15: =IFERROR(INDIRECT($C$4&"!Q8"),"") ->  | T15: =IFERROR(INDIRECT($C$4&"!R8"),"") ->  | U15: =IFERROR(INDIRECT($C$4&"!S8"),"") ->  | V15: =IFERROR(INDIRECT($C$4&"!T8"),"") ->  | W15: =IFERROR(INDIRECT($C$4&"!U8"),"") ->  | X15: =IFERROR(INDIRECT($C$4&"!V8"),"") ->  | Y15: =IFERROR(INDIRECT($C$4&"!W8"),"") ->  | Z15: =IFERROR(INDIRECT($C$4&"!X8"),"") ->  | AA15: =IFERROR(INDIRECT($C$4&"!Y8"),"") ->  | AC15: 7
C16: 8 | D16: =IFERROR(INDIRECT($C$4&"!B9"),"") ->  | E16: =IFERROR(INDIRECT($C$4&"!C9"),"") ->  | F16: =IFERROR(INDIRECT($C$4&"!D9"),"") ->  | G16: =IFERROR(INDIRECT($C$4&"!E9"),"") ->  | H16: =IFERROR(INDIRECT($C$4&"!F9"),"") ->  | I16: =IFERROR(INDIRECT($C$4&"!G9"),"") ->  | J16: =IFERROR(INDIRECT($C$4&"!H9"),"") ->  | K16: =IFERROR(INDIRECT($C$4&"!I9"),"") ->  | L16: =IFERROR(INDIRECT($C$4&"!J9"),"") ->  | M16: =IFERROR(INDIRECT($C$4&"!K9"),"") ->  | N16: =IFERROR(INDIRECT($C$4&"!L9"),"") ->  | O16: =IFERROR(INDIRECT($C$4&"!M9"),"") ->  | P16: =IFERROR(INDIRECT($C$4&"!N9"),"") ->  | Q16: =IFERROR(INDIRECT($C$4&"!O9"),"") ->  | R16: =IFERROR(INDIRECT($C$4&"!P9"),"") ->  | S16: =IFERROR(INDIRECT($C$4&"!Q9"),"") ->  | T16: =IFERROR(INDIRECT($C$4&"!R9"),"") ->  | U16: =IFERROR(INDIRECT($C$4&"!S9"),"") ->  | V16: =IFERROR(INDIRECT($C$4&"!T9"),"") ->  | W16: =IFERROR(INDIRECT($C$4&"!U9"),"") ->  | X16: =IFERROR(INDIRECT($C$4&"!V9"),"") ->  | Y16: =IFERROR(INDIRECT($C$4&"!W9"),"") ->  | Z16: =IFERROR(INDIRECT($C$4&"!X9"),"") ->  | AA16: =IFERROR(INDIRECT($C$4&"!Y9"),"") ->  | AC16: 8
C17: 9 | D17: =IFERROR(INDIRECT($C$4&"!B10"),"") ->  | E17: =IFERROR(INDIRECT($C$4&"!C10"),"") ->  | F17: =IFERROR(INDIRECT($C$4&"!D10"),"") ->  | G17: =IFERROR(INDIRECT($C$4&"!e10"),"") ->  | H17: =IFERROR(INDIRECT($C$4&"!F10"),"") ->  | I17: =IFERROR(INDIRECT($C$4&"!G10"),"") ->  | J17: =IFERROR(INDIRECT($C$4&"!H10"),"") ->  | K17: =IFERROR(INDIRECT($C$4&"!I10"),"") ->  | L17: =IFERROR(INDIRECT($C$4&"!J10"),"") ->  | M17: =IFERROR(INDIRECT($C$4&"!K10"),"") ->  | N17: =IFERROR(INDIRECT($C$4&"!L10"),"") ->  | O17: =IFERROR(INDIRECT($C$4&"!M10"),"") ->  | P17: =IFERROR(INDIRECT($C$4&"!N10"),"") ->  | Q17: =IFERROR(INDIRECT($C$4&"!O10"),"") ->  | R17: =IFERROR(INDIRECT($C$4&"!P10"),"") ->  | S17: =IFERROR(INDIRECT($C$4&"!Q10"),"") ->  | T17: =IFERROR(INDIRECT($C$4&"!R10"),"") ->  | U17: =IFERROR(INDIRECT($C$4&"!S10"),"") ->  | V17: =IFERROR(INDIRECT($C$4&"!T10"),"") ->  | W17: =IFERROR(INDIRECT($C$4&"!U10"),"") ->  | X17: =IFERROR(INDIRECT($C$4&"!V10"),"") ->  | Y17: =IFERROR(INDIRECT($C$4&"!W10"),"") ->  | Z17: =IFERROR(INDIRECT($C$4&"!X10"),"") ->  | AA17: =IFERROR(INDIRECT($C$4&"!Y10"),"") ->  | AC17: 9
C18: 10 | D18: =IFERROR(INDIRECT($C$4&"!B11"),"") ->  | E18: =IFERROR(INDIRECT($C$4&"!C11"),"") ->  | F18: =IFERROR(INDIRECT($C$4&"!D11"),"") ->  | G18: =IFERROR(INDIRECT($C$4&"!E11"),"") ->  | H18: =IFERROR(INDIRECT($C$4&"!F11"),"") ->  | I18: =IFERROR(INDIRECT($C$4&"!G11"),"") ->  | J18: =IFERROR(INDIRECT($C$4&"!H11"),"") ->  | K18: =IFERROR(INDIRECT($C$4&"!I11"),"") ->  | L18: =IFERROR(INDIRECT($C$4&"!J11"),"") ->  | M18: =IFERROR(INDIRECT($C$4&"!K11"),"") ->  | N18: =IFERROR(INDIRECT($C$4&"!L11"),"") ->  | O18: =IFERROR(INDIRECT($C$4&"!M11"),"") ->  | P18: =IFERROR(INDIRECT($C$4&"!N11"),"") ->  | Q18: =IFERROR(INDIRECT($C$4&"!O11"),"") ->  | R18: =IFERROR(INDIRECT($C$4&"!P11"),"") ->  | S18: =IFERROR(INDIRECT($C$4&"!Q11"),"") ->  | T18: =IFERROR(INDIRECT($C$4&"!R11"),"") ->  | U18: =IFERROR(INDIRECT($C$4&"!S11"),"") ->  | V18: =IFERROR(INDIRECT($C$4&"!T11"),"") ->  | W18: =IFERROR(INDIRECT($C$4&"!U11"),"") ->  | X18: =IFERROR(INDIRECT($C$4&"!V11"),"") ->  | Y18: =IFERROR(INDIRECT($C$4&"!W11"),"") ->  | Z18: =IFERROR(INDIRECT($C$4&"!X11"),"") ->  | AA18: =IFERROR(INDIRECT($C$4&"!Y11"),"") ->  | AC18: 10
C19: 11 | D19: =IFERROR(INDIRECT($C$4&"!B12"),"") ->  | E19: =IFERROR(INDIRECT($C$4&"!C12"),"") ->  | F19: =IFERROR(INDIRECT($C$4&"!D12"),"") ->  | G19: =IFERROR(INDIRECT($C$4&"!E12"),"") ->  | H19: =IFERROR(INDIRECT($C$4&"!F12"),"") ->  | I19: =IFERROR(INDIRECT($C$4&"!G12"),"") ->  | J19: =IFERROR(INDIRECT($C$4&"!H12"),"") ->  | K19: =IFERROR(INDIRECT($C$4&"!I12"),"") ->  | L19: =IFERROR(INDIRECT($C$4&"!J12"),"") ->  | M19: =IFERROR(INDIRECT($C$4&"!K12"),"") ->  | N19: =IFERROR(INDIRECT($C$4&"!L12"),"") ->  | O19: =IFERROR(INDIRECT($C$4&"!M12"),"") ->  | P19: =IFERROR(INDIRECT($C$4&"!N12"),"") ->  | Q19: =IFERROR(INDIRECT($C$4&"!O12"),"") ->  | R19: =IFERROR(INDIRECT($C$4&"!P12"),"") ->  | S19: =IFERROR(INDIRECT($C$4&"!Q12"),"") ->  | T19: =IFERROR(INDIRECT($C$4&"!R12"),"") ->  | U19: =IFERROR(INDIRECT($C$4&"!S12"),"") ->  | V19: =IFERROR(INDIRECT($C$4&"!T12"),"") ->  | W19: =IFERROR(INDIRECT($C$4&"!U12"),"") ->  | X19: =IFERROR(INDIRECT($C$4&"!V12"),"") ->  | Y19: =IFERROR(INDIRECT($C$4&"!W12"),"") ->  | Z19: =IFERROR(INDIRECT($C$4&"!X12"),"") ->  | AA19: =IFERROR(INDIRECT($C$4&"!Y12"),"") ->  | AC19: 11
C20: 12 | D20: =IFERROR(INDIRECT($C$4&"!B13"),"") ->  | E20: =IFERROR(INDIRECT($C$4&"!C13"),"") ->  | F20: =IFERROR(INDIRECT($C$4&"!D13"),"") ->  | G20: =IFERROR(INDIRECT($C$4&"!E13"),"") ->  | H20: =IFERROR(INDIRECT($C$4&"!F13"),"") ->  | I20: =IFERROR(INDIRECT($C$4&"!G13"),"") ->  | J20: =IFERROR(INDIRECT($C$4&"!H13"),"") ->  | K20: =IFERROR(INDIRECT($C$4&"!I13"),"") ->  | L20: =IFERROR(INDIRECT($C$4&"!J13"),"") ->  | M20: =IFERROR(INDIRECT($C$4&"!K13"),"") ->  | N20: =IFERROR(INDIRECT($C$4&"!L13"),"") ->  | O20: =IFERROR(INDIRECT($C$4&"!M13"),"") ->  | P20: =IFERROR(INDIRECT($C$4&"!N13"),"") ->  | Q20: =IFERROR(INDIRECT($C$4&"!O13"),"") ->  | R20: =IFERROR(INDIRECT($C$4&"!P13"),"") ->  | S20: =IFERROR(INDIRECT($C$4&"!Q13"),"") ->  | T20: =IFERROR(INDIRECT($C$4&"!R13"),"") ->  | U20: =IFERROR(INDIRECT($C$4&"!S13"),"") ->  | V20: =IFERROR(INDIRECT($C$4&"!T13"),"") ->  | W20: =IFERROR(INDIRECT($C$4&"!U13"),"") ->  | X20: =IFERROR(INDIRECT($C$4&"!V13"),"") ->  | Y20: =IFERROR(INDIRECT($C$4&"!W13"),"") ->  | Z20: =IFERROR(INDIRECT($C$4&"!X13"),"") ->  | AA20: =IFERROR(INDIRECT($C$4&"!Y13"),"") ->  | AC20: 12
C21: 1 | D21: =IFERROR(INDIRECT($C$4&"!B14"),"") ->  | E21: =IFERROR(INDIRECT($C$4&"!C14"),"") ->  | F21: =IFERROR(INDIRECT($C$4&"!D14"),"") ->  | G21: =IFERROR(INDIRECT($C$4&"!E14"),"") ->  | H21: =IFERROR(INDIRECT($C$4&"!F14"),"") ->  | I21: =IFERROR(INDIRECT($C$4&"!G14"),"") ->  | J21: =IFERROR(INDIRECT($C$4&"!H14"),"") ->  | K21: =IFERROR(INDIRECT($C$4&"!I14"),"") ->  | L21: =IFERROR(INDIRECT($C$4&"!J14"),"") ->  | M21: =IFERROR(INDIRECT($C$4&"!K14"),"") ->  | N21: =IFERROR(INDIRECT($C$4&"!L14"),"") ->  | O21: =IFERROR(INDIRECT($C$4&"!M14"),"") ->  | P21: =IFERROR(INDIRECT($C$4&"!N14"),"") ->  | Q21: =IFERROR(INDIRECT($C$4&"!O14"),"") ->  | R21: =IFERROR(INDIRECT($C$4&"!P14"),"") ->  | S21: =IFERROR(INDIRECT($C$4&"!Q14"),"") ->  | T21: =IFERROR(INDIRECT($C$4&"!R14"),"") ->  | U21: =IFERROR(INDIRECT($C$4&"!S14"),"") ->  | V21: =IFERROR(INDIRECT($C$4&"!T14"),"") ->  | W21: =IFERROR(INDIRECT($C$4&"!U14"),"") ->  | X21: =IFERROR(INDIRECT($C$4&"!V14"),"") ->  | Y21: =IFERROR(INDIRECT($C$4&"!W14"),"") ->  | Z21: =IFERROR(INDIRECT($C$4&"!X14"),"") ->  | AA21: =IFERROR(INDIRECT($C$4&"!Y14"),"") ->  | AC21: 1
C22: 2 | D22: =IFERROR(INDIRECT($C$4&"!B15"),"") ->  | E22: =IFERROR(INDIRECT($C$4&"!C15"),"") ->  | F22: =IFERROR(INDIRECT($C$4&"!D15"),"") ->  | G22: =IFERROR(INDIRECT($C$4&"!E15"),"") ->  | H22: =IFERROR(INDIRECT($C$4&"!F15"),"") ->  | I22: =IFERROR(INDIRECT($C$4&"!G15"),"") ->  | J22: =IFERROR(INDIRECT($C$4&"!H15"),"") ->  | K22: =IFERROR(INDIRECT($C$4&"!I15"),"") ->  | L22: =IFERROR(INDIRECT($C$4&"!J15"),"") ->  | M22: =IFERROR(INDIRECT($C$4&"!K15"),"") ->  | N22: =IFERROR(INDIRECT($C$4&"!L15"),"") ->  | O22: =IFERROR(INDIRECT($C$4&"!M15"),"") ->  | P22: =IFERROR(INDIRECT($C$4&"!N15"),"") ->  | Q22: =IFERROR(INDIRECT($C$4&"!O15"),"") ->  | R22: =IFERROR(INDIRECT($C$4&"!P15"),"") ->  | S22: =IFERROR(INDIRECT($C$4&"!Q15"),"") ->  | T22: =IFERROR(INDIRECT($C$4&"!R15"),"") ->  | U22: =IFERROR(INDIRECT($C$4&"!S15"),"") ->  | V22: =IFERROR(INDIRECT($C$4&"!T15"),"") ->  | W22: =IFERROR(INDIRECT($C$4&"!U15"),"") ->  | X22: =IFERROR(INDIRECT($C$4&"!V15"),"") ->  | Y22: =IFERROR(INDIRECT($C$4&"!W15"),"") ->  | Z22: =IFERROR(INDIRECT($C$4&"!X15"),"") ->  | AA22: =IFERROR(INDIRECT($C$4&"!Y15"),"") ->  | AC22: 2
C23: 3 | D23: =IFERROR(INDIRECT($C$4&"!B16"),"") ->  | E23: =IFERROR(INDIRECT($C$4&"!C16"),"") ->  | F23: =IFERROR(INDIRECT($C$4&"!D16"),"") ->  | G23: =IFERROR(INDIRECT($C$4&"!E16"),"") ->  | H23: =IFERROR(INDIRECT($C$4&"!F16"),"") ->  | I23: =IFERROR(INDIRECT($C$4&"!G16"),"") ->  | J23: =IFERROR(INDIRECT($C$4&"!H16"),"") ->  | K23: =IFERROR(INDIRECT($C$4&"!I16"),"") ->  | L23: =IFERROR(INDIRECT($C$4&"!J16"),"") ->  | M23: =IFERROR(INDIRECT($C$4&"!K16"),"") ->  | N23: =IFERROR(INDIRECT($C$4&"!L16"),"") ->  | O23: =IFERROR(INDIRECT($C$4&"!M16"),"") ->  | P23: =IFERROR(INDIRECT($C$4&"!N16"),"") ->  | Q23: =IFERROR(INDIRECT($C$4&"!O16"),"") ->  | R23: =IFERROR(INDIRECT($C$4&"!P16"),"") ->  | S23: =IFERROR(INDIRECT($C$4&"!Q16"),"") ->  | T23: =IFERROR(INDIRECT($C$4&"!R16"),"") ->  | U23: =IFERROR(INDIRECT($C$4&"!S16"),"") ->  | V23: =IFERROR(INDIRECT($C$4&"!T16"),"") ->  | W23: =IFERROR(INDIRECT($C$4&"!U16"),"") ->  | X23: =IFERROR(INDIRECT($C$4&"!V16"),"") ->  | Y23: =IFERROR(INDIRECT($C$4&"!W16"),"") ->  | Z23: =IFERROR(INDIRECT($C$4&"!X16"),"") ->  | AA23: =IFERROR(INDIRECT($C$4&"!Y16"),"") ->  | AC23: 3
D25: 共通 | E25: 冷房負荷ゼロ点 | G25: 冷房が不要になると思われる外気温度を入力 | L25: Tco | M25: 18 | N25: ℃
E26: 暖房負荷ゼロ点 | G26: 暖房が不要になると思われる外気温度を入力 | L26: Two | M26: 12 | N26: ℃
D28: 設備導入前 | Q28: 前1 | R28: 前2 | S28: 前3 | T28: 前4 | U28: 前5 | V28: 前6 | W28: 前7 | X28: 前8 | Y28: 前9 | Z28: 前10
E29: 定格冷房能力 | G29: GHPの仕様を入力 | P29: Φco | Q29: 22.4 | AA29: kW
E30: 定格冷房ガス消費量 | G30: GHPの仕様を入力 | P30: Pco | Q30: 19.1 | AA30: kW
E31: 冷房消費電力 | G31: GHPの仕様を入力 | P31: Ac | Q31: 0.38 | AA31: kW
E32: 定格冷房COP | G32: 自動計算 | H32: (ep= | I32: 2.4 | J32: ) | P32: σco | Q32: =IFERROR(Q$29/(Q$30+Q$31*$I$32),"") -> 1.119328403 | W32: =IFERROR(W$29/(W$30+W$31*$I$32),"") ->  | AA32: σco＝Φco／(Pco+Ac×ep)
E33: 定格暖房能力 | G33: GHPの仕様を入力 | P33: Φwo | Q33: 25 | AA33: kW
E34: 定格暖房ガス消費量 | G34: GHPの仕様を入力 | P34: Pwo | Q34: 18.7 | AA34: kW
E35: 暖房消費電力 | G35: GHPの仕様を入力 | P35: Aw | Q35: 0.47 | AA35: kW
E36: 定格暖房COP | G36: 自動計算 | P36: σwo | Q36: =IFERROR(Q$33/(Q$34+Q$35*$I$32),"") -> 1.260843252 | Y36: =IFERROR(Y$33/(Y$34+Y$35*$I$32),"") ->  | AA36: σwo＝Φwo／(Pwo+Aw×ep)
E37: 最大冷房負荷 | G37: 設計時の値を入力（不明の際は空白のまま） | P37: Qc | AA37: kW
E38: 台数 | G38: 同じ容量の空調機の台数を入力 | AA38: 台
Q39: =IF(Q$37="",0.8,IF(Q$37=0,0.8,IF(Q$29<Q$37,1,Q$37/Q$29))) -> 0.8 | R39: =IF(R$37="",0.8,IF(R$37=0,0.8,IF(R$29<R$37,1,R$37/R$29))) -> 0.8 | S39: =IF(S$37="",0.8,IF(S$37=0,0.8,IF(S$29<S$37,1,S$37/S$29))) -> 0.8 | T39: =IF(T$37="",0.8,IF(T$37=0,0.8,IF(T$29<T$37,1,T$37/T$29))) -> 0.8 | U39: 0.8 | V39: 0.8 | W39: 0.8 | X39: 0.8 | Y39: 0.8 | Z39: 0.8
D42: 設備導入後 | Q42: 後1 | R42: 後2 | S42: 後3 | T42: 後4 | U42: 後5 | V42: 後6 | W42: 後7 | X42: 後8 | Y42: 後9 | Z42: 後10
E43: 定格冷房能力 | G43: GHPの仕様を入力 | P43: Φco | AA43: kW
E44: 定格冷房ガス消費量 | G44: GHPの仕様を入力 | P44: Pco | AA44: kW
E45: 冷房消費電力 | G45: GHPの仕様を入力 | P45: Ac | AA45: kW
E46: 定格冷房COP | G46: 自動計算 | H46: (ep= | I46: 2.4 | J46: ) | P46: σco | Q46: =IFERROR(Q$43/(Q$44+Q$45*$I$46),"") ->  | AA46: σco＝Φco／(Pco+Ac×ep)
E47: 定格暖房能力 | G47: GHPの仕様を入力 | P47: Φwo | AA47: kW
E48: 定格暖房ガス消費量 | G48: GHPの仕様を入力 | P48: Pwo | AA48: kW
E49: 暖房消費電力 | G49: GHPの仕様を入力 | P49: Aw | AA49: kW
E50: 定格暖房COP | G50: 自動計算 | P50: σwo | Q50: =IFERROR(Q$47/(Q$48+Q$49*$I$46),"") ->  | R50: =IFERROR(R$47/(R$48+R$49*$I$46),"") ->  | V50: =IFERROR(V$47/(V$48+V$49*$I$46),"") ->  | W50: =IFERROR(W$47/(W$48+W$49*$I$46),"") ->  | X50: =IFERROR(X$47/(X$48+X$49*$I$46),"") ->  | Y50: =IFERROR(Y$47/(Y$48+Y$49*$I$46),"") ->  | Z50: =IFERROR(Z$47/(Z$48+Z$49*$I$46),"") ->  | AA50: σwo＝Φwo／(Pwo+Aw×ep)
E51: 最大冷房負荷 | G51: 設計時の値を入力（不明の際は空白のまま） | P51: Qc | AA51: kW
E52: 台数 | G52: 同じ容量の空調機の台数を入力 | AA52: 台
Q53: =IF(Q$51="",0.8,IF(Q$51=0,0.8,IF(Q$43<Q$51,1,Q$51/Q$43))) -> 0.8 | R53: =IF(R$51="",0.8,IF(R$51=0,0.8,IF(R$43<R$51,1,R$51/R$43))) -> 0.8 | S53: =IF(S$51="",0.8,IF(S$51=0,0.8,IF(S$43<S$51,1,S$51/S$43))) -> 0.8 | T53: =IF(T$51="",0.8,IF(T$51=0,0.8,IF(T$43<T$51,1,T$51/T$43))) -> 0.8 | U53: 0.8 | V53: 0.8 | W53: 0.8 | X53: 0.8 | Y53: 0.8 | Z53: 0.8
C54: 設備導入前ガス使用量［MJ]
D55: 冷房(Gc) | F55: 暖房(Gw) | H55: 合計(G)
D56: =IFERROR(D72*F58+G72*I58+J72*L58+M72*O58+P72*R58+S72*U58+V72*X58+Y72*AA58+AB72*AD58+AE72*AG58,"") -> 0 | F56: =IFERROR(E72*F58+H72*I58+K72*L58+N72*O58+Q72*R58+T72*U58+W72*X58+Z72*AA58+AC72*AD58+AF72*AG58,"") -> 0 | H56: =IFERROR(SUM(D56:G56),"") -> 0
D58: 前1 | F58: =IF($Q$38="",1,$Q$38) -> 1 | G58: 前2 | I58: =IF($R$38="",1,$R$38) -> 1 | J58: 前3 | L58: =IF($S$38="",1,$S$38) -> 1 | M58: 前4 | O58: =IF($T$38="",1,$T$38) -> 1 | P58: 前5 | R58: =IF($U$38="",1,$U$38) -> 1 | S58: 前6 | U58: =IF($V$38="",1,$V$38) -> 1 | V58: 前7 | X58: =IF($W$38="",1,$W$38) -> 1 | Y58: 前8 | AA58: =IF($X$38="",1,$X$38) -> 1 | AB58: 前9 | AD58: =IF($Y$38="",1,$Y$38) -> 1 | AE58: 前10 | AG58: =IF($Z$38="",1,$Z$38) -> 1
C59: 月 期間 | D59: 冷房 | E59: 暖房 | F59: 月合計 | G59: 冷房 | H59: 暖房 | I59: 月合計 | J59: 冷房 | K59: 暖房 | L59: 月合計 | M59: 冷房 | N59: 暖房 | O59: 月合計 | P59: 冷房 | Q59: 暖房 | R59: 月合計 | S59: 冷房 | T59: 暖房 | U59: 月合計 | V59: 冷房 | W59: 暖房 | X59: 月合計 | Y59: 冷房 | Z59: 暖房 | AA59: 月合計 | AB59: 冷房 | AC59: 暖房 | AD59: 月合計 | AE59: 冷房 | AF59: 暖房 | AG59: 月合計 | AH59: 期間 月
C60: 4 | D60: =IF($C$7="---","",IFERROR(3.6*(D100-D80*$I$32),"")) ->  | E60: =IF($C$7="---","",IFERROR(3.6*(E100-E80*$I$32),"")) ->  | F60: =IFERROR(D$60+E$60,"") ->  | G60: =IF($C$7="---","",IFERROR(3.6*(G100-G80*$I$32),"")) ->  | H60: =IF($C$7="---","",IFERROR(3.6*(H100-H80*$I$32),"")) ->  | I60: =IFERROR(G$60+H$60,"") ->  | J60: =IF($C$7="---","",IFERROR(3.6*(J100-J80*$I$32),"")) ->  | K60: =IF($C$7="---","",IFERROR(3.6*(K100-K80*$I$32),"")) ->  | L60: =IFERROR(J$60+K$60,"") ->  | M60: =IF($C$7="---","",IFERROR(3.6*(M100-M80*$I$32),"")) ->  | N60: =IF($C$7="---","",IFERROR(3.6*(N100-N80*$I$32),"")) ->  | O60: =IFERROR(M$60+N$60,"") ->  | P60: =IF($C$7="---","",IFERROR(3.6*(P100-P80*$I$32),"")) ->  | Q60: =IF($C$7="---","",IFERROR(3.6*(Q100-Q80*$I$32),"")) ->  | R60: =IFERROR(P$60+Q$60,"") ->  | S60: =IF($C$7="---","",IFERROR(3.6*(S100-S80*$I$32),"")) ->  | T60: =IF($C$7="---","",IFERROR(3.6*(T100-T80*$I$32),"")) ->  | U60: =IFERROR(S$60+T$60,"") ->  | V60: =IF($C$7="---","",IFERROR(3.6*(V100-V80*$I$32),"")) ->  | W60: =IF($C$7="---","",IFERROR(3.6*(W100-W80*$I$32),"")) ->  | X60: =IFERROR(V$60+W$60,"") ->  | Y60: =IF($C$7="---","",IFERROR(3.6*(Y100-Y80*$I$32),"")) ->  | Z60: =IF($C$7="---","",IFERROR(3.6*(Z100-Z80*$I$32),"")) ->  | AA60: =IFERROR(Y$60+Z$60,"") ->  | AB60: =IF($C$7="---","",IFERROR(3.6*(AB100-AB80*$I$32),"")) ->  | AC60: =IF($C$7="---","",IFERROR(3.6*(AC100-AC80*$I$32),"")) ->  | AD60: =IFERROR(AB$60+AC$60,"") ->  | AE60: =IF($C$7="---","",IFERROR(3.6*(AE100-AE80*$I$32),"")) ->  | AF60: =IF($C$7="---","",IFERROR(3.6*(AF100-AF80*$I$32),"")) ->  | AG60: =IFERROR(AE$60+AF$60,"") ->  | AH60: 4
C61: 5 | D61: =IF($C$7="---","",IFERROR(3.6*(D101-D81*$I$32),"")) ->  | F61: =IFERROR(D$61+E$61,"") ->  | G61: =IF($C$7="---","",IFERROR(3.6*(G101-G81*$I$32),"")) ->  | I61: =IFERROR(G$61+H$61,"") ->  | J61: =IF($C$7="---","",IFERROR(3.6*(J101-J81*$I$32),"")) ->  | L61: =IFERROR(J$61+K$61,"") ->  | M61: =IF($C$7="---","",IFERROR(3.6*(M101-M81*$I$32),"")) ->  | O61: =IFERROR(M$61+N$61,"") ->  | P61: =IF($C$7="---","",IFERROR(3.6*(P101-P81*$I$32),"")) ->  | R61: =IFERROR(P$61+Q$61,"") ->  | S61: =IF($C$7="---","",IFERROR(3.6*(S101-S81*$I$32),"")) ->  | U61: =IFERROR(S$61+T$61,"") ->  | V61: =IF($C$7="---","",IFERROR(3.6*(V101-V81*$I$32),"")) ->  | X61: =IFERROR(V$61+W$61,"") ->  | Y61: =IF($C$7="---","",IFERROR(3.6*(Y101-Y81*$I$32),"")) ->  | AA61: =IFERROR(Y$61+Z$61,"") ->  | AB61: =IF($C$7="---","",IFERROR(3.6*(AB101-AB81*$I$32),"")) ->  | AD61: =IFERROR(AB$61+AC$61,"") ->  | AE61: =IF($C$7="---","",IFERROR(3.6*(AE101-AE81*$I$32),"")) ->  | AG61: =IFERROR(AE$61+AF$61,"") ->  | AH61: 5
C62: 6 | D62: =IF($C$7="---","",IFERROR(3.6*(D102-D82*$I$32),"")) ->  | F62: =IFERROR(D$62+E$62,"") ->  | G62: =IF($C$7="---","",IFERROR(3.6*(G102-G82*$I$32),"")) ->  | I62: =IFERROR(G$62+H$62,"") ->  | J62: =IF($C$7="---","",IFERROR(3.6*(J102-J82*$I$32),"")) ->  | L62: =IFERROR(J$62+K$62,"") ->  | M62: =IF($C$7="---","",IFERROR(3.6*(M102-M82*$I$32),"")) ->  | O62: =IFERROR(M$62+N$62,"") ->  | P62: =IF($C$7="---","",IFERROR(3.6*(P102-P82*$I$32),"")) ->  | R62: =IFERROR(P$62+Q$62,"") ->  | S62: =IF($C$7="---","",IFERROR(3.6*(S102-S82*$I$32),"")) ->  | T62: =IF($C$7="---","",IFERROR(3.6*(T102-T82*$I$32),"")) ->  | U62: =IFERROR(S$62+T$62,"") ->  | V62: =IF($C$7="---","",IFERROR(3.6*(V102-V82*$I$32),"")) ->  | X62: =IFERROR(V$62+W$62,"") ->  | Y62: =IF($C$7="---","",IFERROR(3.6*(Y102-Y82*$I$32),"")) ->  | AA62: =IFERROR(Y$62+Z$62,"") ->  | AB62: =IF($C$7="---","",IFERROR(3.6*(AB102-AB82*$I$32),"")) ->  | AC62: =IF($C$7="---","",IFERROR(3.6*(AC102-AC82*$I$32),"")) ->  | AD62: =IFERROR(AB$62+AC$62,"") ->  | AE62: =IF($C$7="---","",IFERROR(3.6*(AE102-AE82*$I$32),"")) ->  | AG62: =IFERROR(AE$62+AF$62,"") ->  | AH62: 6
C63: 7 | D63: =IF($C$7="---","",IFERROR(3.6*(D103-D83*$I$32),"")) ->  | F63: =IFERROR(D$63+E$63,"") ->  | G63: =IF($C$7="---","",IFERROR(3.6*(G103-G83*$I$32),"")) ->  | I63: =IFERROR(G$63+H$63,"") ->  | J63: =IF($C$7="---","",IFERROR(3.6*(J103-J83*$I$32),"")) ->  | L63: =IFERROR(J$63+K$63,"") ->  | M63: =IF($C$7="---","",IFERROR(3.6*(M103-M83*$I$32),"")) ->  | O63: =IFERROR(M$63+N$63,"") ->  | P63: =IF($C$7="---","",IFERROR(3.6*(P103-P83*$I$32),"")) ->  | R63: =IFERROR(P$63+Q$63,"") ->  | S63: =IF($C$7="---","",IFERROR(3.6*(S103-S83*$I$32),"")) ->  | U63: =IFERROR(S$63+T$63,"") ->  | V63: =IF($C$7="---","",IFERROR(3.6*(V103-V83*$I$32),"")) ->  | X63: =IFERROR(V$63+W$63,"") ->  | Y63: =IF($C$7="---","",IFERROR(3.6*(Y103-Y83*$I$32),"")) ->  | AA63: =IFERROR(Y$63+Z$63,"") ->  | AB63: =IF($C$7="---","",IFERROR(3.6*(AB103-AB83*$I$32),"")) ->  | AD63: =IFERROR(AB$63+AC$63,"") ->  | AE63: =IF($C$7="---","",IFERROR(3.6*(AE103-AE83*$I$32),"")) ->  | AG63: =IFERROR(AE$63+AF$63,"") ->  | AH63: 7
C64: 8 | D64: =IF($C$7="---","",IFERROR(3.6*(D104-D84*$I$32),"")) ->  | F64: =IFERROR(D$64+E$64,"") ->  | G64: =IF($C$7="---","",IFERROR(3.6*(G104-G84*$I$32),"")) ->  | I64: =IFERROR(G$64+H$64,"") ->  | J64: =IF($C$7="---","",IFERROR(3.6*(J104-J84*$I$32),"")) ->  | L64: =IFERROR(J$64+K$64,"") ->  | M64: =IF($C$7="---","",IFERROR(3.6*(M104-M84*$I$32),"")) ->  | N64: =IF($C$7="---","",IFERROR(3.6*(N104-N84*$I$32),"")) ->  | O64: =IFERROR(M$64+N$64,"") ->  | P64: =IF($C$7="---","",IFERROR(3.6*(P104-P84*$I$32),"")) ->  | R64: =IFERROR(P$64+Q$64,"") ->  | S64: =IF($C$7="---","",IFERROR(3.6*(S104-S84*$I$32),"")) ->  | U64: =IFERROR(S$64+T$64,"") ->  | V64: =IF($C$7="---","",IFERROR(3.6*(V104-V84*$I$32),"")) ->  | X64: =IFERROR(V$64+W$64,"") ->  | Y64: =IF($C$7="---","",IFERROR(3.6*(Y104-Y84*$I$32),"")) ->  | AA64: =IFERROR(Y$64+Z$64,"") ->  | AB64: =IF($C$7="---","",IFERROR(3.6*(AB104-AB84*$I$32),"")) ->  | AD64: =IFERROR(AB$64+AC$64,"") ->  | AE64: =IF($C$7="---","",IFERROR(3.6*(AE104-AE84*$I$32),"")) ->  | AG64: =IFERROR(AE$64+AF$64,"") ->  | AH64: 8
C65: 9 | D65: =IF($C$7="---","",IFERROR(3.6*(D105-D85*$I$32),"")) ->  | F65: =IFERROR(D$65+E$65,"") ->  | G65: =IF($C$7="---","",IFERROR(3.6*(G105-G85*$I$32),"")) ->  | I65: =IFERROR(G$65+H$65,"") ->  | J65: =IF($C$7="---","",IFERROR(3.6*(J105-J85*$I$32),"")) ->  | L65: =IFERROR(J$65+K$65,"") ->  | M65: =IF($C$7="---","",IFERROR(3.6*(M105-M85*$I$32),"")) ->  | O65: =IFERROR(M$65+N$65,"") ->  | P65: =IF($C$7="---","",IFERROR(3.6*(P105-P85*$I$32),"")) ->  | R65: =IFERROR(P$65+Q$65,"") ->  | S65: =IF($C$7="---","",IFERROR(3.6*(S105-S85*$I$32),"")) ->  | U65: =IFERROR(S$65+T$65,"") ->  | V65: =IF($C$7="---","",IFERROR(3.6*(V105-V85*$I$32),"")) ->  | X65: =IFERROR(V$65+W$65,"") ->  | Y65: =IF($C$7="---","",IFERROR(3.6*(Y105-Y85*$I$32),"")) ->  | AA65: =IFERROR(Y$65+Z$65,"") ->  | AB65: =IF($C$7="---","",IFERROR(3.6*(AB105-AB85*$I$32),"")) ->  | AD65: =IFERROR(AB$65+AC$65,"") ->  | AE65: =IF($C$7="---","",IFERROR(3.6*(AE105-AE85*$I$32),"")) ->  | AG65: =IFERROR(AE$65+AF$65,"") ->  | AH65: 9
C66: 10 | D66: =IF($C$7="---","",IFERROR(3.6*(D106-D86*$I$32),"")) ->  | F66: =IFERROR(D$66+E$66,"") ->  | G66: =IF($C$7="---","",IFERROR(3.6*(G106-G86*$I$32),"")) ->  | I66: =IFERROR(G$66+H$66,"") ->  | J66: =IF($C$7="---","",IFERROR(3.6*(J106-J86*$I$32),"")) ->  | L66: =IFERROR(J$66+K$66,"") ->  | M66: =IF($C$7="---","",IFERROR(3.6*(M106-M86*$I$32),"")) ->  | O66: =IFERROR(M$66+N$66,"") ->  | P66: =IF($C$7="---","",IFERROR(3.6*(P106-P86*$I$32),"")) ->  | R66: =IFERROR(P$66+Q$66,"") ->  | S66: =IF($C$7="---","",IFERROR(3.6*(S106-S86*$I$32),"")) ->  | U66: =IFERROR(S$66+T$66,"") ->  | V66: =IF($C$7="---","",IFERROR(3.6*(V106-V86*$I$32),"")) ->  | X66: =IFERROR(V$66+W$66,"") ->  | Y66: =IF($C$7="---","",IFERROR(3.6*(Y106-Y86*$I$32),"")) ->  | AA66: =IFERROR(Y$66+Z$66,"") ->  | AB66: =IF($C$7="---","",IFERROR(3.6*(AB106-AB86*$I$32),"")) ->  | AD66: =IFERROR(AB$66+AC$66,"") ->  | AE66: =IF($C$7="---","",IFERROR(3.6*(AE106-AE86*$I$32),"")) ->  | AG66: =IFERROR(AE$66+AF$66,"") ->  | AH66: 10
C67: 11 | D67: =IF($C$7="---","",IFERROR(3.6*(D107-D87*$I$32),"")) ->  | F67: =IFERROR(D$67+E$67,"") ->  | G67: =IF($C$7="---","",IFERROR(3.6*(G107-G87*$I$32),"")) ->  | I67: =IFERROR(G$67+H$67,"") ->  | J67: =IF($C$7="---","",IFERROR(3.6*(J107-J87*$I$32),"")) ->  | L67: =IFERROR(J$67+K$67,"") ->  | M67: =IF($C$7="---","",IFERROR(3.6*(M107-M87*$I$32),"")) ->  | O67: =IFERROR(M$67+N$67,"") ->  | P67: =IF($C$7="---","",IFERROR(3.6*(P107-P87*$I$32),"")) ->  | R67: =IFERROR(P$67+Q$67,"") ->  | S67: =IF($C$7="---","",IFERROR(3.6*(S107-S87*$I$32),"")) ->  | U67: =IFERROR(S$67+T$67,"") ->  | V67: =IF($C$7="---","",IFERROR(3.6*(V107-V87*$I$32),"")) ->  | X67: =IFERROR(V$67+W$67,"") ->  | Y67: =IF($C$7="---","",IFERROR(3.6*(Y107-Y87*$I$32),"")) ->  | AA67: =IFERROR(Y$67+Z$67,"") ->  | AB67: =IF($C$7="---","",IFERROR(3.6*(AB107-AB87*$I$32),"")) ->  | AD67: =IFERROR(AB$67+AC$67,"") ->  | AE67: =IF($C$7="---","",IFERROR(3.6*(AE107-AE87*$I$32),"")) ->  | AG67: =IFERROR(AE$67+AF$67,"") ->  | AH67: 11
C68: 12 | D68: =IF($C$7="---","",IFERROR(3.6*(D108-D88*$I$32),"")) ->  | F68: =IFERROR(D$68+E$68,"") ->  | G68: =IF($C$7="---","",IFERROR(3.6*(G108-G88*$I$32),"")) ->  | I68: =IFERROR(G$68+H$68,"") ->  | J68: =IF($C$7="---","",IFERROR(3.6*(J108-J88*$I$32),"")) ->  | L68: =IFERROR(J$68+K$68,"") ->  | M68: =IF($C$7="---","",IFERROR(3.6*(M108-M88*$I$32),"")) ->  | O68: =IFERROR(M$68+N$68,"") ->  | P68: =IF($C$7="---","",IFERROR(3.6*(P108-P88*$I$32),"")) ->  | R68: =IFERROR(P$68+Q$68,"") ->  | S68: =IF($C$7="---","",IFERROR(3.6*(S108-S88*$I$32),"")) ->  | U68: =IFERROR(S$68+T$68,"") ->  | V68: =IF($C$7="---","",IFERROR(3.6*(V108-V88*$I$32),"")) ->  | X68: =IFERROR(V$68+W$68,"") ->  | Y68: =IF($C$7="---","",IFERROR(3.6*(Y108-Y88*$I$32),"")) ->  | AA68: =IFERROR(Y$68+Z$68,"") ->  | AB68: =IF($C$7="---","",IFERROR(3.6*(AB108-AB88*$I$32),"")) ->  | AD68: =IFERROR(AB$68+AC$68,"") ->  | AE68: =IF($C$7="---","",IFERROR(3.6*(AE108-AE88*$I$32),"")) ->  | AG68: =IFERROR(AE$68+AF$68,"") ->  | AH68: 12
C69: 1 | D69: =IF($C$7="---","",IFERROR(3.6*(D109-D89*$I$32),"")) ->  | F69: =IFERROR(D$69+E$69,"") ->  | G69: =IF($C$7="---","",IFERROR(3.6*(G109-G89*$I$32),"")) ->  | I69: =IFERROR(G$69+H$69,"") ->  | J69: =IF($C$7="---","",IFERROR(3.6*(J109-J89*$I$32),"")) ->  | L69: =IFERROR(J$69+K$69,"") ->  | M69: =IF($C$7="---","",IFERROR(3.6*(M109-M89*$I$32),"")) ->  | O69: =IFERROR(M$69+N$69,"") ->  | P69: =IF($C$7="---","",IFERROR(3.6*(P109-P89*$I$32),"")) ->  | R69: =IFERROR(P$69+Q$69,"") ->  | S69: =IF($C$7="---","",IFERROR(3.6*(S109-S89*$I$32),"")) ->  | U69: =IFERROR(S$69+T$69,"") ->  | V69: =IF($C$7="---","",IFERROR(3.6*(V109-V89*$I$32),"")) ->  | X69: =IFERROR(V$69+W$69,"") ->  | Y69: =IF($C$7="---","",IFERROR(3.6*(Y109-Y89*$I$32),"")) ->  | AA69: =IFERROR(Y$69+Z$69,"") ->  | AB69: =IF($C$7="---","",IFERROR(3.6*(AB109-AB89*$I$32),"")) ->  | AD69: =IFERROR(AB$69+AC$69,"") ->  | AE69: =IF($C$7="---","",IFERROR(3.6*(AE109-AE89*$I$32),"")) ->  | AG69: =IFERROR(AE$69+AF$69,"") ->  | AH69: 1
C70: 2 | D70: =IF($C$7="---","",IFERROR(3.6*(D110-D90*$I$32),"")) ->  | F70: =IFERROR(D$70+E$70,"") ->  | G70: =IF($C$7="---","",IFERROR(3.6*(G110-G90*$I$32),"")) ->  | I70: =IFERROR(G$70+H$70,"") ->  | J70: =IF($C$7="---","",IFERROR(3.6*(J110-J90*$I$32),"")) ->  | L70: =IFERROR(J$70+K$70,"") ->  | M70: =IF($C$7="---","",IFERROR(3.6*(M110-M90*$I$32),"")) ->  | O70: =IFERROR(M$70+N$70,"") ->  | P70: =IF($C$7="---","",IFERROR(3.6*(P110-P90*$I$32),"")) ->  | R70: =IFERROR(P$70+Q$70,"") ->  | S70: =IF($C$7="---","",IFERROR(3.6*(S110-S90*$I$32),"")) ->  | U70: =IFERROR(S$70+T$70,"") ->  | V70: =IF($C$7="---","",IFERROR(3.6*(V110-V90*$I$32),"")) ->  | X70: =IFERROR(V$70+W$70,"") ->  | Y70: =IF($C$7="---","",IFERROR(3.6*(Y110-Y90*$I$32),"")) ->  | AA70: =IFERROR(Y$70+Z$70,"") ->  | AB70: =IF($C$7="---","",IFERROR(3.6*(AB110-AB90*$I$32),"")) ->  | AD70: =IFERROR(AB$70+AC$70,"") ->  | AE70: =IF($C$7="---","",IFERROR(3.6*(AE110-AE90*$I$32),"")) ->  | AG70: =IFERROR(AE$70+AF$70,"") ->  | AH70: 2
C71: 3 | D71: =IF($C$7="---","",IFERROR(3.6*(D111-D91*$I$32),"")) ->  | F71: =IFERROR(D$71+E$71,"") ->  | G71: =IF($C$7="---","",IFERROR(3.6*(G111-G91*$I$32),"")) ->  | I71: =IFERROR(G$71+H$71,"") ->  | J71: =IF($C$7="---","",IFERROR(3.6*(J111-J91*$I$32),"")) ->  | L71: =IFERROR(J$71+K$71,"") ->  | M71: =IF($C$7="---","",IFERROR(3.6*(M111-M91*$I$32),"")) ->  | O71: =IFERROR(M$71+N$71,"") ->  | P71: =IF($C$7="---","",IFERROR(3.6*(P111-P91*$I$32),"")) ->  | R71: =IFERROR(P$71+Q$71,"") ->  | S71: =IF($C$7="---","",IFERROR(3.6*(S111-S91*$I$32),"")) ->  | U71: =IFERROR(S$71+T$71,"") ->  | V71: =IF($C$7="---","",IFERROR(3.6*(V111-V91*$I$32),"")) ->  | X71: =IFERROR(V$71+W$71,"") ->  | Y71: =IF($C$7="---","",IFERROR(3.6*(Y111-Y91*$I$32),"")) ->  | AA71: =IFERROR(Y$71+Z$71,"") ->  | AB71: =IF($C$7="---","",IFERROR(3.6*(AB111-AB91*$I$32),"")) ->  | AD71: =IFERROR(AB$71+AC$71,"") ->  | AE71: =IF($C$7="---","",IFERROR(3.6*(AE111-AE91*$I$32),"")) ->  | AG71: =IFERROR(AE$71+AF$71,"") ->  | AH71: 3
C72: 合計 | D72: =IFERROR(SUM($D$60:$D$71),"") -> 0 | E72: =IFERROR(SUM($E$60:$E$71),"") -> 0 | F72: =IFERROR(SUM(F$60:F$71),"") -> 0 | G72: =IFERROR(SUM($G$60:$G$71),"") -> 0 | H72: =IFERROR(SUM($H$60:$H$71),"") -> 0 | I72: =IFERROR(SUM(I$60:I$71),"") -> 0 | J72: =IFERROR(SUM($J$60:$J$71),"") -> 0 | K72: =IFERROR(SUM($K$60:$K$71),"") -> 0 | L72: =IFERROR(SUM(L$60:L$71),"") -> 0 | M72: =IFERROR(SUM($M$60:$M$71),"") -> 0 | N72: =IFERROR(SUM($N$60:$N$71),"") -> 0 | O72: =IFERROR(SUM(O$60:O$71),"") -> 0 | P72: =IFERROR(SUM($P$60:$P$71),"") -> 0 | Q72: =IFERROR(SUM($Q$60:$Q$71),"") -> 0 | R72: =IFERROR(SUM(R$60:R$71),"") -> 0 | S72: =IFERROR(SUM($S$60:$S$71),"") -> 0 | T72: =IFERROR(SUM($T$60:$T$71),"") -> 0 | U72: =IFERROR(SUM(U$60:U$71),"") -> 0 | V72: =IFERROR(SUM($V$60:$V$71),"") -> 0 | W72: =IFERROR(SUM($W$60:$W$71),"") -> 0 | X72: =IFERROR(SUM(X$60:X$71),"") -> 0 | Y72: =IFERROR(SUM($Y$60:$Y$71),"") -> 0 | Z72: =IFERROR(SUM($Z$60:$Z$71),"") -> 0 | AA72: =IFERROR(SUM(AA$60:AA$71),"") -> 0 | AB72: =IFERROR(SUM($AB$60:$AB$71),"") -> 0 | AC72: =IFERROR(SUM($AC$60:$AC$71),"") -> 0 | AD72: =IFERROR(SUM(AD$60:AD$71),"") -> 0 | AE72: =IFERROR(SUM($AE$60:$AE$71),"") -> 0 | AF72: =IFERROR(SUM($AF$60:$AF$71),"") -> 0 | AG72: =IFERROR(SUM(AG$60:AG$71),"") -> 0 | AH72: 合計
C74: 設備導入前電力使用量[kWh]
D75: 冷房(Auxc) | F75: 暖房(Auxw) | H75: 合計(Aux)
D76: =IFERROR(D92*F78+G92*I78+J92*L78+M92*O78+P92*R78+S92*U78+V92*X78+Y92*AA78+AB92*AD78+AE92*AG78,"") -> 0 | F76: =IFERROR(E92*F78+H92*I78+K92*L78+N92*O78+Q92*R78+T92*U78+W92*X78+Z92*AA78+AC92*AD78+AF92*AG78,"") -> 0 | H76: =IFERROR(SUM(D76:G76),"") -> 0
D78: 前1 | F78: =IF($Q$38="",1,$Q$38) -> 1 | G78: 前2 | I78: =IF($R$38="",1,$R$38) -> 1 | J78: 前3 | L78: =IF($S$38="",1,$S$38) -> 1 | M78: 前4 | O78: =IF($T$38="",1,$T$38) -> 1 | P78: 前5 | R78: =IF($U$38="",1,$U$38) -> 1 | S78: 前6 | U78: =IF($V$38="",1,$V$38) -> 1 | V78: 前7 | X78: =IF($W$38="",1,$W$38) -> 1 | Y78: 前8 | AA78: =IF($X$38="",1,$X$38) -> 1 | AB78: 前9 | AD78: =IF($Y$38="",1,$Y$38) -> 1 | AE78: 前10 | AG78: =IF($Z$38="",1,$Z$38) -> 1
C79: 月 期間 | D79: 冷房 | E79: 暖房 | F79: 月合計 | G79: 冷房 | H79: 暖房 | I79: 月合計 | J79: 冷房 | K79: 暖房 | L79: 月合計 | M79: 冷房 | N79: 暖房 | O79: 月合計 | P79: 冷房 | Q79: 暖房 | R79: 月合計 | S79: 冷房 | T79: 暖房 | U79: 月合計 | V79: 冷房 | W79: 暖房 | X79: 月合計 | Y79: 冷房 | Z79: 暖房 | AA79: 月合計 | AB79: 冷房 | AC79: 暖房 | AD79: 月合計 | AE79: 冷房 | AF79: 暖房 | AG79: 月合計 | AH79: 期間 月
C80: 4 | D80: =IF($C$7="---","",IFERROR(D100*($Q$31*$I$32)/($Q$30+$Q$31*$I$32)/$I$32,"")) ->  | E80: =IF($C$7="---","",IFERROR(E100*($Q$35*$I$32)/($Q$34+$Q$35*$I$32)/$I$32,"")) ->  | F80: =IFERROR(D$80+E$80,"") ->  | G80: =IF($C$7="---","",IFERROR(G100*($R$31*$I$32)/($R$30+$R$31*$I$32)/$I$32,"")) ->  | H80: =IF($C$7="---","",IFERROR(H100*($R$35*$I$32)/($R$34+$R$35*$I$32)/$I$32,"")) ->  | I80: =IFERROR(G$80+H$80,"") ->  | J80: =IF($C$7="---","",IFERROR(J100*($S$31*$I$32)/($S$30+$S$31*$I$32)/$I$32,"")) ->  | K80: =IF($C$7="---","",IFERROR(K100*($S$35*$I$32)/($S$34+$S$35*$I$32)/$I$32,"")) ->  | L80: =IFERROR(J$80+K$80,"") ->  | M80: =IF($C$7="---","",IFERROR(M100*($T$31*$I$32)/($T$30+$T$31*$I$32)/$I$32,"")) ->  | N80: =IF($C$7="---","",IFERROR(N100*($T$35*$I$32)/($T$34+$T$35*$I$32)/$I$32,"")) ->  | O80: =IFERROR(M$80+N$80,"") ->  | P80: =IF($C$7="---","",IFERROR(P100*($U$31*$I$32)/($U$30+$U$31*$I$32)/$I$32,"")) ->  | Q80: =IF($C$7="---","",IFERROR(Q100*($U$35*$I$32)/($U$34+$U$35*$I$32)/$I$32,"")) ->  | R80: =IFERROR(P$80+Q$80,"") ->  | S80: =IF($C$7="---","",IFERROR(S100*($V$31*$I$32)/($V$30+$V$31*$I$32)/$I$32,"")) ->  | T80: =IF($C$7="---","",IFERROR(T100*($V$35*$I$32)/($V$34+$V$35*$I$32)/$I$32,"")) ->  | U80: =IFERROR(S$80+T$80,"") ->  | V80: =IF($C$7="---","",IFERROR(V100*($W$31*$I$32)/($W$30+$W$31*$I$32)/$I$32,"")) ->  | W80: =IF($C$7="---","",IFERROR(W100*($W$35*$I$32)/($W$34+$W$35*$I$32)/$I$32,"")) ->  | X80: =IFERROR(V$80+W$80,"") ->  | Y80: =IF($C$7="---","",IFERROR(Y100*($X$31*$I$32)/($X$30+$X$31*$I$32)/$I$32,"")) ->  | Z80: =IF($C$7="---","",IFERROR(Z100*($X$35*$I$32)/($X$34+$X$35*$I$32)/$I$32,"")) ->  | AA80: =IFERROR(Y$80+Z$80,"") ->  | AB80: =IF($C$7="---","",IFERROR(AB100*($Y$31*$I$32)/($Y$30+$Y$31*$I$32)/$I$32,"")) ->  | AC80: =IF($C$7="---","",IFERROR(AC100*($Y$35*$I$32)/($Y$34+$Y$35*$I$32)/$I$32,"")) ->  | AD80: =IFERROR(AB$80+AC$80,"") ->  | AE80: =IF($C$7="---","",IFERROR(AE100*($Z$31*$I$32)/($Z$30+$Z$31*$I$32)/$I$32,"")) ->  | AF80: =IF($C$7="---","",IFERROR(AF100*($Z$35*$I$32)/($Z$34+$Z$35*$I$32)/$I$32,"")) ->  | AG80: =IFERROR(AE$80+AF$80,"") ->  | AH80: 4
C81: 5 | D81: =IF($C$7="---","",IFERROR(D101*($Q$31*$I$32)/($Q$30+$Q$31*$I$32)/$I$32,"")) ->  | E81: =IF($C$7="---","",IFERROR(E101*($Q$35*$I$32)/($Q$34+$Q$35*$I$32)/$I$32,"")) ->  | F81: =IFERROR(D$81+E$81,"") ->  | G81: =IF($C$7="---","",IFERROR(G101*($R$31*$I$32)/($R$30+$R$31*$I$32)/$I$32,"")) ->  | H81: =IF($C$7="---","",IFERROR(H101*($R$35*$I$32)/($R$34+$R$35*$I$32)/$I$32,"")) ->  | I81: =IFERROR(G$81+H$81,"") ->  | J81: =IF($C$7="---","",IFERROR(J101*($S$31*$I$32)/($S$30+$S$31*$I$32)/$I$32,"")) ->  | K81: =IF($C$7="---","",IFERROR(K101*($S$35*$I$32)/($S$34+$S$35*$I$32)/$I$32,"")) ->  | L81: =IFERROR(J$81+K$81,"") ->  | M81: =IF($C$7="---","",IFERROR(M101*($T$31*$I$32)/($T$30+$T$31*$I$32)/$I$32,"")) ->  | N81: =IF($C$7="---","",IFERROR(N101*($T$35*$I$32)/($T$34+$T$35*$I$32)/$I$32,"")) ->  | O81: =IFERROR(M$81+N$81,"") ->  | P81: =IF($C$7="---","",IFERROR(P101*($U$31*$I$32)/($U$30+$U$31*$I$32)/$I$32,"")) ->  | Q81: =IF($C$7="---","",IFERROR(Q101*($U$35*$I$32)/($U$34+$U$35*$I$32)/$I$32,"")) ->  | R81: =IFERROR(P$81+Q$81,"") ->  | S81: =IF($C$7="---","",IFERROR(S101*($V$31*$I$32)/($V$30+$V$31*$I$32)/$I$32,"")) ->  | T81: =IF($C$7="---","",IFERROR(T101*($V$35*$I$32)/($V$34+$V$35*$I$32)/$I$32,"")) ->  | U81: =IFERROR(S$81+T$81,"") ->  | V81: =IF($C$7="---","",IFERROR(V101*($W$31*$I$32)/($W$30+$W$31*$I$32)/$I$32,"")) ->  | W81: =IF($C$7="---","",IFERROR(W101*($W$35*$I$32)/($W$34+$W$35*$I$32)/$I$32,"")) ->  | X81: =IFERROR(V$81+W$81,"") ->  | Y81: =IF($C$7="---","",IFERROR(Y101*($X$31*$I$32)/($X$30+$X$31*$I$32)/$I$32,"")) ->  | Z81: =IF($C$7="---","",IFERROR(Z101*($X$35*$I$32)/($X$34+$X$35*$I$32)/$I$32,"")) ->  | AA81: =IFERROR(Y$81+Z$81,"") ->  | AB81: =IF($C$7="---","",IFERROR(AB101*($Y$31*$I$32)/($Y$30+$Y$31*$I$32)/$I$32,"")) ->  | AC81: =IF($C$7="---","",IFERROR(AC101*($Y$35*$I$32)/($Y$34+$Y$35*$I$32)/$I$32,"")) ->  | AD81: =IFERROR(AB$81+AC$81,"") ->  | AE81: =IF($C$7="---","",IFERROR(AE101*($Z$31*$I$32)/($Z$30+$Z$31*$I$32)/$I$32,"")) ->  | AF81: =IF($C$7="---","",IFERROR(AF101*($Z$35*$I$32)/($Z$34+$Z$35*$I$32)/$I$32,"")) ->  | AG81: =IFERROR(AE$81+AF$81,"") ->  | AH81: 5
C82: 6 | F82: =IFERROR(D$82+E$82,"") ->  | I82: =IFERROR(G$82+H$82,"") ->  | L82: =IFERROR(J$82+K$82,"") ->  | O82: =IFERROR(M$82+N$82,"") ->  | P82: =IF($C$7="---","",IFERROR(P102*($U$31*$I$32)/($U$30+$U$31*$I$32)/$I$32,"")) ->  | R82: =IFERROR(P$82+Q$82,"") ->  | U82: =IFERROR(S$82+T$82,"") ->  | X82: =IFERROR(V$82+W$82,"") ->  | AA82: =IFERROR(Y$82+Z$82,"") ->  | AD82: =IFERROR(AB$82+AC$82,"") ->  | AG82: =IFERROR(AE$82+AF$82,"") ->  | AH82: 6
C83: 7 | F83: =IFERROR(D$83+E$83,"") ->  | I83: =IFERROR(G$83+H$83,"") ->  | L83: =IFERROR(J$83+K$83,"") ->  | O83: =IFERROR(M$83+N$83,"") ->  | R83: =IFERROR(P$83+Q$83,"") ->  | U83: =IFERROR(S$83+T$83,"") ->  | X83: =IFERROR(V$83+W$83,"") ->  | AA83: =IFERROR(Y$83+Z$83,"") ->  | AD83: =IFERROR(AB$83+AC$83,"") ->  | AG83: =IFERROR(AE$83+AF$83,"") ->  | AH83: 7
C84: 8 | F84: =IFERROR(D$84+E$84,"") ->  | I84: =IFERROR(G$84+H$84,"") ->  | L84: =IFERROR(J$84+K$84,"") ->  | O84: =IFERROR(M$84+N$84,"") ->  | R84: =IFERROR(P$84+Q$84,"") ->  | U84: =IFERROR(S$84+T$84,"") ->  | X84: =IFERROR(V$84+W$84,"") ->  | AA84: =IFERROR(Y$84+Z$84,"") ->  | AD84: =IFERROR(AB$84+AC$84,"") ->  | AG84: =IFERROR(AE$84+AF$84,"") ->  | AH84: 8
C85: 9 | F85: =IFERROR(D$85+E$85,"") ->  | I85: =IFERROR(G$85+H$85,"") ->  | L85: =IFERROR(J$85+K$85,"") ->  | O85: =IFERROR(M$85+N$85,"") ->  | R85: =IFERROR(P$85+Q$85,"") ->  | U85: =IFERROR(S$85+T$85,"") ->  | X85: =IFERROR(V$85+W$85,"") ->  | AA85: =IFERROR(Y$85+Z$85,"") ->  | AD85: =IFERROR(AB$85+AC$85,"") ->  | AG85: =IFERROR(AE$85+AF$85,"") ->  | AH85: 9
C86: 10 | F86: =IFERROR(D$86+E$86,"") ->  | I86: =IFERROR(G$86+H$86,"") ->  | L86: =IFERROR(J$86+K$86,"") ->  | O86: =IFERROR(M$86+N$86,"") ->  | R86: =IFERROR(P$86+Q$86,"") ->  | U86: =IFERROR(S$86+T$86,"") ->  | X86: =IFERROR(V$86+W$86,"") ->  | AA86: =IFERROR(Y$86+Z$86,"") ->  | AD86: =IFERROR(AB$86+AC$86,"") ->  | AG86: =IFERROR(AE$86+AF$86,"") ->  | AH86: 10
C87: 11 | F87: =IFERROR(D$87+E$87,"") ->  | I87: =IFERROR(G$87+H$87,"") ->  | L87: =IFERROR(J$87+K$87,"") ->  | O87: =IFERROR(M$87+N$87,"") ->  | R87: =IFERROR(P$87+Q$87,"") ->  | U87: =IFERROR(S$87+T$87,"") ->  | X87: =IFERROR(V$87+W$87,"") ->  | AA87: =IFERROR(Y$87+Z$87,"") ->  | AD87: =IFERROR(AB$87+AC$87,"") ->  | AG87: =IFERROR(AE$87+AF$87,"") ->  | AH87: 11
C88: 12 | F88: =IFERROR(D$88+E$88,"") ->  | I88: =IFERROR(G$88+H$88,"") ->  | L88: =IFERROR(J$88+K$88,"") ->  | O88: =IFERROR(M$88+N$88,"") ->  | R88: =IFERROR(P$88+Q$88,"") ->  | U88: =IFERROR(S$88+T$88,"") ->  | X88: =IFERROR(V$88+W$88,"") ->  | AA88: =IFERROR(Y$88+Z$88,"") ->  | AD88: =IFERROR(AB$88+AC$88,"") ->  | AG88: =IFERROR(AE$88+AF$88,"") ->  | AH88: 12
C89: 1 | F89: =IFERROR(D$89+E$89,"") ->  | I89: =IFERROR(G$89+H$89,"") ->  | L89: =IFERROR(J$89+K$89,"") ->  | O89: =IFERROR(M$89+N$89,"") ->  | R89: =IFERROR(P$89+Q$89,"") ->  | U89: =IFERROR(S$89+T$89,"") ->  | X89: =IFERROR(V$89+W$89,"") ->  | AA89: =IFERROR(Y$89+Z$89,"") ->  | AD89: =IFERROR(AB$89+AC$89,"") ->  | AG89: =IFERROR(AE$89+AF$89,"") ->  | AH89: 1
C90: 2 | F90: =IFERROR(D$90+E$90,"") ->  | I90: =IFERROR(G$90+H$90,"") ->  | L90: =IFERROR(J$90+K$90,"") ->  | O90: =IFERROR(M$90+N$90,"") ->  | R90: =IFERROR(P$90+Q$90,"") ->  | U90: =IFERROR(S$90+T$90,"") ->  | X90: =IFERROR(V$90+W$90,"") ->  | AA90: =IFERROR(Y$90+Z$90,"") ->  | AD90: =IFERROR(AB$90+AC$90,"") ->  | AG90: =IFERROR(AE$90+AF$90,"") ->  | AH90: 2
C91: 3 | F91: =IFERROR(D$91+E$91,"") ->  | I91: =IFERROR(G$91+H$91,"") ->  | L91: =IFERROR(J$91+K$91,"") ->  | O91: =IFERROR(M$91+N$91,"") ->  | R91: =IFERROR(P$91+Q$91,"") ->  | U91: =IFERROR(S$91+T$91,"") ->  | X91: =IFERROR(V$91+W$91,"") ->  | AA91: =IFERROR(Y$91+Z$91,"") ->  | AD91: =IFERROR(AB$91+AC$91,"") ->  | AG91: =IFERROR(AE$91+AF$91,"") ->  | AH91: 3
C92: 合計 | D92: =IFERROR(SUM(D$80:D$91),"") -> 0 | E92: 0 | F92: 0 | G92: 0 | H92: 0 | I92: 0 | J92: 0 | K92: 0 | L92: 0 | M92: 0 | N92: 0 | O92: 0 | P92: 0 | Q92: 0 | R92: 0 | S92: 0 | T92: 0 | U92: 0 | V92: 0 | W92: 0 | X92: 0 | Y92: 0 | Z92: 0 | AA92: 0 | AB92: 0 | AC92: 0 | AD92: 0 | AE92: 0 | AF92: 0 | AG92: 0 | AH92: 合計
C94: 設備導入前エネルギー使用量［kWh]
D95: 冷房(Ec) | F95: 暖房(Ew) | H95: 合計(E)
D96: =IFERROR(D112*F98+G112*I98+J112*L98+M112*O98+P112*R98+S112*U98+V112*X98+Y112*AA98+AB112*AD98+AE112*AG98,"") -> 0 | F96: =IFERROR(E112*F98+H112*I98+K112*L98+N112*O98+Q112*R98+T112*U98+W112*X98+Z112*AA98+AC112*AD98+AF112*AG98,"") -> 0 | H96: =IFERROR(SUM(D96:G96),"") -> 0
D98: 前1 | F98: =IF($Q$38="",1,$Q$38) -> 1 | G98: 前2 | I98: =IF($R$38="",1,$R$38) -> 1 | J98: 前3 | L98: =IF($S$38="",1,$S$38) -> 1 | M98: 前4 | O98: =IF($T$38="",1,$T$38) -> 1 | P98: 前5 | R98: =IF($U$38="",1,$U$38) -> 1 | S98: 前6 | U98: =IF($V$38="",1,$V$38) -> 1 | V98: 前7 | X98: =IF($W$38="",1,$W$38) -> 1 | Y98: 前8 | AA98: =IF($X$38="",1,$X$38) -> 1 | AB98: 前9 | AD98: =IF($Y$38="",1,$Y$38) -> 1 | AE98: 前10 | AG98: =IF($Z$38="",1,$Z$38) -> 1
C99: 月 期間 | D99: 冷房 | E99: 暖房 | F99: 月合計 | G99: 冷房 | H99: 暖房 | I99: 月合計 | J99: 冷房 | K99: 暖房 | L99: 月合計 | M99: 冷房 | N99: 暖房 | O99: 月合計 | P99: 冷房 | Q99: 暖房 | R99: 月合計 | S99: 冷房 | T99: 暖房 | U99: 月合計 | V99: 冷房 | W99: 暖房 | X99: 月合計 | Y99: 冷房 | Z99: 暖房 | AA99: 月合計 | AB99: 冷房 | AC99: 暖房 | AD99: 月合計 | AE99: 冷房 | AF99: 暖房 | AG99: 月合計 | AH99: 期間 月
C100: 4 | D100: =IF($C$7="---","",IFERROR($Q$29/$Q$32*$AU225*$Q$39,"")) ->  | E100: =IF($C$7="---","",IFERROR($Q$29*$C$7/$Q$36*$AU365*$Q$39,"")) ->  | F100: =IFERROR(D$100+E$100,"") ->  | G100: =IF($C$7="---","",IFERROR($R$29/$R$32*$AV225*$R$39,"")) ->  | H100: =IF($C$7="---","",IFERROR($R$29*$C$7/$R$36*$AV365*$R$39,"")) ->  | I100: =IFERROR(G$100+H$100,"") ->  | J100: =IF($C$7="---","",IFERROR($S$29/$S$32*$AW225*$S$39,"")) ->  | K100: =IF($C$7="---","",IFERROR($S$29*$C$7/$S$36*$AW365*$S$39,"")) ->  | L100: =IFERROR(J$100+K$100,"") ->  | M100: =IF($C$7="---","",IFERROR($T$29/$T$32*$AX225*$T$39,"")) ->  | N100: =IF($C$7="---","",IFERROR($T$29*$C$7/$T$36*$AX365*$T$39,"")) ->  | O100: =IFERROR(M$100+N$100,"") ->  | P100: =IF($C$7="---","",IFERROR($U$29/$U$32*$AY225*$U$39,"")) ->  | Q100: =IF($C$7="---","",IFERROR($U$29*$C$7/$U$36*$AY365*$U$39,"")) ->  | R100: =IFERROR(P$100+Q$100,"") ->  | S100: =IF($C$7="---","",IFERROR($V$29/$V$32*$AZ225*$V$39,"")) ->  | T100: =IF($C$7="---","",IFERROR($V$29*$C$7/$V$36*$AZ365*$V$39,"")) ->  | U100: =IFERROR(S$100+T$100,"") ->  | V100: =IF($C$7="---","",IFERROR($W$29/$W$32*$BA225*$W$39,"")) ->  | W100: =IF($C$7="---","",IFERROR($W$29*$C$7/$W$36*$BA365*$W$39,"")) ->  | X100: =IFERROR(V$100+W$100,"") ->  | Y100: =IF($C$7="---","",IFERROR($X$29/$X$32*$BB225*$X$39,"")) ->  | Z100: =IF($C$7="---","",IFERROR($X$29*$C$7/$X$36*$BB365*$X$39,"")) ->  | AA100: =IFERROR(Y$100+Z$100,"") ->  | AB100: =IF($C$7="---","",IFERROR($Y$29/$Y$32*$BC225*$Y$39,"")) ->  | AC100: =IF($C$7="---","",IFERROR($Y$29*$C$7/$Y$36*$BC365*$Y$39,"")) ->  | AD100: =IFERROR(AB$100+AC$100,"") ->  | AE100: =IF($C$7="---","",IFERROR($Z$29/$Z$32*$BD225*$Z$39,"")) ->  | AF100: =IF($C$7="---","",IFERROR($Z$29*$C$7/$Z$36*$BD365*$Z$39,"")) ->  | AG100: =IFERROR(AE$100+AF$100,"") ->  | AH100: 4
C101: 5 | F101: =IFERROR(D$101+E$101,"") ->  | I101: =IFERROR(G$101+H$101,"") ->  | L101: =IFERROR(J$101+K$101,"") ->  | O101: =IFERROR(M$101+N$101,"") ->  | R101: =IFERROR(P$101+Q$101,"") ->  | U101: =IFERROR(S$101+T$101,"") ->  | X101: =IFERROR(V$101+W$101,"") ->  | AA101: =IFERROR(Y$101+Z$101,"") ->  | AD101: =IFERROR(AB$101+AC$101,"") ->  | AG101: =IFERROR(AE$101+AF$101,"") ->  | AH101: 5
C102: 6 | F102: =IFERROR(D$102+E$102,"") ->  | I102: =IFERROR(G$102+H$102,"") ->  | L102: =IFERROR(J$102+K$102,"") ->  | O102: =IFERROR(M$102+N$102,"") ->  | R102: =IFERROR(P$102+Q$102,"") ->  | U102: =IFERROR(S$102+T$102,"") ->  | X102: =IFERROR(V$102+W$102,"") ->  | AA102: =IFERROR(Y$102+Z$102,"") ->  | AD102: =IFERROR(AB$102+AC$102,"") ->  | AG102: =IFERROR(AE$102+AF$102,"") ->  | AH102: 6
C103: 7 | F103: =IFERROR(D$103+E$103,"") ->  | I103: =IFERROR(G$103+H$103,"") ->  | L103: =IFERROR(J$103+K$103,"") ->  | O103: =IFERROR(M$103+N$103,"") ->  | R103: =IFERROR(P$103+Q$103,"") ->  | U103: =IFERROR(S$103+T$103,"") ->  | X103: =IFERROR(V$103+W$103,"") ->  | AA103: =IFERROR(Y$103+Z$103,"") ->  | AD103: =IFERROR(AB$103+AC$103,"") ->  | AG103: =IFERROR(AE$103+AF$103,"") ->  | AH103: 7
C104: 8 | F104: =IFERROR(D$104+E$104,"") ->  | I104: =IFERROR(G$104+H$104,"") ->  | L104: =IFERROR(J$104+K$104,"") ->  | O104: =IFERROR(M$104+N$104,"") ->  | R104: =IFERROR(P$104+Q$104,"") ->  | U104: =IFERROR(S$104+T$104,"") ->  | X104: =IFERROR(V$104+W$104,"") ->  | AA104: =IFERROR(Y$104+Z$104,"") ->  | AD104: =IFERROR(AB$104+AC$104,"") ->  | AG104: =IFERROR(AE$104+AF$104,"") ->  | AH104: 8
C105: 9 | F105: =IFERROR(D$105+E$105,"") ->  | I105: =IFERROR(G$105+H$105,"") ->  | L105: =IFERROR(J$105+K$105,"") ->  | O105: =IFERROR(M$105+N$105,"") ->  | R105: =IFERROR(P$105+Q$105,"") ->  | U105: =IFERROR(S$105+T$105,"") ->  | X105: =IFERROR(V$105+W$105,"") ->  | AA105: =IFERROR(Y$105+Z$105,"") ->  | AD105: =IFERROR(AB$105+AC$105,"") ->  | AG105: =IFERROR(AE$105+AF$105,"") ->  | AH105: 9
C106: 10 | F106: =IFERROR(D$106+E$106,"") ->  | I106: =IFERROR(G$106+H$106,"") ->  | L106: =IFERROR(J$106+K$106,"") ->  | O106: =IFERROR(M$106+N$106,"") ->  | R106: =IFERROR(P$106+Q$106,"") ->  | U106: =IFERROR(S$106+T$106,"") ->  | X106: =IFERROR(V$106+W$106,"") ->  | AA106: =IFERROR(Y$106+Z$106,"") ->  | AD106: =IFERROR(AB$106+AC$106,"") ->  | AG106: =IFERROR(AE$106+AF$106,"") ->  | AH106: 10
C107: 11 | F107: =IFERROR(D$107+E$107,"") ->  | I107: =IFERROR(G$107+H$107,"") ->  | L107: =IFERROR(J$107+K$107,"") ->  | O107: =IFERROR(M$107+N$107,"") ->  | R107: =IFERROR(P$107+Q$107,"") ->  | U107: =IFERROR(S$107+T$107,"") ->  | X107: =IFERROR(V$107+W$107,"") ->  | AA107: =IFERROR(Y$107+Z$107,"") ->  | AD107: =IFERROR(AB$107+AC$107,"") ->  | AG107: =IFERROR(AE$107+AF$107,"") ->  | AH107: 11
C108: 12 | F108: =IFERROR(D$108+E$108,"") ->  | I108: =IFERROR(G$108+H$108,"") ->  | L108: =IFERROR(J$108+K$108,"") ->  | O108: =IFERROR(M$108+N$108,"") ->  | R108: =IFERROR(P$108+Q$108,"") ->  | U108: =IFERROR(S$108+T$108,"") ->  | X108: =IFERROR(V$108+W$108,"") ->  | AA108: =IFERROR(Y$108+Z$108,"") ->  | AD108: =IFERROR(AB$108+AC$108,"") ->  | AG108: =IFERROR(AE$108+AF$108,"") ->  | AH108: 12
C109: 1 | F109: =IFERROR(D$109+E$109,"") ->  | I109: =IFERROR(G$109+H$109,"") ->  | L109: =IFERROR(J$109+K$109,"") ->  | O109: =IFERROR(M$109+N$109,"") ->  | R109: =IFERROR(P$109+Q$109,"") ->  | U109: =IFERROR(S$109+T$109,"") ->  | X109: =IFERROR(V$109+W$109,"") ->  | AA109: =IFERROR(Y$109+Z$109,"") ->  | AD109: =IFERROR(AB$109+AC$109,"") ->  | AG109: =IFERROR(AE$109+AF$109,"") ->  | AH109: 1
C110: 2 | F110: =IFERROR(D$110+E$110,"") ->  | I110: =IFERROR(G$110+H$110,"") ->  | L110: =IFERROR(J$110+K$110,"") ->  | O110: =IFERROR(M$110+N$110,"") ->  | R110: =IFERROR(P$110+Q$110,"") ->  | U110: =IFERROR(S$110+T$110,"") ->  | X110: =IFERROR(V$110+W$110,"") ->  | AA110: =IFERROR(Y$110+Z$110,"") ->  | AD110: =IFERROR(AB$110+AC$110,"") ->  | AG110: =IFERROR(AE$110+AF$110,"") ->  | AH110: 2
C111: 3 | F111: =IFERROR(D$111+E$111,"") ->  | I111: =IFERROR(G$111+H$111,"") ->  | L111: =IFERROR(J$111+K$111,"") ->  | O111: =IFERROR(M$111+N$111,"") ->  | R111: =IFERROR(P$111+Q$111,"") ->  | U111: =IFERROR(S$111+T$111,"") ->  | X111: =IFERROR(V$111+W$111,"") ->  | AA111: =IFERROR(Y$111+Z$111,"") ->  | AD111: =IFERROR(AB$111+AC$111,"") ->  | AG111: =IFERROR(AE$111+AF$111,"") ->  | AH111: 3
C112: 合計 | D112: =IFERROR(SUM(D$100:D$111),"") -> 0 | E112: =IFERROR(SUM(E$100:E$111),"") -> 0 | F112: =IFERROR(SUM(F$100:F$111),"") -> 0 | G112: =IFERROR(SUM(G$100:G$111),"") -> 0 | H112: =IFERROR(SUM(H$100:H$111),"") -> 0 | I112: =IFERROR(SUM(I$100:I$111),"") -> 0 | J112: 0 | K112: 0 | L112: 0 | M112: 0 | N112: 0 | O112: 0 | P112: 0 | Q112: 0 | R112: 0 | S112: 0 | T112: 0 | U112: 0 | V112: 0 | W112: 0 | X112: 0 | Y112: 0 | Z112: 0 | AA112: 0 | AB112: 0 | AC112: 0 | AD112: 0 | AE112: 0 | AF112: 0 | AG112: 0 | AH112: 合計
C114: 設備導入後ガス使用量［MJ]
D115: 冷房(Gc) | F115: 暖房(Gw) | H115: 合計
D116: =IFERROR(D132*F118+G132*I118+J132*L118+M132*O118+P132*R118+S132*U118+V132*X118+Y132*AA118+AB132*AD118+AE132*AG118,"") -> 0 | F116: =IFERROR(E132*F118+H132*I118+K132*L118+N132*O118+Q132*R118+T132*U118+W132*X118+Z132*AA118+AC132*AD118+AF132*AG118,"") -> 0 | H116: =IFERROR(SUM(D116:G116),"") -> 0
D118: 後1 | F118: =IF($Q$52="",1,$Q$52) -> 1 | G118: 後2 | I118: =IF($R$52="",1,$R$52) -> 1 | J118: 後3 | L118: =IF($S$52="",1,$S$52) -> 1 | M118: 後4 | O118: =IF($T$52="",1,$T$52) -> 1 | P118: 後5 | R118: =IF($U$52="",1,$U$52) -> 1 | S118: 後6 | U118: =IF($V$52="",1,$V$52) -> 1 | V118: 後7 | X118: =IF($W$52="",1,$W$52) -> 1 | Y118: 後8 | AA118: =IF($X$52="",1,$X$52) -> 1 | AB118: 後9 | AD118: =IF($Y$52="",1,$Y$52) -> 1 | AE118: 後10 | AG118: =IF($Z$52="",1,$Z$52) -> 1
C119: 月 期間 | D119: 冷房 | E119: 暖房 | F119: 月合計 | G119: 冷房 | H119: 暖房 | I119: 月合計 | J119: 冷房 | K119: 暖房 | L119: 月合計 | M119: 冷房 | N119: 暖房 | O119: 月合計 | P119: 冷房 | Q119: 暖房 | R119: 月合計 | S119: 冷房 | T119: 暖房 | U119: 月合計 | V119: 冷房 | W119: 暖房 | X119: 月合計 | Y119: 冷房 | Z119: 暖房 | AA119: 月合計 | AB119: 冷房 | AC119: 暖房 | AD119: 月合計 | AE119: 冷房 | AF119: 暖房 | AG119: 月合計 | AH119: 期間 月
C120: 4 | D120: =IF($C$7="---","",IFERROR(3.6*(D160-D140*$I$46),"")) ->  | E120: =IF($C$7="---","",IFERROR(3.6*(E160-E140*$I$46),"")) ->  | F120: =IFERROR(D120+E120,"") ->  | G120: =IF($C$7="---","",IFERROR(3.6*(G160-G140*$I$46),"")) ->  | H120: =IF($C$7="---","",IFERROR(3.6*(H160-H140*$I$46),"")) ->  | I120: =IFERROR(G120+H120,"") ->  | J120: =IF($C$7="---","",IFERROR(3.6*(J160-J140*$I$46),"")) ->  | K120: =IF($C$7="---","",IFERROR(3.6*(K160-K140*$I$46),"")) ->  | L120: =IFERROR(J120+K120,"") ->  | M120: =IF($C$7="---","",IFERROR(3.6*(M160-M140*$I$46),"")) ->  | N120: =IF($C$7="---","",IFERROR(3.6*(N160-N140*$I$46),"")) ->  | O120: =IFERROR(M120+N120,"") ->  | P120: =IF($C$7="---","",IFERROR(3.6*(P160-P140*$I$46),"")) ->  | Q120: =IF($C$7="---","",IFERROR(3.6*(Q160-Q140*$I$46),"")) ->  | R120: =IFERROR(P120+Q120,"") ->  | S120: =IF($C$7="---","",IFERROR(3.6*(S160-S140*$I$46),"")) ->  | T120: =IF($C$7="---","",IFERROR(3.6*(T160-T140*$I$46),"")) ->  | U120: =IFERROR(S120+T120,"") ->  | V120: =IF($C$7="---","",IFERROR(3.6*(V160-V140*$I$46),"")) ->  | W120: =IF($C$7="---","",IFERROR(3.6*(W160-W140*$I$46),"")) ->  | X120: =IFERROR(V120+W120,"") ->  | Y120: =IF($C$7="---","",IFERROR(3.6*(Y160-Y140*$I$46),"")) ->  | Z120: =IF($C$7="---","",IFERROR(3.6*(Z160-Z140*$I$46),"")) ->  | AA120: =IFERROR(Y120+Z120,"") ->  | AB120: =IF($C$7="---","",IFERROR(3.6*(AB160-AB140*$I$46),"")) ->  | AC120: =IF($C$7="---","",IFERROR(3.6*(AC160-AC140*$I$46),"")) ->  | AD120: =IFERROR(AB120+AC120,"") ->  | AE120: =IF($C$7="---","",IFERROR(3.6*(AE160-AE140*$I$46),"")) ->  | AF120: =IF($C$7="---","",IFERROR(3.6*(AF160-AF140*$I$46),"")) ->  | AG120: =IFERROR(AE120+AF120,"") ->  | AH120: 4
C121: 5 | D121: =IF($C$7="---","",IFERROR(3.6*(D161-D141*$I$46),"")) ->  | F121: =IFERROR(D121+E121,"") ->  | G121: =IF($C$7="---","",IFERROR(3.6*(G161-G141*$I$46),"")) ->  | I121: =IFERROR(G121+H121,"") ->  | J121: =IF($C$7="---","",IFERROR(3.6*(J161-J141*$I$46),"")) ->  | L121: =IFERROR(J121+K121,"") ->  | M121: =IF($C$7="---","",IFERROR(3.6*(M161-M141*$I$46),"")) ->  | O121: =IFERROR(M121+N121,"") ->  | P121: =IF($C$7="---","",IFERROR(3.6*(P161-P141*$I$46),"")) ->  | R121: =IFERROR(P121+Q121,"") ->  | S121: =IF($C$7="---","",IFERROR(3.6*(S161-S141*$I$46),"")) ->  | U121: =IFERROR(S121+T121,"") ->  | V121: =IF($C$7="---","",IFERROR(3.6*(V161-V141*$I$46),"")) ->  | X121: =IFERROR(V121+W121,"") ->  | Y121: =IF($C$7="---","",IFERROR(3.6*(Y161-Y141*$I$46),"")) ->  | AA121: =IFERROR(Y121+Z121,"") ->  | AB121: =IF($C$7="---","",IFERROR(3.6*(AB161-AB141*$I$46),"")) ->  | AD121: =IFERROR(AB121+AC121,"") ->  | AE121: =IF($C$7="---","",IFERROR(3.6*(AE161-AE141*$I$46),"")) ->  | AG121: =IFERROR(AE121+AF121,"") ->  | AH121: 5
C122: 6 | D122: =IF($C$7="---","",IFERROR(3.6*(D162-D142*$I$46),"")) ->  | G122: =IF($C$7="---","",IFERROR(3.6*(G162-G142*$I$46),"")) ->  | J122: =IF($C$7="---","",IFERROR(3.6*(J162-J142*$I$46),"")) ->  | M122: =IF($C$7="---","",IFERROR(3.6*(M162-M142*$I$46),"")) ->  | P122: =IF($C$7="---","",IFERROR(3.6*(P162-P142*$I$46),"")) ->  | S122: =IF($C$7="---","",IFERROR(3.6*(S162-S142*$I$46),"")) ->  | V122: =IF($C$7="---","",IFERROR(3.6*(V162-V142*$I$46),"")) ->  | Y122: =IF($C$7="---","",IFERROR(3.6*(Y162-Y142*$I$46),"")) ->  | AB122: =IF($C$7="---","",IFERROR(3.6*(AB162-AB142*$I$46),"")) ->  | AE122: =IF($C$7="---","",IFERROR(3.6*(AE162-AE142*$I$46),"")) ->  | AH122: 6
C123: 7 | D123: =IF($C$7="---","",IFERROR(3.6*(D163-D143*$I$46),"")) ->  | G123: =IF($C$7="---","",IFERROR(3.6*(G163-G143*$I$46),"")) ->  | J123: =IF($C$7="---","",IFERROR(3.6*(J163-J143*$I$46),"")) ->  | M123: =IF($C$7="---","",IFERROR(3.6*(M163-M143*$I$46),"")) ->  | P123: =IF($C$7="---","",IFERROR(3.6*(P163-P143*$I$46),"")) ->  | S123: =IF($C$7="---","",IFERROR(3.6*(S163-S143*$I$46),"")) ->  | V123: =IF($C$7="---","",IFERROR(3.6*(V163-V143*$I$46),"")) ->  | Y123: =IF($C$7="---","",IFERROR(3.6*(Y163-Y143*$I$46),"")) ->  | AB123: =IF($C$7="---","",IFERROR(3.6*(AB163-AB143*$I$46),"")) ->  | AE123: =IF($C$7="---","",IFERROR(3.6*(AE163-AE143*$I$46),"")) ->  | AH123: 7
C124: 8 | D124: =IF($C$7="---","",IFERROR(3.6*(D164-D144*$I$46),"")) ->  | G124: =IF($C$7="---","",IFERROR(3.6*(G164-G144*$I$46),"")) ->  | J124: =IF($C$7="---","",IFERROR(3.6*(J164-J144*$I$46),"")) ->  | M124: =IF($C$7="---","",IFERROR(3.6*(M164-M144*$I$46),"")) ->  | P124: =IF($C$7="---","",IFERROR(3.6*(P164-P144*$I$46),"")) ->  | S124: =IF($C$7="---","",IFERROR(3.6*(S164-S144*$I$46),"")) ->  | V124: =IF($C$7="---","",IFERROR(3.6*(V164-V144*$I$46),"")) ->  | Y124: =IF($C$7="---","",IFERROR(3.6*(Y164-Y144*$I$46),"")) ->  | AB124: =IF($C$7="---","",IFERROR(3.6*(AB164-AB144*$I$46),"")) ->  | AE124: =IF($C$7="---","",IFERROR(3.6*(AE164-AE144*$I$46),"")) ->  | AH124: 8
C125: 9 | D125: =IF($C$7="---","",IFERROR(3.6*(D165-D145*$I$46),"")) ->  | G125: =IF($C$7="---","",IFERROR(3.6*(G165-G145*$I$46),"")) ->  | J125: =IF($C$7="---","",IFERROR(3.6*(J165-J145*$I$46),"")) ->  | M125: =IF($C$7="---","",IFERROR(3.6*(M165-M145*$I$46),"")) ->  | P125: =IF($C$7="---","",IFERROR(3.6*(P165-P145*$I$46),"")) ->  | S125: =IF($C$7="---","",IFERROR(3.6*(S165-S145*$I$46),"")) ->  | V125: =IF($C$7="---","",IFERROR(3.6*(V165-V145*$I$46),"")) ->  | Y125: =IF($C$7="---","",IFERROR(3.6*(Y165-Y145*$I$46),"")) ->  | AB125: =IF($C$7="---","",IFERROR(3.6*(AB165-AB145*$I$46),"")) ->  | AE125: =IF($C$7="---","",IFERROR(3.6*(AE165-AE145*$I$46),"")) ->  | AH125: 9
C126: 10 | D126: =IF($C$7="---","",IFERROR(3.6*(D166-D146*$I$46),"")) ->  | G126: =IF($C$7="---","",IFERROR(3.6*(G166-G146*$I$46),"")) ->  | J126: =IF($C$7="---","",IFERROR(3.6*(J166-J146*$I$46),"")) ->  | M126: =IF($C$7="---","",IFERROR(3.6*(M166-M146*$I$46),"")) ->  | P126: =IF($C$7="---","",IFERROR(3.6*(P166-P146*$I$46),"")) ->  | S126: =IF($C$7="---","",IFERROR(3.6*(S166-S146*$I$46),"")) ->  | V126: =IF($C$7="---","",IFERROR(3.6*(V166-V146*$I$46),"")) ->  | Y126: =IF($C$7="---","",IFERROR(3.6*(Y166-Y146*$I$46),"")) ->  | AB126: =IF($C$7="---","",IFERROR(3.6*(AB166-AB146*$I$46),"")) ->  | AE126: =IF($C$7="---","",IFERROR(3.6*(AE166-AE146*$I$46),"")) ->  | AH126: 10
C127: 11 | D127: =IF($C$7="---","",IFERROR(3.6*(D167-D147*$I$46),"")) ->  | G127: =IF($C$7="---","",IFERROR(3.6*(G167-G147*$I$46),"")) ->  | J127: =IF($C$7="---","",IFERROR(3.6*(J167-J147*$I$46),"")) ->  | M127: =IF($C$7="---","",IFERROR(3.6*(M167-M147*$I$46),"")) ->  | P127: =IF($C$7="---","",IFERROR(3.6*(P167-P147*$I$46),"")) ->  | S127: =IF($C$7="---","",IFERROR(3.6*(S167-S147*$I$46),"")) ->  | V127: =IF($C$7="---","",IFERROR(3.6*(V167-V147*$I$46),"")) ->  | Y127: =IF($C$7="---","",IFERROR(3.6*(Y167-Y147*$I$46),"")) ->  | AB127: =IF($C$7="---","",IFERROR(3.6*(AB167-AB147*$I$46),"")) ->  | AE127: =IF($C$7="---","",IFERROR(3.6*(AE167-AE147*$I$46),"")) ->  | AH127: 11
C128: 12 | D128: =IF($C$7="---","",IFERROR(3.6*(D168-D148*$I$46),"")) ->  | G128: =IF($C$7="---","",IFERROR(3.6*(G168-G148*$I$46),"")) ->  | J128: =IF($C$7="---","",IFERROR(3.6*(J168-J148*$I$46),"")) ->  | M128: =IF($C$7="---","",IFERROR(3.6*(M168-M148*$I$46),"")) ->  | P128: =IF($C$7="---","",IFERROR(3.6*(P168-P148*$I$46),"")) ->  | S128: =IF($C$7="---","",IFERROR(3.6*(S168-S148*$I$46),"")) ->  | V128: =IF($C$7="---","",IFERROR(3.6*(V168-V148*$I$46),"")) ->  | Y128: =IF($C$7="---","",IFERROR(3.6*(Y168-Y148*$I$46),"")) ->  | AB128: =IF($C$7="---","",IFERROR(3.6*(AB168-AB148*$I$46),"")) ->  | AE128: =IF($C$7="---","",IFERROR(3.6*(AE168-AE148*$I$46),"")) ->  | AH128: 12
C129: 1 | D129: =IF($C$7="---","",IFERROR(3.6*(D169-D149*$I$46),"")) ->  | G129: =IF($C$7="---","",IFERROR(3.6*(G169-G149*$I$46),"")) ->  | J129: =IF($C$7="---","",IFERROR(3.6*(J169-J149*$I$46),"")) ->  | M129: =IF($C$7="---","",IFERROR(3.6*(M169-M149*$I$46),"")) ->  | P129: =IF($C$7="---","",IFERROR(3.6*(P169-P149*$I$46),"")) ->  | S129: =IF($C$7="---","",IFERROR(3.6*(S169-S149*$I$46),"")) ->  | V129: =IF($C$7="---","",IFERROR(3.6*(V169-V149*$I$46),"")) ->  | Y129: =IF($C$7="---","",IFERROR(3.6*(Y169-Y149*$I$46),"")) ->  | AB129: =IF($C$7="---","",IFERROR(3.6*(AB169-AB149*$I$46),"")) ->  | AE129: =IF($C$7="---","",IFERROR(3.6*(AE169-AE149*$I$46),"")) ->  | AH129: 1
C130: 2 | D130: =IF($C$7="---","",IFERROR(3.6*(D170-D150*$I$46),"")) ->  | G130: =IF($C$7="---","",IFERROR(3.6*(G170-G150*$I$46),"")) ->  | J130: =IF($C$7="---","",IFERROR(3.6*(J170-J150*$I$46),"")) ->  | M130: =IF($C$7="---","",IFERROR(3.6*(M170-M150*$I$46),"")) ->  | P130: =IF($C$7="---","",IFERROR(3.6*(P170-P150*$I$46),"")) ->  | S130: =IF($C$7="---","",IFERROR(3.6*(S170-S150*$I$46),"")) ->  | V130: =IF($C$7="---","",IFERROR(3.6*(V170-V150*$I$46),"")) ->  | Y130: =IF($C$7="---","",IFERROR(3.6*(Y170-Y150*$I$46),"")) ->  | AB130: =IF($C$7="---","",IFERROR(3.6*(AB170-AB150*$I$46),"")) ->  | AE130: =IF($C$7="---","",IFERROR(3.6*(AE170-AE150*$I$46),"")) ->  | AH130: 2
C131: 3 | D131: =IF($C$7="---","",IFERROR(3.6*(D171-D151*$I$46),"")) ->  | G131: =IF($C$7="---","",IFERROR(3.6*(G171-G151*$I$46),"")) ->  | J131: =IF($C$7="---","",IFERROR(3.6*(J171-J151*$I$46),"")) ->  | M131: =IF($C$7="---","",IFERROR(3.6*(M171-M151*$I$46),"")) ->  | P131: =IF($C$7="---","",IFERROR(3.6*(P171-P151*$I$46),"")) ->  | S131: =IF($C$7="---","",IFERROR(3.6*(S171-S151*$I$46),"")) ->  | V131: =IF($C$7="---","",IFERROR(3.6*(V171-V151*$I$46),"")) ->  | Y131: =IF($C$7="---","",IFERROR(3.6*(Y171-Y151*$I$46),"")) ->  | AB131: =IF($C$7="---","",IFERROR(3.6*(AB171-AB151*$I$46),"")) ->  | AE131: =IF($C$7="---","",IFERROR(3.6*(AE171-AE151*$I$46),"")) ->  | AH131: 3
C132: 合計 | D132: =IFERROR(SUM(D120:D131),"") -> 0 | E132: =IFERROR(SUM(E120:E131),"") -> 0 | F132: =IFERROR(SUM(F120:F131),"") -> 0 | G132: =IFERROR(SUM(G120:G131),"") -> 0 | H132: =IFERROR(SUM(H120:H131),"") -> 0 | I132: =IFERROR(SUM(I120:I131),"") -> 0 | J132: 0 | K132: 0 | L132: 0 | M132: 0 | N132: 0 | O132: 0 | P132: 0 | Q132: 0 | R132: 0 | S132: 0 | T132: 0 | U132: 0 | V132: 0 | W132: 0 | X132: 0 | Y132: 0 | Z132: 0 | AA132: 0 | AB132: 0 | AC132: 0 | AD132: 0 | AE132: 0 | AF132: 0 | AG132: 0 | AH132: 合計
C134: 設備導入後電力使用量[kWh]
D135: 冷房(Auxc) | F135: 暖房(Auxw) | H135: 合計
D136: =IFERROR(D152*F138+G152*I138+J152*L138+M152*O138+P152*R138+S152*U138+V152*X138+Y152*AA138+AB152*AD138+AE152*AG138,"") -> 0 | F136: =IFERROR(E152*F138+H152*I138+K152*L138+N152*O138+Q152*R138+T152*U138+W152*X138+Z152*AA138+AC152*AD138+AF152*AG138,"") -> 0 | H136: =IFERROR(SUM(D136:G136),"") -> 0
D138: 後1 | F138: =IF($Q$52="",1,$Q$52) -> 1 | G138: 後2 | I138: =IF($R$52="",1,$R$52) -> 1 | J138: 後3 | L138: =IF($S$52="",1,$S$52) -> 1 | M138: 後4 | O138: =IF($T$52="",1,$T$52) -> 1 | P138: 後5 | R138: =IF($U$52="",1,$U$52) -> 1 | S138: 後6 | U138: =IF($V$52="",1,$V$52) -> 1 | V138: 後7 | X138: =IF($W$52="",1,$W$52) -> 1 | Y138: 後8 | AA138: =IF($X$52="",1,$X$52) -> 1 | AB138: 後9 | AD138: =IF($Y$52="",1,$Y$52) -> 1 | AE138: 後10 | AG138: =IF($Z$52="",1,$Z$52) -> 1
C139: 月 期間 | D139: 冷房 | E139: 暖房 | F139: 月合計 | G139: 冷房 | H139: 暖房 | I139: 月合計 | J139: 冷房 | K139: 暖房 | L139: 月合計 | M139: 冷房 | N139: 暖房 | O139: 月合計 | P139: 冷房 | Q139: 暖房 | R139: 月合計 | S139: 冷房 | T139: 暖房 | U139: 月合計 | V139: 冷房 | W139: 暖房 | X139: 月合計 | Y139: 冷房 | Z139: 暖房 | AA139: 月合計 | AB139: 冷房 | AC139: 暖房 | AD139: 月合計 | AE139: 冷房 | AF139: 暖房 | AG139: 月合計 | AH139: 期間 月
C140: 4 | D140: =IF($C$7="---","",IFERROR(D160*($Q$45*$I$46)/($Q$44+$Q$45*$I$46)/$I$46,"")) ->  | E140: =IF($C$7="---","",IFERROR(E160*($Q$49*$I$46)/($Q$48+$Q$49*$I$46)/$I$46,"")) ->  | F140: =IFERROR(D140+E140,"") ->  | G140: =IF($C$7="---","",IFERROR(G160*($R$45*$I$46)/($R$44+$R$45*$I$46)/$I$46,"")) ->  | H140: =IF($C$7="---","",IFERROR(H160*($R$49*$I$46)/($R$48+$R$49*$I$46)/$I$46,"")) ->  | I140: =IFERROR(G140+H140,"") ->  | J140: =IF($C$7="---","",IFERROR(J160*($S$45*$I$46)/($S$44+$S$45*$I$46)/$I$46,"")) ->  | K140: =IF($C$7="---","",IFERROR(K160*($S$49*$I$46)/($S$48+$S$49*$I$46)/$I$46,"")) ->  | L140: =IFERROR(J140+K140,"") ->  | M140: =IF($C$7="---","",IFERROR(M160*($T$45*$I$46)/($T$44+$T$45*$I$46)/$I$46,"")) ->  | N140: =IF($C$7="---","",IFERROR(N160*($T$49*$I$46)/($T$48+$T$49*$I$46)/$I$46,"")) ->  | O140: =IFERROR(M140+N140,"") ->  | P140: =IF($C$7="---","",IFERROR(P160*($U$45*$I$46)/($U$44+$U$45*$I$46)/$I$46,"")) ->  | Q140: =IF($C$7="---","",IFERROR(Q160*($U$49*$I$46)/($U$48+$U$49*$I$46)/$I$46,"")) ->  | R140: =IFERROR(P140+Q140,"") ->  | S140: =IF($C$7="---","",IFERROR(S160*($V$45*$I$46)/($V$44+$V$45*$I$46)/$I$46,"")) ->  | T140: =IF($C$7="---","",IFERROR(T160*($V$49*$I$46)/($V$48+$V$49*$I$46)/$I$46,"")) ->  | U140: =IFERROR(S140+T140,"") ->  | V140: =IF($C$7="---","",IFERROR(V160*($W$45*$I$46)/($W$44+$W$45*$I$46)/$I$46,"")) ->  | W140: =IF($C$7="---","",IFERROR(W160*($W$49*$I$46)/($W$48+$W$49*$I$46)/$I$46,"")) ->  | X140: =IFERROR(V140+W140,"") ->  | Y140: =IF($C$7="---","",IFERROR(Y160*($X$45*$I$46)/($X$44+$X$45*$I$46)/$I$46,"")) ->  | Z140: =IF($C$7="---","",IFERROR(Z160*($X$49*$I$46)/($X$48+$X$49*$I$46)/$I$46,"")) ->  | AA140: =IFERROR(Y140+Z140,"") ->  | AB140: =IF($C$7="---","",IFERROR(AB160*($Y$45*$I$46)/($Y$44+$Y$45*$I$46)/$I$46,"")) ->  | AC140: =IF($C$7="---","",IFERROR(AC160*($Y$49*$I$46)/($Y$48+$Y$49*$I$46)/$I$46,"")) ->  | AD140: =IFERROR(AB140+AC140,"") ->  | AE140: =IF($C$7="---","",IFERROR(AE160*($Z$45*$I$46)/($Z$44+$Z$45*$I$46)/$I$46,"")) ->  | AF140: =IF($C$7="---","",IFERROR(AF160*($Z$49*$I$46)/($Z$48+$Z$49*$I$46)/$I$46,"")) ->  | AG140: =IFERROR(AE140+AF140,"") ->  | AH140: 4
C141: 5 | F141: =IFERROR(D141+E141,"") ->  | I141: =IFERROR(G141+H141,"") ->  | L141: =IFERROR(J141+K141,"") ->  | O141: =IFERROR(M141+N141,"") ->  | R141: =IFERROR(P141+Q141,"") ->  | U141: =IFERROR(S141+T141,"") ->  | X141: =IFERROR(V141+W141,"") ->  | AA141: =IFERROR(Y141+Z141,"") ->  | AD141: =IFERROR(AB141+AC141,"") ->  | AG141: =IFERROR(AE141+AF141,"") ->  | AH141: 5
C142: 6 | AH142: 6
C143: 7 | AH143: 7
C144: 8 | AH144: 8
C145: 9 | AH145: 9
C146: 10 | AH146: 10
C147: 11 | AH147: 11
C148: 12 | AH148: 12
C149: 1 | AH149: 1
C150: 2 | AH150: 2
C151: 3 | AH151: 3
C152: 合計 | D152: =IFERROR(SUM(D140:D151),"") -> 0 | E152: 0 | F152: 0 | G152: 0 | H152: 0 | I152: 0 | J152: 0 | K152: 0 | L152: 0 | M152: 0 | N152: 0 | O152: 0 | P152: 0 | Q152: 0 | R152: 0 | S152: 0 | T152: 0 | U152: 0 | V152: 0 | W152: 0 | X152: 0 | Y152: 0 | Z152: 0 | AA152: 0 | AB152: 0 | AC152: 0 | AD152: 0 | AE152: 0 | AF152: 0 | AG152: 0 | AH152: 合計
C154: 設備導入後エネルギー使用量［kWh]
D155: 冷房(Ec) | F155: 暖房(Ew) | H155: 合計
D156: =IFERROR(D172*F158+G172*I158+J172*L158+M172*O158+P172*R158+S172*U158+V172*X158+Y172*AA158+AB172*AD158+AE172*AG158,"") -> 0 | F156: =IFERROR(E172*F158+H172*I158+K172*L158+N172*O158+Q172*R158+T172*U158+W172*X158+Z172*AA158+AC172*AD158+AF172*AG158,"") -> 0 | H156: =IFERROR(SUM(D156:G156),"") -> 0
D158: 後1 | F158: =IF($Q$52="",1,$Q$52) -> 1 | G158: 後2 | I158: =IF($R$52="",1,$R$52) -> 1 | J158: 後3 | L158: =IF($S$52="",1,$S$52) -> 1 | M158: 後4 | O158: =IF($T$52="",1,$T$52) -> 1 | P158: 後5 | R158: =IF($U$52="",1,$U$52) -> 1 | S158: 後6 | U158: =IF($V$52="",1,$V$52) -> 1 | V158: 後7 | X158: =IF($W$52="",1,$W$52) -> 1 | Y158: 後8 | AA158: =IF($X$52="",1,$X$52) -> 1 | AB158: 後9 | AD158: =IF($Y$52="",1,$Y$52) -> 1 | AE158: 後10 | AG158: =IF($Z$52="",1,$Z$52) -> 1
C159: 月 期間 | D159: 冷房 | E159: 暖房 | F159: 月合計 | G159: 冷房 | H159: 暖房 | I159: 月合計 | J159: 冷房 | K159: 暖房 | L159: 月合計 | M159: 冷房 | N159: 暖房 | O159: 月合計 | P159: 冷房 | Q159: 暖房 | R159: 月合計 | S159: 冷房 | T159: 暖房 | U159: 月合計 | V159: 冷房 | W159: 暖房 | X159: 月合計 | Y159: 冷房 | Z159: 暖房 | AA159: 月合計 | AB159: 冷房 | AC159: 暖房 | AD159: 月合計 | AE159: 冷房 | AF159: 暖房 | AG159: 月合計 | AH159: 期間 月
C160: 4 | D160: =IF($C$7="---","",IFERROR($Q$43/$Q$46*$BF225*$Q$53,"")) ->  | E160: =IF($C$7="---","",IFERROR($Q$43*$C$7/$Q$50*$BF365*$Q$53,"")) ->  | F160: =IFERROR(D160+E160,"") ->  | G160: =IF($C$7="---","",IFERROR($R$43/$R$46*$BG225*$R$53,"")) ->  | H160: =IF($C$7="---","",IFERROR($R$43*$C$7/$R$50*$BG365*$R$53,"")) ->  | I160: =IFERROR(G160+H160,"") ->  | J160: =IF($C$7="---","",IFERROR($S$43/$S$46*$BH225*$S$53,"")) ->  | K160: =IF($C$7="---","",IFERROR($S$43*$C$7/$S$50*$BH365*$S$53,"")) ->  | L160: =IFERROR(J160+K160,"") ->  | M160: =IF($C$7="---","",IFERROR($T$43/$T$46*$BI225*$T$53,"")) ->  | N160: =IF($C$7="---","",IFERROR($T$43*$C$7/$T$50*$BI365*$T$53,"")) ->  | O160: =IFERROR(M160+N160,"") ->  | P160: =IF($C$7="---","",IFERROR($U$43/$U$46*$BJ225*$U$53,"")) ->  | Q160: =IF($C$7="---","",IFERROR($U$43*$C$7/$U$50*$BJ365*$U$53,"")) ->  | R160: =IFERROR(P160+Q160,"") ->  | S160: =IF($C$7="---","",IFERROR($V$43/$V$46*$BK225*$V$53,"")) ->  | T160: =IF($C$7="---","",IFERROR($V$43*$C$7/$V$50*$BK365*$V$53,"")) ->  | U160: =IFERROR(S160+T160,"") ->  | V160: =IF($C$7="---","",IFERROR($W$43/$W$46*$BL225*$W$53,"")) ->  | W160: =IF($C$7="---","",IFERROR($W$43*$C$7/$W$50*$BL365*$W$53,"")) ->  | X160: =IFERROR(V160+W160,"") ->  | Y160: =IF($C$7="---","",IFERROR($X$43/$X$46*$BM225*$X$53,"")) ->  | Z160: =IF($C$7="---","",IFERROR($X$43*$C$7/$X$50*$BM365*$X$53,"")) ->  | AA160: =IFERROR(Y160+Z160,"") ->  | AB160: =IF($C$7="---","",IFERROR($Y$43/$Y$46*$BN225*$Y$53,"")) ->  | AC160: =IF($C$7="---","",IFERROR($Y$43*$C$7/$Y$50*$BN365*$Y$53,"")) ->  | AD160: =IFERROR(AB160+AC160,"") ->  | AE160: =IF($C$7="---","",IFERROR($Z$43/$Z$46*$BO225*$Z$53,"")) ->  | AF160: =IF($C$7="---","",IFERROR($Z$43*$C$7/$Z$50*$BO365*$Z$53,"")) ->  | AG160: =IFERROR(AE160+AF160,"") ->  | AH160: 4
C161: 5 | F161: =IFERROR(D161+E161,"") ->  | I161: =IFERROR(G161+H161,"") ->  | L161: =IFERROR(J161+K161,"") ->  | O161: =IFERROR(M161+N161,"") ->  | R161: =IFERROR(P161+Q161,"") ->  | U161: =IFERROR(S161+T161,"") ->  | X161: =IFERROR(V161+W161,"") ->  | AA161: =IFERROR(Y161+Z161,"") ->  | AD161: =IFERROR(AB161+AC161,"") ->  | AG161: =IFERROR(AE161+AF161,"") ->  | AH161: 5
C162: 6 | AH162: 6
C163: 7 | AH163: 7
C164: 8 | AH164: 8
C165: 9 | AH165: 9
C166: 10 | AH166: 10
C167: 11 | AH167: 11
C168: 12 | AH168: 12
C169: 1 | AH169: 1
C170: 2 | AH170: 2
C171: 3 | AH171: 3
C172: 合計 | D172: =IFERROR(SUM(D160:D171),"") -> 0 | E172: 0 | F172: 0 | G172: 0 | H172: 0 | I172: 0 | J172: 0 | K172: 0 | L172: 0 | M172: 0 | N172: 0 | O172: 0 | P172: 0 | Q172: 0 | R172: 0 | S172: 0 | T172: 0 | U172: 0 | V172: 0 | W172: 0 | X172: 0 | Y172: 0 | Z172: 0 | AA172: 0 | AB172: 0 | AC172: 0 | AD172: 0 | AE172: 0 | AF172: 0 | AG172: 0 | AH172: 合計
C174: 作業表1(青色のセルを「24」、オレンジ色のセルを「19」として抽出）
D175: 時刻
C176: 月 | D176: 0 | E176: 1 | F176: 2 | G176: 3 | H176: 4 | I176: 5 | J176: 6 | K176: 7 | L176: 8 | M176: 9 | N176: 10 | O176: 11 | P176: 12 | Q176: 13 | R176: 14 | S176: 15 | T176: 16 | U176: 17 | V176: 18 | W176: 19 | X176: 20 | Y176: 21 | Z176: 22 | AA176: 23 | AB176: 月
C177: 4 | D177: =CELLCOLOR($D$12) -> -4142 | E177: =CELLCOLOR($E$12) -> -4142 | F177: =CELLCOLOR($F$12) -> -4142 | G177: =CELLCOLOR($G$12) -> -4142 | H177: =CELLCOLOR($H$12) -> -4142 | I177: =CELLCOLOR($I$12) -> -4142 | J177: =CELLCOLOR($J$12) -> -4142 | K177: =CELLCOLOR($K$12) -> -4142 | L177: =CELLCOLOR($L$12) -> -4142 | M177: =CELLCOLOR($M$12) -> -4142 | N177: =CELLCOLOR($N$12) -> -4142 | O177: =CELLCOLOR($O$12) -> -4142 | P177: =CELLCOLOR($P$12) -> -4142 | Q177: =CELLCOLOR($Q$12) -> -4142 | R177: =CELLCOLOR($R$12) -> -4142 | S177: =CELLCOLOR($S$12) -> -4142 | T177: =CELLCOLOR($T$12) -> -4142 | U177: =CELLCOLOR($U$12) -> -4142 | V177: =CELLCOLOR($V$12) -> -4142 | W177: =CELLCOLOR($W$12) -> -4142 | X177: =CELLCOLOR($X$12) -> -4142 | Y177: =CELLCOLOR($Y$12) -> -4142 | Z177: =CELLCOLOR($Z$12) -> -4142 | AA177: =CELLCOLOR($AA$12) -> -4142 | AB177: 4
C178: 5 | D178: =CELLCOLOR($D$13) -> -4142 | E178: =CELLCOLOR($E$13) -> -4142 | F178: =CELLCOLOR($F$13) -> -4142 | G178: =CELLCOLOR($G$13) -> -4142 | H178: =CELLCOLOR($H$13) -> -4142 | I178: =CELLCOLOR($I$13) -> -4142 | J178: =CELLCOLOR($J$13) -> -4142 | K178: =CELLCOLOR($K$13) -> -4142 | L178: =CELLCOLOR($L$13) -> -4142 | M178: =CELLCOLOR($M$13) -> -4142 | N178: =CELLCOLOR($N$13) -> -4142 | O178: =CELLCOLOR($O$13) -> -4142 | P178: =CELLCOLOR($P$13) -> -4142 | Q178: =CELLCOLOR($Q$13) -> -4142 | R178: =CELLCOLOR($R$13) -> -4142 | S178: =CELLCOLOR($S$13) -> -4142 | T178: =CELLCOLOR($T$13) -> -4142 | U178: =CELLCOLOR($U$13) -> -4142 | V178: =CELLCOLOR($V$13) -> -4142 | W178: =CELLCOLOR($W$13) -> -4142 | X178: =CELLCOLOR($X$13) -> -4142 | Y178: =CELLCOLOR($Y$13) -> -4142 | Z178: =CELLCOLOR($Z$13) -> -4142 | AA178: =CELLCOLOR($AA$13) -> -4142 | AB178: 5
C179: 6 | D179: =CELLCOLOR($D$14) -> -4142 | E179: =CELLCOLOR($E$14) -> -4142 | F179: =CELLCOLOR($F$14) -> -4142 | G179: =CELLCOLOR($G$14) -> -4142 | H179: =CELLCOLOR($H$14) -> -4142 | I179: =CELLCOLOR($I$14) -> -4142 | J179: =CELLCOLOR($J$14) -> -4142 | K179: =CELLCOLOR($K$14) -> -4142 | L179: =CELLCOLOR($L$14) -> -4142 | M179: =CELLCOLOR($M$14) -> -4142 | N179: =CELLCOLOR($N$14) -> -4142 | O179: =CELLCOLOR($O$14) -> -4142 | P179: =CELLCOLOR($P$14) -> -4142 | Q179: =CELLCOLOR($Q$14) -> -4142 | R179: =CELLCOLOR($R$14) -> -4142 | S179: =CELLCOLOR($S$14) -> -4142 | T179: =CELLCOLOR($T$14) -> -4142 | U179: =CELLCOLOR($U$14) -> -4142 | V179: =CELLCOLOR($V$14) -> -4142 | W179: =CELLCOLOR($W$14) -> -4142 | X179: =CELLCOLOR($X$14) -> -4142 | Y179: =CELLCOLOR($Y$14) -> -4142 | Z179: =CELLCOLOR($Z$14) -> -4142 | AA179: =CELLCOLOR($AA$14) -> -4142 | AB179: 6
C180: 7 | D180: =CELLCOLOR($D$15) -> -4142 | E180: =CELLCOLOR($E$15) -> -4142 | F180: =CELLCOLOR($F$15) -> -4142 | G180: =CELLCOLOR($G$15) -> -4142 | H180: =CELLCOLOR($H$15) -> -4142 | I180: =CELLCOLOR($I$15) -> -4142 | J180: =CELLCOLOR($J$15) -> -4142 | K180: =CELLCOLOR($K$15) -> -4142 | L180: =CELLCOLOR($L$15) -> -4142 | M180: =CELLCOLOR($M$15) -> -4142 | N180: =CELLCOLOR($N$15) -> -4142 | O180: =CELLCOLOR($O$15) -> -4142 | P180: =CELLCOLOR($P$15) -> -4142 | Q180: =CELLCOLOR($Q$15) -> -4142 | R180: =CELLCOLOR($R$15) -> -4142 | S180: =CELLCOLOR($S$15) -> -4142 | T180: =CELLCOLOR($T$15) -> -4142 | U180: =CELLCOLOR($U$15) -> -4142 | V180: =CELLCOLOR($V$15) -> -4142 | W180: =CELLCOLOR($W$15) -> -4142 | X180: =CELLCOLOR($X$15) -> -4142 | Y180: =CELLCOLOR($Y$15) -> -4142 | Z180: =CELLCOLOR($Z$15) -> -4142 | AA180: =CELLCOLOR($AA$15) -> -4142 | AB180: 7
C181: 8 | D181: =CELLCOLOR($D$16) -> -4142 | E181: =CELLCOLOR($E$16) -> -4142 | F181: =CELLCOLOR($F$16) -> -4142 | G181: =CELLCOLOR($G$16) -> -4142 | H181: =CELLCOLOR($H$16) -> -4142 | I181: =CELLCOLOR($I$16) -> -4142 | J181: =CELLCOLOR($J$16) -> -4142 | K181: =CELLCOLOR($K$16) -> -4142 | L181: =CELLCOLOR($L$16) -> -4142 | M181: =CELLCOLOR($M$16) -> -4142 | N181: =CELLCOLOR($N$16) -> -4142 | O181: =CELLCOLOR($O$16) -> -4142 | P181: =CELLCOLOR($P$16) -> -4142 | Q181: =CELLCOLOR($Q$16) -> -4142 | R181: =CELLCOLOR($R$16) -> -4142 | S181: =CELLCOLOR($S$16) -> -4142 | T181: =CELLCOLOR($T$16) -> -4142 | U181: =CELLCOLOR($U$16) -> -4142 | V181: =CELLCOLOR($V$16) -> -4142 | W181: =CELLCOLOR($W$16) -> -4142 | X181: =CELLCOLOR($X$16) -> -4142 | Y181: =CELLCOLOR($Y$16) -> -4142 | Z181: =CELLCOLOR($Z$16) -> -4142 | AA181: =CELLCOLOR($AA$16) -> -4142 | AB181: 8
C182: 9 | D182: =CELLCOLOR($D$17) -> -4142 | E182: =CELLCOLOR($E$17) -> -4142 | F182: =CELLCOLOR($F$17) -> -4142 | G182: =CELLCOLOR($G$17) -> -4142 | H182: =CELLCOLOR($H$17) -> -4142 | I182: =CELLCOLOR($I$17) -> -4142 | J182: =CELLCOLOR($J$17) -> -4142 | K182: =CELLCOLOR($K$17) -> -4142 | L182: =CELLCOLOR($L$17) -> -4142 | M182: =CELLCOLOR($M$17) -> -4142 | N182: =CELLCOLOR($N$17) -> -4142 | O182: =CELLCOLOR($O$17) -> -4142 | P182: =CELLCOLOR($P$17) -> -4142 | Q182: =CELLCOLOR($Q$17) -> -4142 | R182: =CELLCOLOR($R$17) -> -4142 | S182: =CELLCOLOR($S$17) -> -4142 | T182: =CELLCOLOR($T$17) -> -4142 | U182: =CELLCOLOR($U$17) -> -4142 | V182: =CELLCOLOR($V$17) -> -4142 | W182: =CELLCOLOR($W$17) -> -4142 | X182: =CELLCOLOR($X$17) -> -4142 | Y182: =CELLCOLOR($Y$17) -> -4142 | Z182: =CELLCOLOR($Z$17) -> -4142 | AA182: =CELLCOLOR($AA$17) -> -4142 | AB182: 9
C183: 10 | D183: =CELLCOLOR($D$18) -> -4142 | E183: =CELLCOLOR($E$18) -> -4142 | F183: =CELLCOLOR($F$18) -> -4142 | G183: =CELLCOLOR($G$18) -> -4142 | H183: =CELLCOLOR($H$18) -> -4142 | I183: =CELLCOLOR($I$18) -> -4142 | J183: =CELLCOLOR($J$18) -> -4142 | K183: =CELLCOLOR($K$18) -> -4142 | L183: =CELLCOLOR($L$18) -> -4142 | M183: =CELLCOLOR($M$18) -> -4142 | N183: =CELLCOLOR($N$18) -> -4142 | O183: =CELLCOLOR($O$18) -> -4142 | P183: =CELLCOLOR($P$18) -> -4142 | Q183: =CELLCOLOR($Q$18) -> -4142 | R183: =CELLCOLOR($R$18) -> -4142 | S183: =CELLCOLOR($S$18) -> -4142 | T183: =CELLCOLOR($T$18) -> -4142 | U183: =CELLCOLOR($U$18) -> -4142 | V183: =CELLCOLOR($V$18) -> -4142 | W183: =CELLCOLOR($W$18) -> -4142 | X183: =CELLCOLOR($X$18) -> -4142 | Y183: =CELLCOLOR($Y$18) -> -4142 | Z183: =CELLCOLOR($Z$18) -> -4142 | AA183: =CELLCOLOR($AA$18) -> -4142 | AB183: 10
C184: 11 | D184: =CELLCOLOR($D$19) -> -4142 | E184: =CELLCOLOR($E$19) -> -4142 | F184: =CELLCOLOR($F$19) -> -4142 | G184: =CELLCOLOR($G$19) -> -4142 | H184: =CELLCOLOR($H$19) -> -4142 | I184: =CELLCOLOR($I$19) -> -4142 | J184: =CELLCOLOR($J$19) -> -4142 | K184: =CELLCOLOR($K$19) -> -4142 | L184: =CELLCOLOR($L$19) -> -4142 | M184: =CELLCOLOR($M$19) -> -4142 | N184: =CELLCOLOR($N$19) -> -4142 | O184: =CELLCOLOR($O$19) -> -4142 | P184: =CELLCOLOR($P$19) -> -4142 | Q184: =CELLCOLOR($Q$19) -> -4142 | R184: =CELLCOLOR($R$19) -> -4142 | S184: =CELLCOLOR($S$19) -> -4142 | T184: =CELLCOLOR($T$19) -> -4142 | U184: =CELLCOLOR($U$19) -> -4142 | V184: =CELLCOLOR($V$19) -> -4142 | W184: =CELLCOLOR($W$19) -> -4142 | X184: =CELLCOLOR($X$19) -> -4142 | Y184: =CELLCOLOR($Y$19) -> -4142 | Z184: =CELLCOLOR($Z$19) -> -4142 | AA184: =CELLCOLOR($AA$19) -> -4142 | AB184: 11
C185: 12 | D185: =CELLCOLOR($D$20) -> -4142 | E185: =CELLCOLOR($E$20) -> -4142 | F185: =CELLCOLOR($F$20) -> -4142 | G185: =CELLCOLOR($G$20) -> -4142 | H185: =CELLCOLOR($H$20) -> -4142 | I185: =CELLCOLOR($I$20) -> -4142 | J185: =CELLCOLOR($J$20) -> -4142 | K185: =CELLCOLOR($K$20) -> -4142 | L185: =CELLCOLOR($L$20) -> -4142 | M185: =CELLCOLOR($M$20) -> -4142 | N185: =CELLCOLOR($N$20) -> -4142 | O185: =CELLCOLOR($O$20) -> -4142 | P185: =CELLCOLOR($P$20) -> -4142 | Q185: =CELLCOLOR($Q$20) -> -4142 | R185: =CELLCOLOR($R$20) -> -4142 | S185: =CELLCOLOR($S$20) -> -4142 | T185: =CELLCOLOR($T$20) -> -4142 | U185: =CELLCOLOR($U$20) -> -4142 | V185: =CELLCOLOR($V$20) -> -4142 | W185: =CELLCOLOR($W$20) -> -4142 | X185: =CELLCOLOR($X$20) -> -4142 | Y185: =CELLCOLOR($Y$20) -> -4142 | Z185: =CELLCOLOR($Z$20) -> -4142 | AA185: =CELLCOLOR($AA$20) -> -4142 | AB185: 12
C186: 1 | D186: =CELLCOLOR($D$21) -> -4142 | E186: =CELLCOLOR($E$21) -> -4142 | F186: =CELLCOLOR($F$21) -> -4142 | G186: =CELLCOLOR($G$21) -> -4142 | H186: =CELLCOLOR($H$21) -> -4142 | I186: =CELLCOLOR($I$21) -> -4142 | J186: =CELLCOLOR($J$21) -> -4142 | K186: =CELLCOLOR($K$21) -> -4142 | L186: =CELLCOLOR($L$21) -> -4142 | M186: =CELLCOLOR($M$21) -> -4142 | N186: =CELLCOLOR($N$21) -> -4142 | O186: =CELLCOLOR($O$21) -> -4142 | P186: =CELLCOLOR($P$21) -> -4142 | Q186: =CELLCOLOR($Q$21) -> -4142 | R186: =CELLCOLOR($R$21) -> -4142 | S186: =CELLCOLOR($S$21) -> -4142 | T186: =CELLCOLOR($T$21) -> -4142 | U186: =CELLCOLOR($U$21) -> -4142 | V186: =CELLCOLOR($V$21) -> -4142 | W186: =CELLCOLOR($W$21) -> -4142 | X186: =CELLCOLOR($X$21) -> -4142 | Y186: =CELLCOLOR($Y$21) -> -4142 | Z186: =CELLCOLOR($Z$21) -> -4142 | AA186: =CELLCOLOR($AA$21) -> -4142 | AB186: 1
C187: 2 | D187: =CELLCOLOR($D$22) -> -4142 | E187: =CELLCOLOR($E$22) -> -4142 | F187: =CELLCOLOR($F$22) -> -4142 | G187: =CELLCOLOR($G$22) -> -4142 | H187: =CELLCOLOR($H$22) -> -4142 | I187: =CELLCOLOR($I$22) -> -4142 | J187: =CELLCOLOR($J$22) -> -4142 | K187: =CELLCOLOR($K$22) -> -4142 | L187: =CELLCOLOR($L$22) -> -4142 | M187: =CELLCOLOR($M$22) -> -4142 | N187: =CELLCOLOR($N$22) -> -4142 | O187: =CELLCOLOR($O$22) -> -4142 | P187: =CELLCOLOR($P$22) -> -4142 | Q187: =CELLCOLOR($Q$22) -> -4142 | R187: =CELLCOLOR($R$22) -> -4142 | S187: =CELLCOLOR($S$22) -> -4142 | T187: =CELLCOLOR($T$22) -> -4142 | U187: =CELLCOLOR($U$22) -> -4142 | V187: =CELLCOLOR($V$22) -> -4142 | W187: =CELLCOLOR($W$22) -> -4142 | X187: =CELLCOLOR($X$22) -> -4142 | Y187: =CELLCOLOR($Y$22) -> -4142 | Z187: =CELLCOLOR($Z$22) -> -4142 | AA187: =CELLCOLOR($AA$22) -> -4142 | AB187: 2
C188: 3 | D188: =CELLCOLOR($D$23) -> -4142 | E188: =CELLCOLOR($E$23) -> -4142 | F188: =CELLCOLOR($F$23) -> -4142 | G188: =CELLCOLOR($G$23) -> -4142 | H188: =CELLCOLOR($H$23) -> -4142 | I188: =CELLCOLOR($I$23) -> -4142 | J188: =CELLCOLOR($J$23) -> -4142 | K188: =CELLCOLOR($K$23) -> -4142 | L188: =CELLCOLOR($L$23) -> -4142 | M188: =CELLCOLOR($M$23) -> -4142 | N188: =CELLCOLOR($N$23) -> -4142 | O188: =CELLCOLOR($O$23) -> -4142 | P188: =CELLCOLOR($P$23) -> -4142 | Q188: =CELLCOLOR($Q$23) -> -4142 | R188: =CELLCOLOR($R$23) -> -4142 | S188: =CELLCOLOR($S$23) -> -4142 | T188: =CELLCOLOR($T$23) -> -4142 | U188: =CELLCOLOR($U$23) -> -4142 | V188: =CELLCOLOR($V$23) -> -4142 | W188: =CELLCOLOR($W$23) -> -4142 | X188: =CELLCOLOR($X$23) -> -4142 | Y188: =CELLCOLOR($Y$23) -> -4142 | Z188: =CELLCOLOR($Z$23) -> -4142 | AA188: =CELLCOLOR($AA$23) -> -4142 | AB188: 3
C190: 作業表2-1(冷房) | E190: ●月▲時の平均気温(四捨五入で表示）
D191: 時刻
C192: 月 | D192: 0 | E192: 1 | F192: 2 | G192: 3 | H192: 4 | I192: 5 | J192: 6 | K192: 7 | L192: 8 | M192: 9 | N192: 10 | O192: 11 | P192: 12 | Q192: 13 | R192: 14 | S192: 15 | T192: 16 | U192: 17 | V192: 18 | W192: 19 | X192: 20 | Y192: 21 | Z192: 22 | AA192: 23 | AB192: 月
C193: 4 | D193: =IF($D$177=24,ROUND($D$12,0),"")&"" ->  | E193: =IF($E$177=24,ROUND($E$12,0),"")&"" ->  | F193: =IF($F$177=24,ROUND($F$12,0),"")&"" ->  | G193: =IF($G$177=24,ROUND($G$12,0),"")&"" ->  | H193: =IF($H$177=24,ROUND($H$12,0),"")&"" ->  | I193: =IF($I$177=24,ROUND($I$12,0),"")&"" ->  | J193: =IF($J$177=24,ROUND($J$12,0),"")&"" ->  | K193: =IF($K$177=24,ROUND($K$12,0),"")&"" ->  | L193: =IF($L$177=24,ROUND($L$12,0),"")&"" ->  | M193: =IF($M$177=24,ROUND($M$12,0),"")&"" ->  | N193: =IF($N$177=24,ROUND($N$12,0),"")&"" ->  | O193: =IF($O$177=24,ROUND($O$12,0),"")&"" ->  | P193: =IF($P$177=24,ROUND($P$12,0),"")&"" ->  | Q193: =IF($Q$177=24,ROUND($Q$12,0),"")&"" ->  | R193: =IF($R$177=24,ROUND($R$12,0),"")&"" ->  | S193: =IF($S$177=24,ROUND($S$12,0),"")&"" ->  | T193: =IF($T$177=24,ROUND($T$12,0),"")&"" ->  | U193: =IF($U$177=24,ROUND($U$12,0),"")&"" ->  | V193: =IF($V$177=24,ROUND($V$12,0),"")&"" ->  | W193: =IF($W$177=24,ROUND($W$12,0),"")&"" ->  | X193: =IF($X$177=24,ROUND($X$12,0),"")&"" ->  | Y193: =IF($Y$177=24,ROUND($Y$12,0),"")&"" ->  | Z193: =IF($Z$177=24,ROUND($Z$12,0),"")&"" ->  | AA193: =IF($AA$177=24,ROUND($AA$12,0),"")&"" ->  | AB193: 4
C194: 5 | D194: =IF($D$178=24,ROUND($D$13,0),"")&"" ->  | E194: =IF($E$178=24,ROUND($E$13,0),"")&"" ->  | F194: =IF($F$178=24,ROUND($F$13,0),"")&"" ->  | G194: =IF($G$178=24,ROUND($G$13,0),"")&"" ->  | H194: =IF($H$178=24,ROUND($H$13,0),"")&"" ->  | I194: =IF($I$178=24,ROUND($I$13,0),"")&"" ->  | J194: =IF($J$178=24,ROUND($J$13,0),"")&"" ->  | K194: =IF($K$178=24,ROUND($K$13,0),"")&"" ->  | L194: =IF($L$178=24,ROUND($L$13,0),"")&"" ->  | M194: =IF($M$178=24,ROUND($M$13,0),"")&"" ->  | N194: =IF($N$178=24,ROUND($N$13,0),"")&"" ->  | O194: =IF($O$178=24,ROUND($O$13,0),"")&"" ->  | P194: =IF($P$178=24,ROUND($P$13,0),"")&"" ->  | Q194: =IF($Q$178=24,ROUND($Q$13,0),"")&"" ->  | R194: =IF($R$178=24,ROUND($R$13,0),"")&"" ->  | S194: =IF($S$178=24,ROUND($S$13,0),"")&"" ->  | T194: =IF($T$178=24,ROUND($T$13,0),"")&"" ->  | U194: =IF($U$178=24,ROUND($U$13,0),"")&"" ->  | V194: =IF($V$178=24,ROUND($V$13,0),"")&"" ->  | W194: =IF($W$178=24,ROUND($W$13,0),"")&"" ->  | X194: =IF($X$178=24,ROUND($X$13,0),"")&"" ->  | Y194: =IF($Y$178=24,ROUND($Y$13,0),"")&"" ->  | Z194: =IF($Z$178=24,ROUND($Z$13,0),"")&"" ->  | AA194: =IF($AA$178=24,ROUND($AA$13,0),"")&"" ->  | AB194: 5
C195: 6 | D195: =IF($D$179=24,ROUND($D$14,0),"")&"" ->  | E195: =IF($E$179=24,ROUND($E$14,0),"")&"" ->  | F195: =IF($F$179=24,ROUND($F$14,0),"")&"" ->  | G195: =IF($G$179=24,ROUND($G$14,0),"")&"" ->  | H195: =IF($H$179=24,ROUND($H$14,0),"")&"" ->  | I195: =IF($I$179=24,ROUND($I$14,0),"")&"" ->  | J195: =IF($J$179=24,ROUND($J$14,0),"")&"" ->  | K195: =IF($K$179=24,ROUND($K$14,0),"")&"" ->  | L195: =IF($L$179=24,ROUND($L$14,0),"")&"" ->  | M195: =IF($M$179=24,ROUND($M$14,0),"")&"" ->  | N195: =IF($N$179=24,ROUND($N$14,0),"")&"" ->  | O195: =IF($O$179=24,ROUND($O$14,0),"")&"" ->  | P195: =IF($P$179=24,ROUND($P$14,0),"")&"" ->  | Q195: =IF($Q$179=24,ROUND($Q$14,0),"")&"" ->  | R195: =IF($R$179=24,ROUND($R$14,0),"")&"" ->  | S195: =IF($S$179=24,ROUND($S$14,0),"")&"" ->  | T195: =IF($T$179=24,ROUND($T$14,0),"")&"" ->  | U195: =IF($U$179=24,ROUND($U$14,0),"")&"" ->  | V195: =IF($V$179=24,ROUND($V$14,0),"")&"" ->  | W195: =IF($W$179=24,ROUND($W$14,0),"")&"" ->  | X195: =IF($X$179=24,ROUND($X$14,0),"")&"" ->  | Y195: =IF($Y$179=24,ROUND($Y$14,0),"")&"" ->  | Z195: =IF($Z$179=24,ROUND($Z$14,0),"")&"" ->  | AA195: =IF($AA$179=24,ROUND($AA$14,0),"")&"" ->  | AB195: 6
C196: 7 | D196: =IF($D$180=24,ROUND($D$15,0),"")&"" ->  | E196: =IF($E$180=24,ROUND($E$15,0),"")&"" ->  | F196: =IF($F$180=24,ROUND($F$15,0),"")&"" ->  | G196: =IF($G$180=24,ROUND($G$15,0),"")&"" ->  | H196: =IF($H$180=24,ROUND($H$15,0),"")&"" ->  | I196: =IF($I$180=24,ROUND($I$15,0),"")&"" ->  | J196: =IF($J$180=24,ROUND($J$15,0),"")&"" ->  | K196: =IF($K$180=24,ROUND($K$15,0),"")&"" ->  | L196: =IF($L$180=24,ROUND($L$15,0),"")&"" ->  | M196: =IF($M$180=24,ROUND($M$15,0),"")&"" ->  | N196: =IF($N$180=24,ROUND($N$15,0),"")&"" ->  | O196: =IF($O$180=24,ROUND($O$15,0),"")&"" ->  | P196: =IF($P$180=24,ROUND($P$15,0),"")&"" ->  | Q196: =IF($Q$180=24,ROUND($Q$15,0),"")&"" ->  | R196: =IF($R$180=24,ROUND($R$15,0),"")&"" ->  | S196: =IF($S$180=24,ROUND($S$15,0),"")&"" ->  | T196: =IF($T$180=24,ROUND($T$15,0),"")&"" ->  | U196: =IF($U$180=24,ROUND($U$15,0),"")&"" ->  | V196: =IF($V$180=24,ROUND($V$15,0),"")&"" ->  | W196: =IF($W$180=24,ROUND($W$15,0),"")&"" ->  | X196: =IF($X$180=24,ROUND($X$15,0),"")&"" ->  | Y196: =IF($Y$180=24,ROUND($Y$15,0),"")&"" ->  | Z196: =IF($Z$180=24,ROUND($Z$15,0),"")&"" ->  | AA196: =IF($AA$180=24,ROUND($AA$15,0),"")&"" ->  | AB196: 7
C197: 8 | D197: =IF($D$181=24,ROUND($D$16,0),"")&"" ->  | E197: =IF($E$181=24,ROUND($E$16,0),"")&"" ->  | F197: =IF($F$181=24,ROUND($F$16,0),"")&"" ->  | G197: =IF($G$181=24,ROUND($G$16,0),"")&"" ->  | H197: =IF($H$181=24,ROUND($H$16,0),"")&"" ->  | I197: =IF($I$181=24,ROUND($I$16,0),"")&"" ->  | J197: =IF($J$181=24,ROUND($J$16,0),"")&"" ->  | K197: =IF($K$181=24,ROUND($K$16,0),"")&"" ->  | L197: =IF($L$181=24,ROUND($L$16,0),"")&"" ->  | M197: =IF($M$181=24,ROUND($M$16,0),"")&"" ->  | N197: =IF($N$181=24,ROUND($N$16,0),"")&"" ->  | O197: =IF($O$181=24,ROUND($O$16,0),"")&"" ->  | P197: =IF($P$181=24,ROUND($P$16,0),"")&"" ->  | Q197: =IF($Q$181=24,ROUND($Q$16,0),"")&"" ->  | R197: =IF($R$181=24,ROUND($R$16,0),"")&"" ->  | S197: =IF($S$181=24,ROUND($S$16,0),"")&"" ->  | T197: =IF($T$181=24,ROUND($T$16,0),"")&"" ->  | U197: =IF($U$181=24,ROUND($U$16,0),"")&"" ->  | V197: =IF($V$181=24,ROUND($V$16,0),"")&"" ->  | W197: =IF($W$181=24,ROUND($W$16,0),"")&"" ->  | X197: =IF($X$181=24,ROUND($X$16,0),"")&"" ->  | Y197: =IF($Y$181=24,ROUND($Y$16,0),"")&"" ->  | Z197: =IF($Z$181=24,ROUND($Z$16,0),"")&"" ->  | AA197: =IF($AA$181=24,ROUND($AA$16,0),"")&"" ->  | AB197: 8
C198: 9 | D198: =IF($D$182=24,ROUND($D$17,0),"")&"" ->  | E198: =IF($E$182=24,ROUND($E$17,0),"")&"" ->  | F198: =IF($F$182=24,ROUND($F$17,0),"")&"" ->  | G198: =IF($G$182=24,ROUND($G$17,0),"")&"" ->  | H198: =IF($H$182=24,ROUND($H$17,0),"")&"" ->  | I198: =IF($I$182=24,ROUND($I$17,0),"")&"" ->  | J198: =IF($J$182=24,ROUND($J$17,0),"")&"" ->  | K198: =IF($K$182=24,ROUND($K$17,0),"")&"" ->  | L198: =IF($L$182=24,ROUND($L$17,0),"")&"" ->  | M198: =IF($M$182=24,ROUND($M$17,0),"")&"" ->  | N198: =IF($N$182=24,ROUND($N$17,0),"")&"" ->  | O198: =IF($O$182=24,ROUND($O$17,0),"")&"" ->  | P198: =IF($P$182=24,ROUND($P$17,0),"")&"" ->  | Q198: =IF($Q$182=24,ROUND($Q$17,0),"")&"" ->  | R198: =IF($R$182=24,ROUND($R$17,0),"")&"" ->  | S198: =IF($S$182=24,ROUND($S$17,0),"")&"" ->  | T198: =IF($T$182=24,ROUND($T$17,0),"")&"" ->  | U198: =IF($U$182=24,ROUND($U$17,0),"")&"" ->  | V198: =IF($V$182=24,ROUND($V$17,0),"")&"" ->  | W198: =IF($W$182=24,ROUND($W$17,0),"")&"" ->  | X198: =IF($X$182=24,ROUND($X$17,0),"")&"" ->  | Y198: =IF($Y$182=24,ROUND($Y$17,0),"")&"" ->  | Z198: =IF($Z$182=24,ROUND($Z$17,0),"")&"" ->  | AA198: =IF($AA$182=24,ROUND($AA$17,0),"")&"" ->  | AB198: 9
C199: 10 | D199: =IF($D$183=24,ROUND($D$18,0),"")&"" ->  | E199: =IF($E$183=24,ROUND($E$18,0),"")&"" ->  | F199: =IF($F$183=24,ROUND($F$18,0),"")&"" ->  | G199: =IF($G$183=24,ROUND($G$18,0),"")&"" ->  | H199: =IF($H$183=24,ROUND($H$18,0),"")&"" ->  | I199: =IF($I$183=24,ROUND($I$18,0),"")&"" ->  | J199: =IF($J$183=24,ROUND($J$18,0),"")&"" ->  | K199: =IF($K$183=24,ROUND($K$18,0),"")&"" ->  | L199: =IF($L$183=24,ROUND($L$18,0),"")&"" ->  | M199: =IF($M$183=24,ROUND($M$18,0),"")&"" ->  | N199: =IF($N$183=24,ROUND($N$18,0),"")&"" ->  | O199: =IF($O$183=24,ROUND($O$18,0),"")&"" ->  | P199: =IF($P$183=24,ROUND($P$18,0),"")&"" ->  | Q199: =IF($Q$183=24,ROUND($Q$18,0),"")&"" ->  | R199: =IF($R$183=24,ROUND($R$18,0),"")&"" ->  | S199: =IF($S$183=24,ROUND($S$18,0),"")&"" ->  | T199: =IF($T$183=24,ROUND($T$18,0),"")&"" ->  | U199: =IF($U$183=24,ROUND($U$18,0),"")&"" ->  | V199: =IF($V$183=24,ROUND($V$18,0),"")&"" ->  | W199: =IF($W$183=24,ROUND($W$18,0),"")&"" ->  | X199: =IF($X$183=24,ROUND($X$18,0),"")&"" ->  | Y199: =IF($Y$183=24,ROUND($Y$18,0),"")&"" ->  | Z199: =IF($Z$183=24,ROUND($Z$18,0),"")&"" ->  | AA199: =IF($AA$183=24,ROUND($AA$18,0),"")&"" ->  | AB199: 10
C200: 11 | D200: =IF($D$184=24,ROUND($D$19,0),"")&"" ->  | E200: =IF($E$184=24,ROUND($E$19,0),"")&"" ->  | F200: =IF($F$184=24,ROUND($F$19,0),"")&"" ->  | G200: =IF($G$184=24,ROUND($G$19,0),"")&"" ->  | H200: =IF($H$184=24,ROUND($H$19,0),"")&"" ->  | I200: =IF($I$184=24,ROUND($I$19,0),"")&"" ->  | J200: =IF($J$184=24,ROUND($J$19,0),"")&"" ->  | K200: =IF($K$184=24,ROUND($K$19,0),"")&"" ->  | L200: =IF($L$184=24,ROUND($L$19,0),"")&"" ->  | M200: =IF($M$184=24,ROUND($M$19,0),"")&"" ->  | N200: =IF($N$184=24,ROUND($N$19,0),"")&"" ->  | O200: =IF($O$184=24,ROUND($O$19,0),"")&"" ->  | P200: =IF($P$184=24,ROUND($P$19,0),"")&"" ->  | Q200: =IF($Q$184=24,ROUND($Q$19,0),"")&"" ->  | R200: =IF($R$184=24,ROUND($R$19,0),"")&"" ->  | S200: =IF($S$184=24,ROUND($S$19,0),"")&"" ->  | T200: =IF($T$184=24,ROUND($T$19,0),"")&"" ->  | U200: =IF($U$184=24,ROUND($U$19,0),"")&"" ->  | V200: =IF($V$184=24,ROUND($V$19,0),"")&"" ->  | W200: =IF($W$184=24,ROUND($W$19,0),"")&"" ->  | X200: =IF($X$184=24,ROUND($X$19,0),"")&"" ->  | Y200: =IF($Y$184=24,ROUND($Y$19,0),"")&"" ->  | Z200: =IF($Z$184=24,ROUND($Z$19,0),"")&"" ->  | AA200: =IF($AA$184=24,ROUND($AA$19,0),"")&"" ->  | AB200: 11
C201: 12 | D201: =IF($D$185=24,ROUND($D$20,0),"")&"" ->  | E201: =IF($E$185=24,ROUND($E$20,0),"")&"" ->  | F201: =IF($F$185=24,ROUND($F$20,0),"")&"" ->  | G201: =IF($G$185=24,ROUND($G$20,0),"")&"" ->  | H201: =IF($H$185=24,ROUND($H$20,0),"")&"" ->  | I201: =IF($I$185=24,ROUND($I$20,0),"")&"" ->  | J201: =IF($J$185=24,ROUND($J$20,0),"")&"" ->  | K201: =IF($K$185=24,ROUND($K$20,0),"")&"" ->  | L201: =IF($L$185=24,ROUND($L$20,0),"")&"" ->  | M201: =IF($M$185=24,ROUND($M$20,0),"")&"" ->  | N201: =IF($N$185=24,ROUND($N$20,0),"")&"" ->  | O201: =IF($O$185=24,ROUND($O$20,0),"")&"" ->  | P201: =IF($P$185=24,ROUND($P$20,0),"")&"" ->  | Q201: =IF($Q$185=24,ROUND($Q$20,0),"")&"" ->  | R201: =IF($R$185=24,ROUND($R$20,0),"")&"" ->  | S201: =IF($S$185=24,ROUND($S$20,0),"")&"" ->  | T201: =IF($T$185=24,ROUND($T$20,0),"")&"" ->  | U201: =IF($U$185=24,ROUND($U$20,0),"")&"" ->  | V201: =IF($V$185=24,ROUND($V$20,0),"")&"" ->  | W201: =IF($W$185=24,ROUND($W$20,0),"")&"" ->  | X201: =IF($X$185=24,ROUND($X$20,0),"")&"" ->  | Y201: =IF($Y$185=24,ROUND($Y$20,0),"")&"" ->  | Z201: =IF($Z$185=24,ROUND($Z$20,0),"")&"" ->  | AA201: =IF($AA$185=24,ROUND($AA$20,0),"")&"" ->  | AB201: 12
C202: 1 | D202: =IF($D$186=24,ROUND($D$21,0),"")&"" ->  | E202: =IF($E$186=24,ROUND($E$21,0),"")&"" ->  | F202: =IF($F$186=24,ROUND($F$21,0),"")&"" ->  | G202: =IF($G$186=24,ROUND($G$21,0),"")&"" ->  | H202: =IF($H$186=24,ROUND($H$21,0),"")&"" ->  | I202: =IF($I$186=24,ROUND($I$21,0),"")&"" ->  | J202: =IF($J$186=24,ROUND($J$21,0),"")&"" ->  | K202: =IF($K$186=24,ROUND($K$21,0),"")&"" ->  | L202: =IF($L$186=24,ROUND($L$21,0),"")&"" ->  | M202: =IF($M$186=24,ROUND($M$21,0),"")&"" ->  | N202: =IF($N$186=24,ROUND($N$21,0),"")&"" ->  | O202: =IF($O$186=24,ROUND($O$21,0),"")&"" ->  | P202: =IF($P$186=24,ROUND($P$21,0),"")&"" ->  | Q202: =IF($Q$186=24,ROUND($Q$21,0),"")&"" ->  | R202: =IF($R$186=24,ROUND($R$21,0),"")&"" ->  | S202: =IF($S$186=24,ROUND($S$21,0),"")&"" ->  | T202: =IF($T$186=24,ROUND($T$21,0),"")&"" ->  | U202: =IF($U$186=24,ROUND($U$21,0),"")&"" ->  | V202: =IF($V$186=24,ROUND($V$21,0),"")&"" ->  | W202: =IF($W$186=24,ROUND($W$21,0),"")&"" ->  | X202: =IF($X$186=24,ROUND($X$21,0),"")&"" ->  | Y202: =IF($Y$186=24,ROUND($Y$21,0),"")&"" ->  | Z202: =IF($Z$186=24,ROUND($Z$21,0),"")&"" ->  | AA202: =IF($AA$186=24,ROUND($AA$21,0),"")&"" ->  | AB202: 1
C203: 2 | D203: =IF($D$187=24,ROUND($D$22,0),"")&"" ->  | E203: =IF($E$187=24,ROUND($E$22,0),"")&"" ->  | F203: =IF($F$187=24,ROUND($F$22,0),"")&"" ->  | G203: =IF($G$187=24,ROUND($G$22,0),"")&"" ->  | H203: =IF($H$187=24,ROUND($H$22,0),"")&"" ->  | I203: =IF($I$187=24,ROUND($I$22,0),"")&"" ->  | J203: =IF($J$187=24,ROUND($J$22,0),"")&"" ->  | K203: =IF($K$187=24,ROUND($K$22,0),"")&"" ->  | L203: =IF($L$187=24,ROUND($L$22,0),"")&"" ->  | M203: =IF($M$187=24,ROUND($M$22,0),"")&"" ->  | N203: =IF($N$187=24,ROUND($N$22,0),"")&"" ->  | O203: =IF($O$187=24,ROUND($O$22,0),"")&"" ->  | P203: =IF($P$187=24,ROUND($P$22,0),"")&"" ->  | Q203: =IF($Q$187=24,ROUND($Q$22,0),"")&"" ->  | R203: =IF($R$187=24,ROUND($R$22,0),"")&"" ->  | S203: =IF($S$187=24,ROUND($S$22,0),"")&"" ->  | T203: =IF($T$187=24,ROUND($T$22,0),"")&"" ->  | U203: =IF($U$187=24,ROUND($U$22,0),"")&"" ->  | V203: =IF($V$187=24,ROUND($V$22,0),"")&"" ->  | W203: =IF($W$187=24,ROUND($W$22,0),"")&"" ->  | X203: =IF($X$187=24,ROUND($X$22,0),"")&"" ->  | Y203: =IF($Y$187=24,ROUND($Y$22,0),"")&"" ->  | Z203: =IF($Z$187=24,ROUND($Z$22,0),"")&"" ->  | AA203: =IF($AA$187=24,ROUND($AA$22,0),"")&"" ->  | AB203: 2
C204: 3 | D204: =IF($D$188=24,ROUND($D$23,0),"")&"" ->  | E204: =IF($E$188=24,ROUND($E$23,0),"")&"" ->  | F204: =IF($F$188=24,ROUND($F$23,0),"")&"" ->  | G204: =IF($G$188=24,ROUND($G$23,0),"")&"" ->  | H204: =IF($H$188=24,ROUND($H$23,0),"")&"" ->  | I204: =IF($I$188=24,ROUND($I$23,0),"")&"" ->  | J204: =IF($J$188=24,ROUND($J$23,0),"")&"" ->  | K204: =IF($K$188=24,ROUND($K$23,0),"")&"" ->  | L204: =IF($L$188=24,ROUND($L$23,0),"")&"" ->  | M204: =IF($M$188=24,ROUND($M$23,0),"")&"" ->  | N204: =IF($N$188=24,ROUND($N$23,0),"")&"" ->  | O204: =IF($O$188=24,ROUND($O$23,0),"")&"" ->  | P204: =IF($P$188=24,ROUND($P$23,0),"")&"" ->  | Q204: =IF($Q$188=24,ROUND($Q$23,0),"")&"" ->  | R204: =IF($R$188=24,ROUND($R$23,0),"")&"" ->  | S204: =IF($S$188=24,ROUND($S$23,0),"")&"" ->  | T204: =IF($T$188=24,ROUND($T$23,0),"")&"" ->  | U204: =IF($U$188=24,ROUND($U$23,0),"")&"" ->  | V204: =IF($V$188=24,ROUND($V$23,0),"")&"" ->  | W204: =IF($W$188=24,ROUND($W$23,0),"")&"" ->  | X204: =IF($X$188=24,ROUND($X$23,0),"")&"" ->  | Y204: =IF($Y$188=24,ROUND($Y$23,0),"")&"" ->  | Z204: =IF($Z$188=24,ROUND($Z$23,0),"")&"" ->  | AA204: =IF($AA$188=24,ROUND($AA$23,0),"")&"" ->  | AB204: 3
C206: 作業表2-2(暖房) | E206: ●月▲時の平均気温(四捨五入で表示）
D207: 時刻
C208: 月 | D208: 0 | E208: 1 | F208: 2 | G208: 3 | H208: 4 | I208: 5 | J208: 6 | K208: 7 | L208: 8 | M208: 9 | N208: 10 | O208: 11 | P208: 12 | Q208: 13 | R208: 14 | S208: 15 | T208: 16 | U208: 17 | V208: 18 | W208: 19 | X208: 20 | Y208: 21 | Z208: 22 | AA208: 23 | AB208: 月
C209: 4 | D209: =IF($D$177=19,ROUND($D$12,0),"")&"" ->  | E209: =IF($E$177=19,ROUND($E$12,0),"")&"" ->  | F209: =IF($F$177=19,ROUND($F$12,0),"")&"" ->  | G209: =IF($G$177=19,ROUND($G$12,0),"")&"" ->  | H209: =IF($H$177=19,ROUND($H$12,0),"")&"" ->  | I209: =IF($I$177=19,ROUND($I$12,0),"")&"" ->  | J209: =IF($J$177=19,ROUND($J$12,0),"")&"" ->  | K209: =IF($K$177=19,ROUND($K$12,0),"")&"" ->  | L209: =IF($L$177=19,ROUND($L$12,0),"")&"" ->  | M209: =IF($M$177=19,ROUND($M$12,0),"")&"" ->  | N209: =IF($N$177=19,ROUND($N$12,0),"")&"" ->  | O209: =IF($O$177=19,ROUND($O$12,0),"")&"" ->  | P209: =IF($P$177=19,ROUND($P$12,0),"")&"" ->  | Q209: =IF($Q$177=19,ROUND($Q$12,0),"")&"" ->  | R209: =IF($R$177=19,ROUND($R$12,0),"")&"" ->  | S209: =IF($S$177=19,ROUND($S$12,0),"")&"" ->  | T209: =IF($T$177=19,ROUND($T$12,0),"")&"" ->  | U209: =IF($U$177=19,ROUND($U$12,0),"")&"" ->  | V209: =IF($V$177=19,ROUND($V$12,0),"")&"" ->  | W209: =IF($W$177=19,ROUND($W$12,0),"")&"" ->  | X209: =IF($X$177=19,ROUND($X$12,0),"")&"" ->  | Y209: =IF($Y$177=19,ROUND($Y$12,0),"")&"" ->  | Z209: =IF($Z$177=19,ROUND($Z$12,0),"")&"" ->  | AA209: =IF($AA$177=19,ROUND($AA$12,0),"")&"" ->  | AB209: 4
C210: 5 | D210: =IF($D$178=19,ROUND($D$13,0),"")&"" ->  | E210: =IF($E$178=19,ROUND($E$13,0),"")&"" ->  | F210: =IF($F$178=19,ROUND($F$13,0),"")&"" ->  | G210: =IF($G$178=19,ROUND($G$13,0),"")&"" ->  | H210: =IF($H$178=19,ROUND($H$13,0),"")&"" ->  | I210: =IF($I$178=19,ROUND($I$13,0),"")&"" ->  | J210: =IF($J$178=19,ROUND($J$13,0),"")&"" ->  | K210: =IF($K$178=19,ROUND($K$13,0),"")&"" ->  | L210: =IF($L$178=19,ROUND($L$13,0),"")&"" ->  | M210: =IF($M$178=19,ROUND($M$13,0),"")&"" ->  | N210: =IF($N$178=19,ROUND($N$13,0),"")&"" ->  | O210: =IF($O$178=19,ROUND($O$13,0),"")&"" ->  | P210: =IF($P$178=19,ROUND($P$13,0),"")&"" ->  | Q210: =IF($Q$178=19,ROUND($Q$13,0),"")&"" ->  | R210: =IF($R$178=19,ROUND($R$13,0),"")&"" ->  | S210: =IF($S$178=19,ROUND($S$13,0),"")&"" ->  | T210: =IF($T$178=19,ROUND($T$13,0),"")&"" ->  | U210: =IF($U$178=19,ROUND($U$13,0),"")&"" ->  | V210: =IF($V$178=19,ROUND($V$13,0),"")&"" ->  | W210: =IF($W$178=19,ROUND($W$13,0),"")&"" ->  | X210: =IF($X$178=19,ROUND($X$13,0),"")&"" ->  | Y210: =IF($Y$178=19,ROUND($Y$13,0),"")&"" ->  | Z210: =IF($Z$178=19,ROUND($Z$13,0),"")&"" ->  | AA210: =IF($AA$178=19,ROUND($AA$13,0),"")&"" ->  | AB210: 5
C211: 6 | D211: =IF($D$179=19,ROUND($D$14,0),"")&"" ->  | E211: =IF($E$179=19,ROUND($E$14,0),"")&"" ->  | F211: =IF($F$179=19,ROUND($F$14,0),"")&"" ->  | G211: =IF($G$179=19,ROUND($G$14,0),"")&"" ->  | H211: =IF($H$179=19,ROUND($H$14,0),"")&"" ->  | I211: =IF($I$179=19,ROUND($I$14,0),"")&"" ->  | J211: =IF($J$179=19,ROUND($J$14,0),"")&"" ->  | K211: =IF($K$179=19,ROUND($K$14,0),"")&"" ->  | L211: =IF($L$179=19,ROUND($L$14,0),"")&"" ->  | M211: =IF($M$179=19,ROUND($M$14,0),"")&"" ->  | N211: =IF($N$179=19,ROUND($N$14,0),"")&"" ->  | O211: =IF($O$179=19,ROUND($O$14,0),"")&"" ->  | P211: =IF($P$179=19,ROUND($P$14,0),"")&"" ->  | Q211: =IF($Q$179=19,ROUND($Q$14,0),"")&"" ->  | R211: =IF($R$179=19,ROUND($R$14,0),"")&"" ->  | S211: =IF($S$179=19,ROUND($S$14,0),"")&"" ->  | T211: =IF($T$179=19,ROUND($T$14,0),"")&"" ->  | U211: =IF($U$179=19,ROUND($U$14,0),"")&"" ->  | V211: =IF($V$179=19,ROUND($V$14,0),"")&"" ->  | W211: =IF($W$179=19,ROUND($W$14,0),"")&"" ->  | X211: =IF($X$179=19,ROUND($X$14,0),"")&"" ->  | Y211: =IF($Y$179=19,ROUND($Y$14,0),"")&"" ->  | Z211: =IF($Z$179=19,ROUND($Z$14,0),"")&"" ->  | AA211: =IF($AA$179=19,ROUND($AA$14,0),"")&"" ->  | AB211: 6
C212: 7 | D212: =IF($D$180=19,ROUND($D$15,0),"")&"" ->  | E212: =IF($E$180=19,ROUND($E$15,0),"")&"" ->  | F212: =IF($F$180=19,ROUND($F$15,0),"")&"" ->  | G212: =IF($G$180=19,ROUND($G$15,0),"")&"" ->  | H212: =IF($H$180=19,ROUND($H$15,0),"")&"" ->  | I212: =IF($I$180=19,ROUND($I$15,0),"")&"" ->  | J212: =IF($J$180=19,ROUND($J$15,0),"")&"" ->  | K212: =IF($K$180=19,ROUND($K$15,0),"")&"" ->  | L212: =IF($L$180=19,ROUND($L$15,0),"")&"" ->  | M212: =IF($M$180=19,ROUND($M$15,0),"")&"" ->  | N212: =IF($N$180=19,ROUND($N$15,0),"")&"" ->  | O212: =IF($O$180=19,ROUND($O$15,0),"")&"" ->  | P212: =IF($P$180=19,ROUND($P$15,0),"")&"" ->  | Q212: =IF($Q$180=19,ROUND($Q$15,0),"")&"" ->  | R212: =IF($R$180=19,ROUND($R$15,0),"")&"" ->  | S212: =IF($S$180=19,ROUND($S$15,0),"")&"" ->  | T212: =IF($T$180=19,ROUND($T$15,0),"")&"" ->  | U212: =IF($U$180=19,ROUND($U$15,0),"")&"" ->  | V212: =IF($V$180=19,ROUND($V$15,0),"")&"" ->  | W212: =IF($W$180=19,ROUND($W$15,0),"")&"" ->  | X212: =IF($X$180=19,ROUND($X$15,0),"")&"" ->  | Y212: =IF($Y$180=19,ROUND($Y$15,0),"")&"" ->  | Z212: =IF($Z$180=19,ROUND($Z$15,0),"")&"" ->  | AA212: =IF($AA$180=19,ROUND($AA$15,0),"")&"" ->  | AB212: 7
C213: 8 | D213: =IF($D$181=19,ROUND($D$16,0),"")&"" ->  | E213: =IF($E$181=19,ROUND($E$16,0),"")&"" ->  | F213: =IF($F$181=19,ROUND($F$16,0),"")&"" ->  | G213: =IF($G$181=19,ROUND($G$16,0),"")&"" ->  | H213: =IF($H$181=19,ROUND($H$16,0),"")&"" ->  | I213: =IF($I$181=19,ROUND($I$16,0),"")&"" ->  | J213: =IF($J$181=19,ROUND($J$16,0),"")&"" ->  | K213: =IF($K$181=19,ROUND($K$16,0),"")&"" ->  | L213: =IF($L$181=19,ROUND($L$16,0),"")&"" ->  | M213: =IF($M$181=19,ROUND($M$16,0),"")&"" ->  | N213: =IF($N$181=19,ROUND($N$16,0),"")&"" ->  | O213: =IF($O$181=19,ROUND($O$16,0),"")&"" ->  | P213: =IF($P$181=19,ROUND($P$16,0),"")&"" ->  | Q213: =IF($Q$181=19,ROUND($Q$16,0),"")&"" ->  | R213: =IF($R$181=19,ROUND($R$16,0),"")&"" ->  | S213: =IF($S$181=19,ROUND($S$16,0),"")&"" ->  | T213: =IF($T$181=19,ROUND($T$16,0),"")&"" ->  | U213: =IF($U$181=19,ROUND($U$16,0),"")&"" ->  | V213: =IF($V$181=19,ROUND($V$16,0),"")&"" ->  | W213: =IF($W$181=19,ROUND($W$16,0),"")&"" ->  | X213: =IF($X$181=19,ROUND($X$16,0),"")&"" ->  | Y213: =IF($Y$181=19,ROUND($Y$16,0),"")&"" ->  | Z213: =IF($Z$181=19,ROUND($Z$16,0),"")&"" ->  | AA213: =IF($AA$181=19,ROUND($AA$16,0),"")&"" ->  | AB213: 8
C214: 9 | D214: =IF($D$182=19,ROUND($D$17,0),"")&"" ->  | E214: =IF($E$182=19,ROUND($E$17,0),"")&"" ->  | F214: =IF($F$182=19,ROUND($F$17,0),"")&"" ->  | G214: =IF($G$182=19,ROUND($G$17,0),"")&"" ->  | H214: =IF($H$182=19,ROUND($H$17,0),"")&"" ->  | I214: =IF($I$182=19,ROUND($I$17,0),"")&"" ->  | J214: =IF($J$182=19,ROUND($J$17,0),"")&"" ->  | K214: =IF($K$182=19,ROUND($K$17,0),"")&"" ->  | L214: =IF($L$182=19,ROUND($L$17,0),"")&"" ->  | M214: =IF($M$182=19,ROUND($M$17,0),"")&"" ->  | N214: =IF($N$182=19,ROUND($N$17,0),"")&"" ->  | O214: =IF($O$182=19,ROUND($O$17,0),"")&"" ->  | P214: =IF($P$182=19,ROUND($P$17,0),"")&"" ->  | Q214: =IF($Q$182=19,ROUND($Q$17,0),"")&"" ->  | R214: =IF($R$182=19,ROUND($R$17,0),"")&"" ->  | S214: =IF($S$182=19,ROUND($S$17,0),"")&"" ->  | T214: =IF($T$182=19,ROUND($T$17,0),"")&"" ->  | U214: =IF($U$182=19,ROUND($U$17,0),"")&"" ->  | V214: =IF($V$182=19,ROUND($V$17,0),"")&"" ->  | W214: =IF($W$182=19,ROUND($W$17,0),"")&"" ->  | X214: =IF($X$182=19,ROUND($X$17,0),"")&"" ->  | Y214: =IF($Y$182=19,ROUND($Y$17,0),"")&"" ->  | Z214: =IF($Z$182=19,ROUND($Z$17,0),"")&"" ->  | AA214: =IF($AA$182=19,ROUND($AA$17,0),"")&"" ->  | AB214: 9
C215: 10 | D215: =IF($D$183=19,ROUND($D$18,0),"")&"" ->  | E215: =IF($E$183=19,ROUND($E$18,0),"")&"" ->  | F215: =IF($F$183=19,ROUND($F$18,0),"")&"" ->  | G215: =IF($G$183=19,ROUND($G$18,0),"")&"" ->  | H215: =IF($H$183=19,ROUND($H$18,0),"")&"" ->  | I215: =IF($I$183=19,ROUND($I$18,0),"")&"" ->  | J215: =IF($J$183=19,ROUND($J$18,0),"")&"" ->  | K215: =IF($K$183=19,ROUND($K$18,0),"")&"" ->  | L215: =IF($L$183=19,ROUND($L$18,0),"")&"" ->  | M215: =IF($M$183=19,ROUND($M$18,0),"")&"" ->  | N215: =IF($N$183=19,ROUND($N$18,0),"")&"" ->  | O215: =IF($O$183=19,ROUND($O$18,0),"")&"" ->  | P215: =IF($P$183=19,ROUND($P$18,0),"")&"" ->  | Q215: =IF($Q$183=19,ROUND($Q$18,0),"")&"" ->  | R215: =IF($R$183=19,ROUND($R$18,0),"")&"" ->  | S215: =IF($S$183=19,ROUND($S$18,0),"")&"" ->  | T215: =IF($T$183=19,ROUND($T$18,0),"")&"" ->  | U215: =IF($U$183=19,ROUND($U$18,0),"")&"" ->  | V215: =IF($V$183=19,ROUND($V$18,0),"")&"" ->  | W215: =IF($W$183=19,ROUND($W$18,0),"")&"" ->  | X215: =IF($X$183=19,ROUND($X$18,0),"")&"" ->  | Y215: =IF($Y$183=19,ROUND($Y$18,0),"")&"" ->  | Z215: =IF($Z$183=19,ROUND($Z$18,0),"")&"" ->  | AA215: =IF($AA$183=19,ROUND($AA$18,0),"")&"" ->  | AB215: 10
C216: 11 | D216: =IF($D$184=19,ROUND($D$19,0),"")&"" ->  | E216: =IF($E$184=19,ROUND($E$19,0),"")&"" ->  | F216: =IF($F$184=19,ROUND($F$19,0),"")&"" ->  | G216: =IF($G$184=19,ROUND($G$19,0),"")&"" ->  | H216: =IF($H$184=19,ROUND($H$19,0),"")&"" ->  | I216: =IF($I$184=19,ROUND($I$19,0),"")&"" ->  | J216: =IF($J$184=19,ROUND($J$19,0),"")&"" ->  | K216: =IF($K$184=19,ROUND($K$19,0),"")&"" ->  | L216: =IF($L$184=19,ROUND($L$19,0),"")&"" ->  | M216: =IF($M$184=19,ROUND($M$19,0),"")&"" ->  | N216: =IF($N$184=19,ROUND($N$19,0),"")&"" ->  | O216: =IF($O$184=19,ROUND($O$19,0),"")&"" ->  | P216: =IF($P$184=19,ROUND($P$19,0),"")&"" ->  | Q216: =IF($Q$184=19,ROUND($Q$19,0),"")&"" ->  | R216: =IF($R$184=19,ROUND($R$19,0),"")&"" ->  | S216: =IF($S$184=19,ROUND($S$19,0),"")&"" ->  | T216: =IF($T$184=19,ROUND($T$19,0),"")&"" ->  | U216: =IF($U$184=19,ROUND($U$19,0),"")&"" ->  | V216: =IF($V$184=19,ROUND($V$19,0),"")&"" ->  | W216: =IF($W$184=19,ROUND($W$19,0),"")&"" ->  | X216: =IF($X$184=19,ROUND($X$19,0),"")&"" ->  | Y216: =IF($Y$184=19,ROUND($Y$19,0),"")&"" ->  | Z216: =IF($Z$184=19,ROUND($Z$19,0),"")&"" ->  | AA216: =IF($AA$184=19,ROUND($AA$19,0),"")&"" ->  | AB216: 11
C217: 12 | D217: =IF($D$185=19,ROUND($D$20,0),"")&"" ->  | E217: =IF($E$185=19,ROUND($E$20,0),"")&"" ->  | F217: =IF($F$185=19,ROUND($F$20,0),"")&"" ->  | G217: =IF($G$185=19,ROUND($G$20,0),"")&"" ->  | H217: =IF($H$185=19,ROUND($H$20,0),"")&"" ->  | I217: =IF($I$185=19,ROUND($I$20,0),"")&"" ->  | J217: =IF($J$185=19,ROUND($J$20,0),"")&"" ->  | K217: =IF($K$185=19,ROUND($K$20,0),"")&"" ->  | L217: =IF($L$185=19,ROUND($L$20,0),"")&"" ->  | M217: =IF($M$185=19,ROUND($M$20,0),"")&"" ->  | N217: =IF($N$185=19,ROUND($N$20,0),"")&"" ->  | O217: =IF($O$185=19,ROUND($O$20,0),"")&"" ->  | P217: =IF($P$185=19,ROUND($P$20,0),"")&"" ->  | Q217: =IF($Q$185=19,ROUND($Q$20,0),"")&"" ->  | R217: =IF($R$185=19,ROUND($R$20,0),"")&"" ->  | S217: =IF($S$185=19,ROUND($S$20,0),"")&"" ->  | T217: =IF($T$185=19,ROUND($T$20,0),"")&"" ->  | U217: =IF($U$185=19,ROUND($U$20,0),"")&"" ->  | V217: =IF($V$185=19,ROUND($V$20,0),"")&"" ->  | W217: =IF($W$185=19,ROUND($W$20,0),"")&"" ->  | X217: =IF($X$185=19,ROUND($X$20,0),"")&"" ->  | Y217: =IF($Y$185=19,ROUND($Y$20,0),"")&"" ->  | Z217: =IF($Z$185=19,ROUND($Z$20,0),"")&"" ->  | AA217: =IF($AA$185=19,ROUND($AA$20,0),"")&"" ->  | AB217: 12
C218: 1 | D218: =IF($D$186=19,ROUND($D$21,0),"")&"" ->  | E218: =IF($E$186=19,ROUND($E$21,0),"")&"" ->  | F218: =IF($F$186=19,ROUND($F$21,0),"")&"" ->  | G218: =IF($G$186=19,ROUND($G$21,0),"")&"" ->  | H218: =IF($H$186=19,ROUND($H$21,0),"")&"" ->  | I218: =IF($I$186=19,ROUND($I$21,0),"")&"" ->  | J218: =IF($J$186=19,ROUND($J$21,0),"")&"" ->  | K218: =IF($K$186=19,ROUND($K$21,0),"")&"" ->  | L218: =IF($L$186=19,ROUND($L$21,0),"")&"" ->  | M218: =IF($M$186=19,ROUND($M$21,0),"")&"" ->  | N218: =IF($N$186=19,ROUND($N$21,0),"")&"" ->  | O218: =IF($O$186=19,ROUND($O$21,0),"")&"" ->  | P218: =IF($P$186=19,ROUND($P$21,0),"")&"" ->  | Q218: =IF($Q$186=19,ROUND($Q$21,0),"")&"" ->  | R218: =IF($R$186=19,ROUND($R$21,0),"")&"" ->  | S218: =IF($S$186=19,ROUND($S$21,0),"")&"" ->  | T218: =IF($T$186=19,ROUND($T$21,0),"")&"" ->  | U218: =IF($U$186=19,ROUND($U$21,0),"")&"" ->  | V218: =IF($V$186=19,ROUND($V$21,0),"")&"" ->  | W218: =IF($W$186=19,ROUND($W$21,0),"")&"" ->  | X218: =IF($X$186=19,ROUND($X$21,0),"")&"" ->  | Y218: =IF($Y$186=19,ROUND($Y$21,0),"")&"" ->  | Z218: =IF($Z$186=19,ROUND($Z$21,0),"")&"" ->  | AA218: =IF($AA$186=19,ROUND($AA$21,0),"")&"" ->  | AB218: 1
C219: 2 | D219: =IF($D$187=19,ROUND($D$22,0),"")&"" ->  | E219: =IF($E$187=19,ROUND($E$22,0),"")&"" ->  | F219: =IF($F$187=19,ROUND($F$22,0),"")&"" ->  | G219: =IF($G$187=19,ROUND($G$22,0),"")&"" ->  | H219: =IF($H$187=19,ROUND($H$22,0),"")&"" ->  | I219: =IF($I$187=19,ROUND($I$22,0),"")&"" ->  | J219: =IF($J$187=19,ROUND($J$22,0),"")&"" ->  | K219: =IF($K$187=19,ROUND($K$22,0),"")&"" ->  | L219: =IF($L$187=19,ROUND($L$22,0),"")&"" ->  | M219: =IF($M$187=19,ROUND($M$22,0),"")&"" ->  | N219: =IF($N$187=19,ROUND($N$22,0),"")&"" ->  | O219: =IF($O$187=19,ROUND($O$22,0),"")&"" ->  | P219: =IF($P$187=19,ROUND($P$22,0),"")&"" ->  | Q219: =IF($Q$187=19,ROUND($Q$22,0),"")&"" ->  | R219: =IF($R$187=19,ROUND($R$22,0),"")&"" ->  | S219: =IF($S$187=19,ROUND($S$22,0),"")&"" ->  | T219: =IF($T$187=19,ROUND($T$22,0),"")&"" ->  | U219: =IF($U$187=19,ROUND($U$22,0),"")&"" ->  | V219: =IF($V$187=19,ROUND($V$22,0),"")&"" ->  | W219: =IF($W$187=19,ROUND($W$22,0),"")&"" ->  | X219: =IF($X$187=19,ROUND($X$22,0),"")&"" ->  | Y219: =IF($Y$187=19,ROUND($Y$22,0),"")&"" ->  | Z219: =IF($Z$187=19,ROUND($Z$22,0),"")&"" ->  | AA219: =IF($AA$187=19,ROUND($AA$22,0),"")&"" ->  | AB219: 2
... 315 more rows

Sheet 寒冷地(γ既定値)
C2: GHPの設置場所
C3: =IF(必ずこのシートから始めてください!$L$8="","",必ずこのシートから始めてください!$L$8) ->  | F3: 手順1：空調を行う月、時間を下記の指定の色で塗る(指定の色以外で塗ると計算できません。)
C4: =VLOOKUP($C$3,γ一覧表!$C$3:$E$50,2,FALSE) ->  | G4: 冷房 | H4: 青 | I4: 【左から5列目、一番薄い色(アクセント1,白＋基本色80％)】
G5: 暖房 | H5: オレンジ | I5: 【左から6番目、一番薄い色(アクセント2,白＋基本色80％)】
C6: 使用するγ値 | F6: 手順2：各月の運転日数を入力する
C7: =IFERROR(IF(VLOOKUP($C$3,γ一覧表!$C$3:$E$50,3,FALSE)<=1,"---",IFERROR(VLOOKUP($C$3,γ一覧表!$C$3:$E$50,3,FALSE),"---")),"---") -> --- | F7: 手順3：Ctrl + Alt + F9を同時に押す | R7: ●時刻別平均気温表記載の数値は、選択された都道府県の県庁所在地の月別、時刻別平均気温
F8: 手順4：黄色のセルに値を入力する(緑は自動計算) | R8: ●本データは気象庁発表の1992年4月1日から2022年3月31日までの30年の1時間データを整理したもの
C9: 時刻別平均気温[℃] | R9: ●2月はうるう日を含みます
D10: 時刻 | AB10: =SUM(AB12:AB23) -> 0 | AC10: =必ずこのシートから始めてください!$M$3 -> Ver.1.2
C11: 月 | D11: 0 | E11: 1 | F11: 2 | G11: 3 | H11: 4 | I11: 5 | J11: 6 | K11: 7 | L11: 8 | M11: 9 | N11: 10 | O11: 11 | P11: 12 | Q11: 13 | R11: 14 | S11: 15 | T11: 16 | U11: 17 | V11: 18 | W11: 19 | X11: 20 | Y11: 21 | Z11: 22 | AA11: 23 | AB11: 運転日数 | AC11: 月
C12: 4 | D12: =IFERROR(INDIRECT($C$4&"!B5"),"") ->  | E12: =IFERROR(INDIRECT($C$4&"!C5"),"") ->  | F12: =IFERROR(INDIRECT($C$4&"!D5"),"") ->  | G12: =IFERROR(INDIRECT($C$4&"!E5"),"") ->  | H12: =IFERROR(INDIRECT($C$4&"!F5"),"") ->  | I12: =IFERROR(INDIRECT($C$4&"!G5"),"") ->  | J12: =IFERROR(INDIRECT($C$4&"!H5"),"") ->  | K12: =IFERROR(INDIRECT($C$4&"!I5"),"") ->  | L12: =IFERROR(INDIRECT($C$4&"!J5"),"") ->  | M12: =IFERROR(INDIRECT($C$4&"!K5"),"") ->  | N12: =IFERROR(INDIRECT($C$4&"!L5"),"") ->  | O12: =IFERROR(INDIRECT($C$4&"!M5"),"") ->  | P12: =IFERROR(INDIRECT($C$4&"!N5"),"") ->  | Q12: =IFERROR(INDIRECT($C$4&"!O5"),"") ->  | R12: =IFERROR(INDIRECT($C$4&"!P5"),"") ->  | S12: =IFERROR(INDIRECT($C$4&"!Q5"),"") ->  | T12: =IFERROR(INDIRECT($C$4&"!R5"),"") ->  | U12: =IFERROR(INDIRECT($C$4&"!S5"),"") ->  | V12: =IFERROR(INDIRECT($C$4&"!T5"),"") ->  | W12: =IFERROR(INDIRECT($C$4&"!U5"),"") ->  | X12: =IFERROR(INDIRECT($C$4&"!V5"),"") ->  | Y12: =IFERROR(INDIRECT($C$4&"!W5"),"") ->  | Z12: =IFERROR(INDIRECT($C$4&"!X5"),"") ->  | AA12: =IFERROR(INDIRECT($C$4&"!Y5"),"") ->  | AC12: 4
C13: 5 | D13: =IFERROR(INDIRECT($C$4&"!B6"),"") ->  | E13: =IFERROR(INDIRECT($C$4&"!C6"),"") ->  | F13: =IFERROR(INDIRECT($C$4&"!D6"),"") ->  | G13: =IFERROR(INDIRECT($C$4&"!E6"),"") ->  | H13: =IFERROR(INDIRECT($C$4&"!F6"),"") ->  | I13: =IFERROR(INDIRECT($C$4&"!G6"),"") ->  | J13: =IFERROR(INDIRECT($C$4&"!H6"),"") ->  | K13: =IFERROR(INDIRECT($C$4&"!I6"),"") ->  | L13: =IFERROR(INDIRECT($C$4&"!J6"),"") ->  | M13: =IFERROR(INDIRECT($C$4&"!K6"),"") ->  | N13: =IFERROR(INDIRECT($C$4&"!L6"),"") ->  | O13: =IFERROR(INDIRECT($C$4&"!M6"),"") ->  | P13: =IFERROR(INDIRECT($C$4&"!N6"),"") ->  | Q13: =IFERROR(INDIRECT($C$4&"!O6"),"") ->  | R13: =IFERROR(INDIRECT($C$4&"!P6"),"") ->  | S13: =IFERROR(INDIRECT($C$4&"!Q6"),"") ->  | T13: =IFERROR(INDIRECT($C$4&"!R6"),"") ->  | U13: =IFERROR(INDIRECT($C$4&"!S6"),"") ->  | V13: =IFERROR(INDIRECT($C$4&"!T6"),"") ->  | W13: =IFERROR(INDIRECT($C$4&"!U6"),"") ->  | X13: =IFERROR(INDIRECT($C$4&"!V6"),"") ->  | Y13: =IFERROR(INDIRECT($C$4&"!W6"),"") ->  | Z13: =IFERROR(INDIRECT($C$4&"!X6"),"") ->  | AA13: =IFERROR(INDIRECT($C$4&"!Y6"),"") ->  | AC13: 5
C14: 6 | D14: =IFERROR(INDIRECT($C$4&"!B7"),"") ->  | E14: =IFERROR(INDIRECT($C$4&"!C7"),"") ->  | F14: =IFERROR(INDIRECT($C$4&"!D7"),"") ->  | G14: =IFERROR(INDIRECT($C$4&"!E7"),"") ->  | H14: =IFERROR(INDIRECT($C$4&"!F7"),"") ->  | I14: =IFERROR(INDIRECT($C$4&"!G7"),"") ->  | J14: =IFERROR(INDIRECT($C$4&"!H7"),"") ->  | K14: =IFERROR(INDIRECT($C$4&"!I7"),"") ->  | L14: =IFERROR(INDIRECT($C$4&"!J7"),"") ->  | M14: =IFERROR(INDIRECT($C$4&"!K7"),"") ->  | N14: =IFERROR(INDIRECT($C$4&"!L7"),"") ->  | O14: =IFERROR(INDIRECT($C$4&"!M7"),"") ->  | P14: =IFERROR(INDIRECT($C$4&"!N7"),"") ->  | Q14: =IFERROR(INDIRECT($C$4&"!O7"),"") ->  | R14: =IFERROR(INDIRECT($C$4&"!P7"),"") ->  | S14: =IFERROR(INDIRECT($C$4&"!Q7"),"") ->  | T14: =IFERROR(INDIRECT($C$4&"!R7"),"") ->  | U14: =IFERROR(INDIRECT($C$4&"!S7"),"") ->  | V14: =IFERROR(INDIRECT($C$4&"!T7"),"") ->  | W14: =IFERROR(INDIRECT($C$4&"!U7"),"") ->  | X14: =IFERROR(INDIRECT($C$4&"!V7"),"") ->  | Y14: =IFERROR(INDIRECT($C$4&"!W7"),"") ->  | Z14: =IFERROR(INDIRECT($C$4&"!X7"),"") ->  | AA14: =IFERROR(INDIRECT($C$4&"!Y7"),"") ->  | AC14: 6
C15: 7 | D15: =IFERROR(INDIRECT($C$4&"!B8"),"") ->  | E15: =IFERROR(INDIRECT($C$4&"!C8"),"") ->  | F15: =IFERROR(INDIRECT($C$4&"!D8"),"") ->  | G15: =IFERROR(INDIRECT($C$4&"!E8"),"") ->  | H15: =IFERROR(INDIRECT($C$4&"!F8"),"") ->  | I15: =IFERROR(INDIRECT($C$4&"!G8"),"") ->  | J15: =IFERROR(INDIRECT($C$4&"!H8"),"") ->  | K15: =IFERROR(INDIRECT($C$4&"!I8"),"") ->  | L15: =IFERROR(INDIRECT($C$4&"!J8"),"") ->  | M15: =IFERROR(INDIRECT($C$4&"!K8"),"") ->  | N15: =IFERROR(INDIRECT($C$4&"!L8"),"") ->  | O15: =IFERROR(INDIRECT($C$4&"!M8"),"") ->  | P15: =IFERROR(INDIRECT($C$4&"!N8"),"") ->  | Q15: =IFERROR(INDIRECT($C$4&"!O8"),"") ->  | R15: =IFERROR(INDIRECT($C$4&"!P8"),"") ->  | S15: =IFERROR(INDIRECT($C$4&"!Q8"),"") ->  | T15: =IFERROR(INDIRECT($C$4&"!R8"),"") ->  | U15: =IFERROR(INDIRECT($C$4&"!S8"),"") ->  | V15: =IFERROR(INDIRECT($C$4&"!T8"),"") ->  | W15: =IFERROR(INDIRECT($C$4&"!U8"),"") ->  | X15: =IFERROR(INDIRECT($C$4&"!V8"),"") ->  | Y15: =IFERROR(INDIRECT($C$4&"!W8"),"") ->  | Z15: =IFERROR(INDIRECT($C$4&"!X8"),"") ->  | AA15: =IFERROR(INDIRECT($C$4&"!Y8"),"") ->  | AC15: 7
C16: 8 | D16: =IFERROR(INDIRECT($C$4&"!B9"),"") ->  | E16: =IFERROR(INDIRECT($C$4&"!C9"),"") ->  | F16: =IFERROR(INDIRECT($C$4&"!D9"),"") ->  | G16: =IFERROR(INDIRECT($C$4&"!E9"),"") ->  | H16: =IFERROR(INDIRECT($C$4&"!F9"),"") ->  | I16: =IFERROR(INDIRECT($C$4&"!G9"),"") ->  | J16: =IFERROR(INDIRECT($C$4&"!H9"),"") ->  | K16: =IFERROR(INDIRECT($C$4&"!I9"),"") ->  | L16: =IFERROR(INDIRECT($C$4&"!J9"),"") ->  | M16: =IFERROR(INDIRECT($C$4&"!K9"),"") ->  | N16: =IFERROR(INDIRECT($C$4&"!L9"),"") ->  | O16: =IFERROR(INDIRECT($C$4&"!M9"),"") ->  | P16: =IFERROR(INDIRECT($C$4&"!N9"),"") ->  | Q16: =IFERROR(INDIRECT($C$4&"!O9"),"") ->  | R16: =IFERROR(INDIRECT($C$4&"!P9"),"") ->  | S16: =IFERROR(INDIRECT($C$4&"!Q9"),"") ->  | T16: =IFERROR(INDIRECT($C$4&"!R9"),"") ->  | U16: =IFERROR(INDIRECT($C$4&"!S9"),"") ->  | V16: =IFERROR(INDIRECT($C$4&"!T9"),"") ->  | W16: =IFERROR(INDIRECT($C$4&"!U9"),"") ->  | X16: =IFERROR(INDIRECT($C$4&"!V9"),"") ->  | Y16: =IFERROR(INDIRECT($C$4&"!W9"),"") ->  | Z16: =IFERROR(INDIRECT($C$4&"!X9"),"") ->  | AA16: =IFERROR(INDIRECT($C$4&"!Y9"),"") ->  | AC16: 8
C17: 9 | D17: =IFERROR(INDIRECT($C$4&"!B10"),"") ->  | E17: =IFERROR(INDIRECT($C$4&"!C10"),"") ->  | F17: =IFERROR(INDIRECT($C$4&"!D10"),"") ->  | G17: =IFERROR(INDIRECT($C$4&"!e10"),"") ->  | H17: =IFERROR(INDIRECT($C$4&"!F10"),"") ->  | I17: =IFERROR(INDIRECT($C$4&"!G10"),"") ->  | J17: =IFERROR(INDIRECT($C$4&"!H10"),"") ->  | K17: =IFERROR(INDIRECT($C$4&"!I10"),"") ->  | L17: =IFERROR(INDIRECT($C$4&"!J10"),"") ->  | M17: =IFERROR(INDIRECT($C$4&"!K10"),"") ->  | N17: =IFERROR(INDIRECT($C$4&"!L10"),"") ->  | O17: =IFERROR(INDIRECT($C$4&"!M10"),"") ->  | P17: =IFERROR(INDIRECT($C$4&"!N10"),"") ->  | Q17: =IFERROR(INDIRECT($C$4&"!O10"),"") ->  | R17: =IFERROR(INDIRECT($C$4&"!P10"),"") ->  | S17: =IFERROR(INDIRECT($C$4&"!Q10"),"") ->  | T17: =IFERROR(INDIRECT($C$4&"!R10"),"") ->  | U17: =IFERROR(INDIRECT($C$4&"!S10"),"") ->  | V17: =IFERROR(INDIRECT($C$4&"!T10"),"") ->  | W17: =IFERROR(INDIRECT($C$4&"!U10"),"") ->  | X17: =IFERROR(INDIRECT($C$4&"!V10"),"") ->  | Y17: =IFERROR(INDIRECT($C$4&"!W10"),"") ->  | Z17: =IFERROR(INDIRECT($C$4&"!X10"),"") ->  | AA17: =IFERROR(INDIRECT($C$4&"!Y10"),"") ->  | AC17: 9
C18: 10 | D18: =IFERROR(INDIRECT($C$4&"!B11"),"") ->  | E18: =IFERROR(INDIRECT($C$4&"!C11"),"") ->  | F18: =IFERROR(INDIRECT($C$4&"!D11"),"") ->  | G18: =IFERROR(INDIRECT($C$4&"!E11"),"") ->  | H18: =IFERROR(INDIRECT($C$4&"!F11"),"") ->  | I18: =IFERROR(INDIRECT($C$4&"!G11"),"") ->  | J18: =IFERROR(INDIRECT($C$4&"!H11"),"") ->  | K18: =IFERROR(INDIRECT($C$4&"!I11"),"") ->  | L18: =IFERROR(INDIRECT($C$4&"!J11"),"") ->  | M18: =IFERROR(INDIRECT($C$4&"!K11"),"") ->  | N18: =IFERROR(INDIRECT($C$4&"!L11"),"") ->  | O18: =IFERROR(INDIRECT($C$4&"!M11"),"") ->  | P18: =IFERROR(INDIRECT($C$4&"!N11"),"") ->  | Q18: =IFERROR(INDIRECT($C$4&"!O11"),"") ->  | R18: =IFERROR(INDIRECT($C$4&"!P11"),"") ->  | S18: =IFERROR(INDIRECT($C$4&"!Q11"),"") ->  | T18: =IFERROR(INDIRECT($C$4&"!R11"),"") ->  | U18: =IFERROR(INDIRECT($C$4&"!S11"),"") ->  | V18: =IFERROR(INDIRECT($C$4&"!T11"),"") ->  | W18: =IFERROR(INDIRECT($C$4&"!U11"),"") ->  | X18: =IFERROR(INDIRECT($C$4&"!V11"),"") ->  | Y18: =IFERROR(INDIRECT($C$4&"!W11"),"") ->  | Z18: =IFERROR(INDIRECT($C$4&"!X11"),"") ->  | AA18: =IFERROR(INDIRECT($C$4&"!Y11"),"") ->  | AC18: 10
C19: 11 | D19: =IFERROR(INDIRECT($C$4&"!B12"),"") ->  | E19: =IFERROR(INDIRECT($C$4&"!C12"),"") ->  | F19: =IFERROR(INDIRECT($C$4&"!D12"),"") ->  | G19: =IFERROR(INDIRECT($C$4&"!E12"),"") ->  | H19: =IFERROR(INDIRECT($C$4&"!F12"),"") ->  | I19: =IFERROR(INDIRECT($C$4&"!G12"),"") ->  | J19: =IFERROR(INDIRECT($C$4&"!H12"),"") ->  | K19: =IFERROR(INDIRECT($C$4&"!I12"),"") ->  | L19: =IFERROR(INDIRECT($C$4&"!J12"),"") ->  | M19: =IFERROR(INDIRECT($C$4&"!K12"),"") ->  | N19: =IFERROR(INDIRECT($C$4&"!L12"),"") ->  | O19: =IFERROR(INDIRECT($C$4&"!M12"),"") ->  | P19: =IFERROR(INDIRECT($C$4&"!N12"),"") ->  | Q19: =IFERROR(INDIRECT($C$4&"!O12"),"") ->  | R19: =IFERROR(INDIRECT($C$4&"!P12"),"") ->  | S19: =IFERROR(INDIRECT($C$4&"!Q12"),"") ->  | T19: =IFERROR(INDIRECT($C$4&"!R12"),"") ->  | U19: =IFERROR(INDIRECT($C$4&"!S12"),"") ->  | V19: =IFERROR(INDIRECT($C$4&"!T12"),"") ->  | W19: =IFERROR(INDIRECT($C$4&"!U12"),"") ->  | X19: =IFERROR(INDIRECT($C$4&"!V12"),"") ->  | Y19: =IFERROR(INDIRECT($C$4&"!W12"),"") ->  | Z19: =IFERROR(INDIRECT($C$4&"!X12"),"") ->  | AA19: =IFERROR(INDIRECT($C$4&"!Y12"),"") ->  | AC19: 11
C20: 12 | D20: =IFERROR(INDIRECT($C$4&"!B13"),"") ->  | E20: =IFERROR(INDIRECT($C$4&"!C13"),"") ->  | F20: =IFERROR(INDIRECT($C$4&"!D13"),"") ->  | G20: =IFERROR(INDIRECT($C$4&"!E13"),"") ->  | H20: =IFERROR(INDIRECT($C$4&"!F13"),"") ->  | I20: =IFERROR(INDIRECT($C$4&"!G13"),"") ->  | J20: =IFERROR(INDIRECT($C$4&"!H13"),"") ->  | K20: =IFERROR(INDIRECT($C$4&"!I13"),"") ->  | L20: =IFERROR(INDIRECT($C$4&"!J13"),"") ->  | M20: =IFERROR(INDIRECT($C$4&"!K13"),"") ->  | N20: =IFERROR(INDIRECT($C$4&"!L13"),"") ->  | O20: =IFERROR(INDIRECT($C$4&"!M13"),"") ->  | P20: =IFERROR(INDIRECT($C$4&"!N13"),"") ->  | Q20: =IFERROR(INDIRECT($C$4&"!O13"),"") ->  | R20: =IFERROR(INDIRECT($C$4&"!P13"),"") ->  | S20: =IFERROR(INDIRECT($C$4&"!Q13"),"") ->  | T20: =IFERROR(INDIRECT($C$4&"!R13"),"") ->  | U20: =IFERROR(INDIRECT($C$4&"!S13"),"") ->  | V20: =IFERROR(INDIRECT($C$4&"!T13"),"") ->  | W20: =IFERROR(INDIRECT($C$4&"!U13"),"") ->  | X20: =IFERROR(INDIRECT($C$4&"!V13"),"") ->  | Y20: =IFERROR(INDIRECT($C$4&"!W13"),"") ->  | Z20: =IFERROR(INDIRECT($C$4&"!X13"),"") ->  | AA20: =IFERROR(INDIRECT($C$4&"!Y13"),"") ->  | AC20: 12
C21: 1 | D21: =IFERROR(INDIRECT($C$4&"!B14"),"") ->  | E21: =IFERROR(INDIRECT($C$4&"!C14"),"") ->  | F21: =IFERROR(INDIRECT($C$4&"!D14"),"") ->  | G21: =IFERROR(INDIRECT($C$4&"!E14"),"") ->  | H21: =IFERROR(INDIRECT($C$4&"!F14"),"") ->  | I21: =IFERROR(INDIRECT($C$4&"!G14"),"") ->  | J21: =IFERROR(INDIRECT($C$4&"!H14"),"") ->  | K21: =IFERROR(INDIRECT($C$4&"!I14"),"") ->  | L21: =IFERROR(INDIRECT($C$4&"!J14"),"") ->  | M21: =IFERROR(INDIRECT($C$4&"!K14"),"") ->  | N21: =IFERROR(INDIRECT($C$4&"!L14"),"") ->  | O21: =IFERROR(INDIRECT($C$4&"!M14"),"") ->  | P21: =IFERROR(INDIRECT($C$4&"!N14"),"") ->  | Q21: =IFERROR(INDIRECT($C$4&"!O14"),"") ->  | R21: =IFERROR(INDIRECT($C$4&"!P14"),"") ->  | S21: =IFERROR(INDIRECT($C$4&"!Q14"),"") ->  | T21: =IFERROR(INDIRECT($C$4&"!R14"),"") ->  | U21: =IFERROR(INDIRECT($C$4&"!S14"),"") ->  | V21: =IFERROR(INDIRECT($C$4&"!T14"),"") ->  | W21: =IFERROR(INDIRECT($C$4&"!U14"),"") ->  | X21: =IFERROR(INDIRECT($C$4&"!V14"),"") ->  | Y21: =IFERROR(INDIRECT($C$4&"!W14"),"") ->  | Z21: =IFERROR(INDIRECT($C$4&"!X14"),"") ->  | AA21: =IFERROR(INDIRECT($C$4&"!Y14"),"") ->  | AC21: 1
C22: 2 | D22: =IFERROR(INDIRECT($C$4&"!B15"),"") ->  | E22: =IFERROR(INDIRECT($C$4&"!C15"),"") ->  | F22: =IFERROR(INDIRECT($C$4&"!D15"),"") ->  | G22: =IFERROR(INDIRECT($C$4&"!E15"),"") ->  | H22: =IFERROR(INDIRECT($C$4&"!F15"),"") ->  | I22: =IFERROR(INDIRECT($C$4&"!G15"),"") ->  | J22: =IFERROR(INDIRECT($C$4&"!H15"),"") ->  | K22: =IFERROR(INDIRECT($C$4&"!I15"),"") ->  | L22: =IFERROR(INDIRECT($C$4&"!J15"),"") ->  | M22: =IFERROR(INDIRECT($C$4&"!K15"),"") ->  | N22: =IFERROR(INDIRECT($C$4&"!L15"),"") ->  | O22: =IFERROR(INDIRECT($C$4&"!M15"),"") ->  | P22: =IFERROR(INDIRECT($C$4&"!N15"),"") ->  | Q22: =IFERROR(INDIRECT($C$4&"!O15"),"") ->  | R22: =IFERROR(INDIRECT($C$4&"!P15"),"") ->  | S22: =IFERROR(INDIRECT($C$4&"!Q15"),"") ->  | T22: =IFERROR(INDIRECT($C$4&"!R15"),"") ->  | U22: =IFERROR(INDIRECT($C$4&"!S15"),"") ->  | V22: =IFERROR(INDIRECT($C$4&"!T15"),"") ->  | W22: =IFERROR(INDIRECT($C$4&"!U15"),"") ->  | X22: =IFERROR(INDIRECT($C$4&"!V15"),"") ->  | Y22: =IFERROR(INDIRECT($C$4&"!W15"),"") ->  | Z22: =IFERROR(INDIRECT($C$4&"!X15"),"") ->  | AA22: =IFERROR(INDIRECT($C$4&"!Y15"),"") ->  | AC22: 2
C23: 3 | D23: =IFERROR(INDIRECT($C$4&"!B16"),"") ->  | E23: =IFERROR(INDIRECT($C$4&"!C16"),"") ->  | F23: =IFERROR(INDIRECT($C$4&"!D16"),"") ->  | G23: =IFERROR(INDIRECT($C$4&"!E16"),"") ->  | H23: =IFERROR(INDIRECT($C$4&"!F16"),"") ->  | I23: =IFERROR(INDIRECT($C$4&"!G16"),"") ->  | J23: =IFERROR(INDIRECT($C$4&"!H16"),"") ->  | K23: =IFERROR(INDIRECT($C$4&"!I16"),"") ->  | L23: =IFERROR(INDIRECT($C$4&"!J16"),"") ->  | M23: =IFERROR(INDIRECT($C$4&"!K16"),"") ->  | N23: =IFERROR(INDIRECT($C$4&"!L16"),"") ->  | O23: =IFERROR(INDIRECT($C$4&"!M16"),"") ->  | P23: =IFERROR(INDIRECT($C$4&"!N16"),"") ->  | Q23: =IFERROR(INDIRECT($C$4&"!O16"),"") ->  | R23: =IFERROR(INDIRECT($C$4&"!P16"),"") ->  | S23: =IFERROR(INDIRECT($C$4&"!Q16"),"") ->  | T23: =IFERROR(INDIRECT($C$4&"!R16"),"") ->  | U23: =IFERROR(INDIRECT($C$4&"!S16"),"") ->  | V23: =IFERROR(INDIRECT($C$4&"!T16"),"") ->  | W23: =IFERROR(INDIRECT($C$4&"!U16"),"") ->  | X23: =IFERROR(INDIRECT($C$4&"!V16"),"") ->  | Y23: =IFERROR(INDIRECT($C$4&"!W16"),"") ->  | Z23: =IFERROR(INDIRECT($C$4&"!X16"),"") ->  | AA23: =IFERROR(INDIRECT($C$4&"!Y16"),"") ->  | AC23: 3
D25: 共通1 | E25: 冷房負荷ゼロ点 | G25: 冷房が不要になると思われる外気温度を入力 | L25: Tco | M25: 18 | N25: ℃ | P25: 共通2 | Q25: 暖房設計外気温 | S25: 建物の暖房負荷を設定する外気温度(JIS B8627のＴh100に相当) | AA25: Td | AB25: -5 | AC25: ℃
E26: 暖房負荷ゼロ点 | G26: 暖房が不要になると思われる外気温度を入力 | L26: Two | M26: 12 | N26: ℃ | Q26: 設計暖房能力 | S26: 最大暖房負荷に対して選定したGHPの暖房能力(原則、最大空調負荷に等しい) | AA26: Φwd | AB26: 18.2 | AC26: kW
D28: 設備導入前 | Q28: 前1 | R28: 前2 | S28: 前3 | T28: 前4 | U28: 前5 | V28: 前6 | W28: 前7 | X28: 前8 | Y28: 前9 | Z28: 前10
E29: 定格冷房能力 | G29: GHPの仕様を入力 | P29: Φco | Q29: 22.4 | AA29: kW
E30: 定格冷房ガス消費量 | G30: GHPの仕様を入力 | P30: Pco | Q30: 19.1 | AA30: kW
E31: 冷房消費電力 | G31: GHPの仕様を入力 | P31: Ac | Q31: 0.38 | AA31: kW
E32: 定格冷房COP | G32: 自動計算 | H32: (ep= | I32: 2.4 | J32: ) | P32: σco | Q32: =IFERROR(Q29/(Q30+Q31*$I$32),"") -> 1.119328403 | R32: =IFERROR(R29/(R30+R31*$I$32),"") ->  | W32: =IFERROR(W29/(W30+W31*$I$32),"") ->  | Z32: =IFERROR(Z29/(Z30+Z31*$I$32),"") ->  | AA32: σco＝Φco／(Pco+Ac×ep)
E33: 定格暖房能力 | G33: GHPの仕様を入力 | P33: Φwo | Q33: 25 | AA33: kW
E34: 定格暖房ガス消費量 | G34: GHPの仕様を入力 | P34: Pwo | Q34: 18.7 | AA34: kW
E35: 暖房消費電力 | G35: GHPの仕様を入力 | P35: Aw | Q35: 0.47 | AA35: kW
E36: 定格暖房COP | G36: 自動計算 | P36: σwo | Q36: =IFERROR(Q33/(Q34+Q35*$I$32),"") -> 1.260843252 | R36: =IFERROR(R33/(R34+R35*$I$32),"") ->  | V36: =IFERROR(V33/(V34+V35*$I$32),"") ->  | X36: =IFERROR(X33/(X34+X35*$I$32),"") ->  | Z36: =IFERROR(Z33/(Z34+Z35*$I$32),"") ->  | AA36: σwo＝Φwo／(Pwo+Aw×ep)
E37: 低温暖房能力 | G37: GHPの仕様を入力 | J37: 着霜を考慮した外気温2℃時の空調機の性能 | P37: Φw2 | Q37: 25 | AA37: kW
E38: 低温暖房ガス消費量 | G38: GHPの仕様を入力 | J38: 寒冷地向け空調機では、カタログ等に記載 | P38: Pw2 | Q38: 30 | AA38: kW
E39: 低温暖房COP | G39: 自動計算 | P39: σw2 | Q39: =IFERROR(Q37/(Q38+Q35*$I$32),"") -> 0.8031354408 | R39: =IFERROR(R37/(R38+R35*$I$32),"") ->  | T39: =IFERROR(T37/(T38+T35*$I$32),"") ->  | W39: =IFERROR(W37/(W38+W35*$I$32),"") ->  | Z39: =IFERROR(Z37/(Z38+Z35*$I$32),"") ->  | AA39: σw2＝Φw2／(Pw2+Aw×ep)
E40: 台数 | G40: 同じ容量の空調機の台数を入力 | AA40: 台
D42: 設備導入後 | Q42: 後1 | R42: 後2 | S42: 後3 | T42: 後4 | U42: 後5 | V42: 後6 | W42: 後7 | X42: 後8 | Y42: 後9 | Z42: 後10
E43: 定格冷房能力 | G43: GHPの仕様を入力 | P43: Φco | AA43: kW
E44: 定格冷房ガス消費量 | G44: GHPの仕様を入力 | P44: Pco | AA44: kW
E45: 冷房消費電力 | G45: GHPの仕様を入力 | P45: Ac | AA45: kW
E46: 定格冷房COP | G46: 自動計算 | H46: (ep= | I46: 2.4 | J46: ) | P46: σco | Q46: =IFERROR(Q43/(Q44+Q45*$I$46),"") ->  | R46: =IFERROR(R43/(R44+R45*$I$46),"") ->  | AA46: σco＝Φco／(Pco+Ac×ep)
E47: 定格暖房能力 | G47: GHPの仕様を入力 | P47: Φwo | AA47: kW
E48: 定格暖房ガス消費量 | G48: GHPの仕様を入力 | P48: Pwo | AA48: kW
E49: 暖房消費電力 | G49: GHPの仕様を入力 | P49: Aw | AA49: kW
E50: 定格暖房COP | G50: 自動計算 | P50: σwo | Q50: =IFERROR(Q47/(Q48+Q49*$I$46),"") ->  | R50: =IFERROR(R47/(R48+R49*$I$46),"") ->  | AA50: σwo＝Φwo／(Pwo+Aw×ep)
E51: 低温暖房能力 | G51: GHPの仕様を入力 | J51: 着霜を考慮した外気温2℃時の空調機の性能 | P51: Φw2 | AA51: kW
E52: 低温暖房ガス消費量 | G52: GHPの仕様を入力 | J52: 寒冷地向け空調機では、カタログ等に記載 | P52: Pw2 | AA52: kW
E53: 低温暖房COP | G53: 自動計算 | P53: σw2 | Q53: =IFERROR(Q51/(Q52+Q49*$I$46),"") ->  | R53: =IFERROR(R51/(R52+R49*$I$46),"") ->  | Z53: =IFERROR(Z51/(Z52+Z49*$I$46),"") ->  | AA53: σw2＝Φw2／(Pw2+Aw×ep)
E54: 台数 | G54: 同じ容量の空調機の台数を入力 | AA54: 台
C56: 設備導入前ガス使用量［MJ]
D57: 冷房(Gc) | F57: 暖房(Gw) | H57: 合計(G)
D58: =IFERROR(D74*F60+G74*I60+J74*L60+M74*O60+P74*R60+S74*U60+V74*X60+Y74*AA60+AB74*AD60+AE74*AG60,"") -> 0 | F58: =IFERROR(E74*F60+H74*I60+K74*L60+N74*O60+Q74*R60+T74*U60+W74*X60+Z74*AA60+AC74*AD60+AF74*AG60,"") -> 0 | H58: =IFERROR(SUM(D58:G58),"") -> 0
D60: 前1 | F60: =IF($Q$40="",1,$Q$40) -> 1 | G60: 前2 | I60: =IF($R$40="",1,$R$40) -> 1 | J60: 前3 | L60: =IF($S$40="",1,$S$40) -> 1 | M60: 前4 | O60: =IF($T$40="",1,$T$40) -> 1 | P60: 前5 | R60: =IF($U$40="",1,$U$40) -> 1 | S60: 前6 | U60: =IF($V$40="",1,$V$40) -> 1 | V60: 前7 | X60: =IF($W$40="",1,$W$40) -> 1 | Y60: 前8 | AA60: =IF($X$40="",1,$X$40) -> 1 | AB60: 前9 | AD60: =IF($Y$40="",1,$Y$40) -> 1 | AE60: 前10 | AG60: =IF($Z$40="",1,$Z$40) -> 1
C61: 月 期間 | D61: 冷房 | E61: 暖房 | F61: 月合計 | G61: 冷房 | H61: 暖房 | I61: 月合計 | J61: 冷房 | K61: 暖房 | L61: 月合計 | M61: 冷房 | N61: 暖房 | O61: 月合計 | P61: 冷房 | Q61: 暖房 | R61: 月合計 | S61: 冷房 | T61: 暖房 | U61: 月合計 | V61: 冷房 | W61: 暖房 | X61: 月合計 | Y61: 冷房 | Z61: 暖房 | AA61: 月合計 | AB61: 冷房 | AC61: 暖房 | AD61: 月合計 | AE61: 冷房 | AF61: 暖房 | AG61: 月合計 | AH61: 期間 月
C62: 4 | D62: =IFERROR(IF($C$7="---","",3.6*(D102-D82*$I$32)),"") ->  | E62: =IFERROR(IF($C$7="---","",3.6*(E102-E82*$I$32)),"") ->  | F62: =IFERROR(D62+E62,"") ->  | G62: =IFERROR(IF($C$7="---","",3.6*(G102-G82*$I$32)),"") ->  | H62: =IFERROR(IF($C$7="---","",3.6*(H102-H82*$I$32)),"") ->  | I62: =IFERROR(G62+H62,"") ->  | J62: =IFERROR(IF($C$7="---","",3.6*(J102-J82*$I$32)),"") ->  | K62: =IFERROR(IF($C$7="---","",3.6*(K102-K82*$I$32)),"") ->  | L62: =IFERROR(J62+K62,"") ->  | M62: =IFERROR(IF($C$7="---","",3.6*(M102-M82*$I$32)),"") ->  | N62: =IFERROR(IF($C$7="---","",3.6*(N102-N82*$I$32)),"") ->  | O62: =IFERROR(M62+N62,"") ->  | P62: =IFERROR(IF($C$7="---","",3.6*(P102-P82*$I$32)),"") ->  | Q62: =IFERROR(IF($C$7="---","",3.6*(Q102-Q82*$I$32)),"") ->  | R62: =IFERROR(P62+Q62,"") ->  | S62: =IFERROR(IF($C$7="---","",3.6*(S102-S82*$I$32)),"") ->  | T62: =IFERROR(IF($C$7="---","",3.6*(T102-T82*$I$32)),"") ->  | U62: =IFERROR(S62+T62,"") ->  | V62: =IFERROR(IF($C$7="---","",3.6*(V102-V82*$I$32)),"") ->  | W62: =IFERROR(IF($C$7="---","",3.6*(W102-W82*$I$32)),"") ->  | X62: =IFERROR(V62+W62,"") ->  | Y62: =IFERROR(IF($C$7="---","",3.6*(Y102-Y82*$I$32)),"") ->  | Z62: =IFERROR(IF($C$7="---","",3.6*(Z102-Z82*$I$32)),"") ->  | AA62: =IFERROR(Y62+Z62,"") ->  | AB62: =IFERROR(IF($C$7="---","",3.6*(AB102-AB82*$I$32)),"") ->  | AC62: =IFERROR(IF($C$7="---","",3.6*(AC102-AC82*$I$32)),"") ->  | AD62: =IFERROR(AB62+AC62,"") ->  | AE62: =IFERROR(IF($C$7="---","",3.6*(AE102-AE82*$I$32)),"") ->  | AF62: =IFERROR(IF($C$7="---","",3.6*(AF102-AF82*$I$32)),"") ->  | AG62: =IFERROR(AE62+AF62,"") ->  | AH62: 4
C63: 5 | D63: =IFERROR(IF($C$7="---","",3.6*(D103-D83*$I$32)),"") ->  | F63: =IFERROR(D63+E63,"") ->  | G63: =IFERROR(IF($C$7="---","",3.6*(G103-G83*$I$32)),"") ->  | I63: =IFERROR(G63+H63,"") ->  | J63: =IFERROR(IF($C$7="---","",3.6*(J103-J83*$I$32)),"") ->  | L63: =IFERROR(J63+K63,"") ->  | M63: =IFERROR(IF($C$7="---","",3.6*(M103-M83*$I$32)),"") ->  | O63: =IFERROR(M63+N63,"") ->  | P63: =IFERROR(IF($C$7="---","",3.6*(P103-P83*$I$32)),"") ->  | R63: =IFERROR(P63+Q63,"") ->  | S63: =IFERROR(IF($C$7="---","",3.6*(S103-S83*$I$32)),"") ->  | U63: =IFERROR(S63+T63,"") ->  | V63: =IFERROR(IF($C$7="---","",3.6*(V103-V83*$I$32)),"") ->  | X63: =IFERROR(V63+W63,"") ->  | Y63: =IFERROR(IF($C$7="---","",3.6*(Y103-Y83*$I$32)),"") ->  | AA63: =IFERROR(Y63+Z63,"") ->  | AB63: =IFERROR(IF($C$7="---","",3.6*(AB103-AB83*$I$32)),"") ->  | AD63: =IFERROR(AB63+AC63,"") ->  | AE63: =IFERROR(IF($C$7="---","",3.6*(AE103-AE83*$I$32)),"") ->  | AG63: =IFERROR(AE63+AF63,"") ->  | AH63: 5
C64: 6 | J64: =IFERROR(IF($C$7="---","",3.6*(J104-J84*$I$32)),"") ->  | M64: =IFERROR(IF($C$7="---","",3.6*(M104-M84*$I$32)),"") ->  | P64: =IFERROR(IF($C$7="---","",3.6*(P104-P84*$I$32)),"") ->  | S64: =IFERROR(IF($C$7="---","",3.6*(S104-S84*$I$32)),"") ->  | V64: =IFERROR(IF($C$7="---","",3.6*(V104-V84*$I$32)),"") ->  | Y64: =IFERROR(IF($C$7="---","",3.6*(Y104-Y84*$I$32)),"") ->  | AB64: =IFERROR(IF($C$7="---","",3.6*(AB104-AB84*$I$32)),"") ->  | AE64: =IFERROR(IF($C$7="---","",3.6*(AE104-AE84*$I$32)),"") ->  | AH64: 6
C65: 7 | J65: =IFERROR(IF($C$7="---","",3.6*(J105-J85*$I$32)),"") ->  | M65: =IFERROR(IF($C$7="---","",3.6*(M105-M85*$I$32)),"") ->  | P65: =IFERROR(IF($C$7="---","",3.6*(P105-P85*$I$32)),"") ->  | S65: =IFERROR(IF($C$7="---","",3.6*(S105-S85*$I$32)),"") ->  | V65: =IFERROR(IF($C$7="---","",3.6*(V105-V85*$I$32)),"") ->  | Y65: =IFERROR(IF($C$7="---","",3.6*(Y105-Y85*$I$32)),"") ->  | AB65: =IFERROR(IF($C$7="---","",3.6*(AB105-AB85*$I$32)),"") ->  | AE65: =IFERROR(IF($C$7="---","",3.6*(AE105-AE85*$I$32)),"") ->  | AH65: 7
C66: 8 | J66: =IFERROR(IF($C$7="---","",3.6*(J106-J86*$I$32)),"") ->  | M66: =IFERROR(IF($C$7="---","",3.6*(M106-M86*$I$32)),"") ->  | P66: =IFERROR(IF($C$7="---","",3.6*(P106-P86*$I$32)),"") ->  | S66: =IFERROR(IF($C$7="---","",3.6*(S106-S86*$I$32)),"") ->  | V66: =IFERROR(IF($C$7="---","",3.6*(V106-V86*$I$32)),"") ->  | Y66: =IFERROR(IF($C$7="---","",3.6*(Y106-Y86*$I$32)),"") ->  | AB66: =IFERROR(IF($C$7="---","",3.6*(AB106-AB86*$I$32)),"") ->  | AE66: =IFERROR(IF($C$7="---","",3.6*(AE106-AE86*$I$32)),"") ->  | AH66: 8
C67: 9 | J67: =IFERROR(IF($C$7="---","",3.6*(J107-J87*$I$32)),"") ->  | M67: =IFERROR(IF($C$7="---","",3.6*(M107-M87*$I$32)),"") ->  | P67: =IFERROR(IF($C$7="---","",3.6*(P107-P87*$I$32)),"") ->  | S67: =IFERROR(IF($C$7="---","",3.6*(S107-S87*$I$32)),"") ->  | V67: =IFERROR(IF($C$7="---","",3.6*(V107-V87*$I$32)),"") ->  | Y67: =IFERROR(IF($C$7="---","",3.6*(Y107-Y87*$I$32)),"") ->  | AB67: =IFERROR(IF($C$7="---","",3.6*(AB107-AB87*$I$32)),"") ->  | AE67: =IFERROR(IF($C$7="---","",3.6*(AE107-AE87*$I$32)),"") ->  | AH67: 9
C68: 10 | J68: =IFERROR(IF($C$7="---","",3.6*(J108-J88*$I$32)),"") ->  | M68: =IFERROR(IF($C$7="---","",3.6*(M108-M88*$I$32)),"") ->  | P68: =IFERROR(IF($C$7="---","",3.6*(P108-P88*$I$32)),"") ->  | S68: =IFERROR(IF($C$7="---","",3.6*(S108-S88*$I$32)),"") ->  | V68: =IFERROR(IF($C$7="---","",3.6*(V108-V88*$I$32)),"") ->  | Y68: =IFERROR(IF($C$7="---","",3.6*(Y108-Y88*$I$32)),"") ->  | AB68: =IFERROR(IF($C$7="---","",3.6*(AB108-AB88*$I$32)),"") ->  | AE68: =IFERROR(IF($C$7="---","",3.6*(AE108-AE88*$I$32)),"") ->  | AH68: 10
C69: 11 | J69: =IFERROR(IF($C$7="---","",3.6*(J109-J89*$I$32)),"") ->  | M69: =IFERROR(IF($C$7="---","",3.6*(M109-M89*$I$32)),"") ->  | P69: =IFERROR(IF($C$7="---","",3.6*(P109-P89*$I$32)),"") ->  | S69: =IFERROR(IF($C$7="---","",3.6*(S109-S89*$I$32)),"") ->  | V69: =IFERROR(IF($C$7="---","",3.6*(V109-V89*$I$32)),"") ->  | Y69: =IFERROR(IF($C$7="---","",3.6*(Y109-Y89*$I$32)),"") ->  | AB69: =IFERROR(IF($C$7="---","",3.6*(AB109-AB89*$I$32)),"") ->  | AE69: =IFERROR(IF($C$7="---","",3.6*(AE109-AE89*$I$32)),"") ->  | AH69: 11
C70: 12 | J70: =IFERROR(IF($C$7="---","",3.6*(J110-J90*$I$32)),"") ->  | M70: =IFERROR(IF($C$7="---","",3.6*(M110-M90*$I$32)),"") ->  | P70: =IFERROR(IF($C$7="---","",3.6*(P110-P90*$I$32)),"") ->  | S70: =IFERROR(IF($C$7="---","",3.6*(S110-S90*$I$32)),"") ->  | V70: =IFERROR(IF($C$7="---","",3.6*(V110-V90*$I$32)),"") ->  | Y70: =IFERROR(IF($C$7="---","",3.6*(Y110-Y90*$I$32)),"") ->  | AB70: =IFERROR(IF($C$7="---","",3.6*(AB110-AB90*$I$32)),"") ->  | AE70: =IFERROR(IF($C$7="---","",3.6*(AE110-AE90*$I$32)),"") ->  | AH70: 12
C71: 1 | J71: =IFERROR(IF($C$7="---","",3.6*(J111-J91*$I$32)),"") ->  | M71: =IFERROR(IF($C$7="---","",3.6*(M111-M91*$I$32)),"") ->  | P71: =IFERROR(IF($C$7="---","",3.6*(P111-P91*$I$32)),"") ->  | S71: =IFERROR(IF($C$7="---","",3.6*(S111-S91*$I$32)),"") ->  | V71: =IFERROR(IF($C$7="---","",3.6*(V111-V91*$I$32)),"") ->  | Y71: =IFERROR(IF($C$7="---","",3.6*(Y111-Y91*$I$32)),"") ->  | AB71: =IFERROR(IF($C$7="---","",3.6*(AB111-AB91*$I$32)),"") ->  | AE71: =IFERROR(IF($C$7="---","",3.6*(AE111-AE91*$I$32)),"") ->  | AH71: 1
C72: 2 | J72: =IFERROR(IF($C$7="---","",3.6*(J112-J92*$I$32)),"") ->  | M72: =IFERROR(IF($C$7="---","",3.6*(M112-M92*$I$32)),"") ->  | P72: =IFERROR(IF($C$7="---","",3.6*(P112-P92*$I$32)),"") ->  | S72: =IFERROR(IF($C$7="---","",3.6*(S112-S92*$I$32)),"") ->  | V72: =IFERROR(IF($C$7="---","",3.6*(V112-V92*$I$32)),"") ->  | Y72: =IFERROR(IF($C$7="---","",3.6*(Y112-Y92*$I$32)),"") ->  | AB72: =IFERROR(IF($C$7="---","",3.6*(AB112-AB92*$I$32)),"") ->  | AE72: =IFERROR(IF($C$7="---","",3.6*(AE112-AE92*$I$32)),"") ->  | AH72: 2
C73: 3 | F73: =IFERROR(D73+E73,"") ->  | I73: =IFERROR(G73+H73,"") ->  | J73: =IFERROR(IF($C$7="---","",3.6*(J113-J93*$I$32)),"") ->  | L73: =IFERROR(J73+K73,"") ->  | M73: =IFERROR(IF($C$7="---","",3.6*(M113-M93*$I$32)),"") ->  | O73: =IFERROR(M73+N73,"") ->  | P73: =IFERROR(IF($C$7="---","",3.6*(P113-P93*$I$32)),"") ->  | R73: =IFERROR(P73+Q73,"") ->  | S73: =IFERROR(IF($C$7="---","",3.6*(S113-S93*$I$32)),"") ->  | U73: =IFERROR(S73+T73,"") ->  | V73: =IFERROR(IF($C$7="---","",3.6*(V113-V93*$I$32)),"") ->  | X73: =IFERROR(V73+W73,"") ->  | Y73: =IFERROR(IF($C$7="---","",3.6*(Y113-Y93*$I$32)),"") ->  | AA73: =IFERROR(Y73+Z73,"") ->  | AB73: =IFERROR(IF($C$7="---","",3.6*(AB113-AB93*$I$32)),"") ->  | AD73: =IFERROR(AB73+AC73,"") ->  | AE73: =IFERROR(IF($C$7="---","",3.6*(AE113-AE93*$I$32)),"") ->  | AG73: =IFERROR(AE73+AF73,"") ->  | AH73: 3
C74: 合計 | D74: =IFERROR(SUM(D62:D73),"") -> 0 | E74: 0 | F74: 0 | G74: 0 | H74: 0 | I74: 0 | J74: 0 | K74: 0 | L74: 0 | M74: 0 | N74: 0 | O74: 0 | P74: 0 | Q74: 0 | R74: 0 | S74: 0 | T74: 0 | U74: 0 | V74: 0 | W74: 0 | X74: 0 | Y74: 0 | Z74: 0 | AA74: 0 | AB74: 0 | AC74: 0 | AD74: 0 | AE74: 0 | AF74: 0 | AG74: 0 | AH74: 合計
C76: 設備導入前電力使用量[kWh]
D77: 冷房(Auxc) | F77: 暖房(Auxw) | H77: 合計(Aux)
D78: =IFERROR(D94*F80+G94*I80+J94*L80+M94*O80+P94*R80+S94*U80+V94*X80+Y94*AA80+AB94*AD80+AE94*AG80,"") -> 0 | F78: =IFERROR(E94*F80+H94*I80+K94*L80+N94*O80+Q94*R80+T94*U80+W94*X80+Z94*AA80+AC94*AD80+AF94*AG80,"") -> 0 | H78: =IFERROR(SUM(D78:G78),"") -> 0
D80: 前1 | F80: =IF($Q$40="",1,$Q$40) -> 1 | G80: 前2 | I80: =IF($R$40="",1,$R$40) -> 1 | J80: 前3 | L80: =IF($S$40="",1,$S$40) -> 1 | M80: 前4 | O80: =IF($T$40="",1,$T$40) -> 1 | P80: 前5 | R80: =IF($U$40="",1,$U$40) -> 1 | S80: 前6 | U80: =IF($V$40="",1,$V$40) -> 1 | V80: 前7 | X80: =IF($W$40="",1,$W$40) -> 1 | Y80: 前8 | AA80: =IF($X$40="",1,$X$40) -> 1 | AB80: 前9 | AD80: =IF($Y$40="",1,$Y$40) -> 1 | AE80: 前10 | AG80: =IF($Z$40="",1,$Z$40) -> 1
C81: 月 期間 | D81: 冷房 | E81: 暖房 | F81: 月合計 | G81: 冷房 | H81: 暖房 | I81: 月合計 | J81: 冷房 | K81: 暖房 | L81: 月合計 | M81: 冷房 | N81: 暖房 | O81: 月合計 | P81: 冷房 | Q81: 暖房 | R81: 月合計 | S81: 冷房 | T81: 暖房 | U81: 月合計 | V81: 冷房 | W81: 暖房 | X81: 月合計 | Y81: 冷房 | Z81: 暖房 | AA81: 月合計 | AB81: 冷房 | AC81: 暖房 | AD81: 月合計 | AE81: 冷房 | AF81: 暖房 | AG81: 月合計 | AH81: 期間 月
C82: 4 | D82: =IFERROR(IF($C$7="---","",D102*($Q$31*$I$32)/($Q$30+$Q$31*$I$32)/$I$32),"") ->  | E82: =IFERROR(IF($C$7="---","",E102*($Q$35*$I$32)/($Q$34+$Q$35*$I$32)/$I$32),"") ->  | F82: =IFERROR(D82+E82,"") ->  | G82: =IFERROR(IF($C$7="---","",G102*($R$31*$I$32)/($R$30+$R$31*$I$32)/$I$32),"") ->  | H82: =IFERROR(IF($C$7="---","",H102*($R$35*$I$32)/($R$34+$R$35*$I$32)/$I$32),"") ->  | I82: =IFERROR(G82+H82,"") ->  | J82: =IFERROR(IF($C$7="---","",J102*($S$31*$I$32)/($S$30+$S$31*$I$32)/$I$32),"") ->  | K82: =IFERROR(IF($C$7="---","",K102*($S$35*$I$32)/($S$34+$S$35*$I$32)/$I$32),"") ->  | L82: =IFERROR(J82+K82,"") ->  | M82: =IFERROR(IF($C$7="---","",M102*($T$31*$I$32)/($T$30+$T$31*$I$32)/$I$32),"") ->  | N82: =IFERROR(IF($C$7="---","",N102*($T$35*$I$32)/($T$34+$T$35*$I$32)/$I$32),"") ->  | O82: =IFERROR(M82+N82,"") ->  | P82: =IFERROR(IF($C$7="---","",P102*($U$31*$I$32)/($U$30+$U$31*$I$32)/$I$32),"") ->  | Q82: =IFERROR(IF($C$7="---","",Q102*($U$35*$I$32)/($U$34+$U$35*$I$32)/$I$32),"") ->  | R82: =IFERROR(P82+Q82,"") ->  | S82: =IFERROR(IF($C$7="---","",S102*($V$31*$I$32)/($V$30+$V$31*$I$32)/$I$32),"") ->  | T82: =IFERROR(IF($C$7="---","",T102*($V$35*$I$32)/($V$34+$V$35*$I$32)/$I$32),"") ->  | U82: =IFERROR(S82+T82,"") ->  | V82: =IFERROR(IF($C$7="---","",V102*($W$31*$I$32)/($W$30+$W$31*$I$32)/$I$32),"") ->  | W82: =IFERROR(IF($C$7="---","",W102*($W$35*$I$32)/($W$34+$W$35*$I$32)/$I$32),"") ->  | X82: =IFERROR(V82+W82,"") ->  | Y82: =IFERROR(IF($C$7="---","",Y102*($X$31*$I$32)/($X$30+$X$31*$I$32)/$I$32),"") ->  | Z82: =IFERROR(IF($C$7="---","",Z102*($X$35*$I$32)/($X$34+$X$35*$I$32)/$I$32),"") ->  | AA82: =IFERROR(Y82+Z82,"") ->  | AB82: =IFERROR(IF($C$7="---","",AB102*($Y$31*$I$32)/($Y$30+$Y$31*$I$32)/$I$32),"") ->  | AC82: =IFERROR(IF($C$7="---","",AC102*($Y$35*$I$32)/($Y$34+$Y$35*$I$32)/$I$32),"") ->  | AD82: =IFERROR(AB82+AC82,"") ->  | AE82: =IFERROR(IF($C$7="---","",AE102*($Z$31*$I$32)/($Z$30+$Z$31*$I$32)/$I$32),"") ->  | AF82: =IFERROR(IF($C$7="---","",AF102*($Z$35*$I$32)/($Z$34+$Z$35*$I$32)/$I$32),"") ->  | AG82: =IFERROR(AE82+AF82,"") ->  | AH82: 4
C83: 5 | D83: =IFERROR(IF($C$7="---","",D103*($Q$31*$I$32)/($Q$30+$Q$31*$I$32)/$I$32),"") ->  | E83: =IFERROR(IF($C$7="---","",E103*($Q$35*$I$32)/($Q$34+$Q$35*$I$32)/$I$32),"") ->  | F83: =IFERROR(D83+E83,"") ->  | G83: =IFERROR(IF($C$7="---","",G103*($R$31*$I$32)/($R$30+$R$31*$I$32)/$I$32),"") ->  | H83: =IFERROR(IF($C$7="---","",H103*($R$35*$I$32)/($R$34+$R$35*$I$32)/$I$32),"") ->  | I83: =IFERROR(G83+H83,"") ->  | J83: =IFERROR(IF($C$7="---","",J103*($S$31*$I$32)/($S$30+$S$31*$I$32)/$I$32),"") ->  | K83: =IFERROR(IF($C$7="---","",K103*($S$35*$I$32)/($S$34+$S$35*$I$32)/$I$32),"") ->  | L83: =IFERROR(J83+K83,"") ->  | M83: =IFERROR(IF($C$7="---","",M103*($T$31*$I$32)/($T$30+$T$31*$I$32)/$I$32),"") ->  | N83: =IFERROR(IF($C$7="---","",N103*($T$35*$I$32)/($T$34+$T$35*$I$32)/$I$32),"") ->  | O83: =IFERROR(M83+N83,"") ->  | P83: =IFERROR(IF($C$7="---","",P103*($U$31*$I$32)/($U$30+$U$31*$I$32)/$I$32),"") ->  | Q83: =IFERROR(IF($C$7="---","",Q103*($U$35*$I$32)/($U$34+$U$35*$I$32)/$I$32),"") ->  | R83: =IFERROR(P83+Q83,"") ->  | S83: =IFERROR(IF($C$7="---","",S103*($V$31*$I$32)/($V$30+$V$31*$I$32)/$I$32),"") ->  | T83: =IFERROR(IF($C$7="---","",T103*($V$35*$I$32)/($V$34+$V$35*$I$32)/$I$32),"") ->  | U83: =IFERROR(S83+T83,"") ->  | V83: =IFERROR(IF($C$7="---","",V103*($W$31*$I$32)/($W$30+$W$31*$I$32)/$I$32),"") ->  | W83: =IFERROR(IF($C$7="---","",W103*($W$35*$I$32)/($W$34+$W$35*$I$32)/$I$32),"") ->  | X83: =IFERROR(V83+W83,"") ->  | Y83: =IFERROR(IF($C$7="---","",Y103*($X$31*$I$32)/($X$30+$X$31*$I$32)/$I$32),"") ->  | Z83: =IFERROR(IF($C$7="---","",Z103*($X$35*$I$32)/($X$34+$X$35*$I$32)/$I$32),"") ->  | AA83: =IFERROR(Y83+Z83,"") ->  | AB83: =IFERROR(IF($C$7="---","",AB103*($Y$31*$I$32)/($Y$30+$Y$31*$I$32)/$I$32),"") ->  | AC83: =IFERROR(IF($C$7="---","",AC103*($Y$35*$I$32)/($Y$34+$Y$35*$I$32)/$I$32),"") ->  | AD83: =IFERROR(AB83+AC83,"") ->  | AE83: =IFERROR(IF($C$7="---","",AE103*($Z$31*$I$32)/($Z$30+$Z$31*$I$32)/$I$32),"") ->  | AF83: =IFERROR(IF($C$7="---","",AF103*($Z$35*$I$32)/($Z$34+$Z$35*$I$32)/$I$32),"") ->  | AG83: =IFERROR(AE83+AF83,"") ->  | AH83: 5
C84: 6 | AH84: 6
C85: 7 | AH85: 7
C86: 8 | AH86: 8
C87: 9 | AH87: 9
C88: 10 | AH88: 10
C89: 11 | AH89: 11
C90: 12 | AH90: 12
C91: 1 | AH91: 1
C92: 2 | AH92: 2
C93: 3 | F93: =IFERROR(D93+E93,"") ->  | I93: =IFERROR(G93+H93,"") ->  | L93: =IFERROR(J93+K93,"") ->  | O93: =IFERROR(M93+N93,"") ->  | R93: =IFERROR(P93+Q93,"") ->  | S93: =IFERROR(IF($C$7="---","",S113*($V$31*$I$32)/($V$30+$V$31*$I$32)/$I$32),"") ->  | T93: =IFERROR(IF($C$7="---","",T113*($V$35*$I$32)/($V$34+$V$35*$I$32)/$I$32),"") ->  | U93: =IFERROR(S93+T93,"") ->  | X93: =IFERROR(V93+W93,"") ->  | AA93: =IFERROR(Y93+Z93,"") ->  | AD93: =IFERROR(AB93+AC93,"") ->  | AG93: =IFERROR(AE93+AF93,"") ->  | AH93: 3
C94: 合計 | D94: =IFERROR(SUM(D82:D93),"") -> 0 | E94: 0 | F94: 0 | G94: 0 | H94: 0 | I94: 0 | J94: 0 | K94: 0 | L94: 0 | M94: 0 | N94: 0 | O94: 0 | P94: 0 | Q94: 0 | R94: 0 | S94: 0 | T94: 0 | U94: 0 | V94: 0 | W94: 0 | X94: 0 | Y94: 0 | Z94: 0 | AA94: 0 | AB94: 0 | AC94: 0 | AD94: 0 | AE94: 0 | AF94: 0 | AG94: 0 | AH94: 合計
C96: 設備導入前エネルギー使用量［kWh]
D97: 冷房(Ec) | F97: 暖房(Ew) | H97: 合計(E)
D98: =IFERROR(D114*F100+G114*I100+J114*L100+M114*O100+P114*R100+S114*U100+V114*X100+Y114*AA100+AB114*AD100+AE114*AG100,"") -> 0 | F98: =IFERROR(E114*F100+H114*I100+K114*L100+N114*O100+Q114*R100+T114*U100+W114*X100+Z114*AA100+AC114*AD100+AF114*AG100,"") -> 0 | H98: =IFERROR(SUM(D98:G98),"") -> 0
D100: 前1 | F100: =IF($Q$40="",1,$Q$40) -> 1 | G100: 前2 | I100: =IF($R$40="",1,$R$40) -> 1 | J100: 前3 | L100: =IF($S$40="",1,$S$40) -> 1 | M100: 前4 | O100: =IF($T$40="",1,$T$40) -> 1 | P100: 前5 | R100: =IF($U$40="",1,$U$40) -> 1 | S100: 前6 | U100: =IF($V$40="",1,$V$40) -> 1 | V100: 前7 | X100: =IF($W$40="",1,$W$40) -> 1 | Y100: 前8 | AA100: =IF($X$40="",1,$X$40) -> 1 | AB100: 前9 | AD100: =IF($Y$40="",1,$Y$40) -> 1 | AE100: 前10 | AG100: =IF($Z$40="",1,$Z$40) -> 1
C101: 月 期間 | D101: 冷房 | E101: 暖房 | F101: 月合計 | G101: 冷房 | H101: 暖房 | I101: 月合計 | J101: 冷房 | K101: 暖房 | L101: 月合計 | M101: 冷房 | N101: 暖房 | O101: 月合計 | P101: 冷房 | Q101: 暖房 | R101: 月合計 | S101: 冷房 | T101: 暖房 | U101: 月合計 | V101: 冷房 | W101: 暖房 | X101: 月合計 | Y101: 冷房 | Z101: 暖房 | AA101: 月合計 | AB101: 冷房 | AC101: 暖房 | AD101: 月合計 | AE101: 冷房 | AF101: 暖房 | AG101: 月合計 | AH101: 期間 月
C102: 4 | D102: =IFERROR(IF($C$7="---","",$AB$26/($C$7*$Q$32)*AU227),"") ->  | E102: =IFERROR(IF($C$7="---","",$AU367),"") ->  | F102: =IFERROR(D102+E102,"") ->  | G102: =IFERROR(IF($C$7="---","",$AB$26/($C$7*$R$32)*AV227),"") ->  | H102: =IFERROR(IF($C$7="---","",$AV367),"") ->  | I102: =IFERROR(G102+H102,"") ->  | J102: =IFERROR(IF($C$7="---","",$AB$26/($C$7*$S$32)*AW227),"") ->  | K102: =IFERROR(IF($C$7="---","",$AW367),"") ->  | L102: =IFERROR(J102+K102,"") ->  | M102: =IFERROR(IF($C$7="---","",$AB$26/($C$7*$T$32)*AX227),"") ->  | N102: =IFERROR(IF($C$7="---","",$AX367),"") ->  | O102: =IFERROR(M102+N102,"") ->  | P102: =IFERROR(IF($C$7="---","",$AB$26/($C$7*$U$32)*AY227),"") ->  | Q102: =IFERROR(IF($C$7="---","",$AY367),"") ->  | R102: =IFERROR(P102+Q102,"") ->  | S102: =IFERROR(IF($C$7="---","",$AB$26/($C$7*$V$32)*AZ227),"") ->  | T102: =IFERROR(IF($C$7="---","",$AZ367),"") ->  | U102: =IFERROR(S102+T102,"") ->  | V102: =IFERROR(IF($C$7="---","",$AB$26/($C$7*$W$32)*BA227),"") ->  | W102: =IFERROR(IF($C$7="---","",$BA367),"") ->  | X102: =IFERROR(V102+W102,"") ->  | Y102: =IFERROR(IF($C$7="---","",$AB$26/($C$7*$X$32)*BB227),"") ->  | Z102: =IFERROR(IF($C$7="---","",$BB367),"") ->  | AA102: =IFERROR(Y102+Z102,"") ->  | AB102: =IFERROR(IF($C$7="---","",$AB$26/($C$7*$Y$32)*BC227),"") ->  | AC102: =IFERROR(IF($C$7="---","",$BC367),"") ->  | AD102: =IFERROR(AB102+AC102,"") ->  | AE102: =IFERROR(IF($C$7="---","",$AB$26/($C$7*$Z$32)*BD227),"") ->  | AF102: =IFERROR(IF($C$7="---","",$BD367),"") ->  | AG102: =IFERROR(AE102+AF102,"") ->  | AH102: 4
C103: 5 | D103: =IFERROR(IF($C$7="---","",$AB$26/($C$7*$Q$32)*AU228),"") ->  | E103: =IFERROR(IF($C$7="---","",$AU368),"") ->  | F103: =IFERROR(D103+E103,"") ->  | G103: =IFERROR(IF($C$7="---","",$AB$26/($C$7*$R$32)*AV228),"") ->  | H103: =IFERROR(IF($C$7="---","",$AV368),"") ->  | I103: =IFERROR(G103+H103,"") ->  | J103: =IFERROR(IF($C$7="---","",$AB$26/($C$7*$S$32)*AW228),"") ->  | K103: =IFERROR(IF($C$7="---","",$AW368),"") ->  | L103: =IFERROR(J103+K103,"") ->  | M103: =IFERROR(IF($C$7="---","",$AB$26/($C$7*$T$32)*AX228),"") ->  | N103: =IFERROR(IF($C$7="---","",$AX368),"") ->  | O103: =IFERROR(M103+N103,"") ->  | P103: =IFERROR(IF($C$7="---","",$AB$26/($C$7*$U$32)*AY228),"") ->  | Q103: =IFERROR(IF($C$7="---","",$AY368),"") ->  | R103: =IFERROR(P103+Q103,"") ->  | S103: =IFERROR(IF($C$7="---","",$AB$26/($C$7*$V$32)*AZ228),"") ->  | T103: =IFERROR(IF($C$7="---","",$AZ368),"") ->  | U103: =IFERROR(S103+T103,"") ->  | V103: =IFERROR(IF($C$7="---","",$AB$26/($C$7*$W$32)*BA228),"") ->  | W103: =IFERROR(IF($C$7="---","",$BA368),"") ->  | X103: =IFERROR(V103+W103,"") ->  | Y103: =IFERROR(IF($C$7="---","",$AB$26/($C$7*$X$32)*BB228),"") ->  | Z103: =IFERROR(IF($C$7="---","",$BB368),"") ->  | AA103: =IFERROR(Y103+Z103,"") ->  | AB103: =IFERROR(IF($C$7="---","",$AB$26/($C$7*$Y$32)*BC228),"") ->  | AC103: =IFERROR(IF($C$7="---","",$BC368),"") ->  | AD103: =IFERROR(AB103+AC103,"") ->  | AE103: =IFERROR(IF($C$7="---","",$AB$26/($C$7*$Z$32)*BD228),"") ->  | AF103: =IFERROR(IF($C$7="---","",$BD368),"") ->  | AG103: =IFERROR(AE103+AF103,"") ->  | AH103: 5
C104: 6 | AH104: 6
C105: 7 | AH105: 7
C106: 8 | AH106: 8
C107: 9 | AH107: 9
C108: 10 | AH108: 10
C109: 11 | AH109: 11
C110: 12 | AH110: 12
C111: 1 | AG111: =IFERROR(AE111+AF111,"") ->  | AH111: 1
C112: 2 | AH112: 2
C113: 3 | F113: =IFERROR(D113+E113,"") ->  | I113: =IFERROR(G113+H113,"") ->  | L113: =IFERROR(J113+K113,"") ->  | O113: =IFERROR(M113+N113,"") ->  | R113: =IFERROR(P113+Q113,"") ->  | U113: =IFERROR(S113+T113,"") ->  | X113: =IFERROR(V113+W113,"") ->  | AA113: =IFERROR(Y113+Z113,"") ->  | AD113: =IFERROR(AB113+AC113,"") ->  | AG113: =IFERROR(AE113+AF113,"") ->  | AH113: 3
C114: 合計 | D114: =IFERROR(SUM(D102:D113),"") -> 0 | E114: 0 | F114: 0 | G114: 0 | H114: 0 | I114: 0 | J114: 0 | K114: 0 | L114: 0 | M114: 0 | N114: 0 | O114: 0 | P114: 0 | Q114: 0 | R114: 0 | S114: 0 | T114: 0 | U114: 0 | V114: 0 | W114: 0 | X114: 0 | Y114: 0 | Z114: 0 | AA114: 0 | AB114: 0 | AC114: 0 | AD114: 0 | AE114: 0 | AF114: 0 | AG114: 0 | AH114: 合計
C116: 設備導入後ガス使用量［MJ]
D117: 冷房(Gc) | F117: 暖房(Gw) | H117: 合計
D118: =IFERROR(D134*F120+G134*I120+J134*L120+M134*O120+P134*R120+S134*U120+V134*X120+Y134*AA120+AB134*AD120+AE134*AG120,"") -> 0 | F118: =IFERROR(E134*F120+H134*I120+K134*L120+N134*O120+Q134*R120+T134*U120+W134*X120+Z134*AA120+AC134*AD120+AF134*AG120,"") -> 0 | H118: =IFERROR(SUM(D118:G118),"") -> 0
D120: 後1 | F120: =IF($Q$54="",1,$Q$54) -> 1 | G120: 後2 | I120: =IF($R$54="",1,$R$54) -> 1 | J120: 後3 | L120: =IF($S$54="",1,$S$54) -> 1 | M120: 後4 | O120: =IF($T$54="",1,$T$54) -> 1 | P120: 後5 | R120: =IF($U$54="",1,$U$54) -> 1 | S120: 後6 | U120: =IF($V$54="",1,$V$54) -> 1 | V120: 後7 | X120: =IF($W$54="",1,$W$54) -> 1 | Y120: 後8 | AA120: =IF($X$54="",1,$X$54) -> 1 | AB120: 後9 | AD120: =IF($Y$54="",1,$Y$54) -> 1 | AE120: 後10 | AG120: =IF($Z$54="",1,$Z$54) -> 1
C121: 月 期間 | D121: 冷房 | E121: 暖房 | F121: 月合計 | G121: 冷房 | H121: 暖房 | I121: 月合計 | J121: 冷房 | K121: 暖房 | L121: 月合計 | M121: 冷房 | N121: 暖房 | O121: 月合計 | P121: 冷房 | Q121: 暖房 | R121: 月合計 | S121: 冷房 | T121: 暖房 | U121: 月合計 | V121: 冷房 | W121: 暖房 | X121: 月合計 | Y121: 冷房 | Z121: 暖房 | AA121: 月合計 | AB121: 冷房 | AC121: 暖房 | AD121: 月合計 | AE121: 冷房 | AF121: 暖房 | AG121: 月合計 | AH121: 期間 月
C122: 4 | D122: =IFERROR(IF($C$7="---","",3.6*(D162-D142*$I$46)),"") ->  | E122: =IFERROR(IF($C$7="---","",3.6*(E162-E142*$I$46)),"") ->  | F122: =IFERROR(D122+E122,"") ->  | G122: =IFERROR(IF($C$7="---","",3.6*(G162-G142*$I$46)),"") ->  | H122: =IFERROR(IF($C$7="---","",3.6*(H162-H142*$I$46)),"") ->  | I122: =IFERROR(G122+H122,"") ->  | J122: =IFERROR(IF($C$7="---","",3.6*(J162-J142*$I$46)),"") ->  | K122: =IFERROR(IF($C$7="---","",3.6*(K162-K142*$I$46)),"") ->  | L122: =IFERROR(J122+K122,"") ->  | M122: =IFERROR(IF($C$7="---","",3.6*(M162-M142*$I$46)),"") ->  | N122: =IFERROR(IF($C$7="---","",3.6*(N162-N142*$I$46)),"") ->  | O122: =IFERROR(M122+N122,"") ->  | P122: =IFERROR(IF($C$7="---","",3.6*(P162-P142*$I$46)),"") ->  | Q122: =IFERROR(IF($C$7="---","",3.6*(Q162-Q142*$I$46)),"") ->  | R122: =IFERROR(P122+Q122,"") ->  | S122: =IFERROR(IF($C$7="---","",3.6*(S162-S142*$I$46)),"") ->  | T122: =IFERROR(IF($C$7="---","",3.6*(T162-T142*$I$46)),"") ->  | U122: =IFERROR(S122+T122,"") ->  | V122: =IFERROR(IF($C$7="---","",3.6*(V162-V142*$I$46)),"") ->  | W122: =IFERROR(IF($C$7="---","",3.6*(W162-W142*$I$46)),"") ->  | X122: =IFERROR(V122+W122,"") ->  | Y122: =IFERROR(IF($C$7="---","",3.6*(Y162-Y142*$I$46)),"") ->  | Z122: =IFERROR(IF($C$7="---","",3.6*(Z162-Z142*$I$46)),"") ->  | AA122: =IFERROR(Y122+Z122,"") ->  | AB122: =IFERROR(IF($C$7="---","",3.6*(AB162-AB142*$I$46)),"") ->  | AC122: =IFERROR(IF($C$7="---","",3.6*(AC162-AC142*$I$46)),"") ->  | AD122: =IFERROR(AB122+AC122,"") ->  | AE122: =IFERROR(IF($C$7="---","",3.6*(AE162-AE142*$I$46)),"") ->  | AF122: =IFERROR(IF($C$7="---","",3.6*(AF162-AF142*$I$46)),"") ->  | AG122: =IFERROR(AE122+AF122,"") ->  | AH122: 4
C123: 5 | D123: =IFERROR(IF($C$7="---","",3.6*(D163-D143*$I$46)),"") ->  | F123: =IFERROR(D123+E123,"") ->  | G123: =IFERROR(IF($C$7="---","",3.6*(G163-G143*$I$46)),"") ->  | I123: =IFERROR(G123+H123,"") ->  | J123: =IFERROR(IF($C$7="---","",3.6*(J163-J143*$I$46)),"") ->  | L123: =IFERROR(J123+K123,"") ->  | M123: =IFERROR(IF($C$7="---","",3.6*(M163-M143*$I$46)),"") ->  | O123: =IFERROR(M123+N123,"") ->  | P123: =IFERROR(IF($C$7="---","",3.6*(P163-P143*$I$46)),"") ->  | R123: =IFERROR(P123+Q123,"") ->  | S123: =IFERROR(IF($C$7="---","",3.6*(S163-S143*$I$46)),"") ->  | U123: =IFERROR(S123+T123,"") ->  | V123: =IFERROR(IF($C$7="---","",3.6*(V163-V143*$I$46)),"") ->  | X123: =IFERROR(V123+W123,"") ->  | Y123: =IFERROR(IF($C$7="---","",3.6*(Y163-Y143*$I$46)),"") ->  | AA123: =IFERROR(Y123+Z123,"") ->  | AB123: =IFERROR(IF($C$7="---","",3.6*(AB163-AB143*$I$46)),"") ->  | AD123: =IFERROR(AB123+AC123,"") ->  | AE123: =IFERROR(IF($C$7="---","",3.6*(AE163-AE143*$I$46)),"") ->  | AG123: =IFERROR(AE123+AF123,"") ->  | AH123: 5
C124: 6 | D124: =IFERROR(IF($C$7="---","",3.6*(D164-D144*$I$46)),"") ->  | G124: =IFERROR(IF($C$7="---","",3.6*(G164-G144*$I$46)),"") ->  | J124: =IFERROR(IF($C$7="---","",3.6*(J164-J144*$I$46)),"") ->  | M124: =IFERROR(IF($C$7="---","",3.6*(M164-M144*$I$46)),"") ->  | P124: =IFERROR(IF($C$7="---","",3.6*(P164-P144*$I$46)),"") ->  | S124: =IFERROR(IF($C$7="---","",3.6*(S164-S144*$I$46)),"") ->  | V124: =IFERROR(IF($C$7="---","",3.6*(V164-V144*$I$46)),"") ->  | Y124: =IFERROR(IF($C$7="---","",3.6*(Y164-Y144*$I$46)),"") ->  | AB124: =IFERROR(IF($C$7="---","",3.6*(AB164-AB144*$I$46)),"") ->  | AE124: =IFERROR(IF($C$7="---","",3.6*(AE164-AE144*$I$46)),"") ->  | AH124: 6
C125: 7 | D125: =IFERROR(IF($C$7="---","",3.6*(D165-D145*$I$46)),"") ->  | G125: =IFERROR(IF($C$7="---","",3.6*(G165-G145*$I$46)),"") ->  | J125: =IFERROR(IF($C$7="---","",3.6*(J165-J145*$I$46)),"") ->  | M125: =IFERROR(IF($C$7="---","",3.6*(M165-M145*$I$46)),"") ->  | P125: =IFERROR(IF($C$7="---","",3.6*(P165-P145*$I$46)),"") ->  | S125: =IFERROR(IF($C$7="---","",3.6*(S165-S145*$I$46)),"") ->  | V125: =IFERROR(IF($C$7="---","",3.6*(V165-V145*$I$46)),"") ->  | Y125: =IFERROR(IF($C$7="---","",3.6*(Y165-Y145*$I$46)),"") ->  | AB125: =IFERROR(IF($C$7="---","",3.6*(AB165-AB145*$I$46)),"") ->  | AE125: =IFERROR(IF($C$7="---","",3.6*(AE165-AE145*$I$46)),"") ->  | AH125: 7
C126: 8 | D126: =IFERROR(IF($C$7="---","",3.6*(D166-D146*$I$46)),"") ->  | G126: =IFERROR(IF($C$7="---","",3.6*(G166-G146*$I$46)),"") ->  | J126: =IFERROR(IF($C$7="---","",3.6*(J166-J146*$I$46)),"") ->  | M126: =IFERROR(IF($C$7="---","",3.6*(M166-M146*$I$46)),"") ->  | P126: =IFERROR(IF($C$7="---","",3.6*(P166-P146*$I$46)),"") ->  | S126: =IFERROR(IF($C$7="---","",3.6*(S166-S146*$I$46)),"") ->  | V126: =IFERROR(IF($C$7="---","",3.6*(V166-V146*$I$46)),"") ->  | Y126: =IFERROR(IF($C$7="---","",3.6*(Y166-Y146*$I$46)),"") ->  | AB126: =IFERROR(IF($C$7="---","",3.6*(AB166-AB146*$I$46)),"") ->  | AE126: =IFERROR(IF($C$7="---","",3.6*(AE166-AE146*$I$46)),"") ->  | AH126: 8
C127: 9 | D127: =IFERROR(IF($C$7="---","",3.6*(D167-D147*$I$46)),"") ->  | G127: =IFERROR(IF($C$7="---","",3.6*(G167-G147*$I$46)),"") ->  | J127: =IFERROR(IF($C$7="---","",3.6*(J167-J147*$I$46)),"") ->  | M127: =IFERROR(IF($C$7="---","",3.6*(M167-M147*$I$46)),"") ->  | P127: =IFERROR(IF($C$7="---","",3.6*(P167-P147*$I$46)),"") ->  | S127: =IFERROR(IF($C$7="---","",3.6*(S167-S147*$I$46)),"") ->  | V127: =IFERROR(IF($C$7="---","",3.6*(V167-V147*$I$46)),"") ->  | Y127: =IFERROR(IF($C$7="---","",3.6*(Y167-Y147*$I$46)),"") ->  | AB127: =IFERROR(IF($C$7="---","",3.6*(AB167-AB147*$I$46)),"") ->  | AE127: =IFERROR(IF($C$7="---","",3.6*(AE167-AE147*$I$46)),"") ->  | AH127: 9
C128: 10 | D128: =IFERROR(IF($C$7="---","",3.6*(D168-D148*$I$46)),"") ->  | G128: =IFERROR(IF($C$7="---","",3.6*(G168-G148*$I$46)),"") ->  | J128: =IFERROR(IF($C$7="---","",3.6*(J168-J148*$I$46)),"") ->  | M128: =IFERROR(IF($C$7="---","",3.6*(M168-M148*$I$46)),"") ->  | P128: =IFERROR(IF($C$7="---","",3.6*(P168-P148*$I$46)),"") ->  | S128: =IFERROR(IF($C$7="---","",3.6*(S168-S148*$I$46)),"") ->  | V128: =IFERROR(IF($C$7="---","",3.6*(V168-V148*$I$46)),"") ->  | Y128: =IFERROR(IF($C$7="---","",3.6*(Y168-Y148*$I$46)),"") ->  | AB128: =IFERROR(IF($C$7="---","",3.6*(AB168-AB148*$I$46)),"") ->  | AE128: =IFERROR(IF($C$7="---","",3.6*(AE168-AE148*$I$46)),"") ->  | AH128: 10
C129: 11 | D129: =IFERROR(IF($C$7="---","",3.6*(D169-D149*$I$46)),"") ->  | G129: =IFERROR(IF($C$7="---","",3.6*(G169-G149*$I$46)),"") ->  | J129: =IFERROR(IF($C$7="---","",3.6*(J169-J149*$I$46)),"") ->  | M129: =IFERROR(IF($C$7="---","",3.6*(M169-M149*$I$46)),"") ->  | P129: =IFERROR(IF($C$7="---","",3.6*(P169-P149*$I$46)),"") ->  | S129: =IFERROR(IF($C$7="---","",3.6*(S169-S149*$I$46)),"") ->  | V129: =IFERROR(IF($C$7="---","",3.6*(V169-V149*$I$46)),"") ->  | Y129: =IFERROR(IF($C$7="---","",3.6*(Y169-Y149*$I$46)),"") ->  | AB129: =IFERROR(IF($C$7="---","",3.6*(AB169-AB149*$I$46)),"") ->  | AE129: =IFERROR(IF($C$7="---","",3.6*(AE169-AE149*$I$46)),"") ->  | AH129: 11
C130: 12 | D130: =IFERROR(IF($C$7="---","",3.6*(D170-D150*$I$46)),"") ->  | G130: =IFERROR(IF($C$7="---","",3.6*(G170-G150*$I$46)),"") ->  | J130: =IFERROR(IF($C$7="---","",3.6*(J170-J150*$I$46)),"") ->  | M130: =IFERROR(IF($C$7="---","",3.6*(M170-M150*$I$46)),"") ->  | P130: =IFERROR(IF($C$7="---","",3.6*(P170-P150*$I$46)),"") ->  | S130: =IFERROR(IF($C$7="---","",3.6*(S170-S150*$I$46)),"") ->  | V130: =IFERROR(IF($C$7="---","",3.6*(V170-V150*$I$46)),"") ->  | Y130: =IFERROR(IF($C$7="---","",3.6*(Y170-Y150*$I$46)),"") ->  | AB130: =IFERROR(IF($C$7="---","",3.6*(AB170-AB150*$I$46)),"") ->  | AE130: =IFERROR(IF($C$7="---","",3.6*(AE170-AE150*$I$46)),"") ->  | AH130: 12
C131: 1 | D131: =IFERROR(IF($C$7="---","",3.6*(D171-D151*$I$46)),"") ->  | G131: =IFERROR(IF($C$7="---","",3.6*(G171-G151*$I$46)),"") ->  | J131: =IFERROR(IF($C$7="---","",3.6*(J171-J151*$I$46)),"") ->  | M131: =IFERROR(IF($C$7="---","",3.6*(M171-M151*$I$46)),"") ->  | P131: =IFERROR(IF($C$7="---","",3.6*(P171-P151*$I$46)),"") ->  | S131: =IFERROR(IF($C$7="---","",3.6*(S171-S151*$I$46)),"") ->  | V131: =IFERROR(IF($C$7="---","",3.6*(V171-V151*$I$46)),"") ->  | Y131: =IFERROR(IF($C$7="---","",3.6*(Y171-Y151*$I$46)),"") ->  | AB131: =IFERROR(IF($C$7="---","",3.6*(AB171-AB151*$I$46)),"") ->  | AE131: =IFERROR(IF($C$7="---","",3.6*(AE171-AE151*$I$46)),"") ->  | AH131: 1
C132: 2 | D132: =IFERROR(IF($C$7="---","",3.6*(D172-D152*$I$46)),"") ->  | G132: =IFERROR(IF($C$7="---","",3.6*(G172-G152*$I$46)),"") ->  | J132: =IFERROR(IF($C$7="---","",3.6*(J172-J152*$I$46)),"") ->  | M132: =IFERROR(IF($C$7="---","",3.6*(M172-M152*$I$46)),"") ->  | P132: =IFERROR(IF($C$7="---","",3.6*(P172-P152*$I$46)),"") ->  | S132: =IFERROR(IF($C$7="---","",3.6*(S172-S152*$I$46)),"") ->  | V132: =IFERROR(IF($C$7="---","",3.6*(V172-V152*$I$46)),"") ->  | Y132: =IFERROR(IF($C$7="---","",3.6*(Y172-Y152*$I$46)),"") ->  | AB132: =IFERROR(IF($C$7="---","",3.6*(AB172-AB152*$I$46)),"") ->  | AE132: =IFERROR(IF($C$7="---","",3.6*(AE172-AE152*$I$46)),"") ->  | AH132: 2
C133: 3 | D133: =IFERROR(IF($C$7="---","",3.6*(D173-D153*$I$46)),"") ->  | F133: =IFERROR(D133+E133,"") ->  | G133: =IFERROR(IF($C$7="---","",3.6*(G173-G153*$I$46)),"") ->  | I133: =IFERROR(G133+H133,"") ->  | J133: =IFERROR(IF($C$7="---","",3.6*(J173-J153*$I$46)),"") ->  | L133: =IFERROR(J133+K133,"") ->  | M133: =IFERROR(IF($C$7="---","",3.6*(M173-M153*$I$46)),"") ->  | O133: =IFERROR(M133+N133,"") ->  | P133: =IFERROR(IF($C$7="---","",3.6*(P173-P153*$I$46)),"") ->  | R133: =IFERROR(P133+Q133,"") ->  | S133: =IFERROR(IF($C$7="---","",3.6*(S173-S153*$I$46)),"") ->  | U133: =IFERROR(S133+T133,"") ->  | V133: =IFERROR(IF($C$7="---","",3.6*(V173-V153*$I$46)),"") ->  | X133: =IFERROR(V133+W133,"") ->  | Y133: =IFERROR(IF($C$7="---","",3.6*(Y173-Y153*$I$46)),"") ->  | AA133: =IFERROR(Y133+Z133,"") ->  | AB133: =IFERROR(IF($C$7="---","",3.6*(AB173-AB153*$I$46)),"") ->  | AD133: =IFERROR(AB133+AC133,"") ->  | AE133: =IFERROR(IF($C$7="---","",3.6*(AE173-AE153*$I$46)),"") ->  | AG133: =IFERROR(AE133+AF133,"") ->  | AH133: 3
C134: 合計 | D134: =IFERROR(SUM(D122:D133),"") -> 0 | E134: 0 | F134: 0 | G134: 0 | H134: 0 | I134: 0 | J134: 0 | K134: 0 | L134: 0 | M134: 0 | N134: 0 | O134: 0 | P134: 0 | Q134: 0 | R134: 0 | S134: 0 | T134: 0 | U134: 0 | V134: 0 | W134: 0 | X134: 0 | Y134: 0 | Z134: 0 | AA134: 0 | AB134: 0 | AC134: 0 | AD134: 0 | AE134: 0 | AF134: 0 | AG134: 0 | AH134: 合計
C136: 設備導入後電力使用量[kWh]
D137: 冷房(Auxc) | F137: 暖房(Auxw) | H137: 合計
D138: =IFERROR(D154*F140+G154*I140+J154*L140+M154*O140+P154*R140+S154*U140+V154*X140+Y154*AA140+AB154*AD140+AE154*AG140,"") -> 0 | F138: =IFERROR(E154*F140+H154*I140+K154*L140+N154*O140+Q154*R140+T154*U140+W154*X140+Z154*AA140+AC154*AD140+AF154*AG140,"") -> 0 | H138: =IFERROR(SUM(D138:G138),"") -> 0
D140: 後1 | F140: =IF($Q$54="",1,$Q$54) -> 1 | G140: 後2 | I140: =IF($R$54="",1,$R$54) -> 1 | J140: 後3 | L140: =IF($S$54="",1,$S$54) -> 1 | M140: 後4 | O140: =IF($T$54="",1,$T$54) -> 1 | P140: 後5 | R140: =IF($U$54="",1,$U$54) -> 1 | S140: 後6 | U140: =IF($V$54="",1,$V$54) -> 1 | V140: 後7 | X140: =IF($W$54="",1,$W$54) -> 1 | Y140: 後8 | AA140: =IF($X$54="",1,$X$54) -> 1 | AB140: 後9 | AD140: =IF($Y$54="",1,$Y$54) -> 1 | AE140: 後10 | AG140: =IF($Z$54="",1,$Z$54) -> 1
C141: 月 期間 | D141: 冷房 | E141: 暖房 | F141: 月合計 | G141: 冷房 | H141: 暖房 | I141: 月合計 | J141: 冷房 | K141: 暖房 | L141: 月合計 | M141: 冷房 | N141: 暖房 | O141: 月合計 | P141: 冷房 | Q141: 暖房 | R141: 月合計 | S141: 冷房 | T141: 暖房 | U141: 月合計 | V141: 冷房 | W141: 暖房 | X141: 月合計 | Y141: 冷房 | Z141: 暖房 | AA141: 月合計 | AB141: 冷房 | AC141: 暖房 | AD141: 月合計 | AE141: 冷房 | AF141: 暖房 | AG141: 月合計 | AH141: 期間 月
C142: 4 | D142: =IFERROR(IF($C$7="---","",D162*($Q$45*$I$46)/($Q$44+$Q$45*$I$46)/$I$46),"") ->  | E142: =IFERROR(IF($C$7="---","",E162*($Q$49*$I$46)/($Q$48+$Q$49*$I$46)/$I$46),"") ->  | F142: =IFERROR(D142+E142,"") ->  | G142: =IFERROR(IF($C$7="---","",G162*($R$45*$I$46)/($R$44+$R$45*$I$46)/$I$46),"") ->  | H142: =IFERROR(IF($C$7="---","",H162*($R$49*$I$46)/($R$48+$R$49*$I$46)/$I$46),"") ->  | I142: =IFERROR(G142+H142,"") ->  | J142: =IFERROR(IF($C$7="---","",J162*($S$45*$I$46)/($S$44+$S$45*$I$46)/$I$46),"") ->  | K142: =IFERROR(IF($C$7="---","",K162*($S$49*$I$46)/($S$48+$S$49*$I$46)/$I$46),"") ->  | L142: =IFERROR(J142+K142,"") ->  | M142: =IFERROR(IF($C$7="---","",M162*($T$45*$I$46)/($T$44+$T$45*$I$46)/$I$46),"") ->  | N142: =IFERROR(IF($C$7="---","",N162*($T$49*$I$46)/($T$48+$T$49*$I$46)/$I$46),"") ->  | O142: =IFERROR(M142+N142,"") ->  | P142: =IFERROR(IF($C$7="---","",P162*($U$45*$I$46)/($U$44+$U$45*$I$46)/$I$46),"") ->  | Q142: =IFERROR(IF($C$7="---","",Q162*($U$49*$I$46)/($U$48+$U$49*$I$46)/$I$46),"") ->  | R142: =IFERROR(P142+Q142,"") ->  | S142: =IFERROR(IF($C$7="---","",S162*($V$45*$I$46)/($V$44+$V$45*$I$46)/$I$46),"") ->  | T142: =IFERROR(IF($C$7="---","",T162*($V$49*$I$46)/($V$48+$V$49*$I$46)/$I$46),"") ->  | U142: =IFERROR(S142+T142,"") ->  | V142: =IFERROR(IF($C$7="---","",V162*($W$45*$I$46)/($W$44+$W$45*$I$46)/$I$46),"") ->  | W142: =IFERROR(IF($C$7="---","",W162*($W$49*$I$46)/($W$48+$W$49*$I$46)/$I$46),"") ->  | X142: =IFERROR(V142+W142,"") ->  | Y142: =IFERROR(IF($C$7="---","",Y162*($X$45*$I$46)/($X$44+$X$45*$I$46)/$I$46),"") ->  | Z142: =IFERROR(IF($C$7="---","",Z162*($X$49*$I$46)/($X$48+$X$49*$I$46)/$I$46),"") ->  | AA142: =IFERROR(Y142+Z142,"") ->  | AB142: =IFERROR(IF($C$7="---","",AB162*($Y$45*$I$46)/($Y$44+$Y$45*$I$46)/$I$46),"") ->  | AC142: =IFERROR(IF($C$7="---","",AC162*($Y$49*$I$46)/($Y$48+$Y$49*$I$46)/$I$46),"") ->  | AD142: =IFERROR(AB142+AC142,"") ->  | AE142: =IFERROR(IF($C$7="---","",AE162*($Z$45*$I$46)/($Z$44+$Z$45*$I$46)/$I$46),"") ->  | AF142: =IFERROR(IF($C$7="---","",AF162*($Z$49*$I$46)/($Z$48+$Z$49*$I$46)/$I$46),"") ->  | AG142: =IFERROR(AE142+AF142,"") ->  | AH142: 4
C143: 5 | D143: =IFERROR(IF($C$7="---","",D163*($Q$45*$I$46)/($Q$44+$Q$45*$I$46)/$I$46),"") ->  | E143: =IFERROR(IF($C$7="---","",E163*($Q$49*$I$46)/($Q$48+$Q$49*$I$46)/$I$46),"") ->  | F143: =IFERROR(D143+E143,"") ->  | G143: =IFERROR(IF($C$7="---","",G163*($R$45*$I$46)/($R$44+$R$45*$I$46)/$I$46),"") ->  | H143: =IFERROR(IF($C$7="---","",H163*($R$49*$I$46)/($R$48+$R$49*$I$46)/$I$46),"") ->  | I143: =IFERROR(G143+H143,"") ->  | J143: =IFERROR(IF($C$7="---","",J163*($S$45*$I$46)/($S$44+$S$45*$I$46)/$I$46),"") ->  | K143: =IFERROR(IF($C$7="---","",K163*($S$49*$I$46)/($S$48+$S$49*$I$46)/$I$46),"") ->  | L143: =IFERROR(J143+K143,"") ->  | M143: =IFERROR(IF($C$7="---","",M163*($T$45*$I$46)/($T$44+$T$45*$I$46)/$I$46),"") ->  | N143: =IFERROR(IF($C$7="---","",N163*($T$49*$I$46)/($T$48+$T$49*$I$46)/$I$46),"") ->  | O143: =IFERROR(M143+N143,"") ->  | P143: =IFERROR(IF($C$7="---","",P163*($U$45*$I$46)/($U$44+$U$45*$I$46)/$I$46),"") ->  | Q143: =IFERROR(IF($C$7="---","",Q163*($U$49*$I$46)/($U$48+$U$49*$I$46)/$I$46),"") ->  | R143: =IFERROR(P143+Q143,"") ->  | S143: =IFERROR(IF($C$7="---","",S163*($V$45*$I$46)/($V$44+$V$45*$I$46)/$I$46),"") ->  | T143: =IFERROR(IF($C$7="---","",T163*($V$49*$I$46)/($V$48+$V$49*$I$46)/$I$46),"") ->  | U143: =IFERROR(S143+T143,"") ->  | V143: =IFERROR(IF($C$7="---","",V163*($W$45*$I$46)/($W$44+$W$45*$I$46)/$I$46),"") ->  | W143: =IFERROR(IF($C$7="---","",W163*($W$49*$I$46)/($W$48+$W$49*$I$46)/$I$46),"") ->  | X143: =IFERROR(V143+W143,"") ->  | Y143: =IFERROR(IF($C$7="---","",Y163*($X$45*$I$46)/($X$44+$X$45*$I$46)/$I$46),"") ->  | Z143: =IFERROR(IF($C$7="---","",Z163*($X$49*$I$46)/($X$48+$X$49*$I$46)/$I$46),"") ->  | AA143: =IFERROR(Y143+Z143,"") ->  | AB143: =IFERROR(IF($C$7="---","",AB163*($Y$45*$I$46)/($Y$44+$Y$45*$I$46)/$I$46),"") ->  | AC143: =IFERROR(IF($C$7="---","",AC163*($Y$49*$I$46)/($Y$48+$Y$49*$I$46)/$I$46),"") ->  | AD143: =IFERROR(AB143+AC143,"") ->  | AE143: =IFERROR(IF($C$7="---","",AE163*($Z$45*$I$46)/($Z$44+$Z$45*$I$46)/$I$46),"") ->  | AF143: =IFERROR(IF($C$7="---","",AF163*($Z$49*$I$46)/($Z$48+$Z$49*$I$46)/$I$46),"") ->  | AG143: =IFERROR(AE143+AF143,"") ->  | AH143: 5
C144: 6 | AH144: 6
C145: 7 | AH145: 7
C146: 8 | AH146: 8
C147: 9 | AH147: 9
C148: 10 | AH148: 10
C149: 11 | AH149: 11
C150: 12 | AH150: 12
C151: 1 | AH151: 1
C152: 2 | AH152: 2
C153: 3 | F153: =IFERROR(D153+E153,"") ->  | I153: =IFERROR(G153+H153,"") ->  | L153: =IFERROR(J153+K153,"") ->  | O153: =IFERROR(M153+N153,"") ->  | R153: =IFERROR(P153+Q153,"") ->  | U153: =IFERROR(S153+T153,"") ->  | X153: =IFERROR(V153+W153,"") ->  | AA153: =IFERROR(Y153+Z153,"") ->  | AD153: =IFERROR(AB153+AC153,"") ->  | AG153: =IFERROR(AE153+AF153,"") ->  | AH153: 3
C154: 合計 | D154: =IFERROR(SUM(D142:D153),"") -> 0 | E154: 0 | F154: 0 | G154: 0 | H154: 0 | I154: 0 | J154: 0 | K154: 0 | L154: 0 | M154: 0 | N154: 0 | O154: 0 | P154: 0 | Q154: 0 | R154: 0 | S154: 0 | T154: 0 | U154: 0 | V154: 0 | W154: 0 | X154: 0 | Y154: 0 | Z154: 0 | AA154: 0 | AB154: 0 | AC154: 0 | AD154: 0 | AE154: 0 | AF154: 0 | AG154: 0 | AH154: 合計
C156: 設備導入後エネルギー使用量［kWh]
D157: 冷房(Ec) | F157: 暖房(Ew) | H157: 合計
D158: =IFERROR(D174*F160+G174*I160+J174*L160+M174*O160+P174*R160+S174*U160+V174*X160+Y174*AA160+AB174*AD160+AE174*AG160,"") -> 0 | F158: =IFERROR(E174*F160+H174*I160+K174*L160+N174*O160+Q174*R160+T174*U160+W174*X160+Z174*AA160+AC174*AD160+AF174*AG160,"") -> 0 | H158: =IFERROR(SUM(D158:G158),"") -> 0
D160: 後1 | F160: =IF($Q$54="",1,$Q$54) -> 1 | G160: 後2 | I160: =IF($R$54="",1,$R$54) -> 1 | J160: 後3 | L160: =IF($S$54="",1,$S$54) -> 1 | M160: 後4 | O160: =IF($T$54="",1,$T$54) -> 1 | P160: 後5 | R160: =IF($U$54="",1,$U$54) -> 1 | S160: 後6 | U160: =IF($V$54="",1,$V$54) -> 1 | V160: 後7 | X160: =IF($W$54="",1,$W$54) -> 1 | Y160: 後8 | AA160: =IF($X$54="",1,$X$54) -> 1 | AB160: 後9 | AD160: =IF($Y$54="",1,$Y$54) -> 1 | AE160: 後10 | AG160: =IF($Z$54="",1,$Z$54) -> 1
C161: 月 期間 | D161: 冷房 | E161: 暖房 | F161: 月合計 | G161: 冷房 | H161: 暖房 | I161: 月合計 | J161: 冷房 | K161: 暖房 | L161: 月合計 | M161: 冷房 | N161: 暖房 | O161: 月合計 | P161: 冷房 | Q161: 暖房 | R161: 月合計 | S161: 冷房 | T161: 暖房 | U161: 月合計 | V161: 冷房 | W161: 暖房 | X161: 月合計 | Y161: 冷房 | Z161: 暖房 | AA161: 月合計 | AB161: 冷房 | AC161: 暖房 | AD161: 月合計 | AE161: 冷房 | AF161: 暖房 | AG161: 月合計 | AH161: 期間 月
C162: 4 | D162: =IFERROR(IF($C$7="---","",$AB$26/($C$7*$Q$46)*$BF227),"") ->  | E162: =IFERROR(IF($C$7="---","",$BF367),"") ->  | F162: =IFERROR(D162+E162,"") ->  | G162: =IFERROR(IF($C$7="---","",$AB$26/($C$7*$R$46)*$BG227),"") ->  | H162: =IFERROR(IF($C$7="---","",$BG367),"") ->  | I162: =IFERROR(G162+H162,"") ->  | J162: =IFERROR(IF($C$7="---","",$AB$26/($C$7*$S$46)*$BH227),"") ->  | K162: =IFERROR(IF($C$7="---","",$BH367),"") ->  | L162: =IFERROR(J162+K162,"") ->  | M162: =IFERROR(IF($C$7="---","",$AB$26/($C$7*$T$46)*$BI227),"") ->  | N162: =IFERROR(IF($C$7="---","",$BI367),"") ->  | O162: =IFERROR(M162+N162,"") ->  | P162: =IFERROR(IF($C$7="---","",$AB$26/($C$7*$U$46)*$BJ227),"") ->  | Q162: =IFERROR(IF($C$7="---","",$BJ367),"") ->  | R162: =IFERROR(P162+Q162,"") ->  | S162: =IFERROR(IF($C$7="---","",$AB$26/($C$7*$V$46)*$BK227),"") ->  | T162: =IFERROR(IF($C$7="---","",$BK367),"") ->  | U162: =IFERROR(S162+T162,"") ->  | V162: =IFERROR(IF($C$7="---","",$AB$26/($C$7*$W$46)*$BL227),"") ->  | W162: =IFERROR(IF($C$7="---","",$BL367),"") ->  | X162: =IFERROR(V162+W162,"") ->  | Y162: =IFERROR(IF($C$7="---","",$AB$26/($C$7*$X$46)*$BM227),"") ->  | Z162: =IFERROR(IF($C$7="---","",$BM367),"") ->  | AA162: =IFERROR(Y162+Z162,"") ->  | AB162: =IFERROR(IF($C$7="---","",$AB$26/($C$7*$Y$46)*$BN227),"") ->  | AC162: =IFERROR(IF($C$7="---","",$BN367),"") ->  | AD162: =IFERROR(AB162+AC162,"") ->  | AE162: =IFERROR(IF($C$7="---","",$AB$26/($C$7*$Z$46)*$BO227),"") ->  | AF162: =IFERROR(IF($C$7="---","",$BO367),"") ->  | AG162: =IFERROR(AE162+AF162,"") ->  | AH162: 4
C163: 5 | D163: =IFERROR(IF($C$7="---","",$AB$26/($C$7*$Q$46)*$BF228),"") ->  | E163: =IFERROR(IF($C$7="---","",$BF368),"") ->  | F163: =IFERROR(D163+E163,"") ->  | G163: =IFERROR(IF($C$7="---","",$AB$26/($C$7*$R$46)*$BG228),"") ->  | H163: =IFERROR(IF($C$7="---","",$BG368),"") ->  | I163: =IFERROR(G163+H163,"") ->  | J163: =IFERROR(IF($C$7="---","",$AB$26/($C$7*$S$46)*$BH228),"") ->  | K163: =IFERROR(IF($C$7="---","",$BH368),"") ->  | L163: =IFERROR(J163+K163,"") ->  | M163: =IFERROR(IF($C$7="---","",$AB$26/($C$7*$T$46)*$BI228),"") ->  | N163: =IFERROR(IF($C$7="---","",$BI368),"") ->  | O163: =IFERROR(M163+N163,"") ->  | P163: =IFERROR(IF($C$7="---","",$AB$26/($C$7*$U$46)*$BJ228),"") ->  | Q163: =IFERROR(IF($C$7="---","",$BJ368),"") ->  | R163: =IFERROR(P163+Q163,"") ->  | S163: =IFERROR(IF($C$7="---","",$AB$26/($C$7*$V$46)*$BK228),"") ->  | T163: =IFERROR(IF($C$7="---","",$BK368),"") ->  | U163: =IFERROR(S163+T163,"") ->  | V163: =IFERROR(IF($C$7="---","",$AB$26/($C$7*$W$46)*$BL228),"") ->  | W163: =IFERROR(IF($C$7="---","",$BL368),"") ->  | X163: =IFERROR(V163+W163,"") ->  | Y163: =IFERROR(IF($C$7="---","",$AB$26/($C$7*$X$46)*$BM228),"") ->  | Z163: =IFERROR(IF($C$7="---","",$BM368),"") ->  | AA163: =IFERROR(Y163+Z163,"") ->  | AB163: =IFERROR(IF($C$7="---","",$AB$26/($C$7*$Y$46)*$BN228),"") ->  | AC163: =IFERROR(IF($C$7="---","",$BN368),"") ->  | AD163: =IFERROR(AB163+AC163,"") ->  | AE163: =IFERROR(IF($C$7="---","",$AB$26/($C$7*$Z$46)*$BO228),"") ->  | AF163: =IFERROR(IF($C$7="---","",$BO368),"") ->  | AG163: =IFERROR(AE163+AF163,"") ->  | AH163: 5
C164: 6 | AH164: 6
C165: 7 | AH165: 7
C166: 8 | AH166: 8
C167: 9 | AH167: 9
C168: 10 | AH168: 10
C169: 11 | AH169: 11
C170: 12 | AH170: 12
C171: 1 | AH171: 1
C172: 2 | AH172: 2
C173: 3 | F173: =IFERROR(D173+E173,"") ->  | I173: =IFERROR(G173+H173,"") ->  | L173: =IFERROR(J173+K173,"") ->  | O173: =IFERROR(M173+N173,"") ->  | R173: =IFERROR(P173+Q173,"") ->  | U173: =IFERROR(S173+T173,"") ->  | X173: =IFERROR(V173+W173,"") ->  | AA173: =IFERROR(Y173+Z173,"") ->  | AD173: =IFERROR(AB173+AC173,"") ->  | AG173: =IFERROR(AE173+AF173,"") ->  | AH173: 3
C174: 合計 | D174: =IFERROR(SUM(D162:D173),"") -> 0 | E174: 0 | F174: 0 | G174: 0 | H174: 0 | I174: 0 | J174: 0 | K174: 0 | L174: 0 | M174: 0 | N174: 0 | O174: 0 | P174: 0 | Q174: 0 | R174: 0 | S174: 0 | T174: 0 | U174: 0 | V174: 0 | W174: 0 | X174: 0 | Y174: 0 | Z174: 0 | AA174: 0 | AB174: 0 | AC174: 0 | AD174: 0 | AE174: 0 | AF174: 0 | AG174: 0 | AH174: 合計
C176: 作業表1(青色のセルを「24」、オレンジ色のセルを「19」として抽出）
D177: 時刻
C178: 月 | D178: 0 | E178: 1 | F178: 2 | G178: 3 | H178: 4 | I178: 5 | J178: 6 | K178: 7 | L178: 8 | M178: 9 | N178: 10 | O178: 11 | P178: 12 | Q178: 13 | R178: 14 | S178: 15 | T178: 16 | U178: 17 | V178: 18 | W178: 19 | X178: 20 | Y178: 21 | Z178: 22 | AA178: 23 | AB178: 月
C179: 4 | D179: =CELLCOLOR($D$12) -> -4142 | E179: =CELLCOLOR($E$12) -> -4142 | F179: =CELLCOLOR($F$12) -> -4142 | G179: =CELLCOLOR($G$12) -> -4142 | H179: =CELLCOLOR($H$12) -> -4142 | I179: =CELLCOLOR($I$12) -> -4142 | J179: =CELLCOLOR($J$12) -> -4142 | K179: =CELLCOLOR($K$12) -> -4142 | L179: =CELLCOLOR($L$12) -> -4142 | M179: =CELLCOLOR($M$12) -> -4142 | N179: =CELLCOLOR($N$12) -> -4142 | O179: =CELLCOLOR($O$12) -> -4142 | P179: =CELLCOLOR($P$12) -> -4142 | Q179: =CELLCOLOR($Q$12) -> -4142 | R179: =CELLCOLOR($R$12) -> -4142 | S179: =CELLCOLOR($S$12) -> -4142 | T179: =CELLCOLOR($T$12) -> -4142 | U179: =CELLCOLOR($U$12) -> -4142 | V179: =CELLCOLOR($V$12) -> -4142 | W179: =CELLCOLOR($W$12) -> -4142 | X179: =CELLCOLOR($X$12) -> -4142 | Y179: =CELLCOLOR($Y$12) -> -4142 | Z179: =CELLCOLOR($Z$12) -> -4142 | AA179: =CELLCOLOR($AA$12) -> -4142 | AB179: 4
C180: 5 | D180: =CELLCOLOR($D$13) -> -4142 | E180: =CELLCOLOR($E$13) -> -4142 | F180: =CELLCOLOR($F$13) -> -4142 | G180: =CELLCOLOR($G$13) -> -4142 | H180: =CELLCOLOR($H$13) -> -4142 | I180: =CELLCOLOR($I$13) -> -4142 | J180: =CELLCOLOR($J$13) -> -4142 | K180: =CELLCOLOR($K$13) -> -4142 | L180: =CELLCOLOR($L$13) -> -4142 | M180: =CELLCOLOR($M$13) -> -4142 | N180: =CELLCOLOR($N$13) -> -4142 | O180: =CELLCOLOR($O$13) -> -4142 | P180: =CELLCOLOR($P$13) -> -4142 | Q180: =CELLCOLOR($Q$13) -> -4142 | R180: =CELLCOLOR($R$13) -> -4142 | S180: =CELLCOLOR($S$13) -> -4142 | T180: =CELLCOLOR($T$13) -> -4142 | U180: =CELLCOLOR($U$13) -> -4142 | V180: =CELLCOLOR($V$13) -> -4142 | W180: =CELLCOLOR($W$13) -> -4142 | X180: =CELLCOLOR($X$13) -> -4142 | Y180: =CELLCOLOR($Y$13) -> -4142 | Z180: =CELLCOLOR($Z$13) -> -4142 | AA180: =CELLCOLOR($AA$13) -> -4142 | AB180: 5
C181: 6 | D181: =CELLCOLOR($D$14) -> -4142 | E181: =CELLCOLOR($E$14) -> -4142 | F181: =CELLCOLOR($F$14) -> -4142 | G181: =CELLCOLOR($G$14) -> -4142 | H181: =CELLCOLOR($H$14) -> -4142 | I181: =CELLCOLOR($I$14) -> -4142 | J181: =CELLCOLOR($J$14) -> -4142 | K181: =CELLCOLOR($K$14) -> -4142 | L181: =CELLCOLOR($L$14) -> -4142 | M181: =CELLCOLOR($M$14) -> -4142 | N181: =CELLCOLOR($N$14) -> -4142 | O181: =CELLCOLOR($O$14) -> -4142 | P181: =CELLCOLOR($P$14) -> -4142 | Q181: =CELLCOLOR($Q$14) -> -4142 | R181: =CELLCOLOR($R$14) -> -4142 | S181: =CELLCOLOR($S$14) -> -4142 | T181: =CELLCOLOR($T$14) -> -4142 | U181: =CELLCOLOR($U$14) -> -4142 | V181: =CELLCOLOR($V$14) -> -4142 | W181: =CELLCOLOR($W$14) -> -4142 | X181: =CELLCOLOR($X$14) -> -4142 | Y181: =CELLCOLOR($Y$14) -> -4142 | Z181: =CELLCOLOR($Z$14) -> -4142 | AA181: =CELLCOLOR($AA$14) -> -4142 | AB181: 6
C182: 7 | D182: =CELLCOLOR($D$15) -> -4142 | E182: =CELLCOLOR($E$15) -> -4142 | F182: =CELLCOLOR($F$15) -> -4142 | G182: =CELLCOLOR($G$15) -> -4142 | H182: =CELLCOLOR($H$15) -> -4142 | I182: =CELLCOLOR($I$15) -> -4142 | J182: =CELLCOLOR($J$15) -> -4142 | K182: =CELLCOLOR($K$15) -> -4142 | L182: =CELLCOLOR($L$15) -> -4142 | M182: =CELLCOLOR($M$15) -> -4142 | N182: =CELLCOLOR($N$15) -> -4142 | O182: =CELLCOLOR($O$15) -> -4142 | P182: =CELLCOLOR($P$15) -> -4142 | Q182: =CELLCOLOR($Q$15) -> -4142 | R182: =CELLCOLOR($R$15) -> -4142 | S182: =CELLCOLOR($S$15) -> -4142 | T182: =CELLCOLOR($T$15) -> -4142 | U182: =CELLCOLOR($U$15) -> -4142 | V182: =CELLCOLOR($V$15) -> -4142 | W182: =CELLCOLOR($W$15) -> -4142 | X182: =CELLCOLOR($X$15) -> -4142 | Y182: =CELLCOLOR($Y$15) -> -4142 | Z182: =CELLCOLOR($Z$15) -> -4142 | AA182: =CELLCOLOR($AA$15) -> -4142 | AB182: 7
C183: 8 | D183: =CELLCOLOR($D$16) -> -4142 | E183: =CELLCOLOR($E$16) -> -4142 | F183: =CELLCOLOR($F$16) -> -4142 | G183: =CELLCOLOR($G$16) -> -4142 | H183: =CELLCOLOR($H$16) -> -4142 | I183: =CELLCOLOR($I$16) -> -4142 | J183: =CELLCOLOR($J$16) -> -4142 | K183: =CELLCOLOR($K$16) -> -4142 | L183: =CELLCOLOR($L$16) -> -4142 | M183: =CELLCOLOR($M$16) -> -4142 | N183: =CELLCOLOR($N$16) -> -4142 | O183: =CELLCOLOR($O$16) -> -4142 | P183: =CELLCOLOR($P$16) -> -4142 | Q183: =CELLCOLOR($Q$16) -> -4142 | R183: =CELLCOLOR($R$16) -> -4142 | S183: =CELLCOLOR($S$16) -> -4142 | T183: =CELLCOLOR($T$16) -> -4142 | U183: =CELLCOLOR($U$16) -> -4142 | V183: =CELLCOLOR($V$16) -> -4142 | W183: =CELLCOLOR($W$16) -> -4142 | X183: =CELLCOLOR($X$16) -> -4142 | Y183: =CELLCOLOR($Y$16) -> -4142 | Z183: =CELLCOLOR($Z$16) -> -4142 | AA183: =CELLCOLOR($AA$16) -> -4142 | AB183: 8
C184: 9 | D184: =CELLCOLOR($D$17) -> -4142 | E184: =CELLCOLOR($E$17) -> -4142 | F184: =CELLCOLOR($F$17) -> -4142 | G184: =CELLCOLOR($G$17) -> -4142 | H184: =CELLCOLOR($H$17) -> -4142 | I184: =CELLCOLOR($I$17) -> -4142 | J184: =CELLCOLOR($J$17) -> -4142 | K184: =CELLCOLOR($K$17) -> -4142 | L184: =CELLCOLOR($L$17) -> -4142 | M184: =CELLCOLOR($M$17) -> -4142 | N184: =CELLCOLOR($N$17) -> -4142 | O184: =CELLCOLOR($O$17) -> -4142 | P184: =CELLCOLOR($P$17) -> -4142 | Q184: =CELLCOLOR($Q$17) -> -4142 | R184: =CELLCOLOR($R$17) -> -4142 | S184: =CELLCOLOR($S$17) -> -4142 | T184: =CELLCOLOR($T$17) -> -4142 | U184: =CELLCOLOR($U$17) -> -4142 | V184: =CELLCOLOR($V$17) -> -4142 | W184: =CELLCOLOR($W$17) -> -4142 | X184: =CELLCOLOR($X$17) -> -4142 | Y184: =CELLCOLOR($Y$17) -> -4142 | Z184: =CELLCOLOR($Z$17) -> -4142 | AA184: =CELLCOLOR($AA$17) -> -4142 | AB184: 9
C185: 10 | D185: =CELLCOLOR($D$18) -> -4142 | E185: =CELLCOLOR($E$18) -> -4142 | F185: =CELLCOLOR($F$18) -> -4142 | G185: =CELLCOLOR($G$18) -> -4142 | H185: =CELLCOLOR($H$18) -> -4142 | I185: =CELLCOLOR($I$18) -> -4142 | J185: =CELLCOLOR($J$18) -> -4142 | K185: =CELLCOLOR($K$18) -> -4142 | L185: =CELLCOLOR($L$18) -> -4142 | M185: =CELLCOLOR($M$18) -> -4142 | N185: =CELLCOLOR($N$18) -> -4142 | O185: =CELLCOLOR($O$18) -> -4142 | P185: =CELLCOLOR($P$18) -> -4142 | Q185: =CELLCOLOR($Q$18) -> -4142 | R185: =CELLCOLOR($R$18) -> -4142 | S185: =CELLCOLOR($S$18) -> -4142 | T185: =CELLCOLOR($T$18) -> -4142 | U185: =CELLCOLOR($U$18) -> -4142 | V185: =CELLCOLOR($V$18) -> -4142 | W185: =CELLCOLOR($W$18) -> -4142 | X185: =CELLCOLOR($X$18) -> -4142 | Y185: =CELLCOLOR($Y$18) -> -4142 | Z185: =CELLCOLOR($Z$18) -> -4142 | AA185: =CELLCOLOR($AA$18) -> -4142 | AB185: 10
C186: 11 | D186: =CELLCOLOR($D$19) -> -4142 | E186: =CELLCOLOR($E$19) -> -4142 | F186: =CELLCOLOR($F$19) -> -4142 | G186: =CELLCOLOR($G$19) -> -4142 | H186: =CELLCOLOR($H$19) -> -4142 | I186: =CELLCOLOR($I$19) -> -4142 | J186: =CELLCOLOR($J$19) -> -4142 | K186: =CELLCOLOR($K$19) -> -4142 | L186: =CELLCOLOR($L$19) -> -4142 | M186: =CELLCOLOR($M$19) -> -4142 | N186: =CELLCOLOR($N$19) -> -4142 | O186: =CELLCOLOR($O$19) -> -4142 | P186: =CELLCOLOR($P$19) -> -4142 | Q186: =CELLCOLOR($Q$19) -> -4142 | R186: =CELLCOLOR($R$19) -> -4142 | S186: =CELLCOLOR($S$19) -> -4142 | T186: =CELLCOLOR($T$19) -> -4142 | U186: =CELLCOLOR($U$19) -> -4142 | V186: =CELLCOLOR($V$19) -> -4142 | W186: =CELLCOLOR($W$19) -> -4142 | X186: =CELLCOLOR($X$19) -> -4142 | Y186: =CELLCOLOR($Y$19) -> -4142 | Z186: =CELLCOLOR($Z$19) -> -4142 | AA186: =CELLCOLOR($AA$19) -> -4142 | AB186: 11
C187: 12 | D187: =CELLCOLOR($D$20) -> -4142 | E187: =CELLCOLOR($E$20) -> -4142 | F187: =CELLCOLOR($F$20) -> -4142 | G187: =CELLCOLOR($G$20) -> -4142 | H187: =CELLCOLOR($H$20) -> -4142 | I187: =CELLCOLOR($I$20) -> -4142 | J187: =CELLCOLOR($J$20) -> -4142 | K187: =CELLCOLOR($K$20) -> -4142 | L187: =CELLCOLOR($L$20) -> -4142 | M187: =CELLCOLOR($M$20) -> -4142 | N187: =CELLCOLOR($N$20) -> -4142 | O187: =CELLCOLOR($O$20) -> -4142 | P187: =CELLCOLOR($P$20) -> -4142 | Q187: =CELLCOLOR($Q$20) -> -4142 | R187: =CELLCOLOR($R$20) -> -4142 | S187: =CELLCOLOR($S$20) -> -4142 | T187: =CELLCOLOR($T$20) -> -4142 | U187: =CELLCOLOR($U$20) -> -4142 | V187: =CELLCOLOR($V$20) -> -4142 | W187: =CELLCOLOR($W$20) -> -4142 | X187: =CELLCOLOR($X$20) -> -4142 | Y187: =CELLCOLOR($Y$20) -> -4142 | Z187: =CELLCOLOR($Z$20) -> -4142 | AA187: =CELLCOLOR($AA$20) -> -4142 | AB187: 12
C188: 1 | D188: =CELLCOLOR($D$21) -> -4142 | E188: =CELLCOLOR($E$21) -> -4142 | F188: =CELLCOLOR($F$21) -> -4142 | G188: =CELLCOLOR($G$21) -> -4142 | H188: =CELLCOLOR($H$21) -> -4142 | I188: =CELLCOLOR($I$21) -> -4142 | J188: =CELLCOLOR($J$21) -> -4142 | K188: =CELLCOLOR($K$21) -> -4142 | L188: =CELLCOLOR($L$21) -> -4142 | M188: =CELLCOLOR($M$21) -> -4142 | N188: =CELLCOLOR($N$21) -> -4142 | O188: =CELLCOLOR($O$21) -> -4142 | P188: =CELLCOLOR($P$21) -> -4142 | Q188: =CELLCOLOR($Q$21) -> -4142 | R188: =CELLCOLOR($R$21) -> -4142 | S188: =CELLCOLOR($S$21) -> -4142 | T188: =CELLCOLOR($T$21) -> -4142 | U188: =CELLCOLOR($U$21) -> -4142 | V188: =CELLCOLOR($V$21) -> -4142 | W188: =CELLCOLOR($W$21) -> -4142 | X188: =CELLCOLOR($X$21) -> -4142 | Y188: =CELLCOLOR($Y$21) -> -4142 | Z188: =CELLCOLOR($Z$21) -> -4142 | AA188: =CELLCOLOR($AA$21) -> -4142 | AB188: 1
C189: 2 | D189: =CELLCOLOR($D$22) -> -4142 | E189: =CELLCOLOR($E$22) -> -4142 | F189: =CELLCOLOR($F$22) -> -4142 | G189: =CELLCOLOR($G$22) -> -4142 | H189: =CELLCOLOR($H$22) -> -4142 | I189: =CELLCOLOR($I$22) -> -4142 | J189: =CELLCOLOR($J$22) -> -4142 | K189: =CELLCOLOR($K$22) -> -4142 | L189: =CELLCOLOR($L$22) -> -4142 | M189: =CELLCOLOR($M$22) -> -4142 | N189: =CELLCOLOR($N$22) -> -4142 | O189: =CELLCOLOR($O$22) -> -4142 | P189: =CELLCOLOR($P$22) -> -4142 | Q189: =CELLCOLOR($Q$22) -> -4142 | R189: =CELLCOLOR($R$22) -> -4142 | S189: =CELLCOLOR($S$22) -> -4142 | T189: =CELLCOLOR($T$22) -> -4142 | U189: =CELLCOLOR($U$22) -> -4142 | V189: =CELLCOLOR($V$22) -> -4142 | W189: =CELLCOLOR($W$22) -> -4142 | X189: =CELLCOLOR($X$22) -> -4142 | Y189: =CELLCOLOR($Y$22) -> -4142 | Z189: =CELLCOLOR($Z$22) -> -4142 | AA189: =CELLCOLOR($AA$22) -> -4142 | AB189: 2
C190: 3 | D190: =CELLCOLOR($D$23) -> -4142 | E190: =CELLCOLOR($E$23) -> -4142 | F190: =CELLCOLOR($F$23) -> -4142 | G190: =CELLCOLOR($G$23) -> -4142 | H190: =CELLCOLOR($H$23) -> -4142 | I190: =CELLCOLOR($I$23) -> -4142 | J190: =CELLCOLOR($J$23) -> -4142 | K190: =CELLCOLOR($K$23) -> -4142 | L190: =CELLCOLOR($L$23) -> -4142 | M190: =CELLCOLOR($M$23) -> -4142 | N190: =CELLCOLOR($N$23) -> -4142 | O190: =CELLCOLOR($O$23) -> -4142 | P190: =CELLCOLOR($P$23) -> -4142 | Q190: =CELLCOLOR($Q$23) -> -4142 | R190: =CELLCOLOR($R$23) -> -4142 | S190: =CELLCOLOR($S$23) -> -4142 | T190: =CELLCOLOR($T$23) -> -4142 | U190: =CELLCOLOR($U$23) -> -4142 | V190: =CELLCOLOR($V$23) -> -4142 | W190: =CELLCOLOR($W$23) -> -4142 | X190: =CELLCOLOR($X$23) -> -4142 | Y190: =CELLCOLOR($Y$23) -> -4142 | Z190: =CELLCOLOR($Z$23) -> -4142 | AA190: =CELLCOLOR($AA$23) -> -4142 | AB190: 3
C192: 作業表2-1(冷房) | E192: ●月▲時の平均気温(四捨五入で表示）
D193: 時刻
C194: 月 | D194: 0 | E194: 1 | F194: 2 | G194: 3 | H194: 4 | I194: 5 | J194: 6 | K194: 7 | L194: 8 | M194: 9 | N194: 10 | O194: 11 | P194: 12 | Q194: 13 | R194: 14 | S194: 15 | T194: 16 | U194: 17 | V194: 18 | W194: 19 | X194: 20 | Y194: 21 | Z194: 22 | AA194: 23 | AB194: 月
C195: 4 | D195: =IF($D$179=24,ROUND($D$12,0),"")&"" ->  | E195: =IF($E$179=24,ROUND($E$12,0),"")&"" ->  | F195: =IF($F$179=24,ROUND($F$12,0),"")&"" ->  | G195: =IF($G$179=24,ROUND($G$12,0),"")&"" ->  | H195: =IF($H$179=24,ROUND($H$12,0),"")&"" ->  | I195: =IF($I$179=24,ROUND($I$12,0),"")&"" ->  | J195: =IF($J$179=24,ROUND($J$12,0),"")&"" ->  | K195: =IF($K$179=24,ROUND($K$12,0),"")&"" ->  | L195: =IF($L$179=24,ROUND($L$12,0),"")&"" ->  | M195: =IF($M$179=24,ROUND($M$12,0),"")&"" ->  | N195: =IF($N$179=24,ROUND($N$12,0),"")&"" ->  | O195: =IF($O$179=24,ROUND($O$12,0),"")&"" ->  | P195: =IF($P$179=24,ROUND($P$12,0),"")&"" ->  | Q195: =IF($Q$179=24,ROUND($Q$12,0),"")&"" ->  | R195: =IF($R$179=24,ROUND($R$12,0),"")&"" ->  | S195: =IF($S$179=24,ROUND($S$12,0),"")&"" ->  | T195: =IF($T$179=24,ROUND($T$12,0),"")&"" ->  | U195: =IF($U$179=24,ROUND($U$12,0),"")&"" ->  | V195: =IF($V$179=24,ROUND($V$12,0),"")&"" ->  | W195: =IF($W$179=24,ROUND($W$12,0),"")&"" ->  | X195: =IF($X$179=24,ROUND($X$12,0),"")&"" ->  | Y195: =IF($Y$179=24,ROUND($Y$12,0),"")&"" ->  | Z195: =IF($Z$179=24,ROUND($Z$12,0),"")&"" ->  | AA195: =IF($AA$179=24,ROUND($AA$12,0),"")&"" ->  | AB195: 4
C196: 5 | D196: =IF($D$180=24,ROUND($D$13,0),"")&"" ->  | E196: =IF($E$180=24,ROUND($E$13,0),"")&"" ->  | F196: =IF($F$180=24,ROUND($F$13,0),"")&"" ->  | G196: =IF($G$180=24,ROUND($G$13,0),"")&"" ->  | H196: =IF($H$180=24,ROUND($H$13,0),"")&"" ->  | I196: =IF($I$180=24,ROUND($I$13,0),"")&"" ->  | J196: =IF($J$180=24,ROUND($J$13,0),"")&"" ->  | K196: =IF($K$180=24,ROUND($K$13,0),"")&"" ->  | L196: =IF($L$180=24,ROUND($L$13,0),"")&"" ->  | M196: =IF($M$180=24,ROUND($M$13,0),"")&"" ->  | N196: =IF($N$180=24,ROUND($N$13,0),"")&"" ->  | O196: =IF($O$180=24,ROUND($O$13,0),"")&"" ->  | P196: =IF($P$180=24,ROUND($P$13,0),"")&"" ->  | Q196: =IF($Q$180=24,ROUND($Q$13,0),"")&"" ->  | R196: =IF($R$180=24,ROUND($R$13,0),"")&"" ->  | S196: =IF($S$180=24,ROUND($S$13,0),"")&"" ->  | T196: =IF($T$180=24,ROUND($T$13,0),"")&"" ->  | U196: =IF($U$180=24,ROUND($U$13,0),"")&"" ->  | V196: =IF($V$180=24,ROUND($V$13,0),"")&"" ->  | W196: =IF($W$180=24,ROUND($W$13,0),"")&"" ->  | X196: =IF($X$180=24,ROUND($X$13,0),"")&"" ->  | Y196: =IF($Y$180=24,ROUND($Y$13,0),"")&"" ->  | Z196: =IF($Z$180=24,ROUND($Z$13,0),"")&"" ->  | AA196: =IF($AA$180=24,ROUND($AA$13,0),"")&"" ->  | AB196: 5
C197: 6 | D197: =IF($D$181=24,ROUND($D$14,0),"")&"" ->  | E197: =IF($E$181=24,ROUND($E$14,0),"")&"" ->  | F197: =IF($F$181=24,ROUND($F$14,0),"")&"" ->  | G197: =IF($G$181=24,ROUND($G$14,0),"")&"" ->  | H197: =IF($H$181=24,ROUND($H$14,0),"")&"" ->  | I197: =IF($I$181=24,ROUND($I$14,0),"")&"" ->  | J197: =IF($J$181=24,ROUND($J$14,0),"")&"" ->  | K197: =IF($K$181=24,ROUND($K$14,0),"")&"" ->  | L197: =IF($L$181=24,ROUND($L$14,0),"")&"" ->  | M197: =IF($M$181=24,ROUND($M$14,0),"")&"" ->  | N197: =IF($N$181=24,ROUND($N$14,0),"")&"" ->  | O197: =IF($O$181=24,ROUND($O$14,0),"")&"" ->  | P197: =IF($P$181=24,ROUND($P$14,0),"")&"" ->  | Q197: =IF($Q$181=24,ROUND($Q$14,0),"")&"" ->  | R197: =IF($R$181=24,ROUND($R$14,0),"")&"" ->  | S197: =IF($S$181=24,ROUND($S$14,0),"")&"" ->  | T197: =IF($T$181=24,ROUND($T$14,0),"")&"" ->  | U197: =IF($U$181=24,ROUND($U$14,0),"")&"" ->  | V197: =IF($V$181=24,ROUND($V$14,0),"")&"" ->  | W197: =IF($W$181=24,ROUND($W$14,0),"")&"" ->  | X197: =IF($X$181=24,ROUND($X$14,0),"")&"" ->  | Y197: =IF($Y$181=24,ROUND($Y$14,0),"")&"" ->  | Z197: =IF($Z$181=24,ROUND($Z$14,0),"")&"" ->  | AA197: =IF($AA$181=24,ROUND($AA$14,0),"")&"" ->  | AB197: 6
C198: 7 | D198: =IF($D$182=24,ROUND($D$15,0),"")&"" ->  | E198: =IF($E$182=24,ROUND($E$15,0),"")&"" ->  | F198: =IF($F$182=24,ROUND($F$15,0),"")&"" ->  | G198: =IF($G$182=24,ROUND($G$15,0),"")&"" ->  | H198: =IF($H$182=24,ROUND($H$15,0),"")&"" ->  | I198: =IF($I$182=24,ROUND($I$15,0),"")&"" ->  | J198: =IF($J$182=24,ROUND($J$15,0),"")&"" ->  | K198: =IF($K$182=24,ROUND($K$15,0),"")&"" ->  | L198: =IF($L$182=24,ROUND($L$15,0),"")&"" ->  | M198: =IF($M$182=24,ROUND($M$15,0),"")&"" ->  | N198: =IF($N$182=24,ROUND($N$15,0),"")&"" ->  | O198: =IF($O$182=24,ROUND($O$15,0),"")&"" ->  | P198: =IF($P$182=24,ROUND($P$15,0),"")&"" ->  | Q198: =IF($Q$182=24,ROUND($Q$15,0),"")&"" ->  | R198: =IF($R$182=24,ROUND($R$15,0),"")&"" ->  | S198: =IF($S$182=24,ROUND($S$15,0),"")&"" ->  | T198: =IF($T$182=24,ROUND($T$15,0),"")&"" ->  | U198: =IF($U$182=24,ROUND($U$15,0),"")&"" ->  | V198: =IF($V$182=24,ROUND($V$15,0),"")&"" ->  | W198: =IF($W$182=24,ROUND($W$15,0),"")&"" ->  | X198: =IF($X$182=24,ROUND($X$15,0),"")&"" ->  | Y198: =IF($Y$182=24,ROUND($Y$15,0),"")&"" ->  | Z198: =IF($Z$182=24,ROUND($Z$15,0),"")&"" ->  | AA198: =IF($AA$182=24,ROUND($AA$15,0),"")&"" ->  | AB198: 7
C199: 8 | D199: =IF($D$183=24,ROUND($D$16,0),"")&"" ->  | E199: =IF($E$183=24,ROUND($E$16,0),"")&"" ->  | F199: =IF($F$183=24,ROUND($F$16,0),"")&"" ->  | G199: =IF($G$183=24,ROUND($G$16,0),"")&"" ->  | H199: =IF($H$183=24,ROUND($H$16,0),"")&"" ->  | I199: =IF($I$183=24,ROUND($I$16,0),"")&"" ->  | J199: =IF($J$183=24,ROUND($J$16,0),"")&"" ->  | K199: =IF($K$183=24,ROUND($K$16,0),"")&"" ->  | L199: =IF($L$183=24,ROUND($L$16,0),"")&"" ->  | M199: =IF($M$183=24,ROUND($M$16,0),"")&"" ->  | N199: =IF($N$183=24,ROUND($N$16,0),"")&"" ->  | O199: =IF($O$183=24,ROUND($O$16,0),"")&"" ->  | P199: =IF($P$183=24,ROUND($P$16,0),"")&"" ->  | Q199: =IF($Q$183=24,ROUND($Q$16,0),"")&"" ->  | R199: =IF($R$183=24,ROUND($R$16,0),"")&"" ->  | S199: =IF($S$183=24,ROUND($S$16,0),"")&"" ->  | T199: =IF($T$183=24,ROUND($T$16,0),"")&"" ->  | U199: =IF($U$183=24,ROUND($U$16,0),"")&"" ->  | V199: =IF($V$183=24,ROUND($V$16,0),"")&"" ->  | W199: =IF($W$183=24,ROUND($W$16,0),"")&"" ->  | X199: =IF($X$183=24,ROUND($X$16,0),"")&"" ->  | Y199: =IF($Y$183=24,ROUND($Y$16,0),"")&"" ->  | Z199: =IF($Z$183=24,ROUND($Z$16,0),"")&"" ->  | AA199: =IF($AA$183=24,ROUND($AA$16,0),"")&"" ->  | AB199: 8
C200: 9 | D200: =IF($D$184=24,ROUND($D$17,0),"")&"" ->  | E200: =IF($E$184=24,ROUND($E$17,0),"")&"" ->  | F200: =IF($F$184=24,ROUND($F$17,0),"")&"" ->  | G200: =IF($G$184=24,ROUND($G$17,0),"")&"" ->  | H200: =IF($H$184=24,ROUND($H$17,0),"")&"" ->  | I200: =IF($I$184=24,ROUND($I$17,0),"")&"" ->  | J200: =IF($J$184=24,ROUND($J$17,0),"")&"" ->  | K200: =IF($K$184=24,ROUND($K$17,0),"")&"" ->  | L200: =IF($L$184=24,ROUND($L$17,0),"")&"" ->  | M200: =IF($M$184=24,ROUND($M$17,0),"")&"" ->  | N200: =IF($N$184=24,ROUND($N$17,0),"")&"" ->  | O200: =IF($O$184=24,ROUND($O$17,0),"")&"" ->  | P200: =IF($P$184=24,ROUND($P$17,0),"")&"" ->  | Q200: =IF($Q$184=24,ROUND($Q$17,0),"")&"" ->  | R200: =IF($R$184=24,ROUND($R$17,0),"")&"" ->  | S200: =IF($S$184=24,ROUND($S$17,0),"")&"" ->  | T200: =IF($T$184=24,ROUND($T$17,0),"")&"" ->  | U200: =IF($U$184=24,ROUND($U$17,0),"")&"" ->  | V200: =IF($V$184=24,ROUND($V$17,0),"")&"" ->  | W200: =IF($W$184=24,ROUND($W$17,0),"")&"" ->  | X200: =IF($X$184=24,ROUND($X$17,0),"")&"" ->  | Y200: =IF($Y$184=24,ROUND($Y$17,0),"")&"" ->  | Z200: =IF($Z$184=24,ROUND($Z$17,0),"")&"" ->  | AA200: =IF($AA$184=24,ROUND($AA$17,0),"")&"" ->  | AB200: 9
C201: 10 | D201: =IF($D$185=24,ROUND($D$18,0),"")&"" ->  | E201: =IF($E$185=24,ROUND($E$18,0),"")&"" ->  | F201: =IF($F$185=24,ROUND($F$18,0),"")&"" ->  | G201: =IF($G$185=24,ROUND($G$18,0),"")&"" ->  | H201: =IF($H$185=24,ROUND($H$18,0),"")&"" ->  | I201: =IF($I$185=24,ROUND($I$18,0),"")&"" ->  | J201: =IF($J$185=24,ROUND($J$18,0),"")&"" ->  | K201: =IF($K$185=24,ROUND($K$18,0),"")&"" ->  | L201: =IF($L$185=24,ROUND($L$18,0),"")&"" ->  | M201: =IF($M$185=24,ROUND($M$18,0),"")&"" ->  | N201: =IF($N$185=24,ROUND($N$18,0),"")&"" ->  | O201: =IF($O$185=24,ROUND($O$18,0),"")&"" ->  | P201: =IF($P$185=24,ROUND($P$18,0),"")&"" ->  | Q201: =IF($Q$185=24,ROUND($Q$18,0),"")&"" ->  | R201: =IF($R$185=24,ROUND($R$18,0),"")&"" ->  | S201: =IF($S$185=24,ROUND($S$18,0),"")&"" ->  | T201: =IF($T$185=24,ROUND($T$18,0),"")&"" ->  | U201: =IF($U$185=24,ROUND($U$18,0),"")&"" ->  | V201: =IF($V$185=24,ROUND($V$18,0),"")&"" ->  | W201: =IF($W$185=24,ROUND($W$18,0),"")&"" ->  | X201: =IF($X$185=24,ROUND($X$18,0),"")&"" ->  | Y201: =IF($Y$185=24,ROUND($Y$18,0),"")&"" ->  | Z201: =IF($Z$185=24,ROUND($Z$18,0),"")&"" ->  | AA201: =IF($AA$185=24,ROUND($AA$18,0),"")&"" ->  | AB201: 10
C202: 11 | D202: =IF($D$186=24,ROUND($D$19,0),"")&"" ->  | E202: =IF($E$186=24,ROUND($E$19,0),"")&"" ->  | F202: =IF($F$186=24,ROUND($F$19,0),"")&"" ->  | G202: =IF($G$186=24,ROUND($G$19,0),"")&"" ->  | H202: =IF($H$186=24,ROUND($H$19,0),"")&"" ->  | I202: =IF($I$186=24,ROUND($I$19,0),"")&"" ->  | J202: =IF($J$186=24,ROUND($J$19,0),"")&"" ->  | K202: =IF($K$186=24,ROUND($K$19,0),"")&"" ->  | L202: =IF($L$186=24,ROUND($L$19,0),"")&"" ->  | M202: =IF($M$186=24,ROUND($M$19,0),"")&"" ->  | N202: =IF($N$186=24,ROUND($N$19,0),"")&"" ->  | O202: =IF($O$186=24,ROUND($O$19,0),"")&"" ->  | P202: =IF($P$186=24,ROUND($P$19,0),"")&"" ->  | Q202: =IF($Q$186=24,ROUND($Q$19,0),"")&"" ->  | R202: =IF($R$186=24,ROUND($R$19,0),"")&"" ->  | S202: =IF($S$186=24,ROUND($S$19,0),"")&"" ->  | T202: =IF($T$186=24,ROUND($T$19,0),"")&"" ->  | U202: =IF($U$186=24,ROUND($U$19,0),"")&"" ->  | V202: =IF($V$186=24,ROUND($V$19,0),"")&"" ->  | W202: =IF($W$186=24,ROUND($W$19,0),"")&"" ->  | X202: =IF($X$186=24,ROUND($X$19,0),"")&"" ->  | Y202: =IF($Y$186=24,ROUND($Y$19,0),"")&"" ->  | Z202: =IF($Z$186=24,ROUND($Z$19,0),"")&"" ->  | AA202: =IF($AA$186=24,ROUND($AA$19,0),"")&"" ->  | AB202: 11
C203: 12 | D203: =IF($D$187=24,ROUND($D$20,0),"")&"" ->  | E203: =IF($E$187=24,ROUND($E$20,0),"")&"" ->  | F203: =IF($F$187=24,ROUND($F$20,0),"")&"" ->  | G203: =IF($G$187=24,ROUND($G$20,0),"")&"" ->  | H203: =IF($H$187=24,ROUND($H$20,0),"")&"" ->  | I203: =IF($I$187=24,ROUND($I$20,0),"")&"" ->  | J203: =IF($J$187=24,ROUND($J$20,0),"")&"" ->  | K203: =IF($K$187=24,ROUND($K$20,0),"")&"" ->  | L203: =IF($L$187=24,ROUND($L$20,0),"")&"" ->  | M203: =IF($M$187=24,ROUND($M$20,0),"")&"" ->  | N203: =IF($N$187=24,ROUND($N$20,0),"")&"" ->  | O203: =IF($O$187=24,ROUND($O$20,0),"")&"" ->  | P203: =IF($P$187=24,ROUND($P$20,0),"")&"" ->  | Q203: =IF($Q$187=24,ROUND($Q$20,0),"")&"" ->  | R203: =IF($R$187=24,ROUND($R$20,0),"")&"" ->  | S203: =IF($S$187=24,ROUND($S$20,0),"")&"" ->  | T203: =IF($T$187=24,ROUND($T$20,0),"")&"" ->  | U203: =IF($U$187=24,ROUND($U$20,0),"")&"" ->  | V203: =IF($V$187=24,ROUND($V$20,0),"")&"" ->  | W203: =IF($W$187=24,ROUND($W$20,0),"")&"" ->  | X203: =IF($X$187=24,ROUND($X$20,0),"")&"" ->  | Y203: =IF($Y$187=24,ROUND($Y$20,0),"")&"" ->  | Z203: =IF($Z$187=24,ROUND($Z$20,0),"")&"" ->  | AA203: =IF($AA$187=24,ROUND($AA$20,0),"")&"" ->  | AB203: 12
C204: 1 | D204: =IF($D$188=24,ROUND($D$21,0),"")&"" ->  | E204: =IF($E$188=24,ROUND($E$21,0),"")&"" ->  | F204: =IF($F$188=24,ROUND($F$21,0),"")&"" ->  | G204: =IF($G$188=24,ROUND($G$21,0),"")&"" ->  | H204: =IF($H$188=24,ROUND($H$21,0),"")&"" ->  | I204: =IF($I$188=24,ROUND($I$21,0),"")&"" ->  | J204: =IF($J$188=24,ROUND($J$21,0),"")&"" ->  | K204: =IF($K$188=24,ROUND($K$21,0),"")&"" ->  | L204: =IF($L$188=24,ROUND($L$21,0),"")&"" ->  | M204: =IF($M$188=24,ROUND($M$21,0),"")&"" ->  | N204: =IF($N$188=24,ROUND($N$21,0),"")&"" ->  | O204: =IF($O$188=24,ROUND($O$21,0),"")&"" ->  | P204: =IF($P$188=24,ROUND($P$21,0),"")&"" ->  | Q204: =IF($Q$188=24,ROUND($Q$21,0),"")&"" ->  | R204: =IF($R$188=24,ROUND($R$21,0),"")&"" ->  | S204: =IF($S$188=24,ROUND($S$21,0),"")&"" ->  | T204: =IF($T$188=24,ROUND($T$21,0),"")&"" ->  | U204: =IF($U$188=24,ROUND($U$21,0),"")&"" ->  | V204: =IF($V$188=24,ROUND($V$21,0),"")&"" ->  | W204: =IF($W$188=24,ROUND($W$21,0),"")&"" ->  | X204: =IF($X$188=24,ROUND($X$21,0),"")&"" ->  | Y204: =IF($Y$188=24,ROUND($Y$21,0),"")&"" ->  | Z204: =IF($Z$188=24,ROUND($Z$21,0),"")&"" ->  | AA204: =IF($AA$188=24,ROUND($AA$21,0),"")&"" ->  | AB204: 1
C205: 2 | D205: =IF($D$189=24,ROUND($D$22,0),"")&"" ->  | E205: =IF($E$189=24,ROUND($E$22,0),"")&"" ->  | F205: =IF($F$189=24,ROUND($F$22,0),"")&"" ->  | G205: =IF($G$189=24,ROUND($G$22,0),"")&"" ->  | H205: =IF($H$189=24,ROUND($H$22,0),"")&"" ->  | I205: =IF($I$189=24,ROUND($I$22,0),"")&"" ->  | J205: =IF($J$189=24,ROUND($J$22,0),"")&"" ->  | K205: =IF($K$189=24,ROUND($K$22,0),"")&"" ->  | L205: =IF($L$189=24,ROUND($L$22,0),"")&"" ->  | M205: =IF($M$189=24,ROUND($M$22,0),"")&"" ->  | N205: =IF($N$189=24,ROUND($N$22,0),"")&"" ->  | O205: =IF($O$189=24,ROUND($O$22,0),"")&"" ->  | P205: =IF($P$189=24,ROUND($P$22,0),"")&"" ->  | Q205: =IF($Q$189=24,ROUND($Q$22,0),"")&"" ->  | R205: =IF($R$189=24,ROUND($R$22,0),"")&"" ->  | S205: =IF($S$189=24,ROUND($S$22,0),"")&"" ->  | T205: =IF($T$189=24,ROUND($T$22,0),"")&"" ->  | U205: =IF($U$189=24,ROUND($U$22,0),"")&"" ->  | V205: =IF($V$189=24,ROUND($V$22,0),"")&"" ->  | W205: =IF($W$189=24,ROUND($W$22,0),"")&"" ->  | X205: =IF($X$189=24,ROUND($X$22,0),"")&"" ->  | Y205: =IF($Y$189=24,ROUND($Y$22,0),"")&"" ->  | Z205: =IF($Z$189=24,ROUND($Z$22,0),"")&"" ->  | AA205: =IF($AA$189=24,ROUND($AA$22,0),"")&"" ->  | AB205: 2
C206: 3 | D206: =IF($D$190=24,ROUND($D$23,0),"")&"" ->  | E206: =IF($E$190=24,ROUND($E$23,0),"")&"" ->  | F206: =IF($F$190=24,ROUND($F$23,0),"")&"" ->  | G206: =IF($G$190=24,ROUND($G$23,0),"")&"" ->  | H206: =IF($H$190=24,ROUND($H$23,0),"")&"" ->  | I206: =IF($I$190=24,ROUND($I$23,0),"")&"" ->  | J206: =IF($J$190=24,ROUND($J$23,0),"")&"" ->  | K206: =IF($K$190=24,ROUND($K$23,0),"")&"" ->  | L206: =IF($L$190=24,ROUND($L$23,0),"")&"" ->  | M206: =IF($M$190=24,ROUND($M$23,0),"")&"" ->  | N206: =IF($N$190=24,ROUND($N$23,0),"")&"" ->  | O206: =IF($O$190=24,ROUND($O$23,0),"")&"" ->  | P206: =IF($P$190=24,ROUND($P$23,0),"")&"" ->  | Q206: =IF($Q$190=24,ROUND($Q$23,0),"")&"" ->  | R206: =IF($R$190=24,ROUND($R$23,0),"")&"" ->  | S206: =IF($S$190=24,ROUND($S$23,0),"")&"" ->  | T206: =IF($T$190=24,ROUND($T$23,0),"")&"" ->  | U206: =IF($U$190=24,ROUND($U$23,0),"")&"" ->  | V206: =IF($V$190=24,ROUND($V$23,0),"")&"" ->  | W206: =IF($W$190=24,ROUND($W$23,0),"")&"" ->  | X206: =IF($X$190=24,ROUND($X$23,0),"")&"" ->  | Y206: =IF($Y$190=24,ROUND($Y$23,0),"")&"" ->  | Z206: =IF($Z$190=24,ROUND($Z$23,0),"")&"" ->  | AA206: =IF($AA$190=24,ROUND($AA$23,0),"")&"" ->  | AB206: 3
C208: 作業表2-2(暖房) | E208: ●月▲時の平均気温
D209: 時刻
C210: 月 | D210: 0 | E210: 1 | F210: 2 | G210: 3 | H210: 4 | I210: 5 | J210: 6 | K210: 7 | L210: 8 | M210: 9 | N210: 10 | O210: 11 | P210: 12 | Q210: 13 | R210: 14 | S210: 15 | T210: 16 | U210: 17 | V210: 18 | W210: 19 | X210: 20 | Y210: 21 | Z210: 22 | AA210: 23 | AB210: 月
C211: 4 | D211: =IF($D$179=19,ROUND($D$12,0),"")&"" ->  | E211: =IF($E$179=19,ROUND($E$12,0),"")&"" ->  | F211: =IF($F$179=19,ROUND($F$12,0),"")&"" ->  | G211: =IF($G$179=19,ROUND($G$12,0),"")&"" ->  | H211: =IF($H$179=19,ROUND($H$12,0),"")&"" ->  | I211: =IF($I$179=19,ROUND($I$12,0),"")&"" ->  | J211: =IF($J$179=19,ROUND($J$12,0),"")&"" ->  | K211: =IF($K$179=19,ROUND($K$12,0),"")&"" ->  | L211: =IF($L$179=19,ROUND($L$12,0),"")&"" ->  | M211: =IF($M$179=19,ROUND($M$12,0),"")&"" ->  | N211: =IF($N$179=19,ROUND($N$12,0),"")&"" ->  | O211: =IF($O$179=19,ROUND($O$12,0),"")&"" ->  | P211: =IF($P$179=19,ROUND($P$12,0),"")&"" ->  | Q211: =IF($Q$179=19,ROUND($Q$12,0),"")&"" ->  | R211: =IF($R$179=19,ROUND($R$12,0),"")&"" ->  | S211: =IF($S$179=19,ROUND($S$12,0),"")&"" ->  | T211: =IF($T$179=19,ROUND($T$12,0),"")&"" ->  | U211: =IF($U$179=19,ROUND($U$12,0),"")&"" ->  | V211: =IF($V$179=19,ROUND($V$12,0),"")&"" ->  | W211: =IF($W$179=19,ROUND($W$12,0),"")&"" ->  | X211: =IF($X$179=19,ROUND($X$12,0),"")&"" ->  | Y211: =IF($Y$179=19,ROUND($Y$12,0),"")&"" ->  | Z211: =IF($Z$179=19,ROUND($Z$12,0),"")&"" ->  | AA211: =IF($AA$179=19,ROUND($AA$12,0),"")&"" ->  | AB211: 4
C212: 5 | D212: =IF($D$180=19,ROUND($D$13,0),"")&"" ->  | E212: =IF($E$180=19,ROUND($E$13,0),"")&"" ->  | F212: =IF($F$180=19,ROUND($F$13,0),"")&"" ->  | G212: =IF($G$180=19,ROUND($G$13,0),"")&"" ->  | H212: =IF($H$180=19,ROUND($H$13,0),"")&"" ->  | I212: =IF($I$180=19,ROUND($I$13,0),"")&"" ->  | J212: =IF($J$180=19,ROUND($J$13,0),"")&"" ->  | K212: =IF($K$180=19,ROUND($K$13,0),"")&"" ->  | L212: =IF($L$180=19,ROUND($L$13,0),"")&"" ->  | M212: =IF($M$180=19,ROUND($M$13,0),"")&"" ->  | N212: =IF($N$180=19,ROUND($N$13,0),"")&"" ->  | O212: =IF($O$180=19,ROUND($O$13,0),"")&"" ->  | P212: =IF($P$180=19,ROUND($P$13,0),"")&"" ->  | Q212: =IF($Q$180=19,ROUND($Q$13,0),"")&"" ->  | R212: =IF($R$180=19,ROUND($R$13,0),"")&"" ->  | S212: =IF($S$180=19,ROUND($S$13,0),"")&"" ->  | T212: =IF($T$180=19,ROUND($T$13,0),"")&"" ->  | U212: =IF($U$180=19,ROUND($U$13,0),"")&"" ->  | V212: =IF($V$180=19,ROUND($V$13,0),"")&"" ->  | W212: =IF($W$180=19,ROUND($W$13,0),"")&"" ->  | X212: =IF($X$180=19,ROUND($X$13,0),"")&"" ->  | Y212: =IF($Y$180=19,ROUND($Y$13,0),"")&"" ->  | Z212: =IF($Z$180=19,ROUND($Z$13,0),"")&"" ->  | AA212: =IF($AA$180=19,ROUND($AA$13,0),"")&"" ->  | AB212: 5
C213: 6 | D213: =IF($D$181=19,ROUND($D$14,0),"")&"" ->  | E213: =IF($E$181=19,ROUND($E$14,0),"")&"" ->  | F213: =IF($F$181=19,ROUND($F$14,0),"")&"" ->  | G213: =IF($G$181=19,ROUND($G$14,0),"")&"" ->  | H213: =IF($H$181=19,ROUND($H$14,0),"")&"" ->  | I213: =IF($I$181=19,ROUND($I$14,0),"")&"" ->  | J213: =IF($J$181=19,ROUND($J$14,0),"")&"" ->  | K213: =IF($K$181=19,ROUND($K$14,0),"")&"" ->  | L213: =IF($L$181=19,ROUND($L$14,0),"")&"" ->  | M213: =IF($M$181=19,ROUND($M$14,0),"")&"" ->  | N213: =IF($N$181=19,ROUND($N$14,0),"")&"" ->  | O213: =IF($O$181=19,ROUND($O$14,0),"")&"" ->  | P213: =IF($P$181=19,ROUND($P$14,0),"")&"" ->  | Q213: =IF($Q$181=19,ROUND($Q$14,0),"")&"" ->  | R213: =IF($R$181=19,ROUND($R$14,0),"")&"" ->  | S213: =IF($S$181=19,ROUND($S$14,0),"")&"" ->  | T213: =IF($T$181=19,ROUND($T$14,0),"")&"" ->  | U213: =IF($U$181=19,ROUND($U$14,0),"")&"" ->  | V213: =IF($V$181=19,ROUND($V$14,0),"")&"" ->  | W213: =IF($W$181=19,ROUND($W$14,0),"")&"" ->  | X213: =IF($X$181=19,ROUND($X$14,0),"")&"" ->  | Y213: =IF($Y$181=19,ROUND($Y$14,0),"")&"" ->  | Z213: =IF($Z$181=19,ROUND($Z$14,0),"")&"" ->  | AA213: =IF($AA$181=19,ROUND($AA$14,0),"")&"" ->  | AB213: 6
C214: 7 | D214: =IF($D$182=19,ROUND($D$15,0),"")&"" ->  | E214: =IF($E$182=19,ROUND($E$15,0),"")&"" ->  | F214: =IF($F$182=19,ROUND($F$15,0),"")&"" ->  | G214: =IF($G$182=19,ROUND($G$15,0),"")&"" ->  | H214: =IF($H$182=19,ROUND($H$15,0),"")&"" ->  | I214: =IF($I$182=19,ROUND($I$15,0),"")&"" ->  | J214: =IF($J$182=19,ROUND($J$15,0),"")&"" ->  | K214: =IF($K$182=19,ROUND($K$15,0),"")&"" ->  | L214: =IF($L$182=19,ROUND($L$15,0),"")&"" ->  | M214: =IF($M$182=19,ROUND($M$15,0),"")&"" ->  | N214: =IF($N$182=19,ROUND($N$15,0),"")&"" ->  | O214: =IF($O$182=19,ROUND($O$15,0),"")&"" ->  | P214: =IF($P$182=19,ROUND($P$15,0),"")&"" ->  | Q214: =IF($Q$182=19,ROUND($Q$15,0),"")&"" ->  | R214: =IF($R$182=19,ROUND($R$15,0),"")&"" ->  | S214: =IF($S$182=19,ROUND($S$15,0),"")&"" ->  | T214: =IF($T$182=19,ROUND($T$15,0),"")&"" ->  | U214: =IF($U$182=19,ROUND($U$15,0),"")&"" ->  | V214: =IF($V$182=19,ROUND($V$15,0),"")&"" ->  | W214: =IF($W$182=19,ROUND($W$15,0),"")&"" ->  | X214: =IF($X$182=19,ROUND($X$15,0),"")&"" ->  | Y214: =IF($Y$182=19,ROUND($Y$15,0),"")&"" ->  | Z214: =IF($Z$182=19,ROUND($Z$15,0),"")&"" ->  | AA214: =IF($AA$182=19,ROUND($AA$15,0),"")&"" ->  | AB214: 7
C215: 8 | D215: =IF($D$183=19,ROUND($D$16,0),"")&"" ->  | E215: =IF($E$183=19,ROUND($E$16,0),"")&"" ->  | F215: =IF($F$183=19,ROUND($F$16,0),"")&"" ->  | G215: =IF($G$183=19,ROUND($G$16,0),"")&"" ->  | H215: =IF($H$183=19,ROUND($H$16,0),"")&"" ->  | I215: =IF($I$183=19,ROUND($I$16,0),"")&"" ->  | J215: =IF($J$183=19,ROUND($J$16,0),"")&"" ->  | K215: =IF($K$183=19,ROUND($K$16,0),"")&"" ->  | L215: =IF($L$183=19,ROUND($L$16,0),"")&"" ->  | M215: =IF($M$183=19,ROUND($M$16,0),"")&"" ->  | N215: =IF($N$183=19,ROUND($N$16,0),"")&"" ->  | O215: =IF($O$183=19,ROUND($O$16,0),"")&"" ->  | P215: =IF($P$183=19,ROUND($P$16,0),"")&"" ->  | Q215: =IF($Q$183=19,ROUND($Q$16,0),"")&"" ->  | R215: =IF($R$183=19,ROUND($R$16,0),"")&"" ->  | S215: =IF($S$183=19,ROUND($S$16,0),"")&"" ->  | T215: =IF($T$183=19,ROUND($T$16,0),"")&"" ->  | U215: =IF($U$183=19,ROUND($U$16,0),"")&"" ->  | V215: =IF($V$183=19,ROUND($V$16,0),"")&"" ->  | W215: =IF($W$183=19,ROUND($W$16,0),"")&"" ->  | X215: =IF($X$183=19,ROUND($X$16,0),"")&"" ->  | Y215: =IF($Y$183=19,ROUND($Y$16,0),"")&"" ->  | Z215: =IF($Z$183=19,ROUND($Z$16,0),"")&"" ->  | AA215: =IF($AA$183=19,ROUND($AA$16,0),"")&"" ->  | AB215: 8
C216: 9 | D216: =IF($D$184=19,ROUND($D$17,0),"")&"" ->  | E216: =IF($E$184=19,ROUND($E$17,0),"")&"" ->  | F216: =IF($F$184=19,ROUND($F$17,0),"")&"" ->  | G216: =IF($G$184=19,ROUND($G$17,0),"")&"" ->  | H216: =IF($H$184=19,ROUND($H$17,0),"")&"" ->  | I216: =IF($I$184=19,ROUND($I$17,0),"")&"" ->  | J216: =IF($J$184=19,ROUND($J$17,0),"")&"" ->  | K216: =IF($K$184=19,ROUND($K$17,0),"")&"" ->  | L216: =IF($L$184=19,ROUND($L$17,0),"")&"" ->  | M216: =IF($M$184=19,ROUND($M$17,0),"")&"" ->  | N216: =IF($N$184=19,ROUND($N$17,0),"")&"" ->  | O216: =IF($O$184=19,ROUND($O$17,0),"")&"" ->  | P216: =IF($P$184=19,ROUND($P$17,0),"")&"" ->  | Q216: =IF($Q$184=19,ROUND($Q$17,0),"")&"" ->  | R216: =IF($R$184=19,ROUND($R$17,0),"")&"" ->  | S216: =IF($S$184=19,ROUND($S$17,0),"")&"" ->  | T216: =IF($T$184=19,ROUND($T$17,0),"")&"" ->  | U216: =IF($U$184=19,ROUND($U$17,0),"")&"" ->  | V216: =IF($V$184=19,ROUND($V$17,0),"")&"" ->  | W216: =IF($W$184=19,ROUND($W$17,0),"")&"" ->  | X216: =IF($X$184=19,ROUND($X$17,0),"")&"" ->  | Y216: =IF($Y$184=19,ROUND($Y$17,0),"")&"" ->  | Z216: =IF($Z$184=19,ROUND($Z$17,0),"")&"" ->  | AA216: =IF($AA$184=19,ROUND($AA$17,0),"")&"" ->  | AB216: 9
C217: 10 | D217: =IF($D$185=19,ROUND($D$18,0),"")&"" ->  | E217: =IF($E$185=19,ROUND($E$18,0),"")&"" ->  | F217: =IF($F$185=19,ROUND($F$18,0),"")&"" ->  | G217: =IF($G$185=19,ROUND($G$18,0),"")&"" ->  | H217: =IF($H$185=19,ROUND($H$18,0),"")&"" ->  | I217: =IF($I$185=19,ROUND($I$18,0),"")&"" ->  | J217: =IF($J$185=19,ROUND($J$18,0),"")&"" ->  | K217: =IF($K$185=19,ROUND($K$18,0),"")&"" ->  | L217: =IF($L$185=19,ROUND($L$18,0),"")&"" ->  | M217: =IF($M$185=19,ROUND($M$18,0),"")&"" ->  | N217: =IF($N$185=19,ROUND($N$18,0),"")&"" ->  | O217: =IF($O$185=19,ROUND($O$18,0),"")&"" ->  | P217: =IF($P$185=19,ROUND($P$18,0),"")&"" ->  | Q217: =IF($Q$185=19,ROUND($Q$18,0),"")&"" ->  | R217: =IF($R$185=19,ROUND($R$18,0),"")&"" ->  | S217: =IF($S$185=19,ROUND($S$18,0),"")&"" ->  | T217: =IF($T$185=19,ROUND($T$18,0),"")&"" ->  | U217: =IF($U$185=19,ROUND($U$18,0),"")&"" ->  | V217: =IF($V$185=19,ROUND($V$18,0),"")&"" ->  | W217: =IF($W$185=19,ROUND($W$18,0),"")&"" ->  | X217: =IF($X$185=19,ROUND($X$18,0),"")&"" ->  | Y217: =IF($Y$185=19,ROUND($Y$18,0),"")&"" ->  | Z217: =IF($Z$185=19,ROUND($Z$18,0),"")&"" ->  | AA217: =IF($AA$185=19,ROUND($AA$18,0),"")&"" ->  | AB217: 10
C218: 11 | D218: =IF($D$186=19,ROUND($D$19,0),"")&"" ->  | E218: =IF($E$186=19,ROUND($E$19,0),"")&"" ->  | F218: =IF($F$186=19,ROUND($F$19,0),"")&"" ->  | G218: =IF($G$186=19,ROUND($G$19,0),"")&"" ->  | H218: =IF($H$186=19,ROUND($H$19,0),"")&"" ->  | I218: =IF($I$186=19,ROUND($I$19,0),"")&"" ->  | J218: =IF($J$186=19,ROUND($J$19,0),"")&"" ->  | K218: =IF($K$186=19,ROUND($K$19,0),"")&"" ->  | L218: =IF($L$186=19,ROUND($L$19,0),"")&"" ->  | M218: =IF($M$186=19,ROUND($M$19,0),"")&"" ->  | N218: =IF($N$186=19,ROUND($N$19,0),"")&"" ->  | O218: =IF($O$186=19,ROUND($O$19,0),"")&"" ->  | P218: =IF($P$186=19,ROUND($P$19,0),"")&"" ->  | Q218: =IF($Q$186=19,ROUND($Q$19,0),"")&"" ->  | R218: =IF($R$186=19,ROUND($R$19,0),"")&"" ->  | S218: =IF($S$186=19,ROUND($S$19,0),"")&"" ->  | T218: =IF($T$186=19,ROUND($T$19,0),"")&"" ->  | U218: =IF($U$186=19,ROUND($U$19,0),"")&"" ->  | V218: =IF($V$186=19,ROUND($V$19,0),"")&"" ->  | W218: =IF($W$186=19,ROUND($W$19,0),"")&"" ->  | X218: =IF($X$186=19,ROUND($X$19,0),"")&"" ->  | Y218: =IF($Y$186=19,ROUND($Y$19,0),"")&"" ->  | Z218: =IF($Z$186=19,ROUND($Z$19,0),"")&"" ->  | AA218: =IF($AA$186=19,ROUND($AA$19,0),"")&"" ->  | AB218: 11
C219: 12 | D219: =IF($D$187=19,ROUND($D$20,0),"")&"" ->  | E219: =IF($E$187=19,ROUND($E$20,0),"")&"" ->  | F219: =IF($F$187=19,ROUND($F$20,0),"")&"" ->  | G219: =IF($G$187=19,ROUND($G$20,0),"")&"" ->  | H219: =IF($H$187=19,ROUND($H$20,0),"")&"" ->  | I219: =IF($I$187=19,ROUND($I$20,0),"")&"" ->  | J219: =IF($J$187=19,ROUND($J$20,0),"")&"" ->  | K219: =IF($K$187=19,ROUND($K$20,0),"")&"" ->  | L219: =IF($L$187=19,ROUND($L$20,0),"")&"" ->  | M219: =IF($M$187=19,ROUND($M$20,0),"")&"" ->  | N219: =IF($N$187=19,ROUND($N$20,0),"")&"" ->  | O219: =IF($O$187=19,ROUND($O$20,0),"")&"" ->  | P219: =IF($P$187=19,ROUND($P$20,0),"")&"" ->  | Q219: =IF($Q$187=19,ROUND($Q$20,0),"")&"" ->  | R219: =IF($R$187=19,ROUND($R$20,0),"")&"" ->  | S219: =IF($S$187=19,ROUND($S$20,0),"")&"" ->  | T219: =IF($T$187=19,ROUND($T$20,0),"")&"" ->  | U219: =IF($U$187=19,ROUND($U$20,0),"")&"" ->  | V219: =IF($V$187=19,ROUND($V$20,0),"")&"" ->  | W219: =IF($W$187=19,ROUND($W$20,0),"")&"" ->  | X219: =IF($X$187=19,ROUND($X$20,0),"")&"" ->  | Y219: =IF($Y$187=19,ROUND($Y$20,0),"")&"" ->  | Z219: =IF($Z$187=19,ROUND($Z$20,0),"")&"" ->  | AA219: =IF($AA$187=19,ROUND($AA$20,0),"")&"" ->  | AB219: 12
... 359 more rows

Sheet 温暖地(γ個別入力)
C2: GHPの設置場所
C3: =IF(必ずこのシートから始めてください!$L$8="","",必ずこのシートから始めてください!$L$8) ->  | F3: 手順1：空調を行う月、時間を下記の指定の色で塗る(指定の色以外で塗ると計算できません。)
C4: =VLOOKUP($C$3,γ一覧表!$C$3:$E$50,2,FALSE) ->  | G4: 冷房 | H4: 青 | I4: 【左から5列目、一番薄い色(アクセント1,白＋基本色80％)】
G5: 暖房 | H5: オレンジ | I5: 【左から6番目、一番薄い色(アクセント2,白＋基本色80％)】
C6: 使用するγ値 | F6: 手順2：各月の運転日数を入力する
C7: =IF(必ずこのシートから始めてください!$L$22="","---",IF(必ずこのシートから始めてください!$L$22>1,"---",必ずこのシートから始めてください!$L$22)) -> --- | F7: 手順3：Ctrl + Alt + F9を同時に押す | R7: ●時刻別平均気温表記載の数値は、選択された都道府県の県庁所在地の月別、時刻別平均気温
F8: 手順4：黄色のセルに値を入力する(緑は自動計算) | R8: ●本データは気象庁発表の1992年4月1日から2022年3月31日までの30年の1時間データを整理したもの
C9: 時刻別平均気温[℃] | R9: ●2月はうるう日を含みます
D10: 時刻 | AB10: =SUM(AB12:AB23) -> 0 | AC10: =必ずこのシートから始めてください!$M$3 -> Ver.1.2
C11: 月 | D11: 0 | E11: 1 | F11: 2 | G11: 3 | H11: 4 | I11: 5 | J11: 6 | K11: 7 | L11: 8 | M11: 9 | N11: 10 | O11: 11 | P11: 12 | Q11: 13 | R11: 14 | S11: 15 | T11: 16 | U11: 17 | V11: 18 | W11: 19 | X11: 20 | Y11: 21 | Z11: 22 | AA11: 23 | AB11: 運転日数 | AC11: 月
C12: 4 | D12: =IFERROR(INDIRECT($C$4&"!B5"),"") ->  | E12: =IFERROR(INDIRECT($C$4&"!C5"),"") ->  | F12: =IFERROR(INDIRECT($C$4&"!D5"),"") ->  | G12: =IFERROR(INDIRECT($C$4&"!E5"),"") ->  | H12: =IFERROR(INDIRECT($C$4&"!F5"),"") ->  | I12: =IFERROR(INDIRECT($C$4&"!G5"),"") ->  | J12: =IFERROR(INDIRECT($C$4&"!H5"),"") ->  | K12: =IFERROR(INDIRECT($C$4&"!I5"),"") ->  | L12: =IFERROR(INDIRECT($C$4&"!J5"),"") ->  | M12: =IFERROR(INDIRECT($C$4&"!K5"),"") ->  | N12: =IFERROR(INDIRECT($C$4&"!L5"),"") ->  | O12: =IFERROR(INDIRECT($C$4&"!M5"),"") ->  | P12: =IFERROR(INDIRECT($C$4&"!N5"),"") ->  | Q12: =IFERROR(INDIRECT($C$4&"!O5"),"") ->  | R12: =IFERROR(INDIRECT($C$4&"!P5"),"") ->  | S12: =IFERROR(INDIRECT($C$4&"!Q5"),"") ->  | T12: =IFERROR(INDIRECT($C$4&"!R5"),"") ->  | U12: =IFERROR(INDIRECT($C$4&"!S5"),"") ->  | V12: =IFERROR(INDIRECT($C$4&"!T5"),"") ->  | W12: =IFERROR(INDIRECT($C$4&"!U5"),"") ->  | X12: =IFERROR(INDIRECT($C$4&"!V5"),"") ->  | Y12: =IFERROR(INDIRECT($C$4&"!W5"),"") ->  | Z12: =IFERROR(INDIRECT($C$4&"!X5"),"") ->  | AA12: =IFERROR(INDIRECT($C$4&"!Y5"),"") ->  | AC12: 4
C13: 5 | D13: =IFERROR(INDIRECT($C$4&"!B6"),"") ->  | E13: =IFERROR(INDIRECT($C$4&"!C6"),"") ->  | F13: =IFERROR(INDIRECT($C$4&"!D6"),"") ->  | G13: =IFERROR(INDIRECT($C$4&"!E6"),"") ->  | H13: =IFERROR(INDIRECT($C$4&"!F6"),"") ->  | I13: =IFERROR(INDIRECT($C$4&"!G6"),"") ->  | J13: =IFERROR(INDIRECT($C$4&"!H6"),"") ->  | K13: =IFERROR(INDIRECT($C$4&"!I6"),"") ->  | L13: =IFERROR(INDIRECT($C$4&"!J6"),"") ->  | M13: =IFERROR(INDIRECT($C$4&"!K6"),"") ->  | N13: =IFERROR(INDIRECT($C$4&"!L6"),"") ->  | O13: =IFERROR(INDIRECT($C$4&"!M6"),"") ->  | P13: =IFERROR(INDIRECT($C$4&"!N6"),"") ->  | Q13: =IFERROR(INDIRECT($C$4&"!O6"),"") ->  | R13: =IFERROR(INDIRECT($C$4&"!P6"),"") ->  | S13: =IFERROR(INDIRECT($C$4&"!Q6"),"") ->  | T13: =IFERROR(INDIRECT($C$4&"!R6"),"") ->  | U13: =IFERROR(INDIRECT($C$4&"!S6"),"") ->  | V13: =IFERROR(INDIRECT($C$4&"!T6"),"") ->  | W13: =IFERROR(INDIRECT($C$4&"!U6"),"") ->  | X13: =IFERROR(INDIRECT($C$4&"!V6"),"") ->  | Y13: =IFERROR(INDIRECT($C$4&"!W6"),"") ->  | Z13: =IFERROR(INDIRECT($C$4&"!X6"),"") ->  | AA13: =IFERROR(INDIRECT($C$4&"!Y6"),"") ->  | AC13: 5
C14: 6 | D14: =IFERROR(INDIRECT($C$4&"!B7"),"") ->  | E14: =IFERROR(INDIRECT($C$4&"!C7"),"") ->  | F14: =IFERROR(INDIRECT($C$4&"!D7"),"") ->  | G14: =IFERROR(INDIRECT($C$4&"!E7"),"") ->  | H14: =IFERROR(INDIRECT($C$4&"!F7"),"") ->  | I14: =IFERROR(INDIRECT($C$4&"!G7"),"") ->  | J14: =IFERROR(INDIRECT($C$4&"!H7"),"") ->  | K14: =IFERROR(INDIRECT($C$4&"!I7"),"") ->  | L14: =IFERROR(INDIRECT($C$4&"!J7"),"") ->  | M14: =IFERROR(INDIRECT($C$4&"!K7"),"") ->  | N14: =IFERROR(INDIRECT($C$4&"!L7"),"") ->  | O14: =IFERROR(INDIRECT($C$4&"!M7"),"") ->  | P14: =IFERROR(INDIRECT($C$4&"!N7"),"") ->  | Q14: =IFERROR(INDIRECT($C$4&"!O7"),"") ->  | R14: =IFERROR(INDIRECT($C$4&"!P7"),"") ->  | S14: =IFERROR(INDIRECT($C$4&"!Q7"),"") ->  | T14: =IFERROR(INDIRECT($C$4&"!R7"),"") ->  | U14: =IFERROR(INDIRECT($C$4&"!S7"),"") ->  | V14: =IFERROR(INDIRECT($C$4&"!T7"),"") ->  | W14: =IFERROR(INDIRECT($C$4&"!U7"),"") ->  | X14: =IFERROR(INDIRECT($C$4&"!V7"),"") ->  | Y14: =IFERROR(INDIRECT($C$4&"!W7"),"") ->  | Z14: =IFERROR(INDIRECT($C$4&"!X7"),"") ->  | AA14: =IFERROR(INDIRECT($C$4&"!Y7"),"") ->  | AC14: 6
C15: 7 | D15: =IFERROR(INDIRECT($C$4&"!B8"),"") ->  | E15: =IFERROR(INDIRECT($C$4&"!C8"),"") ->  | F15: =IFERROR(INDIRECT($C$4&"!D8"),"") ->  | G15: =IFERROR(INDIRECT($C$4&"!E8"),"") ->  | H15: =IFERROR(INDIRECT($C$4&"!F8"),"") ->  | I15: =IFERROR(INDIRECT($C$4&"!G8"),"") ->  | J15: =IFERROR(INDIRECT($C$4&"!H8"),"") ->  | K15: =IFERROR(INDIRECT($C$4&"!I8"),"") ->  | L15: =IFERROR(INDIRECT($C$4&"!J8"),"") ->  | M15: =IFERROR(INDIRECT($C$4&"!K8"),"") ->  | N15: =IFERROR(INDIRECT($C$4&"!L8"),"") ->  | O15: =IFERROR(INDIRECT($C$4&"!M8"),"") ->  | P15: =IFERROR(INDIRECT($C$4&"!N8"),"") ->  | Q15: =IFERROR(INDIRECT($C$4&"!O8"),"") ->  | R15: =IFERROR(INDIRECT($C$4&"!P8"),"") ->  | S15: =IFERROR(INDIRECT($C$4&"!Q8"),"") ->  | T15: =IFERROR(INDIRECT($C$4&"!R8"),"") ->  | U15: =IFERROR(INDIRECT($C$4&"!S8"),"") ->  | V15: =IFERROR(INDIRECT($C$4&"!T8"),"") ->  | W15: =IFERROR(INDIRECT($C$4&"!U8"),"") ->  | X15: =IFERROR(INDIRECT($C$4&"!V8"),"") ->  | Y15: =IFERROR(INDIRECT($C$4&"!W8"),"") ->  | Z15: =IFERROR(INDIRECT($C$4&"!X8"),"") ->  | AA15: =IFERROR(INDIRECT($C$4&"!Y8"),"") ->  | AC15: 7
C16: 8 | D16: =IFERROR(INDIRECT($C$4&"!B9"),"") ->  | E16: =IFERROR(INDIRECT($C$4&"!C9"),"") ->  | F16: =IFERROR(INDIRECT($C$4&"!D9"),"") ->  | G16: =IFERROR(INDIRECT($C$4&"!E9"),"") ->  | H16: =IFERROR(INDIRECT($C$4&"!F9"),"") ->  | I16: =IFERROR(INDIRECT($C$4&"!G9"),"") ->  | J16: =IFERROR(INDIRECT($C$4&"!H9"),"") ->  | K16: =IFERROR(INDIRECT($C$4&"!I9"),"") ->  | L16: =IFERROR(INDIRECT($C$4&"!J9"),"") ->  | M16: =IFERROR(INDIRECT($C$4&"!K9"),"") ->  | N16: =IFERROR(INDIRECT($C$4&"!L9"),"") ->  | O16: =IFERROR(INDIRECT($C$4&"!M9"),"") ->  | P16: =IFERROR(INDIRECT($C$4&"!N9"),"") ->  | Q16: =IFERROR(INDIRECT($C$4&"!O9"),"") ->  | R16: =IFERROR(INDIRECT($C$4&"!P9"),"") ->  | S16: =IFERROR(INDIRECT($C$4&"!Q9"),"") ->  | T16: =IFERROR(INDIRECT($C$4&"!R9"),"") ->  | U16: =IFERROR(INDIRECT($C$4&"!S9"),"") ->  | V16: =IFERROR(INDIRECT($C$4&"!T9"),"") ->  | W16: =IFERROR(INDIRECT($C$4&"!U9"),"") ->  | X16: =IFERROR(INDIRECT($C$4&"!V9"),"") ->  | Y16: =IFERROR(INDIRECT($C$4&"!W9"),"") ->  | Z16: =IFERROR(INDIRECT($C$4&"!X9"),"") ->  | AA16: =IFERROR(INDIRECT($C$4&"!Y9"),"") ->  | AC16: 8
C17: 9 | D17: =IFERROR(INDIRECT($C$4&"!B10"),"") ->  | E17: =IFERROR(INDIRECT($C$4&"!C10"),"") ->  | F17: =IFERROR(INDIRECT($C$4&"!D10"),"") ->  | G17: =IFERROR(INDIRECT($C$4&"!e10"),"") ->  | H17: =IFERROR(INDIRECT($C$4&"!F10"),"") ->  | I17: =IFERROR(INDIRECT($C$4&"!G10"),"") ->  | J17: =IFERROR(INDIRECT($C$4&"!H10"),"") ->  | K17: =IFERROR(INDIRECT($C$4&"!I10"),"") ->  | L17: =IFERROR(INDIRECT($C$4&"!J10"),"") ->  | M17: =IFERROR(INDIRECT($C$4&"!K10"),"") ->  | N17: =IFERROR(INDIRECT($C$4&"!L10"),"") ->  | O17: =IFERROR(INDIRECT($C$4&"!M10"),"") ->  | P17: =IFERROR(INDIRECT($C$4&"!N10"),"") ->  | Q17: =IFERROR(INDIRECT($C$4&"!O10"),"") ->  | R17: =IFERROR(INDIRECT($C$4&"!P10"),"") ->  | S17: =IFERROR(INDIRECT($C$4&"!Q10"),"") ->  | T17: =IFERROR(INDIRECT($C$4&"!R10"),"") ->  | U17: =IFERROR(INDIRECT($C$4&"!S10"),"") ->  | V17: =IFERROR(INDIRECT($C$4&"!T10"),"") ->  | W17: =IFERROR(INDIRECT($C$4&"!U10"),"") ->  | X17: =IFERROR(INDIRECT($C$4&"!V10"),"") ->  | Y17: =IFERROR(INDIRECT($C$4&"!W10"),"") ->  | Z17: =IFERROR(INDIRECT($C$4&"!X10"),"") ->  | AA17: =IFERROR(INDIRECT($C$4&"!Y10"),"") ->  | AC17: 9
C18: 10 | D18: =IFERROR(INDIRECT($C$4&"!B11"),"") ->  | E18: =IFERROR(INDIRECT($C$4&"!C11"),"") ->  | F18: =IFERROR(INDIRECT($C$4&"!D11"),"") ->  | G18: =IFERROR(INDIRECT($C$4&"!E11"),"") ->  | H18: =IFERROR(INDIRECT($C$4&"!F11"),"") ->  | I18: =IFERROR(INDIRECT($C$4&"!G11"),"") ->  | J18: =IFERROR(INDIRECT($C$4&"!H11"),"") ->  | K18: =IFERROR(INDIRECT($C$4&"!I11"),"") ->  | L18: =IFERROR(INDIRECT($C$4&"!J11"),"") ->  | M18: =IFERROR(INDIRECT($C$4&"!K11"),"") ->  | N18: =IFERROR(INDIRECT($C$4&"!L11"),"") ->  | O18: =IFERROR(INDIRECT($C$4&"!M11"),"") ->  | P18: =IFERROR(INDIRECT($C$4&"!N11"),"") ->  | Q18: =IFERROR(INDIRECT($C$4&"!O11"),"") ->  | R18: =IFERROR(INDIRECT($C$4&"!P11"),"") ->  | S18: =IFERROR(INDIRECT($C$4&"!Q11"),"") ->  | T18: =IFERROR(INDIRECT($C$4&"!R11"),"") ->  | U18: =IFERROR(INDIRECT($C$4&"!S11"),"") ->  | V18: =IFERROR(INDIRECT($C$4&"!T11"),"") ->  | W18: =IFERROR(INDIRECT($C$4&"!U11"),"") ->  | X18: =IFERROR(INDIRECT($C$4&"!V11"),"") ->  | Y18: =IFERROR(INDIRECT($C$4&"!W11"),"") ->  | Z18: =IFERROR(INDIRECT($C$4&"!X11"),"") ->  | AA18: =IFERROR(INDIRECT($C$4&"!Y11"),"") ->  | AC18: 10
C19: 11 | D19: =IFERROR(INDIRECT($C$4&"!B12"),"") ->  | E19: =IFERROR(INDIRECT($C$4&"!C12"),"") ->  | F19: =IFERROR(INDIRECT($C$4&"!D12"),"") ->  | G19: =IFERROR(INDIRECT($C$4&"!E12"),"") ->  | H19: =IFERROR(INDIRECT($C$4&"!F12"),"") ->  | I19: =IFERROR(INDIRECT($C$4&"!G12"),"") ->  | J19: =IFERROR(INDIRECT($C$4&"!H12"),"") ->  | K19: =IFERROR(INDIRECT($C$4&"!I12"),"") ->  | L19: =IFERROR(INDIRECT($C$4&"!J12"),"") ->  | M19: =IFERROR(INDIRECT($C$4&"!K12"),"") ->  | N19: =IFERROR(INDIRECT($C$4&"!L12"),"") ->  | O19: =IFERROR(INDIRECT($C$4&"!M12"),"") ->  | P19: =IFERROR(INDIRECT($C$4&"!N12"),"") ->  | Q19: =IFERROR(INDIRECT($C$4&"!O12"),"") ->  | R19: =IFERROR(INDIRECT($C$4&"!P12"),"") ->  | S19: =IFERROR(INDIRECT($C$4&"!Q12"),"") ->  | T19: =IFERROR(INDIRECT($C$4&"!R12"),"") ->  | U19: =IFERROR(INDIRECT($C$4&"!S12"),"") ->  | V19: =IFERROR(INDIRECT($C$4&"!T12"),"") ->  | W19: =IFERROR(INDIRECT($C$4&"!U12"),"") ->  | X19: =IFERROR(INDIRECT($C$4&"!V12"),"") ->  | Y19: =IFERROR(INDIRECT($C$4&"!W12"),"") ->  | Z19: =IFERROR(INDIRECT($C$4&"!X12"),"") ->  | AA19: =IFERROR(INDIRECT($C$4&"!Y12"),"") ->  | AC19: 11
C20: 12 | D20: =IFERROR(INDIRECT($C$4&"!B13"),"") ->  | E20: =IFERROR(INDIRECT($C$4&"!C13"),"") ->  | F20: =IFERROR(INDIRECT($C$4&"!D13"),"") ->  | G20: =IFERROR(INDIRECT($C$4&"!E13"),"") ->  | H20: =IFERROR(INDIRECT($C$4&"!F13"),"") ->  | I20: =IFERROR(INDIRECT($C$4&"!G13"),"") ->  | J20: =IFERROR(INDIRECT($C$4&"!H13"),"") ->  | K20: =IFERROR(INDIRECT($C$4&"!I13"),"") ->  | L20: =IFERROR(INDIRECT($C$4&"!J13"),"") ->  | M20: =IFERROR(INDIRECT($C$4&"!K13"),"") ->  | N20: =IFERROR(INDIRECT($C$4&"!L13"),"") ->  | O20: =IFERROR(INDIRECT($C$4&"!M13"),"") ->  | P20: =IFERROR(INDIRECT($C$4&"!N13"),"") ->  | Q20: =IFERROR(INDIRECT($C$4&"!O13"),"") ->  | R20: =IFERROR(INDIRECT($C$4&"!P13"),"") ->  | S20: =IFERROR(INDIRECT($C$4&"!Q13"),"") ->  | T20: =IFERROR(INDIRECT($C$4&"!R13"),"") ->  | U20: =IFERROR(INDIRECT($C$4&"!S13"),"") ->  | V20: =IFERROR(INDIRECT($C$4&"!T13"),"") ->  | W20: =IFERROR(INDIRECT($C$4&"!U13"),"") ->  | X20: =IFERROR(INDIRECT($C$4&"!V13"),"") ->  | Y20: =IFERROR(INDIRECT($C$4&"!W13"),"") ->  | Z20: =IFERROR(INDIRECT($C$4&"!X13"),"") ->  | AA20: =IFERROR(INDIRECT($C$4&"!Y13"),"") ->  | AC20: 12
C21: 1 | D21: =IFERROR(INDIRECT($C$4&"!B14"),"") ->  | E21: =IFERROR(INDIRECT($C$4&"!C14"),"") ->  | F21: =IFERROR(INDIRECT($C$4&"!D14"),"") ->  | G21: =IFERROR(INDIRECT($C$4&"!E14"),"") ->  | H21: =IFERROR(INDIRECT($C$4&"!F14"),"") ->  | I21: =IFERROR(INDIRECT($C$4&"!G14"),"") ->  | J21: =IFERROR(INDIRECT($C$4&"!H14"),"") ->  | K21: =IFERROR(INDIRECT($C$4&"!I14"),"") ->  | L21: =IFERROR(INDIRECT($C$4&"!J14"),"") ->  | M21: =IFERROR(INDIRECT($C$4&"!K14"),"") ->  | N21: =IFERROR(INDIRECT($C$4&"!L14"),"") ->  | O21: =IFERROR(INDIRECT($C$4&"!M14"),"") ->  | P21: =IFERROR(INDIRECT($C$4&"!N14"),"") ->  | Q21: =IFERROR(INDIRECT($C$4&"!O14"),"") ->  | R21: =IFERROR(INDIRECT($C$4&"!P14"),"") ->  | S21: =IFERROR(INDIRECT($C$4&"!Q14"),"") ->  | T21: =IFERROR(INDIRECT($C$4&"!R14"),"") ->  | U21: =IFERROR(INDIRECT($C$4&"!S14"),"") ->  | V21: =IFERROR(INDIRECT($C$4&"!T14"),"") ->  | W21: =IFERROR(INDIRECT($C$4&"!U14"),"") ->  | X21: =IFERROR(INDIRECT($C$4&"!V14"),"") ->  | Y21: =IFERROR(INDIRECT($C$4&"!W14"),"") ->  | Z21: =IFERROR(INDIRECT($C$4&"!X14"),"") ->  | AA21: =IFERROR(INDIRECT($C$4&"!Y14"),"") ->  | AC21: 1
C22: 2 | D22: =IFERROR(INDIRECT($C$4&"!B15"),"") ->  | E22: =IFERROR(INDIRECT($C$4&"!C15"),"") ->  | F22: =IFERROR(INDIRECT($C$4&"!D15"),"") ->  | G22: =IFERROR(INDIRECT($C$4&"!E15"),"") ->  | H22: =IFERROR(INDIRECT($C$4&"!F15"),"") ->  | I22: =IFERROR(INDIRECT($C$4&"!G15"),"") ->  | J22: =IFERROR(INDIRECT($C$4&"!H15"),"") ->  | K22: =IFERROR(INDIRECT($C$4&"!I15"),"") ->  | L22: =IFERROR(INDIRECT($C$4&"!J15"),"") ->  | M22: =IFERROR(INDIRECT($C$4&"!K15"),"") ->  | N22: =IFERROR(INDIRECT($C$4&"!L15"),"") ->  | O22: =IFERROR(INDIRECT($C$4&"!M15"),"") ->  | P22: =IFERROR(INDIRECT($C$4&"!N15"),"") ->  | Q22: =IFERROR(INDIRECT($C$4&"!O15"),"") ->  | R22: =IFERROR(INDIRECT($C$4&"!P15"),"") ->  | S22: =IFERROR(INDIRECT($C$4&"!Q15"),"") ->  | T22: =IFERROR(INDIRECT($C$4&"!R15"),"") ->  | U22: =IFERROR(INDIRECT($C$4&"!S15"),"") ->  | V22: =IFERROR(INDIRECT($C$4&"!T15"),"") ->  | W22: =IFERROR(INDIRECT($C$4&"!U15"),"") ->  | X22: =IFERROR(INDIRECT($C$4&"!V15"),"") ->  | Y22: =IFERROR(INDIRECT($C$4&"!W15"),"") ->  | Z22: =IFERROR(INDIRECT($C$4&"!X15"),"") ->  | AA22: =IFERROR(INDIRECT($C$4&"!Y15"),"") ->  | AC22: 2
C23: 3 | D23: =IFERROR(INDIRECT($C$4&"!B16"),"") ->  | E23: =IFERROR(INDIRECT($C$4&"!C16"),"") ->  | F23: =IFERROR(INDIRECT($C$4&"!D16"),"") ->  | G23: =IFERROR(INDIRECT($C$4&"!E16"),"") ->  | H23: =IFERROR(INDIRECT($C$4&"!F16"),"") ->  | I23: =IFERROR(INDIRECT($C$4&"!G16"),"") ->  | J23: =IFERROR(INDIRECT($C$4&"!H16"),"") ->  | K23: =IFERROR(INDIRECT($C$4&"!I16"),"") ->  | L23: =IFERROR(INDIRECT($C$4&"!J16"),"") ->  | M23: =IFERROR(INDIRECT($C$4&"!K16"),"") ->  | N23: =IFERROR(INDIRECT($C$4&"!L16"),"") ->  | O23: =IFERROR(INDIRECT($C$4&"!M16"),"") ->  | P23: =IFERROR(INDIRECT($C$4&"!N16"),"") ->  | Q23: =IFERROR(INDIRECT($C$4&"!O16"),"") ->  | R23: =IFERROR(INDIRECT($C$4&"!P16"),"") ->  | S23: =IFERROR(INDIRECT($C$4&"!Q16"),"") ->  | T23: =IFERROR(INDIRECT($C$4&"!R16"),"") ->  | U23: =IFERROR(INDIRECT($C$4&"!S16"),"") ->  | V23: =IFERROR(INDIRECT($C$4&"!T16"),"") ->  | W23: =IFERROR(INDIRECT($C$4&"!U16"),"") ->  | X23: =IFERROR(INDIRECT($C$4&"!V16"),"") ->  | Y23: =IFERROR(INDIRECT($C$4&"!W16"),"") ->  | Z23: =IFERROR(INDIRECT($C$4&"!X16"),"") ->  | AA23: =IFERROR(INDIRECT($C$4&"!Y16"),"") ->  | AC23: 3
D25: 共通 | E25: 冷房負荷ゼロ点 | G25: 冷房が不要になると思われる外気温度を入力 | L25: Tco | M25: 18 | N25: ℃
E26: 暖房負荷ゼロ点 | G26: 暖房が不要になると思われる外気温度を入力 | L26: Two | M26: 12 | N26: ℃
D28: 設備導入前 | Q28: 前1 | R28: 前2 | S28: 前3 | T28: 前4 | U28: 前5 | V28: 前6 | W28: 前7 | X28: 前8 | Y28: 前9 | Z28: 前10
E29: 定格冷房能力 | G29: GHPの仕様を入力 | P29: Φco | Q29: 22.4 | AA29: kW
E30: 定格冷房ガス消費量 | G30: GHPの仕様を入力 | P30: Pco | Q30: 19.1 | AA30: kW
E31: 冷房消費電力 | G31: GHPの仕様を入力 | P31: Ac | Q31: 0.38 | AA31: kW
E32: 定格冷房COP | G32: 自動計算 | H32: (ep= | I32: 2.4 | J32: ) | P32: σco | Q32: =IFERROR(Q$29/(Q$30+Q$31*$I$32),"") -> 1.119328403 | R32: =IFERROR(R$29/(R$30+R$31*$I$32),"") ->  | AA32: σco＝Φco／(Pco+Ac×ep)
E33: 定格暖房能力 | G33: GHPの仕様を入力 | P33: Φwo | Q33: 25 | AA33: kW
E34: 定格暖房ガス消費量 | G34: GHPの仕様を入力 | P34: Pwo | Q34: 18.7 | AA34: kW
E35: 暖房消費電力 | G35: GHPの仕様を入力 | P35: Aw | Q35: 0.47 | AA35: kW
E36: 定格暖房COP | G36: 自動計算 | P36: σwo | Q36: =IFERROR(Q$33/(Q$34+Q$35*$I$32),"") -> 1.260843252 | R36: =IFERROR(R$33/(R$34+R$35*$I$32),"") ->  | AA36: σwo＝Φwo／(Pwo+Aw×ep)
E37: 最大冷房負荷 | G37: 設計時の値を入力（不明の際は空白のまま） | P37: Qc | AA37: kW
E38: 台数 | G38: 同じ容量の空調機の台数を入力 | AA38: 台
Q39: =IF(Q$37="",0.8,IF(Q$37=0,0.8,IF(Q$29<Q$37,1,Q$37/Q$29))) -> 0.8 | R39: =IF(R$37="",0.8,IF(R$37=0,0.8,IF(R$29<R$37,1,R$37/R$29))) -> 0.8 | S39: 0.8 | T39: 0.8 | U39: 0.8 | V39: 0.8 | W39: 0.8 | X39: 0.8 | Y39: 0.8 | Z39: 0.8
D42: 設備導入後 | Q42: 後1 | R42: 後2 | S42: 後3 | T42: 後4 | U42: 後5 | V42: 後6 | W42: 後7 | X42: 後8 | Y42: 後9 | Z42: 後10
E43: 定格冷房能力 | G43: GHPの仕様を入力 | P43: Φco | AA43: kW
E44: 定格冷房ガス消費量 | G44: GHPの仕様を入力 | P44: Pco | AA44: kW
E45: 冷房消費電力 | G45: GHPの仕様を入力 | P45: Ac | AA45: kW
E46: 定格冷房COP | G46: 自動計算 | H46: (ep= | I46: 2.4 | J46: ) | P46: σco | Q46: =IFERROR(Q$43/(Q$44+Q$45*$I$46),"") ->  | R46: =IFERROR(R$43/(R$44+R$45*$I$46),"") ->  | AA46: σco＝Φco／(Pco+Ac×ep)
E47: 定格暖房能力 | G47: GHPの仕様を入力 | P47: Φwo | AA47: kW
E48: 定格暖房ガス消費量 | G48: GHPの仕様を入力 | P48: Pwo | AA48: kW
E49: 暖房消費電力 | G49: GHPの仕様を入力 | P49: Aw | AA49: kW
E50: 定格暖房COP | G50: 自動計算 | P50: σwo | Q50: =IFERROR(Q$47/(Q$48+Q$49*$I$46),"") ->  | R50: =IFERROR(R$47/(R$48+R$49*$I$46),"") ->  | AA50: σwo＝Φwo／(Pwo+Aw×ep)
E51: 最大冷房負荷 | G51: 設計時の値を入力（不明の際は空白のまま） | P51: Qc | AA51: kW
E52: 台数 | G52: 同じ容量の空調機の台数を入力 | AA52: 台
Q53: =IF(Q$51="",0.8,IF(Q$51=0,0.8,IF(Q$43<Q$51,1,Q$51/Q$43))) -> 0.8 | R53: =IF(R$51="",0.8,IF(R$51=0,0.8,IF(R$43<R$51,1,R$51/R$43))) -> 0.8 | S53: 0.8 | T53: 0.8 | U53: 0.8 | V53: 0.8 | W53: 0.8 | X53: 0.8 | Y53: 0.8 | Z53: 0.8
C54: 設備導入前ガス使用量［MJ]
D55: 冷房(Gc) | F55: 暖房(Gw) | H55: 合計(G)
D56: =IFERROR(D72*F58+G72*I58+J72*L58+M72*O58+P72*R58+S72*U58+V72*X58+Y72*AA58+AB72*AD58+AE72*AG58,"") -> 0 | F56: =IFERROR(E72*F58+H72*I58+K72*L58+N72*O58+Q72*R58+T72*U58+W72*X58+Z72*AA58+AC72*AD58+AF72*AG58,"") -> 0 | H56: =IFERROR(SUM(D56:G56),"") -> 0
D58: 前1 | F58: =IF($Q$38="",1,$Q$38) -> 1 | G58: 前2 | I58: =IF($R$38="",1,$R$38) -> 1 | J58: 前3 | L58: =IF($S$38="",1,$S$38) -> 1 | M58: 前4 | O58: =IF($T$38="",1,$T$38) -> 1 | P58: 前5 | R58: =IF($U$38="",1,$U$38) -> 1 | S58: 前6 | U58: =IF($V$38="",1,$V$38) -> 1 | V58: 前7 | X58: =IF($W$38="",1,$W$38) -> 1 | Y58: 前8 | AA58: =IF($X$38="",1,$X$38) -> 1 | AB58: 前9 | AD58: =IF($Y$38="",1,$Y$38) -> 1 | AE58: 前10 | AG58: =IF($Z$38="",1,$Z$38) -> 1
C59: 月 期間 | D59: 冷房 | E59: 暖房 | F59: 月合計 | G59: 冷房 | H59: 暖房 | I59: 月合計 | J59: 冷房 | K59: 暖房 | L59: 月合計 | M59: 冷房 | N59: 暖房 | O59: 月合計 | P59: 冷房 | Q59: 暖房 | R59: 月合計 | S59: 冷房 | T59: 暖房 | U59: 月合計 | V59: 冷房 | W59: 暖房 | X59: 月合計 | Y59: 冷房 | Z59: 暖房 | AA59: 月合計 | AB59: 冷房 | AC59: 暖房 | AD59: 月合計 | AE59: 冷房 | AF59: 暖房 | AG59: 月合計 | AH59: 期間 月
C60: 4 | D60: =IF($C$7="---","",IFERROR(3.6*(D100-D80*$I$32),"")) ->  | E60: =IF($C$7="---","",IFERROR(3.6*(E100-E80*$I$32),"")) ->  | F60: =IFERROR(D$60+E$60,"") ->  | G60: =IF($C$7="---","",IFERROR(3.6*(G100-G80*$I$32),"")) ->  | H60: =IF($C$7="---","",IFERROR(3.6*(H100-H80*$I$32),"")) ->  | I60: =IFERROR(G$60+H$60,"") ->  | J60: =IF($C$7="---","",IFERROR(3.6*(J100-J80*$I$32),"")) ->  | K60: =IF($C$7="---","",IFERROR(3.6*(K100-K80*$I$32),"")) ->  | L60: =IFERROR(J$60+K$60,"") ->  | M60: =IF($C$7="---","",IFERROR(3.6*(M100-M80*$I$32),"")) ->  | N60: =IF($C$7="---","",IFERROR(3.6*(N100-N80*$I$32),"")) ->  | O60: =IFERROR(M$60+N$60,"") ->  | P60: =IF($C$7="---","",IFERROR(3.6*(P100-P80*$I$32),"")) ->  | Q60: =IF($C$7="---","",IFERROR(3.6*(Q100-Q80*$I$32),"")) ->  | R60: =IFERROR(P$60+Q$60,"") ->  | S60: =IF($C$7="---","",IFERROR(3.6*(S100-S80*$I$32),"")) ->  | T60: =IF($C$7="---","",IFERROR(3.6*(T100-T80*$I$32),"")) ->  | U60: =IFERROR(S$60+T$60,"") ->  | V60: =IF($C$7="---","",IFERROR(3.6*(V100-V80*$I$32),"")) ->  | W60: =IF($C$7="---","",IFERROR(3.6*(W100-W80*$I$32),"")) ->  | X60: =IFERROR(V$60+W$60,"") ->  | Y60: =IF($C$7="---","",IFERROR(3.6*(Y100-Y80*$I$32),"")) ->  | Z60: =IF($C$7="---","",IFERROR(3.6*(Z100-Z80*$I$32),"")) ->  | AA60: =IFERROR(Y$60+Z$60,"") ->  | AB60: =IF($C$7="---","",IFERROR(3.6*(AB100-AB80*$I$32),"")) ->  | AC60: =IF($C$7="---","",IFERROR(3.6*(AC100-AC80*$I$32),"")) ->  | AD60: =IFERROR(AB$60+AC$60,"") ->  | AE60: =IF($C$7="---","",IFERROR(3.6*(AE100-AE80*$I$32),"")) ->  | AF60: =IF($C$7="---","",IFERROR(3.6*(AF100-AF80*$I$32),"")) ->  | AG60: =IFERROR(AE$60+AF$60,"") ->  | AH60: 4
C61: 5 | D61: =IF($C$7="---","",IFERROR(3.6*(D101-D81*$I$32),"")) ->  | F61: =IFERROR(D$61+E$61,"") ->  | G61: =IF($C$7="---","",IFERROR(3.6*(G101-G81*$I$32),"")) ->  | I61: =IFERROR(G$61+H$61,"") ->  | J61: =IF($C$7="---","",IFERROR(3.6*(J101-J81*$I$32),"")) ->  | L61: =IFERROR(J$61+K$61,"") ->  | M61: =IF($C$7="---","",IFERROR(3.6*(M101-M81*$I$32),"")) ->  | O61: =IFERROR(M$61+N$61,"") ->  | P61: =IF($C$7="---","",IFERROR(3.6*(P101-P81*$I$32),"")) ->  | R61: =IFERROR(P$61+Q$61,"") ->  | S61: =IF($C$7="---","",IFERROR(3.6*(S101-S81*$I$32),"")) ->  | U61: =IFERROR(S$61+T$61,"") ->  | V61: =IF($C$7="---","",IFERROR(3.6*(V101-V81*$I$32),"")) ->  | X61: =IFERROR(V$61+W$61,"") ->  | Y61: =IF($C$7="---","",IFERROR(3.6*(Y101-Y81*$I$32),"")) ->  | AA61: =IFERROR(Y$61+Z$61,"") ->  | AB61: =IF($C$7="---","",IFERROR(3.6*(AB101-AB81*$I$32),"")) ->  | AD61: =IFERROR(AB$61+AC$61,"") ->  | AE61: =IF($C$7="---","",IFERROR(3.6*(AE101-AE81*$I$32),"")) ->  | AG61: =IFERROR(AE$61+AF$61,"") ->  | AH61: 5
C62: 6 | F62: =IFERROR(D$62+E$62,"") ->  | I62: =IFERROR(G$62+H$62,"") ->  | L62: =IFERROR(J$62+K$62,"") ->  | O62: =IFERROR(M$62+N$62,"") ->  | R62: =IFERROR(P$62+Q$62,"") ->  | S62: =IF($C$7="---","",IFERROR(3.6*(S102-S82*$I$32),"")) ->  | U62: =IFERROR(S$62+T$62,"") ->  | X62: =IFERROR(V$62+W$62,"") ->  | AA62: =IFERROR(Y$62+Z$62,"") ->  | AB62: =IF($C$7="---","",IFERROR(3.6*(AB102-AB82*$I$32),"")) ->  | AD62: =IFERROR(AB$62+AC$62,"") ->  | AG62: =IFERROR(AE$62+AF$62,"") ->  | AH62: 6
C63: 7 | F63: =IFERROR(D$63+E$63,"") ->  | I63: =IFERROR(G$63+H$63,"") ->  | L63: =IFERROR(J$63+K$63,"") ->  | O63: =IFERROR(M$63+N$63,"") ->  | R63: =IFERROR(P$63+Q$63,"") ->  | S63: =IF($C$7="---","",IFERROR(3.6*(S103-S83*$I$32),"")) ->  | U63: =IFERROR(S$63+T$63,"") ->  | X63: =IFERROR(V$63+W$63,"") ->  | AA63: =IFERROR(Y$63+Z$63,"") ->  | AB63: =IF($C$7="---","",IFERROR(3.6*(AB103-AB83*$I$32),"")) ->  | AD63: =IFERROR(AB$63+AC$63,"") ->  | AG63: =IFERROR(AE$63+AF$63,"") ->  | AH63: 7
C64: 8 | F64: =IFERROR(D$64+E$64,"") ->  | I64: =IFERROR(G$64+H$64,"") ->  | L64: =IFERROR(J$64+K$64,"") ->  | M64: =IF($C$7="---","",IFERROR(3.6*(M104-M84*$I$32),"")) ->  | O64: =IFERROR(M$64+N$64,"") ->  | R64: =IFERROR(P$64+Q$64,"") ->  | U64: =IFERROR(S$64+T$64,"") ->  | X64: =IFERROR(V$64+W$64,"") ->  | AA64: =IFERROR(Y$64+Z$64,"") ->  | AD64: =IFERROR(AB$64+AC$64,"") ->  | AG64: =IFERROR(AE$64+AF$64,"") ->  | AH64: 8
C65: 9 | F65: =IFERROR(D$65+E$65,"") ->  | I65: =IFERROR(G$65+H$65,"") ->  | L65: =IFERROR(J$65+K$65,"") ->  | M65: =IF($C$7="---","",IFERROR(3.6*(M105-M85*$I$32),"")) ->  | O65: =IFERROR(M$65+N$65,"") ->  | R65: =IFERROR(P$65+Q$65,"") ->  | U65: =IFERROR(S$65+T$65,"") ->  | X65: =IFERROR(V$65+W$65,"") ->  | AA65: =IFERROR(Y$65+Z$65,"") ->  | AD65: =IFERROR(AB$65+AC$65,"") ->  | AG65: =IFERROR(AE$65+AF$65,"") ->  | AH65: 9
C66: 10 | F66: =IFERROR(D$66+E$66,"") ->  | I66: =IFERROR(G$66+H$66,"") ->  | L66: =IFERROR(J$66+K$66,"") ->  | O66: =IFERROR(M$66+N$66,"") ->  | R66: =IFERROR(P$66+Q$66,"") ->  | U66: =IFERROR(S$66+T$66,"") ->  | X66: =IFERROR(V$66+W$66,"") ->  | AA66: =IFERROR(Y$66+Z$66,"") ->  | AD66: =IFERROR(AB$66+AC$66,"") ->  | AG66: =IFERROR(AE$66+AF$66,"") ->  | AH66: 10
C67: 11 | F67: =IFERROR(D$67+E$67,"") ->  | I67: =IFERROR(G$67+H$67,"") ->  | L67: =IFERROR(J$67+K$67,"") ->  | O67: =IFERROR(M$67+N$67,"") ->  | R67: =IFERROR(P$67+Q$67,"") ->  | U67: =IFERROR(S$67+T$67,"") ->  | X67: =IFERROR(V$67+W$67,"") ->  | AA67: =IFERROR(Y$67+Z$67,"") ->  | AD67: =IFERROR(AB$67+AC$67,"") ->  | AG67: =IFERROR(AE$67+AF$67,"") ->  | AH67: 11
C68: 12 | F68: =IFERROR(D$68+E$68,"") ->  | I68: =IFERROR(G$68+H$68,"") ->  | L68: =IFERROR(J$68+K$68,"") ->  | O68: =IFERROR(M$68+N$68,"") ->  | R68: =IFERROR(P$68+Q$68,"") ->  | U68: =IFERROR(S$68+T$68,"") ->  | X68: =IFERROR(V$68+W$68,"") ->  | AA68: =IFERROR(Y$68+Z$68,"") ->  | AD68: =IFERROR(AB$68+AC$68,"") ->  | AG68: =IFERROR(AE$68+AF$68,"") ->  | AH68: 12
C69: 1 | F69: =IFERROR(D$69+E$69,"") ->  | I69: =IFERROR(G$69+H$69,"") ->  | L69: =IFERROR(J$69+K$69,"") ->  | O69: =IFERROR(M$69+N$69,"") ->  | R69: =IFERROR(P$69+Q$69,"") ->  | U69: =IFERROR(S$69+T$69,"") ->  | X69: =IFERROR(V$69+W$69,"") ->  | AA69: =IFERROR(Y$69+Z$69,"") ->  | AD69: =IFERROR(AB$69+AC$69,"") ->  | AG69: =IFERROR(AE$69+AF$69,"") ->  | AH69: 1
C70: 2 | F70: =IFERROR(D$70+E$70,"") ->  | I70: =IFERROR(G$70+H$70,"") ->  | L70: =IFERROR(J$70+K$70,"") ->  | O70: =IFERROR(M$70+N$70,"") ->  | R70: =IFERROR(P$70+Q$70,"") ->  | U70: =IFERROR(S$70+T$70,"") ->  | X70: =IFERROR(V$70+W$70,"") ->  | AA70: =IFERROR(Y$70+Z$70,"") ->  | AD70: =IFERROR(AB$70+AC$70,"") ->  | AG70: =IFERROR(AE$70+AF$70,"") ->  | AH70: 2
C71: 3 | F71: =IFERROR(D$71+E$71,"") ->  | I71: =IFERROR(G$71+H$71,"") ->  | L71: =IFERROR(J$71+K$71,"") ->  | O71: =IFERROR(M$71+N$71,"") ->  | R71: =IFERROR(P$71+Q$71,"") ->  | U71: =IFERROR(S$71+T$71,"") ->  | X71: =IFERROR(V$71+W$71,"") ->  | AA71: =IFERROR(Y$71+Z$71,"") ->  | AD71: =IFERROR(AB$71+AC$71,"") ->  | AG71: =IFERROR(AE$71+AF$71,"") ->  | AH71: 3
C72: 合計 | D72: =IFERROR(SUM($D$60:$D$71),"") -> 0 | E72: =IFERROR(SUM($E$60:$E$71),"") -> 0 | F72: =IFERROR(SUM(F$60:F$71),"") -> 0 | G72: =IFERROR(SUM($G$60:$G$71),"") -> 0 | H72: =IFERROR(SUM($H$60:$H$71),"") -> 0 | I72: =IFERROR(SUM(I$60:I$71),"") -> 0 | J72: =IFERROR(SUM($J$60:$J$71),"") -> 0 | K72: =IFERROR(SUM($K$60:$K$71),"") -> 0 | L72: =IFERROR(SUM(L$60:L$71),"") -> 0 | M72: =IFERROR(SUM($M$60:$M$71),"") -> 0 | N72: =IFERROR(SUM($N$60:$N$71),"") -> 0 | O72: =IFERROR(SUM(O$60:O$71),"") -> 0 | P72: =IFERROR(SUM($P$60:$P$71),"") -> 0 | Q72: =IFERROR(SUM($Q$60:$Q$71),"") -> 0 | R72: =IFERROR(SUM(R$60:R$71),"") -> 0 | S72: =IFERROR(SUM($S$60:$S$71),"") -> 0 | T72: =IFERROR(SUM($T$60:$T$71),"") -> 0 | U72: =IFERROR(SUM(U$60:U$71),"") -> 0 | V72: =IFERROR(SUM($V$60:$V$71),"") -> 0 | W72: =IFERROR(SUM($W$60:$W$71),"") -> 0 | X72: =IFERROR(SUM(X$60:X$71),"") -> 0 | Y72: =IFERROR(SUM($Y$60:$Y$71),"") -> 0 | Z72: =IFERROR(SUM($Z$60:$Z$71),"") -> 0 | AA72: =IFERROR(SUM(AA$60:AA$71),"") -> 0 | AB72: =IFERROR(SUM($AB$60:$AB$71),"") -> 0 | AC72: =IFERROR(SUM($AC$60:$AC$71),"") -> 0 | AD72: =IFERROR(SUM(AD$60:AD$71),"") -> 0 | AE72: =IFERROR(SUM($AE$60:$AE$71),"") -> 0 | AF72: =IFERROR(SUM($AF$60:$AF$71),"") -> 0 | AG72: =IFERROR(SUM(AG$60:AG$71),"") -> 0 | AH72: 合計
C74: 設備導入前電力使用量[kWh]
D75: 冷房(Auxc) | F75: 暖房(Auxw) | H75: 合計(Aux)
D76: =IFERROR(D92*F78+G92*I78+J92*L78+M92*O78+P92*R78+S92*U78+V92*X78+Y92*AA78+AB92*AD78+AE92*AG78,"") -> 0 | F76: =IFERROR(E92*F78+H92*I78+K92*L78+N92*O78+Q92*R78+T92*U78+W92*X78+Z92*AA78+AC92*AD78+AF92*AG78,"") -> 0 | H76: =IFERROR(SUM(D76:G76),"") -> 0
D78: 前1 | F78: =IF($Q$38="",1,$Q$38) -> 1 | G78: 前2 | I78: =IF($R$38="",1,$R$38) -> 1 | J78: 前3 | L78: =IF($S$38="",1,$S$38) -> 1 | M78: 前4 | O78: =IF($T$38="",1,$T$38) -> 1 | P78: 前5 | R78: =IF($U$38="",1,$U$38) -> 1 | S78: 前6 | U78: =IF($V$38="",1,$V$38) -> 1 | V78: 前7 | X78: =IF($W$38="",1,$W$38) -> 1 | Y78: 前8 | AA78: =IF($X$38="",1,$X$38) -> 1 | AB78: 前9 | AD78: =IF($Y$38="",1,$Y$38) -> 1 | AE78: 前10 | AG78: =IF($Z$38="",1,$Z$38) -> 1
C79: 月 期間 | D79: 冷房 | E79: 暖房 | F79: 月合計 | G79: 冷房 | H79: 暖房 | I79: 月合計 | J79: 冷房 | K79: 暖房 | L79: 月合計 | M79: 冷房 | N79: 暖房 | O79: 月合計 | P79: 冷房 | Q79: 暖房 | R79: 月合計 | S79: 冷房 | T79: 暖房 | U79: 月合計 | V79: 冷房 | W79: 暖房 | X79: 月合計 | Y79: 冷房 | Z79: 暖房 | AA79: 月合計 | AB79: 冷房 | AC79: 暖房 | AD79: 月合計 | AE79: 冷房 | AF79: 暖房 | AG79: 月合計 | AH79: 期間 月
C80: 4 | D80: =IF($C$7="---","",IFERROR(D100*($Q$31*$I$32)/($Q$30+$Q$31*$I$32)/$I$32,"")) ->  | E80: =IF($C$7="---","",IFERROR(E100*($Q$35*$I$32)/($Q$34+$Q$35*$I$32)/$I$32,"")) ->  | F80: =IFERROR(D$80+E$80,"") ->  | G80: =IF($C$7="---","",IFERROR(G100*($R$31*$I$32)/($R$30+$R$31*$I$32)/$I$32,"")) ->  | H80: =IF($C$7="---","",IFERROR(H100*($R$35*$I$32)/($R$34+$R$35*$I$32)/$I$32,"")) ->  | I80: =IFERROR(G$80+H$80,"") ->  | J80: =IF($C$7="---","",IFERROR(J100*($S$31*$I$32)/($S$30+$S$31*$I$32)/$I$32,"")) ->  | K80: =IF($C$7="---","",IFERROR(K100*($S$35*$I$32)/($S$34+$S$35*$I$32)/$I$32,"")) ->  | L80: =IFERROR(J$80+K$80,"") ->  | M80: =IF($C$7="---","",IFERROR(M100*($T$31*$I$32)/($T$30+$T$31*$I$32)/$I$32,"")) ->  | N80: =IF($C$7="---","",IFERROR(N100*($T$35*$I$32)/($T$34+$T$35*$I$32)/$I$32,"")) ->  | O80: =IFERROR(M$80+N$80,"") ->  | P80: =IF($C$7="---","",IFERROR(P100*($U$31*$I$32)/($U$30+$U$31*$I$32)/$I$32,"")) ->  | Q80: =IF($C$7="---","",IFERROR(Q100*($U$35*$I$32)/($U$34+$U$35*$I$32)/$I$32,"")) ->  | R80: =IFERROR(P$80+Q$80,"") ->  | S80: =IF($C$7="---","",IFERROR(S100*($V$31*$I$32)/($V$30+$V$31*$I$32)/$I$32,"")) ->  | T80: =IF($C$7="---","",IFERROR(T100*($V$35*$I$32)/($V$34+$V$35*$I$32)/$I$32,"")) ->  | U80: =IFERROR(S$80+T$80,"") ->  | V80: =IF($C$7="---","",IFERROR(V100*($W$31*$I$32)/($W$30+$W$31*$I$32)/$I$32,"")) ->  | W80: =IF($C$7="---","",IFERROR(W100*($W$35*$I$32)/($W$34+$W$35*$I$32)/$I$32,"")) ->  | X80: =IFERROR(V$80+W$80,"") ->  | Y80: =IF($C$7="---","",IFERROR(Y100*($X$31*$I$32)/($X$30+$X$31*$I$32)/$I$32,"")) ->  | Z80: =IF($C$7="---","",IFERROR(Z100*($X$35*$I$32)/($X$34+$X$35*$I$32)/$I$32,"")) ->  | AA80: =IFERROR(Y$80+Z$80,"") ->  | AB80: =IF($C$7="---","",IFERROR(AB100*($Y$31*$I$32)/($Y$30+$Y$31*$I$32)/$I$32,"")) ->  | AC80: =IF($C$7="---","",IFERROR(AC100*($Y$35*$I$32)/($Y$34+$Y$35*$I$32)/$I$32,"")) ->  | AD80: =IFERROR(AB$80+AC$80,"") ->  | AE80: =IF($C$7="---","",IFERROR(AE100*($Z$31*$I$32)/($Z$30+$Z$31*$I$32)/$I$32,"")) ->  | AF80: =IF($C$7="---","",IFERROR(AF100*($Z$35*$I$32)/($Z$34+$Z$35*$I$32)/$I$32,"")) ->  | AG80: =IFERROR(AE$80+AF$80,"") ->  | AH80: 4
C81: 5 | D81: =IF($C$7="---","",IFERROR(D101*($Q$31*$I$32)/($Q$30+$Q$31*$I$32)/$I$32,"")) ->  | E81: =IF($C$7="---","",IFERROR(E101*($Q$35*$I$32)/($Q$34+$Q$35*$I$32)/$I$32,"")) ->  | F81: =IFERROR(D$81+E$81,"") ->  | G81: =IF($C$7="---","",IFERROR(G101*($R$31*$I$32)/($R$30+$R$31*$I$32)/$I$32,"")) ->  | H81: =IF($C$7="---","",IFERROR(H101*($R$35*$I$32)/($R$34+$R$35*$I$32)/$I$32,"")) ->  | I81: =IFERROR(G$81+H$81,"") ->  | J81: =IF($C$7="---","",IFERROR(J101*($S$31*$I$32)/($S$30+$S$31*$I$32)/$I$32,"")) ->  | K81: =IF($C$7="---","",IFERROR(K101*($S$35*$I$32)/($S$34+$S$35*$I$32)/$I$32,"")) ->  | L81: =IFERROR(J$81+K$81,"") ->  | M81: =IF($C$7="---","",IFERROR(M101*($T$31*$I$32)/($T$30+$T$31*$I$32)/$I$32,"")) ->  | N81: =IF($C$7="---","",IFERROR(N101*($T$35*$I$32)/($T$34+$T$35*$I$32)/$I$32,"")) ->  | O81: =IFERROR(M$81+N$81,"") ->  | P81: =IF($C$7="---","",IFERROR(P101*($U$31*$I$32)/($U$30+$U$31*$I$32)/$I$32,"")) ->  | Q81: =IF($C$7="---","",IFERROR(Q101*($U$35*$I$32)/($U$34+$U$35*$I$32)/$I$32,"")) ->  | R81: =IFERROR(P$81+Q$81,"") ->  | S81: =IF($C$7="---","",IFERROR(S101*($V$31*$I$32)/($V$30+$V$31*$I$32)/$I$32,"")) ->  | T81: =IF($C$7="---","",IFERROR(T101*($V$35*$I$32)/($V$34+$V$35*$I$32)/$I$32,"")) ->  | U81: =IFERROR(S$81+T$81,"") ->  | V81: =IF($C$7="---","",IFERROR(V101*($W$31*$I$32)/($W$30+$W$31*$I$32)/$I$32,"")) ->  | W81: =IF($C$7="---","",IFERROR(W101*($W$35*$I$32)/($W$34+$W$35*$I$32)/$I$32,"")) ->  | X81: =IFERROR(V$81+W$81,"") ->  | Y81: =IF($C$7="---","",IFERROR(Y101*($X$31*$I$32)/($X$30+$X$31*$I$32)/$I$32,"")) ->  | Z81: =IF($C$7="---","",IFERROR(Z101*($X$35*$I$32)/($X$34+$X$35*$I$32)/$I$32,"")) ->  | AA81: =IFERROR(Y$81+Z$81,"") ->  | AB81: =IF($C$7="---","",IFERROR(AB101*($Y$31*$I$32)/($Y$30+$Y$31*$I$32)/$I$32,"")) ->  | AC81: =IF($C$7="---","",IFERROR(AC101*($Y$35*$I$32)/($Y$34+$Y$35*$I$32)/$I$32,"")) ->  | AD81: =IFERROR(AB$81+AC$81,"") ->  | AE81: =IF($C$7="---","",IFERROR(AE101*($Z$31*$I$32)/($Z$30+$Z$31*$I$32)/$I$32,"")) ->  | AF81: =IF($C$7="---","",IFERROR(AF101*($Z$35*$I$32)/($Z$34+$Z$35*$I$32)/$I$32,"")) ->  | AG81: =IFERROR(AE$81+AF$81,"") ->  | AH81: 5
C82: 6 | F82: =IFERROR(D$82+E$82,"") ->  | I82: =IFERROR(G$82+H$82,"") ->  | L82: =IFERROR(J$82+K$82,"") ->  | O82: =IFERROR(M$82+N$82,"") ->  | P82: =IF($C$7="---","",IFERROR(P102*($U$31*$I$32)/($U$30+$U$31*$I$32)/$I$32,"")) ->  | R82: =IFERROR(P$82+Q$82,"") ->  | U82: =IFERROR(S$82+T$82,"") ->  | X82: =IFERROR(V$82+W$82,"") ->  | AA82: =IFERROR(Y$82+Z$82,"") ->  | AD82: =IFERROR(AB$82+AC$82,"") ->  | AG82: =IFERROR(AE$82+AF$82,"") ->  | AH82: 6
C83: 7 | F83: =IFERROR(D$83+E$83,"") ->  | I83: =IFERROR(G$83+H$83,"") ->  | L83: =IFERROR(J$83+K$83,"") ->  | O83: =IFERROR(M$83+N$83,"") ->  | R83: =IFERROR(P$83+Q$83,"") ->  | U83: =IFERROR(S$83+T$83,"") ->  | X83: =IFERROR(V$83+W$83,"") ->  | AA83: =IFERROR(Y$83+Z$83,"") ->  | AD83: =IFERROR(AB$83+AC$83,"") ->  | AG83: =IFERROR(AE$83+AF$83,"") ->  | AH83: 7
C84: 8 | F84: =IFERROR(D$84+E$84,"") ->  | I84: =IFERROR(G$84+H$84,"") ->  | L84: =IFERROR(J$84+K$84,"") ->  | O84: =IFERROR(M$84+N$84,"") ->  | R84: =IFERROR(P$84+Q$84,"") ->  | U84: =IFERROR(S$84+T$84,"") ->  | X84: =IFERROR(V$84+W$84,"") ->  | AA84: =IFERROR(Y$84+Z$84,"") ->  | AD84: =IFERROR(AB$84+AC$84,"") ->  | AG84: =IFERROR(AE$84+AF$84,"") ->  | AH84: 8
C85: 9 | F85: =IFERROR(D$85+E$85,"") ->  | I85: =IFERROR(G$85+H$85,"") ->  | L85: =IFERROR(J$85+K$85,"") ->  | O85: =IFERROR(M$85+N$85,"") ->  | R85: =IFERROR(P$85+Q$85,"") ->  | U85: =IFERROR(S$85+T$85,"") ->  | X85: =IFERROR(V$85+W$85,"") ->  | AA85: =IFERROR(Y$85+Z$85,"") ->  | AD85: =IFERROR(AB$85+AC$85,"") ->  | AG85: =IFERROR(AE$85+AF$85,"") ->  | AH85: 9
C86: 10 | F86: =IFERROR(D$86+E$86,"") ->  | I86: =IFERROR(G$86+H$86,"") ->  | L86: =IFERROR(J$86+K$86,"") ->  | O86: =IFERROR(M$86+N$86,"") ->  | R86: =IFERROR(P$86+Q$86,"") ->  | U86: =IFERROR(S$86+T$86,"") ->  | X86: =IFERROR(V$86+W$86,"") ->  | AA86: =IFERROR(Y$86+Z$86,"") ->  | AD86: =IFERROR(AB$86+AC$86,"") ->  | AG86: =IFERROR(AE$86+AF$86,"") ->  | AH86: 10
C87: 11 | F87: =IFERROR(D$87+E$87,"") ->  | I87: =IFERROR(G$87+H$87,"") ->  | L87: =IFERROR(J$87+K$87,"") ->  | O87: =IFERROR(M$87+N$87,"") ->  | R87: =IFERROR(P$87+Q$87,"") ->  | U87: =IFERROR(S$87+T$87,"") ->  | X87: =IFERROR(V$87+W$87,"") ->  | AA87: =IFERROR(Y$87+Z$87,"") ->  | AD87: =IFERROR(AB$87+AC$87,"") ->  | AG87: =IFERROR(AE$87+AF$87,"") ->  | AH87: 11
C88: 12 | F88: =IFERROR(D$88+E$88,"") ->  | I88: =IFERROR(G$88+H$88,"") ->  | L88: =IFERROR(J$88+K$88,"") ->  | O88: =IFERROR(M$88+N$88,"") ->  | R88: =IFERROR(P$88+Q$88,"") ->  | U88: =IFERROR(S$88+T$88,"") ->  | X88: =IFERROR(V$88+W$88,"") ->  | AA88: =IFERROR(Y$88+Z$88,"") ->  | AD88: =IFERROR(AB$88+AC$88,"") ->  | AG88: =IFERROR(AE$88+AF$88,"") ->  | AH88: 12
C89: 1 | F89: =IFERROR(D$89+E$89,"") ->  | I89: =IFERROR(G$89+H$89,"") ->  | L89: =IFERROR(J$89+K$89,"") ->  | O89: =IFERROR(M$89+N$89,"") ->  | R89: =IFERROR(P$89+Q$89,"") ->  | U89: =IFERROR(S$89+T$89,"") ->  | X89: =IFERROR(V$89+W$89,"") ->  | AA89: =IFERROR(Y$89+Z$89,"") ->  | AD89: =IFERROR(AB$89+AC$89,"") ->  | AG89: =IFERROR(AE$89+AF$89,"") ->  | AH89: 1
C90: 2 | F90: =IFERROR(D$90+E$90,"") ->  | I90: =IFERROR(G$90+H$90,"") ->  | L90: =IFERROR(J$90+K$90,"") ->  | O90: =IFERROR(M$90+N$90,"") ->  | R90: =IFERROR(P$90+Q$90,"") ->  | U90: =IFERROR(S$90+T$90,"") ->  | X90: =IFERROR(V$90+W$90,"") ->  | AA90: =IFERROR(Y$90+Z$90,"") ->  | AD90: =IFERROR(AB$90+AC$90,"") ->  | AG90: =IFERROR(AE$90+AF$90,"") ->  | AH90: 2
C91: 3 | F91: =IFERROR(D$91+E$91,"") ->  | I91: =IFERROR(G$91+H$91,"") ->  | L91: =IFERROR(J$91+K$91,"") ->  | O91: =IFERROR(M$91+N$91,"") ->  | R91: =IFERROR(P$91+Q$91,"") ->  | U91: =IFERROR(S$91+T$91,"") ->  | X91: =IFERROR(V$91+W$91,"") ->  | AA91: =IFERROR(Y$91+Z$91,"") ->  | AD91: =IFERROR(AB$91+AC$91,"") ->  | AG91: =IFERROR(AE$91+AF$91,"") ->  | AH91: 3
C92: 合計 | D92: =IFERROR(SUM(D$80:D$91),"") -> 0 | E92: 0 | F92: 0 | G92: 0 | H92: 0 | I92: 0 | J92: 0 | K92: 0 | L92: 0 | M92: 0 | N92: 0 | O92: 0 | P92: 0 | Q92: 0 | R92: 0 | S92: 0 | T92: 0 | U92: 0 | V92: 0 | W92: 0 | X92: 0 | Y92: 0 | Z92: 0 | AA92: 0 | AB92: 0 | AC92: 0 | AD92: 0 | AE92: 0 | AF92: 0 | AG92: 0 | AH92: 合計
C94: 設備導入前エネルギー使用量［kWh]
D95: 冷房(Ec) | F95: 暖房(Ew) | H95: 合計(E)
D96: =IFERROR(D112*F98+G112*I98+J112*L98+M112*O98+P112*R98+S112*U98+V112*X98+Y112*AA98+AB112*AD98+AE112*AG98,"") -> 0 | F96: =IFERROR(E112*F98+H112*I98+K112*L98+N112*O98+Q112*R98+T112*U98+W112*X98+Z112*AA98+AC112*AD98+AF112*AG98,"") -> 0 | H96: =IFERROR(SUM(D96:G96),"") -> 0
D98: 前1 | F98: =IF($Q$38="",1,$Q$38) -> 1 | G98: 前2 | I98: =IF($R$38="",1,$R$38) -> 1 | J98: 前3 | L98: =IF($S$38="",1,$S$38) -> 1 | M98: 前4 | O98: =IF($T$38="",1,$T$38) -> 1 | P98: 前5 | R98: =IF($U$38="",1,$U$38) -> 1 | S98: 前6 | U98: =IF($V$38="",1,$V$38) -> 1 | V98: 前7 | X98: =IF($W$38="",1,$W$38) -> 1 | Y98: 前8 | AA98: =IF($X$38="",1,$X$38) -> 1 | AB98: 前9 | AD98: =IF($Y$38="",1,$Y$38) -> 1 | AE98: 前10 | AG98: =IF($Z$38="",1,$Z$38) -> 1
C99: 月 期間 | D99: 冷房 | E99: 暖房 | F99: 月合計 | G99: 冷房 | H99: 暖房 | I99: 月合計 | J99: 冷房 | K99: 暖房 | L99: 月合計 | M99: 冷房 | N99: 暖房 | O99: 月合計 | P99: 冷房 | Q99: 暖房 | R99: 月合計 | S99: 冷房 | T99: 暖房 | U99: 月合計 | V99: 冷房 | W99: 暖房 | X99: 月合計 | Y99: 冷房 | Z99: 暖房 | AA99: 月合計 | AB99: 冷房 | AC99: 暖房 | AD99: 月合計 | AE99: 冷房 | AF99: 暖房 | AG99: 月合計 | AH99: 期間 月
C100: 4 | D100: =IF($C$7="---","",IFERROR($Q$29/$Q$32*$AU225*$Q$39,"")) ->  | E100: =IF($C$7="---","",IFERROR($Q$29*$C$7/$Q$36*$AU365*$Q$39,"")) ->  | F100: =IFERROR(D$100+E$100,"") ->  | G100: =IF($C$7="---","",IFERROR($R$29/$R$32*$AV225*$R$39,"")) ->  | H100: =IF($C$7="---","",IFERROR($R$29*$C$7/$R$36*$AV365*$R$39,"")) ->  | I100: =IFERROR(G$100+H$100,"") ->  | J100: =IF($C$7="---","",IFERROR($S$29/$S$32*$AW225*$S$39,"")) ->  | K100: =IF($C$7="---","",IFERROR($S$29*$C$7/$S$36*$AW365*$S$39,"")) ->  | L100: =IFERROR(J$100+K$100,"") ->  | M100: =IF($C$7="---","",IFERROR($T$29/$T$32*$AX225*$T$39,"")) ->  | N100: =IF($C$7="---","",IFERROR($T$29*$C$7/$T$36*$AX365*$T$39,"")) ->  | O100: =IFERROR(M$100+N$100,"") ->  | P100: =IF($C$7="---","",IFERROR($U$29/$U$32*$AY225*$U$39,"")) ->  | Q100: =IF($C$7="---","",IFERROR($U$29*$C$7/$U$36*$AY365*$U$39,"")) ->  | R100: =IFERROR(P$100+Q$100,"") ->  | S100: =IF($C$7="---","",IFERROR($V$29/$V$32*$AZ225*$V$39,"")) ->  | T100: =IF($C$7="---","",IFERROR($V$29*$C$7/$V$36*$AZ365*$V$39,"")) ->  | U100: =IFERROR(S$100+T$100,"") ->  | V100: =IF($C$7="---","",IFERROR($W$29/$W$32*$BA225*$W$39,"")) ->  | W100: =IF($C$7="---","",IFERROR($W$29*$C$7/$W$36*$BA365*$W$39,"")) ->  | X100: =IFERROR(V$100+W$100,"") ->  | Y100: =IF($C$7="---","",IFERROR($X$29/$X$32*$BB225*$X$39,"")) ->  | Z100: =IF($C$7="---","",IFERROR($X$29*$C$7/$X$36*$BB365*$X$39,"")) ->  | AA100: =IFERROR(Y$100+Z$100,"") ->  | AB100: =IF($C$7="---","",IFERROR($Y$29/$Y$32*$BC225*$Y$39,"")) ->  | AC100: =IF($C$7="---","",IFERROR($Y$29*$C$7/$Y$36*$BC365*$Y$39,"")) ->  | AD100: =IFERROR(AB$100+AC$100,"") ->  | AE100: =IF($C$7="---","",IFERROR($Z$29/$Z$32*$BD225*$Z$39,"")) ->  | AF100: =IF($C$7="---","",IFERROR($Z$29*$C$7/$Z$36*$BD365*$Z$39,"")) ->  | AG100: =IFERROR(AE$100+AF$100,"") ->  | AH100: 4
C101: 5 | F101: =IFERROR(D$101+E$101,"") ->  | I101: =IFERROR(G$101+H$101,"") ->  | L101: =IFERROR(J$101+K$101,"") ->  | O101: =IFERROR(M$101+N$101,"") ->  | R101: =IFERROR(P$101+Q$101,"") ->  | U101: =IFERROR(S$101+T$101,"") ->  | X101: =IFERROR(V$101+W$101,"") ->  | AA101: =IFERROR(Y$101+Z$101,"") ->  | AD101: =IFERROR(AB$101+AC$101,"") ->  | AG101: =IFERROR(AE$101+AF$101,"") ->  | AH101: 5
C102: 6 | F102: =IFERROR(D$102+E$102,"") ->  | I102: =IFERROR(G$102+H$102,"") ->  | L102: =IFERROR(J$102+K$102,"") ->  | O102: =IFERROR(M$102+N$102,"") ->  | R102: =IFERROR(P$102+Q$102,"") ->  | U102: =IFERROR(S$102+T$102,"") ->  | X102: =IFERROR(V$102+W$102,"") ->  | AA102: =IFERROR(Y$102+Z$102,"") ->  | AD102: =IFERROR(AB$102+AC$102,"") ->  | AG102: =IFERROR(AE$102+AF$102,"") ->  | AH102: 6
C103: 7 | F103: =IFERROR(D$103+E$103,"") ->  | I103: =IFERROR(G$103+H$103,"") ->  | L103: =IFERROR(J$103+K$103,"") ->  | O103: =IFERROR(M$103+N$103,"") ->  | R103: =IFERROR(P$103+Q$103,"") ->  | U103: =IFERROR(S$103+T$103,"") ->  | X103: =IFERROR(V$103+W$103,"") ->  | AA103: =IFERROR(Y$103+Z$103,"") ->  | AD103: =IFERROR(AB$103+AC$103,"") ->  | AG103: =IFERROR(AE$103+AF$103,"") ->  | AH103: 7
C104: 8 | F104: =IFERROR(D$104+E$104,"") ->  | I104: =IFERROR(G$104+H$104,"") ->  | L104: =IFERROR(J$104+K$104,"") ->  | O104: =IFERROR(M$104+N$104,"") ->  | R104: =IFERROR(P$104+Q$104,"") ->  | U104: =IFERROR(S$104+T$104,"") ->  | X104: =IFERROR(V$104+W$104,"") ->  | AA104: =IFERROR(Y$104+Z$104,"") ->  | AD104: =IFERROR(AB$104+AC$104,"") ->  | AG104: =IFERROR(AE$104+AF$104,"") ->  | AH104: 8
C105: 9 | F105: =IFERROR(D$105+E$105,"") ->  | I105: =IFERROR(G$105+H$105,"") ->  | L105: =IFERROR(J$105+K$105,"") ->  | O105: =IFERROR(M$105+N$105,"") ->  | R105: =IFERROR(P$105+Q$105,"") ->  | U105: =IFERROR(S$105+T$105,"") ->  | X105: =IFERROR(V$105+W$105,"") ->  | AA105: =IFERROR(Y$105+Z$105,"") ->  | AD105: =IFERROR(AB$105+AC$105,"") ->  | AG105: =IFERROR(AE$105+AF$105,"") ->  | AH105: 9
C106: 10 | F106: =IFERROR(D$106+E$106,"") ->  | I106: =IFERROR(G$106+H$106,"") ->  | L106: =IFERROR(J$106+K$106,"") ->  | O106: =IFERROR(M$106+N$106,"") ->  | R106: =IFERROR(P$106+Q$106,"") ->  | U106: =IFERROR(S$106+T$106,"") ->  | X106: =IFERROR(V$106+W$106,"") ->  | AA106: =IFERROR(Y$106+Z$106,"") ->  | AD106: =IFERROR(AB$106+AC$106,"") ->  | AG106: =IFERROR(AE$106+AF$106,"") ->  | AH106: 10
C107: 11 | F107: =IFERROR(D$107+E$107,"") ->  | I107: =IFERROR(G$107+H$107,"") ->  | L107: =IFERROR(J$107+K$107,"") ->  | O107: =IFERROR(M$107+N$107,"") ->  | R107: =IFERROR(P$107+Q$107,"") ->  | U107: =IFERROR(S$107+T$107,"") ->  | X107: =IFERROR(V$107+W$107,"") ->  | AA107: =IFERROR(Y$107+Z$107,"") ->  | AD107: =IFERROR(AB$107+AC$107,"") ->  | AG107: =IFERROR(AE$107+AF$107,"") ->  | AH107: 11
C108: 12 | F108: =IFERROR(D$108+E$108,"") ->  | I108: =IFERROR(G$108+H$108,"") ->  | L108: =IFERROR(J$108+K$108,"") ->  | O108: =IFERROR(M$108+N$108,"") ->  | R108: =IFERROR(P$108+Q$108,"") ->  | U108: =IFERROR(S$108+T$108,"") ->  | X108: =IFERROR(V$108+W$108,"") ->  | AA108: =IFERROR(Y$108+Z$108,"") ->  | AD108: =IFERROR(AB$108+AC$108,"") ->  | AG108: =IFERROR(AE$108+AF$108,"") ->  | AH108: 12
C109: 1 | F109: =IFERROR(D$109+E$109,"") ->  | I109: =IFERROR(G$109+H$109,"") ->  | L109: =IFERROR(J$109+K$109,"") ->  | O109: =IFERROR(M$109+N$109,"") ->  | R109: =IFERROR(P$109+Q$109,"") ->  | U109: =IFERROR(S$109+T$109,"") ->  | X109: =IFERROR(V$109+W$109,"") ->  | AA109: =IFERROR(Y$109+Z$109,"") ->  | AD109: =IFERROR(AB$109+AC$109,"") ->  | AG109: =IFERROR(AE$109+AF$109,"") ->  | AH109: 1
C110: 2 | F110: =IFERROR(D$110+E$110,"") ->  | I110: =IFERROR(G$110+H$110,"") ->  | L110: =IFERROR(J$110+K$110,"") ->  | O110: =IFERROR(M$110+N$110,"") ->  | R110: =IFERROR(P$110+Q$110,"") ->  | U110: =IFERROR(S$110+T$110,"") ->  | X110: =IFERROR(V$110+W$110,"") ->  | AA110: =IFERROR(Y$110+Z$110,"") ->  | AD110: =IFERROR(AB$110+AC$110,"") ->  | AG110: =IFERROR(AE$110+AF$110,"") ->  | AH110: 2
C111: 3 | F111: =IFERROR(D$111+E$111,"") ->  | I111: =IFERROR(G$111+H$111,"") ->  | L111: =IFERROR(J$111+K$111,"") ->  | O111: =IFERROR(M$111+N$111,"") ->  | R111: =IFERROR(P$111+Q$111,"") ->  | U111: =IFERROR(S$111+T$111,"") ->  | X111: =IFERROR(V$111+W$111,"") ->  | AA111: =IFERROR(Y$111+Z$111,"") ->  | AD111: =IFERROR(AB$111+AC$111,"") ->  | AG111: =IFERROR(AE$111+AF$111,"") ->  | AH111: 3
C112: 合計 | D112: =IFERROR(SUM(D$100:D$111),"") -> 0 | E112: =IFERROR(SUM(E$100:E$111),"") -> 0 | F112: =IFERROR(SUM(F$100:F$111),"") -> 0 | G112: =IFERROR(SUM(G$100:G$111),"") -> 0 | H112: =IFERROR(SUM(H$100:H$111),"") -> 0 | I112: 0 | J112: 0 | K112: 0 | L112: 0 | M112: 0 | N112: 0 | O112: 0 | P112: 0 | Q112: 0 | R112: 0 | S112: 0 | T112: 0 | U112: 0 | V112: 0 | W112: 0 | X112: 0 | Y112: 0 | Z112: 0 | AA112: 0 | AB112: 0 | AC112: 0 | AD112: 0 | AE112: 0 | AF112: 0 | AG112: 0 | AH112: 合計
C114: 設備導入後ガス使用量［MJ]
D115: 冷房(Gc) | F115: 暖房(Gw) | H115: 合計
D116: =IFERROR(D132*F118+G132*I118+J132*L118+M132*O118+P132*R118+S132*U118+V132*X118+Y132*AA118+AB132*AD118+AE132*AG118,"") -> 0 | F116: =IFERROR(E132*F118+H132*I118+K132*L118+N132*O118+Q132*R118+T132*U118+W132*X118+Z132*AA118+AC132*AD118+AF132*AG118,"") -> 0 | H116: =IFERROR(SUM(D116:G116),"") -> 0
D118: 後1 | F118: =IF($Q$52="",1,$Q$52) -> 1 | G118: 後2 | I118: =IF($R$52="",1,$R$52) -> 1 | J118: 後3 | L118: =IF($S$52="",1,$S$52) -> 1 | M118: 後4 | O118: =IF($T$52="",1,$T$52) -> 1 | P118: 後5 | R118: =IF($U$52="",1,$U$52) -> 1 | S118: 後6 | U118: =IF($V$52="",1,$V$52) -> 1 | V118: 後7 | X118: =IF($W$52="",1,$W$52) -> 1 | Y118: 後8 | AA118: =IF($X$52="",1,$X$52) -> 1 | AB118: 後9 | AD118: =IF($Y$52="",1,$Y$52) -> 1 | AE118: 後10 | AG118: =IF($Z$52="",1,$Z$52) -> 1
C119: 月 期間 | D119: 冷房 | E119: 暖房 | F119: 月合計 | G119: 冷房 | H119: 暖房 | I119: 月合計 | J119: 冷房 | K119: 暖房 | L119: 月合計 | M119: 冷房 | N119: 暖房 | O119: 月合計 | P119: 冷房 | Q119: 暖房 | R119: 月合計 | S119: 冷房 | T119: 暖房 | U119: 月合計 | V119: 冷房 | W119: 暖房 | X119: 月合計 | Y119: 冷房 | Z119: 暖房 | AA119: 月合計 | AB119: 冷房 | AC119: 暖房 | AD119: 月合計 | AE119: 冷房 | AF119: 暖房 | AG119: 月合計 | AH119: 期間 月
C120: 4 | D120: =IF($C$7="---","",IFERROR(3.6*(D160-D140*$I$46),"")) ->  | E120: =IF($C$7="---","",IFERROR(3.6*(E160-E140*$I$46),"")) ->  | F120: =IFERROR(D120+E120,"") ->  | G120: =IF($C$7="---","",IFERROR(3.6*(G160-G140*$I$46),"")) ->  | H120: =IF($C$7="---","",IFERROR(3.6*(H160-H140*$I$46),"")) ->  | I120: =IFERROR(G120+H120,"") ->  | J120: =IF($C$7="---","",IFERROR(3.6*(J160-J140*$I$46),"")) ->  | K120: =IF($C$7="---","",IFERROR(3.6*(K160-K140*$I$46),"")) ->  | L120: =IFERROR(J120+K120,"") ->  | M120: =IF($C$7="---","",IFERROR(3.6*(M160-M140*$I$46),"")) ->  | N120: =IF($C$7="---","",IFERROR(3.6*(N160-N140*$I$46),"")) ->  | O120: =IFERROR(M120+N120,"") ->  | P120: =IF($C$7="---","",IFERROR(3.6*(P160-P140*$I$46),"")) ->  | Q120: =IF($C$7="---","",IFERROR(3.6*(Q160-Q140*$I$46),"")) ->  | R120: =IFERROR(P120+Q120,"") ->  | S120: =IF($C$7="---","",IFERROR(3.6*(S160-S140*$I$46),"")) ->  | T120: =IF($C$7="---","",IFERROR(3.6*(T160-T140*$I$46),"")) ->  | U120: =IFERROR(S120+T120,"") ->  | V120: =IF($C$7="---","",IFERROR(3.6*(V160-V140*$I$46),"")) ->  | W120: =IF($C$7="---","",IFERROR(3.6*(W160-W140*$I$46),"")) ->  | X120: =IFERROR(V120+W120,"") ->  | Y120: =IF($C$7="---","",IFERROR(3.6*(Y160-Y140*$I$46),"")) ->  | Z120: =IF($C$7="---","",IFERROR(3.6*(Z160-Z140*$I$46),"")) ->  | AA120: =IFERROR(Y120+Z120,"") ->  | AB120: =IF($C$7="---","",IFERROR(3.6*(AB160-AB140*$I$46),"")) ->  | AC120: =IF($C$7="---","",IFERROR(3.6*(AC160-AC140*$I$46),"")) ->  | AD120: =IFERROR(AB120+AC120,"") ->  | AE120: =IF($C$7="---","",IFERROR(3.6*(AE160-AE140*$I$46),"")) ->  | AF120: =IF($C$7="---","",IFERROR(3.6*(AF160-AF140*$I$46),"")) ->  | AG120: =IFERROR(AE120+AF120,"") ->  | AH120: 4
C121: 5 | D121: =IF($C$7="---","",IFERROR(3.6*(D161-D141*$I$46),"")) ->  | F121: =IFERROR(D121+E121,"") ->  | G121: =IF($C$7="---","",IFERROR(3.6*(G161-G141*$I$46),"")) ->  | I121: =IFERROR(G121+H121,"") ->  | J121: =IF($C$7="---","",IFERROR(3.6*(J161-J141*$I$46),"")) ->  | L121: =IFERROR(J121+K121,"") ->  | M121: =IF($C$7="---","",IFERROR(3.6*(M161-M141*$I$46),"")) ->  | O121: =IFERROR(M121+N121,"") ->  | P121: =IF($C$7="---","",IFERROR(3.6*(P161-P141*$I$46),"")) ->  | R121: =IFERROR(P121+Q121,"") ->  | S121: =IF($C$7="---","",IFERROR(3.6*(S161-S141*$I$46),"")) ->  | U121: =IFERROR(S121+T121,"") ->  | V121: =IF($C$7="---","",IFERROR(3.6*(V161-V141*$I$46),"")) ->  | X121: =IFERROR(V121+W121,"") ->  | Y121: =IF($C$7="---","",IFERROR(3.6*(Y161-Y141*$I$46),"")) ->  | AA121: =IFERROR(Y121+Z121,"") ->  | AB121: =IF($C$7="---","",IFERROR(3.6*(AB161-AB141*$I$46),"")) ->  | AD121: =IFERROR(AB121+AC121,"") ->  | AE121: =IF($C$7="---","",IFERROR(3.6*(AE161-AE141*$I$46),"")) ->  | AG121: =IFERROR(AE121+AF121,"") ->  | AH121: 5
C122: 6 | AH122: 6
C123: 7 | AH123: 7
C124: 8 | AH124: 8
C125: 9 | AH125: 9
C126: 10 | AH126: 10
C127: 11 | AH127: 11
C128: 12 | AH128: 12
C129: 1 | AH129: 1
C130: 2 | AH130: 2
C131: 3 | AH131: 3
C132: 合計 | D132: =IFERROR(SUM(D120:D131),"") -> 0 | E132: =IFERROR(SUM(E120:E131),"") -> 0 | F132: =IFERROR(SUM(F120:F131),"") -> 0 | G132: =IFERROR(SUM(G120:G131),"") -> 0 | H132: =IFERROR(SUM(H120:H131),"") -> 0 | I132: =IFERROR(SUM(I120:I131),"") -> 0 | J132: 0 | K132: 0 | L132: 0 | M132: 0 | N132: 0 | O132: 0 | P132: 0 | Q132: 0 | R132: 0 | S132: 0 | T132: 0 | U132: 0 | V132: 0 | W132: 0 | X132: 0 | Y132: 0 | Z132: 0 | AA132: 0 | AB132: 0 | AC132: 0 | AD132: 0 | AE132: 0 | AF132: 0 | AG132: 0 | AH132: 合計
C134: 設備導入後電力使用量[kWh]
D135: 冷房(Auxc) | F135: 暖房(Auxw) | H135: 合計
D136: =IFERROR(D152*F138+G152*I138+J152*L138+M152*O138+P152*R138+S152*U138+V152*X138+Y152*AA138+AB152*AD138+AE152*AG138,"") -> 0 | F136: =IFERROR(E152*F138+H152*I138+K152*L138+N152*O138+Q152*R138+T152*U138+W152*X138+Z152*AA138+AC152*AD138+AF152*AG138,"") -> 0 | H136: =IFERROR(SUM(D136:G136),"") -> 0
D138: 後1 | F138: =IF($Q$52="",1,$Q$52) -> 1 | G138: 後2 | I138: =IF($R$52="",1,$R$52) -> 1 | J138: 後3 | L138: =IF($S$52="",1,$S$52) -> 1 | M138: 後4 | O138: =IF($T$52="",1,$T$52) -> 1 | P138: 後5 | R138: =IF($U$52="",1,$U$52) -> 1 | S138: 後6 | U138: =IF($V$52="",1,$V$52) -> 1 | V138: 後7 | X138: =IF($W$52="",1,$W$52) -> 1 | Y138: 後8 | AA138: =IF($X$52="",1,$X$52) -> 1 | AB138: 後9 | AD138: =IF($Y$52="",1,$Y$52) -> 1 | AE138: 後10 | AG138: =IF($Z$52="",1,$Z$52) -> 1
C139: 月 期間 | D139: 冷房 | E139: 暖房 | F139: 月合計 | G139: 冷房 | H139: 暖房 | I139: 月合計 | J139: 冷房 | K139: 暖房 | L139: 月合計 | M139: 冷房 | N139: 暖房 | O139: 月合計 | P139: 冷房 | Q139: 暖房 | R139: 月合計 | S139: 冷房 | T139: 暖房 | U139: 月合計 | V139: 冷房 | W139: 暖房 | X139: 月合計 | Y139: 冷房 | Z139: 暖房 | AA139: 月合計 | AB139: 冷房 | AC139: 暖房 | AD139: 月合計 | AE139: 冷房 | AF139: 暖房 | AG139: 月合計 | AH139: 期間 月
C140: 4 | D140: =IF($C$7="---","",IFERROR(D160*($Q$45*$I$46)/($Q$44+$Q$45*$I$46)/$I$46,"")) ->  | E140: =IF($C$7="---","",IFERROR(E160*($Q$49*$I$46)/($Q$48+$Q$49*$I$46)/$I$46,"")) ->  | F140: =IFERROR(D140+E140,"") ->  | G140: =IF($C$7="---","",IFERROR(G160*($R$45*$I$46)/($R$44+$R$45*$I$46)/$I$46,"")) ->  | H140: =IF($C$7="---","",IFERROR(H160*($R$49*$I$46)/($R$48+$R$49*$I$46)/$I$46,"")) ->  | I140: =IFERROR(G140+H140,"") ->  | J140: =IF($C$7="---","",IFERROR(J160*($S$45*$I$46)/($S$44+$S$45*$I$46)/$I$46,"")) ->  | K140: =IF($C$7="---","",IFERROR(K160*($S$49*$I$46)/($S$48+$S$49*$I$46)/$I$46,"")) ->  | L140: =IFERROR(J140+K140,"") ->  | M140: =IF($C$7="---","",IFERROR(M160*($T$45*$I$46)/($T$44+$T$45*$I$46)/$I$46,"")) ->  | N140: =IF($C$7="---","",IFERROR(N160*($T$49*$I$46)/($T$48+$T$49*$I$46)/$I$46,"")) ->  | O140: =IFERROR(M140+N140,"") ->  | P140: =IF($C$7="---","",IFERROR(P160*($U$45*$I$46)/($U$44+$U$45*$I$46)/$I$46,"")) ->  | Q140: =IF($C$7="---","",IFERROR(Q160*($U$49*$I$46)/($U$48+$U$49*$I$46)/$I$46,"")) ->  | R140: =IFERROR(P140+Q140,"") ->  | S140: =IF($C$7="---","",IFERROR(S160*($V$45*$I$46)/($V$44+$V$45*$I$46)/$I$46,"")) ->  | T140: =IF($C$7="---","",IFERROR(T160*($V$49*$I$46)/($V$48+$V$49*$I$46)/$I$46,"")) ->  | U140: =IFERROR(S140+T140,"") ->  | V140: =IF($C$7="---","",IFERROR(V160*($W$45*$I$46)/($W$44+$W$45*$I$46)/$I$46,"")) ->  | W140: =IF($C$7="---","",IFERROR(W160*($W$49*$I$46)/($W$48+$W$49*$I$46)/$I$46,"")) ->  | X140: =IFERROR(V140+W140,"") ->  | Y140: =IF($C$7="---","",IFERROR(Y160*($X$45*$I$46)/($X$44+$X$45*$I$46)/$I$46,"")) ->  | Z140: =IF($C$7="---","",IFERROR(Z160*($X$49*$I$46)/($X$48+$X$49*$I$46)/$I$46,"")) ->  | AA140: =IFERROR(Y140+Z140,"") ->  | AB140: =IF($C$7="---","",IFERROR(AB160*($Y$45*$I$46)/($Y$44+$Y$45*$I$46)/$I$46,"")) ->  | AC140: =IF($C$7="---","",IFERROR(AC160*($Y$49*$I$46)/($Y$48+$Y$49*$I$46)/$I$46,"")) ->  | AD140: =IFERROR(AB140+AC140,"") ->  | AE140: =IF($C$7="---","",IFERROR(AE160*($Z$45*$I$46)/($Z$44+$Z$45*$I$46)/$I$46,"")) ->  | AF140: =IF($C$7="---","",IFERROR(AF160*($Z$49*$I$46)/($Z$48+$Z$49*$I$46)/$I$46,"")) ->  | AG140: =IFERROR(AE140+AF140,"") ->  | AH140: 4
C141: 5 | F141: =IFERROR(D141+E141,"") ->  | I141: =IFERROR(G141+H141,"") ->  | L141: =IFERROR(J141+K141,"") ->  | O141: =IFERROR(M141+N141,"") ->  | R141: =IFERROR(P141+Q141,"") ->  | U141: =IFERROR(S141+T141,"") ->  | X141: =IFERROR(V141+W141,"") ->  | AA141: =IFERROR(Y141+Z141,"") ->  | AD141: =IFERROR(AB141+AC141,"") ->  | AG141: =IFERROR(AE141+AF141,"") ->  | AH141: 5
C142: 6 | AH142: 6
C143: 7 | AH143: 7
C144: 8 | AH144: 8
C145: 9 | AH145: 9
C146: 10 | AH146: 10
C147: 11 | AH147: 11
C148: 12 | AH148: 12
C149: 1 | AH149: 1
C150: 2 | AH150: 2
C151: 3 | AH151: 3
C152: 合計 | D152: =IFERROR(SUM(D140:D151),"") -> 0 | E152: 0 | F152: 0 | G152: 0 | H152: 0 | I152: 0 | J152: 0 | K152: 0 | L152: 0 | M152: 0 | N152: 0 | O152: 0 | P152: 0 | Q152: 0 | R152: 0 | S152: 0 | T152: 0 | U152: 0 | V152: 0 | W152: 0 | X152: 0 | Y152: 0 | Z152: 0 | AA152: 0 | AB152: 0 | AC152: 0 | AD152: 0 | AE152: 0 | AF152: 0 | AG152: 0 | AH152: 合計
C154: 設備導入後エネルギー使用量［kWh]
D155: 冷房(Ec) | F155: 暖房(Ew) | H155: 合計
D156: =IFERROR(D172*F158+G172*I158+J172*L158+M172*O158+P172*R158+S172*U158+V172*X158+Y172*AA158+AB172*AD158+AE172*AG158,"") -> 0 | F156: =IFERROR(E172*F158+H172*I158+K172*L158+N172*O158+Q172*R158+T172*U158+W172*X158+Z172*AA158+AC172*AD158+AF172*AG158,"") -> 0 | H156: =IFERROR(SUM(D156:G156),"") -> 0
D158: 後1 | F158: =IF($Q$52="",1,$Q$52) -> 1 | G158: 後2 | I158: =IF($R$52="",1,$R$52) -> 1 | J158: 後3 | L158: =IF($S$52="",1,$S$52) -> 1 | M158: 後4 | O158: =IF($T$52="",1,$T$52) -> 1 | P158: 後5 | R158: =IF($U$52="",1,$U$52) -> 1 | S158: 後6 | U158: =IF($V$52="",1,$V$52) -> 1 | V158: 後7 | X158: =IF($W$52="",1,$W$52) -> 1 | Y158: 後8 | AA158: =IF($X$52="",1,$X$52) -> 1 | AB158: 後9 | AD158: =IF($Y$52="",1,$Y$52) -> 1 | AE158: 後10 | AG158: =IF($Z$52="",1,$Z$52) -> 1
C159: 月 期間 | D159: 冷房 | E159: 暖房 | F159: 月合計 | G159: 冷房 | H159: 暖房 | I159: 月合計 | J159: 冷房 | K159: 暖房 | L159: 月合計 | M159: 冷房 | N159: 暖房 | O159: 月合計 | P159: 冷房 | Q159: 暖房 | R159: 月合計 | S159: 冷房 | T159: 暖房 | U159: 月合計 | V159: 冷房 | W159: 暖房 | X159: 月合計 | Y159: 冷房 | Z159: 暖房 | AA159: 月合計 | AB159: 冷房 | AC159: 暖房 | AD159: 月合計 | AE159: 冷房 | AF159: 暖房 | AG159: 月合計 | AH159: 期間 月
C160: 4 | D160: =IF($C$7="---","",IFERROR($Q$43/$Q$46*$BF225*$Q$53,"")) ->  | E160: =IF($C$7="---","",IFERROR($Q$43*$C$7/$Q$50*$BF365*$Q$53,"")) ->  | F160: =IFERROR(D160+E160,"") ->  | G160: =IF($C$7="---","",IFERROR($R$43/$R$46*$BG225*$R$53,"")) ->  | H160: =IF($C$7="---","",IFERROR($R$43*$C$7/$R$50*$BG365*$R$53,"")) ->  | I160: =IFERROR(G160+H160,"") ->  | J160: =IF($C$7="---","",IFERROR($S$43/$S$46*$BH225*$S$53,"")) ->  | K160: =IF($C$7="---","",IFERROR($S$43*$C$7/$S$50*$BH365*$S$53,"")) ->  | L160: =IFERROR(J160+K160,"") ->  | M160: =IF($C$7="---","",IFERROR($T$43/$T$46*$BI225*$T$53,"")) ->  | N160: =IF($C$7="---","",IFERROR($T$43*$C$7/$T$50*$BI365*$T$53,"")) ->  | O160: =IFERROR(M160+N160,"") ->  | P160: =IF($C$7="---","",IFERROR($U$43/$U$46*$BJ225*$U$53,"")) ->  | Q160: =IF($C$7="---","",IFERROR($U$43*$C$7/$U$50*$BJ365*$U$53,"")) ->  | R160: =IFERROR(P160+Q160,"") ->  | S160: =IF($C$7="---","",IFERROR($V$43/$V$46*$BK225*$V$53,"")) ->  | T160: =IF($C$7="---","",IFERROR($V$43*$C$7/$V$50*$BK365*$V$53,"")) ->  | U160: =IFERROR(S160+T160,"") ->  | V160: =IF($C$7="---","",IFERROR($W$43/$W$46*$BL225*$W$53,"")) ->  | W160: =IF($C$7="---","",IFERROR($W$43*$C$7/$W$50*$BL365*$W$53,"")) ->  | X160: =IFERROR(V160+W160,"") ->  | Y160: =IF($C$7="---","",IFERROR($X$43/$X$46*$BM225*$X$53,"")) ->  | Z160: =IF($C$7="---","",IFERROR($X$43*$C$7/$X$50*$BM365*$X$53,"")) ->  | AA160: =IFERROR(Y160+Z160,"") ->  | AB160: =IF($C$7="---","",IFERROR($Y$43/$Y$46*$BN225*$Y$53,"")) ->  | AC160: =IF($C$7="---","",IFERROR($Y$43*$C$7/$Y$50*$BN365*$Y$53,"")) ->  | AD160: =IFERROR(AB160+AC160,"") ->  | AE160: =IF($C$7="---","",IFERROR($Z$43/$Z$46*$BO225*$Z$53,"")) ->  | AF160: =IF($C$7="---","",IFERROR($Z$43*$C$7/$Z$50*$BO365*$Z$53,"")) ->  | AG160: =IFERROR(AE160+AF160,"") ->  | AH160: 4
C161: 5 | F161: =IFERROR(D161+E161,"") ->  | I161: =IFERROR(G161+H161,"") ->  | L161: =IFERROR(J161+K161,"") ->  | O161: =IFERROR(M161+N161,"") ->  | R161: =IFERROR(P161+Q161,"") ->  | U161: =IFERROR(S161+T161,"") ->  | X161: =IFERROR(V161+W161,"") ->  | AA161: =IFERROR(Y161+Z161,"") ->  | AD161: =IFERROR(AB161+AC161,"") ->  | AG161: =IFERROR(AE161+AF161,"") ->  | AH161: 5
C162: 6 | AH162: 6
C163: 7 | AH163: 7
C164: 8 | AH164: 8
C165: 9 | AH165: 9
C166: 10 | AH166: 10
C167: 11 | AH167: 11
C168: 12 | AH168: 12
C169: 1 | AH169: 1
C170: 2 | AH170: 2
C171: 3 | AH171: 3
C172: 合計 | D172: =IFERROR(SUM(D160:D171),"") -> 0 | E172: 0 | F172: 0 | G172: 0 | H172: 0 | I172: 0 | J172: 0 | K172: 0 | L172: 0 | M172: 0 | N172: 0 | O172: 0 | P172: 0 | Q172: 0 | R172: 0 | S172: 0 | T172: 0 | U172: 0 | V172: 0 | W172: 0 | X172: 0 | Y172: 0 | Z172: 0 | AA172: 0 | AB172: 0 | AC172: 0 | AD172: 0 | AE172: 0 | AF172: 0 | AG172: 0 | AH172: 合計
C174: 作業表1(青色のセルを「24」、オレンジ色のセルを「19」として抽出）
D175: 時刻
C176: 月 | D176: 0 | E176: 1 | F176: 2 | G176: 3 | H176: 4 | I176: 5 | J176: 6 | K176: 7 | L176: 8 | M176: 9 | N176: 10 | O176: 11 | P176: 12 | Q176: 13 | R176: 14 | S176: 15 | T176: 16 | U176: 17 | V176: 18 | W176: 19 | X176: 20 | Y176: 21 | Z176: 22 | AA176: 23 | AB176: 月
C177: 4 | D177: =CELLCOLOR($D$12) -> -4142 | E177: =CELLCOLOR($E$12) -> -4142 | F177: =CELLCOLOR($F$12) -> -4142 | G177: =CELLCOLOR($G$12) -> -4142 | H177: =CELLCOLOR($H$12) -> -4142 | I177: =CELLCOLOR($I$12) -> -4142 | J177: =CELLCOLOR($J$12) -> -4142 | K177: =CELLCOLOR($K$12) -> -4142 | L177: =CELLCOLOR($L$12) -> -4142 | M177: =CELLCOLOR($M$12) -> -4142 | N177: =CELLCOLOR($N$12) -> -4142 | O177: =CELLCOLOR($O$12) -> -4142 | P177: =CELLCOLOR($P$12) -> -4142 | Q177: =CELLCOLOR($Q$12) -> -4142 | R177: =CELLCOLOR($R$12) -> -4142 | S177: =CELLCOLOR($S$12) -> -4142 | T177: =CELLCOLOR($T$12) -> -4142 | U177: =CELLCOLOR($U$12) -> -4142 | V177: =CELLCOLOR($V$12) -> -4142 | W177: =CELLCOLOR($W$12) -> -4142 | X177: =CELLCOLOR($X$12) -> -4142 | Y177: =CELLCOLOR($Y$12) -> -4142 | Z177: =CELLCOLOR($Z$12) -> -4142 | AA177: =CELLCOLOR($AA$12) -> -4142 | AB177: 4
C178: 5 | D178: =CELLCOLOR($D$13) -> -4142 | E178: =CELLCOLOR($E$13) -> -4142 | F178: =CELLCOLOR($F$13) -> -4142 | G178: =CELLCOLOR($G$13) -> -4142 | H178: =CELLCOLOR($H$13) -> -4142 | I178: =CELLCOLOR($I$13) -> -4142 | J178: =CELLCOLOR($J$13) -> -4142 | K178: =CELLCOLOR($K$13) -> -4142 | L178: =CELLCOLOR($L$13) -> -4142 | M178: =CELLCOLOR($M$13) -> -4142 | N178: =CELLCOLOR($N$13) -> -4142 | O178: =CELLCOLOR($O$13) -> -4142 | P178: =CELLCOLOR($P$13) -> -4142 | Q178: =CELLCOLOR($Q$13) -> -4142 | R178: =CELLCOLOR($R$13) -> -4142 | S178: =CELLCOLOR($S$13) -> -4142 | T178: =CELLCOLOR($T$13) -> -4142 | U178: =CELLCOLOR($U$13) -> -4142 | V178: =CELLCOLOR($V$13) -> -4142 | W178: =CELLCOLOR($W$13) -> -4142 | X178: =CELLCOLOR($X$13) -> -4142 | Y178: =CELLCOLOR($Y$13) -> -4142 | Z178: =CELLCOLOR($Z$13) -> -4142 | AA178: =CELLCOLOR($AA$13) -> -4142 | AB178: 5
C179: 6 | D179: =CELLCOLOR($D$14) -> -4142 | E179: =CELLCOLOR($E$14) -> -4142 | F179: =CELLCOLOR($F$14) -> -4142 | G179: =CELLCOLOR($G$14) -> -4142 | H179: =CELLCOLOR($H$14) -> -4142 | I179: =CELLCOLOR($I$14) -> -4142 | J179: =CELLCOLOR($J$14) -> -4142 | K179: =CELLCOLOR($K$14) -> -4142 | L179: =CELLCOLOR($L$14) -> -4142 | M179: =CELLCOLOR($M$14) -> -4142 | N179: =CELLCOLOR($N$14) -> -4142 | O179: =CELLCOLOR($O$14) -> -4142 | P179: =CELLCOLOR($P$14) -> -4142 | Q179: =CELLCOLOR($Q$14) -> -4142 | R179: =CELLCOLOR($R$14) -> -4142 | S179: =CELLCOLOR($S$14) -> -4142 | T179: =CELLCOLOR($T$14) -> -4142 | U179: =CELLCOLOR($U$14) -> -4142 | V179: =CELLCOLOR($V$14) -> -4142 | W179: =CELLCOLOR($W$14) -> -4142 | X179: =CELLCOLOR($X$14) -> -4142 | Y179: =CELLCOLOR($Y$14) -> -4142 | Z179: =CELLCOLOR($Z$14) -> -4142 | AA179: =CELLCOLOR($AA$14) -> -4142 | AB179: 6
C180: 7 | D180: =CELLCOLOR($D$15) -> -4142 | E180: =CELLCOLOR($E$15) -> -4142 | F180: =CELLCOLOR($F$15) -> -4142 | G180: =CELLCOLOR($G$15) -> -4142 | H180: =CELLCOLOR($H$15) -> -4142 | I180: =CELLCOLOR($I$15) -> -4142 | J180: =CELLCOLOR($J$15) -> -4142 | K180: =CELLCOLOR($K$15) -> -4142 | L180: =CELLCOLOR($L$15) -> -4142 | M180: =CELLCOLOR($M$15) -> -4142 | N180: =CELLCOLOR($N$15) -> -4142 | O180: =CELLCOLOR($O$15) -> -4142 | P180: =CELLCOLOR($P$15) -> -4142 | Q180: =CELLCOLOR($Q$15) -> -4142 | R180: =CELLCOLOR($R$15) -> -4142 | S180: =CELLCOLOR($S$15) -> -4142 | T180: =CELLCOLOR($T$15) -> -4142 | U180: =CELLCOLOR($U$15) -> -4142 | V180: =CELLCOLOR($V$15) -> -4142 | W180: =CELLCOLOR($W$15) -> -4142 | X180: =CELLCOLOR($X$15) -> -4142 | Y180: =CELLCOLOR($Y$15) -> -4142 | Z180: =CELLCOLOR($Z$15) -> -4142 | AA180: =CELLCOLOR($AA$15) -> -4142 | AB180: 7
C181: 8 | D181: =CELLCOLOR($D$16) -> -4142 | E181: =CELLCOLOR($E$16) -> -4142 | F181: =CELLCOLOR($F$16) -> -4142 | G181: =CELLCOLOR($G$16) -> -4142 | H181: =CELLCOLOR($H$16) -> -4142 | I181: =CELLCOLOR($I$16) -> -4142 | J181: =CELLCOLOR($J$16) -> -4142 | K181: =CELLCOLOR($K$16) -> -4142 | L181: =CELLCOLOR($L$16) -> -4142 | M181: =CELLCOLOR($M$16) -> -4142 | N181: =CELLCOLOR($N$16) -> -4142 | O181: =CELLCOLOR($O$16) -> -4142 | P181: =CELLCOLOR($P$16) -> -4142 | Q181: =CELLCOLOR($Q$16) -> -4142 | R181: =CELLCOLOR($R$16) -> -4142 | S181: =CELLCOLOR($S$16) -> -4142 | T181: =CELLCOLOR($T$16) -> -4142 | U181: =CELLCOLOR($U$16) -> -4142 | V181: =CELLCOLOR($V$16) -> -4142 | W181: =CELLCOLOR($W$16) -> -4142 | X181: =CELLCOLOR($X$16) -> -4142 | Y181: =CELLCOLOR($Y$16) -> -4142 | Z181: =CELLCOLOR($Z$16) -> -4142 | AA181: =CELLCOLOR($AA$16) -> -4142 | AB181: 8
C182: 9 | D182: =CELLCOLOR($D$17) -> -4142 | E182: =CELLCOLOR($E$17) -> -4142 | F182: =CELLCOLOR($F$17) -> -4142 | G182: =CELLCOLOR($G$17) -> -4142 | H182: =CELLCOLOR($H$17) -> -4142 | I182: =CELLCOLOR($I$17) -> -4142 | J182: =CELLCOLOR($J$17) -> -4142 | K182: =CELLCOLOR($K$17) -> -4142 | L182: =CELLCOLOR($L$17) -> -4142 | M182: =CELLCOLOR($M$17) -> -4142 | N182: =CELLCOLOR($N$17) -> -4142 | O182: =CELLCOLOR($O$17) -> -4142 | P182: =CELLCOLOR($P$17) -> -4142 | Q182: =CELLCOLOR($Q$17) -> -4142 | R182: =CELLCOLOR($R$17) -> -4142 | S182: =CELLCOLOR($S$17) -> -4142 | T182: =CELLCOLOR($T$17) -> -4142 | U182: =CELLCOLOR($U$17) -> -4142 | V182: =CELLCOLOR($V$17) -> -4142 | W182: =CELLCOLOR($W$17) -> -4142 | X182: =CELLCOLOR($X$17) -> -4142 | Y182: =CELLCOLOR($Y$17) -> -4142 | Z182: =CELLCOLOR($Z$17) -> -4142 | AA182: =CELLCOLOR($AA$17) -> -4142 | AB182: 9
C183: 10 | D183: =CELLCOLOR($D$18) -> -4142 | E183: =CELLCOLOR($E$18) -> -4142 | F183: =CELLCOLOR($F$18) -> -4142 | G183: =CELLCOLOR($G$18) -> -4142 | H183: =CELLCOLOR($H$18) -> -4142 | I183: =CELLCOLOR($I$18) -> -4142 | J183: =CELLCOLOR($J$18) -> -4142 | K183: =CELLCOLOR($K$18) -> -4142 | L183: =CELLCOLOR($L$18) -> -4142 | M183: =CELLCOLOR($M$18) -> -4142 | N183: =CELLCOLOR($N$18) -> -4142 | O183: =CELLCOLOR($O$18) -> -4142 | P183: =CELLCOLOR($P$18) -> -4142 | Q183: =CELLCOLOR($Q$18) -> -4142 | R183: =CELLCOLOR($R$18) -> -4142 | S183: =CELLCOLOR($S$18) -> -4142 | T183: =CELLCOLOR($T$18) -> -4142 | U183: =CELLCOLOR($U$18) -> -4142 | V183: =CELLCOLOR($V$18) -> -4142 | W183: =CELLCOLOR($W$18) -> -4142 | X183: =CELLCOLOR($X$18) -> -4142 | Y183: =CELLCOLOR($Y$18) -> -4142 | Z183: =CELLCOLOR($Z$18) -> -4142 | AA183: =CELLCOLOR($AA$18) -> -4142 | AB183: 10
C184: 11 | D184: =CELLCOLOR($D$19) -> -4142 | E184: =CELLCOLOR($E$19) -> -4142 | F184: =CELLCOLOR($F$19) -> -4142 | G184: =CELLCOLOR($G$19) -> -4142 | H184: =CELLCOLOR($H$19) -> -4142 | I184: =CELLCOLOR($I$19) -> -4142 | J184: =CELLCOLOR($J$19) -> -4142 | K184: =CELLCOLOR($K$19) -> -4142 | L184: =CELLCOLOR($L$19) -> -4142 | M184: =CELLCOLOR($M$19) -> -4142 | N184: =CELLCOLOR($N$19) -> -4142 | O184: =CELLCOLOR($O$19) -> -4142 | P184: =CELLCOLOR($P$19) -> -4142 | Q184: =CELLCOLOR($Q$19) -> -4142 | R184: =CELLCOLOR($R$19) -> -4142 | S184: =CELLCOLOR($S$19) -> -4142 | T184: =CELLCOLOR($T$19) -> -4142 | U184: =CELLCOLOR($U$19) -> -4142 | V184: =CELLCOLOR($V$19) -> -4142 | W184: =CELLCOLOR($W$19) -> -4142 | X184: =CELLCOLOR($X$19) -> -4142 | Y184: =CELLCOLOR($Y$19) -> -4142 | Z184: =CELLCOLOR($Z$19) -> -4142 | AA184: =CELLCOLOR($AA$19) -> -4142 | AB184: 11
C185: 12 | D185: =CELLCOLOR($D$20) -> -4142 | E185: =CELLCOLOR($E$20) -> -4142 | F185: =CELLCOLOR($F$20) -> -4142 | G185: =CELLCOLOR($G$20) -> -4142 | H185: =CELLCOLOR($H$20) -> -4142 | I185: =CELLCOLOR($I$20) -> -4142 | J185: =CELLCOLOR($J$20) -> -4142 | K185: =CELLCOLOR($K$20) -> -4142 | L185: =CELLCOLOR($L$20) -> -4142 | M185: =CELLCOLOR($M$20) -> -4142 | N185: =CELLCOLOR($N$20) -> -4142 | O185: =CELLCOLOR($O$20) -> -4142 | P185: =CELLCOLOR($P$20) -> -4142 | Q185: =CELLCOLOR($Q$20) -> -4142 | R185: =CELLCOLOR($R$20) -> -4142 | S185: =CELLCOLOR($S$20) -> -4142 | T185: =CELLCOLOR($T$20) -> -4142 | U185: =CELLCOLOR($U$20) -> -4142 | V185: =CELLCOLOR($V$20) -> -4142 | W185: =CELLCOLOR($W$20) -> -4142 | X185: =CELLCOLOR($X$20) -> -4142 | Y185: =CELLCOLOR($Y$20) -> -4142 | Z185: =CELLCOLOR($Z$20) -> -4142 | AA185: =CELLCOLOR($AA$20) -> -4142 | AB185: 12
C186: 1 | D186: =CELLCOLOR($D$21) -> -4142 | E186: =CELLCOLOR($E$21) -> -4142 | F186: =CELLCOLOR($F$21) -> -4142 | G186: =CELLCOLOR($G$21) -> -4142 | H186: =CELLCOLOR($H$21) -> -4142 | I186: =CELLCOLOR($I$21) -> -4142 | J186: =CELLCOLOR($J$21) -> -4142 | K186: =CELLCOLOR($K$21) -> -4142 | L186: =CELLCOLOR($L$21) -> -4142 | M186: =CELLCOLOR($M$21) -> -4142 | N186: =CELLCOLOR($N$21) -> -4142 | O186: =CELLCOLOR($O$21) -> -4142 | P186: =CELLCOLOR($P$21) -> -4142 | Q186: =CELLCOLOR($Q$21) -> -4142 | R186: =CELLCOLOR($R$21) -> -4142 | S186: =CELLCOLOR($S$21) -> -4142 | T186: =CELLCOLOR($T$21) -> -4142 | U186: =CELLCOLOR($U$21) -> -4142 | V186: =CELLCOLOR($V$21) -> -4142 | W186: =CELLCOLOR($W$21) -> -4142 | X186: =CELLCOLOR($X$21) -> -4142 | Y186: =CELLCOLOR($Y$21) -> -4142 | Z186: =CELLCOLOR($Z$21) -> -4142 | AA186: =CELLCOLOR($AA$21) -> -4142 | AB186: 1
C187: 2 | D187: =CELLCOLOR($D$22) -> -4142 | E187: =CELLCOLOR($E$22) -> -4142 | F187: =CELLCOLOR($F$22) -> -4142 | G187: =CELLCOLOR($G$22) -> -4142 | H187: =CELLCOLOR($H$22) -> -4142 | I187: =CELLCOLOR($I$22) -> -4142 | J187: =CELLCOLOR($J$22) -> -4142 | K187: =CELLCOLOR($K$22) -> -4142 | L187: =CELLCOLOR($L$22) -> -4142 | M187: =CELLCOLOR($M$22) -> -4142 | N187: =CELLCOLOR($N$22) -> -4142 | O187: =CELLCOLOR($O$22) -> -4142 | P187: =CELLCOLOR($P$22) -> -4142 | Q187: =CELLCOLOR($Q$22) -> -4142 | R187: =CELLCOLOR($R$22) -> -4142 | S187: =CELLCOLOR($S$22) -> -4142 | T187: =CELLCOLOR($T$22) -> -4142 | U187: =CELLCOLOR($U$22) -> -4142 | V187: =CELLCOLOR($V$22) -> -4142 | W187: =CELLCOLOR($W$22) -> -4142 | X187: =CELLCOLOR($X$22) -> -4142 | Y187: =CELLCOLOR($Y$22) -> -4142 | Z187: =CELLCOLOR($Z$22) -> -4142 | AA187: =CELLCOLOR($AA$22) -> -4142 | AB187: 2
C188: 3 | D188: =CELLCOLOR($D$23) -> -4142 | E188: =CELLCOLOR($E$23) -> -4142 | F188: =CELLCOLOR($F$23) -> -4142 | G188: =CELLCOLOR($G$23) -> -4142 | H188: =CELLCOLOR($H$23) -> -4142 | I188: =CELLCOLOR($I$23) -> -4142 | J188: =CELLCOLOR($J$23) -> -4142 | K188: =CELLCOLOR($K$23) -> -4142 | L188: =CELLCOLOR($L$23) -> -4142 | M188: =CELLCOLOR($M$23) -> -4142 | N188: =CELLCOLOR($N$23) -> -4142 | O188: =CELLCOLOR($O$23) -> -4142 | P188: =CELLCOLOR($P$23) -> -4142 | Q188: =CELLCOLOR($Q$23) -> -4142 | R188: =CELLCOLOR($R$23) -> -4142 | S188: =CELLCOLOR($S$23) -> -4142 | T188: =CELLCOLOR($T$23) -> -4142 | U188: =CELLCOLOR($U$23) -> -4142 | V188: =CELLCOLOR($V$23) -> -4142 | W188: =CELLCOLOR($W$23) -> -4142 | X188: =CELLCOLOR($X$23) -> -4142 | Y188: =CELLCOLOR($Y$23) -> -4142 | Z188: =CELLCOLOR($Z$23) -> -4142 | AA188: =CELLCOLOR($AA$23) -> -4142 | AB188: 3
C190: 作業表2-1(冷房) | E190: ●月▲時の平均気温(四捨五入で表示）
D191: 時刻
C192: 月 | D192: 0 | E192: 1 | F192: 2 | G192: 3 | H192: 4 | I192: 5 | J192: 6 | K192: 7 | L192: 8 | M192: 9 | N192: 10 | O192: 11 | P192: 12 | Q192: 13 | R192: 14 | S192: 15 | T192: 16 | U192: 17 | V192: 18 | W192: 19 | X192: 20 | Y192: 21 | Z192: 22 | AA192: 23 | AB192: 月
C193: 4 | D193: =IF($D$177=24,ROUND($D$12,0),"")&"" ->  | E193: =IF($E$177=24,ROUND($E$12,0),"")&"" ->  | F193: =IF($F$177=24,ROUND($F$12,0),"")&"" ->  | G193: =IF($G$177=24,ROUND($G$12,0),"")&"" ->  | H193: =IF($H$177=24,ROUND($H$12,0),"")&"" ->  | I193: =IF($I$177=24,ROUND($I$12,0),"")&"" ->  | J193: =IF($J$177=24,ROUND($J$12,0),"")&"" ->  | K193: =IF($K$177=24,ROUND($K$12,0),"")&"" ->  | L193: =IF($L$177=24,ROUND($L$12,0),"")&"" ->  | M193: =IF($M$177=24,ROUND($M$12,0),"")&"" ->  | N193: =IF($N$177=24,ROUND($N$12,0),"")&"" ->  | O193: =IF($O$177=24,ROUND($O$12,0),"")&"" ->  | P193: =IF($P$177=24,ROUND($P$12,0),"")&"" ->  | Q193: =IF($Q$177=24,ROUND($Q$12,0),"")&"" ->  | R193: =IF($R$177=24,ROUND($R$12,0),"")&"" ->  | S193: =IF($S$177=24,ROUND($S$12,0),"")&"" ->  | T193: =IF($T$177=24,ROUND($T$12,0),"")&"" ->  | U193: =IF($U$177=24,ROUND($U$12,0),"")&"" ->  | V193: =IF($V$177=24,ROUND($V$12,0),"")&"" ->  | W193: =IF($W$177=24,ROUND($W$12,0),"")&"" ->  | X193: =IF($X$177=24,ROUND($X$12,0),"")&"" ->  | Y193: =IF($Y$177=24,ROUND($Y$12,0),"")&"" ->  | Z193: =IF($Z$177=24,ROUND($Z$12,0),"")&"" ->  | AA193: =IF($AA$177=24,ROUND($AA$12,0),"")&"" ->  | AB193: 4
C194: 5 | D194: =IF($D$178=24,ROUND($D$13,0),"")&"" ->  | E194: =IF($E$178=24,ROUND($E$13,0),"")&"" ->  | F194: =IF($F$178=24,ROUND($F$13,0),"")&"" ->  | G194: =IF($G$178=24,ROUND($G$13,0),"")&"" ->  | H194: =IF($H$178=24,ROUND($H$13,0),"")&"" ->  | I194: =IF($I$178=24,ROUND($I$13,0),"")&"" ->  | J194: =IF($J$178=24,ROUND($J$13,0),"")&"" ->  | K194: =IF($K$178=24,ROUND($K$13,0),"")&"" ->  | L194: =IF($L$178=24,ROUND($L$13,0),"")&"" ->  | M194: =IF($M$178=24,ROUND($M$13,0),"")&"" ->  | N194: =IF($N$178=24,ROUND($N$13,0),"")&"" ->  | O194: =IF($O$178=24,ROUND($O$13,0),"")&"" ->  | P194: =IF($P$178=24,ROUND($P$13,0),"")&"" ->  | Q194: =IF($Q$178=24,ROUND($Q$13,0),"")&"" ->  | R194: =IF($R$178=24,ROUND($R$13,0),"")&"" ->  | S194: =IF($S$178=24,ROUND($S$13,0),"")&"" ->  | T194: =IF($T$178=24,ROUND($T$13,0),"")&"" ->  | U194: =IF($U$178=24,ROUND($U$13,0),"")&"" ->  | V194: =IF($V$178=24,ROUND($V$13,0),"")&"" ->  | W194: =IF($W$178=24,ROUND($W$13,0),"")&"" ->  | X194: =IF($X$178=24,ROUND($X$13,0),"")&"" ->  | Y194: =IF($Y$178=24,ROUND($Y$13,0),"")&"" ->  | Z194: =IF($Z$178=24,ROUND($Z$13,0),"")&"" ->  | AA194: =IF($AA$178=24,ROUND($AA$13,0),"")&"" ->  | AB194: 5
C195: 6 | D195: =IF($D$179=24,ROUND($D$14,0),"")&"" ->  | E195: =IF($E$179=24,ROUND($E$14,0),"")&"" ->  | F195: =IF($F$179=24,ROUND($F$14,0),"")&"" ->  | G195: =IF($G$179=24,ROUND($G$14,0),"")&"" ->  | H195: =IF($H$179=24,ROUND($H$14,0),"")&"" ->  | I195: =IF($I$179=24,ROUND($I$14,0),"")&"" ->  | J195: =IF($J$179=24,ROUND($J$14,0),"")&"" ->  | K195: =IF($K$179=24,ROUND($K$14,0),"")&"" ->  | L195: =IF($L$179=24,ROUND($L$14,0),"")&"" ->  | M195: =IF($M$179=24,ROUND($M$14,0),"")&"" ->  | N195: =IF($N$179=24,ROUND($N$14,0),"")&"" ->  | O195: =IF($O$179=24,ROUND($O$14,0),"")&"" ->  | P195: =IF($P$179=24,ROUND($P$14,0),"")&"" ->  | Q195: =IF($Q$179=24,ROUND($Q$14,0),"")&"" ->  | R195: =IF($R$179=24,ROUND($R$14,0),"")&"" ->  | S195: =IF($S$179=24,ROUND($S$14,0),"")&"" ->  | T195: =IF($T$179=24,ROUND($T$14,0),"")&"" ->  | U195: =IF($U$179=24,ROUND($U$14,0),"")&"" ->  | V195: =IF($V$179=24,ROUND($V$14,0),"")&"" ->  | W195: =IF($W$179=24,ROUND($W$14,0),"")&"" ->  | X195: =IF($X$179=24,ROUND($X$14,0),"")&"" ->  | Y195: =IF($Y$179=24,ROUND($Y$14,0),"")&"" ->  | Z195: =IF($Z$179=24,ROUND($Z$14,0),"")&"" ->  | AA195: =IF($AA$179=24,ROUND($AA$14,0),"")&"" ->  | AB195: 6
C196: 7 | D196: =IF($D$180=24,ROUND($D$15,0),"")&"" ->  | E196: =IF($E$180=24,ROUND($E$15,0),"")&"" ->  | F196: =IF($F$180=24,ROUND($F$15,0),"")&"" ->  | G196: =IF($G$180=24,ROUND($G$15,0),"")&"" ->  | H196: =IF($H$180=24,ROUND($H$15,0),"")&"" ->  | I196: =IF($I$180=24,ROUND($I$15,0),"")&"" ->  | J196: =IF($J$180=24,ROUND($J$15,0),"")&"" ->  | K196: =IF($K$180=24,ROUND($K$15,0),"")&"" ->  | L196: =IF($L$180=24,ROUND($L$15,0),"")&"" ->  | M196: =IF($M$180=24,ROUND($M$15,0),"")&"" ->  | N196: =IF($N$180=24,ROUND($N$15,0),"")&"" ->  | O196: =IF($O$180=24,ROUND($O$15,0),"")&"" ->  | P196: =IF($P$180=24,ROUND($P$15,0),"")&"" ->  | Q196: =IF($Q$180=24,ROUND($Q$15,0),"")&"" ->  | R196: =IF($R$180=24,ROUND($R$15,0),"")&"" ->  | S196: =IF($S$180=24,ROUND($S$15,0),"")&"" ->  | T196: =IF($T$180=24,ROUND($T$15,0),"")&"" ->  | U196: =IF($U$180=24,ROUND($U$15,0),"")&"" ->  | V196: =IF($V$180=24,ROUND($V$15,0),"")&"" ->  | W196: =IF($W$180=24,ROUND($W$15,0),"")&"" ->  | X196: =IF($X$180=24,ROUND($X$15,0),"")&"" ->  | Y196: =IF($Y$180=24,ROUND($Y$15,0),"")&"" ->  | Z196: =IF($Z$180=24,ROUND($Z$15,0),"")&"" ->  | AA196: =IF($AA$180=24,ROUND($AA$15,0),"")&"" ->  | AB196: 7
C197: 8 | D197: =IF($D$181=24,ROUND($D$16,0),"")&"" ->  | E197: =IF($E$181=24,ROUND($E$16,0),"")&"" ->  | F197: =IF($F$181=24,ROUND($F$16,0),"")&"" ->  | G197: =IF($G$181=24,ROUND($G$16,0),"")&"" ->  | H197: =IF($H$181=24,ROUND($H$16,0),"")&"" ->  | I197: =IF($I$181=24,ROUND($I$16,0),"")&"" ->  | J197: =IF($J$181=24,ROUND($J$16,0),"")&"" ->  | K197: =IF($K$181=24,ROUND($K$16,0),"")&"" ->  | L197: =IF($L$181=24,ROUND($L$16,0),"")&"" ->  | M197: =IF($M$181=24,ROUND($M$16,0),"")&"" ->  | N197: =IF($N$181=24,ROUND($N$16,0),"")&"" ->  | O197: =IF($O$181=24,ROUND($O$16,0),"")&"" ->  | P197: =IF($P$181=24,ROUND($P$16,0),"")&"" ->  | Q197: =IF($Q$181=24,ROUND($Q$16,0),"")&"" ->  | R197: =IF($R$181=24,ROUND($R$16,0),"")&"" ->  | S197: =IF($S$181=24,ROUND($S$16,0),"")&"" ->  | T197: =IF($T$181=24,ROUND($T$16,0),"")&"" ->  | U197: =IF($U$181=24,ROUND($U$16,0),"")&"" ->  | V197: =IF($V$181=24,ROUND($V$16,0),"")&"" ->  | W197: =IF($W$181=24,ROUND($W$16,0),"")&"" ->  | X197: =IF($X$181=24,ROUND($X$16,0),"")&"" ->  | Y197: =IF($Y$181=24,ROUND($Y$16,0),"")&"" ->  | Z197: =IF($Z$181=24,ROUND($Z$16,0),"")&"" ->  | AA197: =IF($AA$181=24,ROUND($AA$16,0),"")&"" ->  | AB197: 8
C198: 9 | D198: =IF($D$182=24,ROUND($D$17,0),"")&"" ->  | E198: =IF($E$182=24,ROUND($E$17,0),"")&"" ->  | F198: =IF($F$182=24,ROUND($F$17,0),"")&"" ->  | G198: =IF($G$182=24,ROUND($G$17,0),"")&"" ->  | H198: =IF($H$182=24,ROUND($H$17,0),"")&"" ->  | I198: =IF($I$182=24,ROUND($I$17,0),"")&"" ->  | J198: =IF($J$182=24,ROUND($J$17,0),"")&"" ->  | K198: =IF($K$182=24,ROUND($K$17,0),"")&"" ->  | L198: =IF($L$182=24,ROUND($L$17,0),"")&"" ->  | M198: =IF($M$182=24,ROUND($M$17,0),"")&"" ->  | N198: =IF($N$182=24,ROUND($N$17,0),"")&"" ->  | O198: =IF($O$182=24,ROUND($O$17,0),"")&"" ->  | P198: =IF($P$182=24,ROUND($P$17,0),"")&"" ->  | Q198: =IF($Q$182=24,ROUND($Q$17,0),"")&"" ->  | R198: =IF($R$182=24,ROUND($R$17,0),"")&"" ->  | S198: =IF($S$182=24,ROUND($S$17,0),"")&"" ->  | T198: =IF($T$182=24,ROUND($T$17,0),"")&"" ->  | U198: =IF($U$182=24,ROUND($U$17,0),"")&"" ->  | V198: =IF($V$182=24,ROUND($V$17,0),"")&"" ->  | W198: =IF($W$182=24,ROUND($W$17,0),"")&"" ->  | X198: =IF($X$182=24,ROUND($X$17,0),"")&"" ->  | Y198: =IF($Y$182=24,ROUND($Y$17,0),"")&"" ->  | Z198: =IF($Z$182=24,ROUND($Z$17,0),"")&"" ->  | AA198: =IF($AA$182=24,ROUND($AA$17,0),"")&"" ->  | AB198: 9
C199: 10 | D199: =IF($D$183=24,ROUND($D$18,0),"")&"" ->  | E199: =IF($E$183=24,ROUND($E$18,0),"")&"" ->  | F199: =IF($F$183=24,ROUND($F$18,0),"")&"" ->  | G199: =IF($G$183=24,ROUND($G$18,0),"")&"" ->  | H199: =IF($H$183=24,ROUND($H$18,0),"")&"" ->  | I199: =IF($I$183=24,ROUND($I$18,0),"")&"" ->  | J199: =IF($J$183=24,ROUND($J$18,0),"")&"" ->  | K199: =IF($K$183=24,ROUND($K$18,0),"")&"" ->  | L199: =IF($L$183=24,ROUND($L$18,0),"")&"" ->  | M199: =IF($M$183=24,ROUND($M$18,0),"")&"" ->  | N199: =IF($N$183=24,ROUND($N$18,0),"")&"" ->  | O199: =IF($O$183=24,ROUND($O$18,0),"")&"" ->  | P199: =IF($P$183=24,ROUND($P$18,0),"")&"" ->  | Q199: =IF($Q$183=24,ROUND($Q$18,0),"")&"" ->  | R199: =IF($R$183=24,ROUND($R$18,0),"")&"" ->  | S199: =IF($S$183=24,ROUND($S$18,0),"")&"" ->  | T199: =IF($T$183=24,ROUND($T$18,0),"")&"" ->  | U199: =IF($U$183=24,ROUND($U$18,0),"")&"" ->  | V199: =IF($V$183=24,ROUND($V$18,0),"")&"" ->  | W199: =IF($W$183=24,ROUND($W$18,0),"")&"" ->  | X199: =IF($X$183=24,ROUND($X$18,0),"")&"" ->  | Y199: =IF($Y$183=24,ROUND($Y$18,0),"")&"" ->  | Z199: =IF($Z$183=24,ROUND($Z$18,0),"")&"" ->  | AA199: =IF($AA$183=24,ROUND($AA$18,0),"")&"" ->  | AB199: 10
C200: 11 | D200: =IF($D$184=24,ROUND($D$19,0),"")&"" ->  | E200: =IF($E$184=24,ROUND($E$19,0),"")&"" ->  | F200: =IF($F$184=24,ROUND($F$19,0),"")&"" ->  | G200: =IF($G$184=24,ROUND($G$19,0),"")&"" ->  | H200: =IF($H$184=24,ROUND($H$19,0),"")&"" ->  | I200: =IF($I$184=24,ROUND($I$19,0),"")&"" ->  | J200: =IF($J$184=24,ROUND($J$19,0),"")&"" ->  | K200: =IF($K$184=24,ROUND($K$19,0),"")&"" ->  | L200: =IF($L$184=24,ROUND($L$19,0),"")&"" ->  | M200: =IF($M$184=24,ROUND($M$19,0),"")&"" ->  | N200: =IF($N$184=24,ROUND($N$19,0),"")&"" ->  | O200: =IF($O$184=24,ROUND($O$19,0),"")&"" ->  | P200: =IF($P$184=24,ROUND($P$19,0),"")&"" ->  | Q200: =IF($Q$184=24,ROUND($Q$19,0),"")&"" ->  | R200: =IF($R$184=24,ROUND($R$19,0),"")&"" ->  | S200: =IF($S$184=24,ROUND($S$19,0),"")&"" ->  | T200: =IF($T$184=24,ROUND($T$19,0),"")&"" ->  | U200: =IF($U$184=24,ROUND($U$19,0),"")&"" ->  | V200: =IF($V$184=24,ROUND($V$19,0),"")&"" ->  | W200: =IF($W$184=24,ROUND($W$19,0),"")&"" ->  | X200: =IF($X$184=24,ROUND($X$19,0),"")&"" ->  | Y200: =IF($Y$184=24,ROUND($Y$19,0),"")&"" ->  | Z200: =IF($Z$184=24,ROUND($Z$19,0),"")&"" ->  | AA200: =IF($AA$184=24,ROUND($AA$19,0),"")&"" ->  | AB200: 11
C201: 12 | D201: =IF($D$185=24,ROUND($D$20,0),"")&"" ->  | E201: =IF($E$185=24,ROUND($E$20,0),"")&"" ->  | F201: =IF($F$185=24,ROUND($F$20,0),"")&"" ->  | G201: =IF($G$185=24,ROUND($G$20,0),"")&"" ->  | H201: =IF($H$185=24,ROUND($H$20,0),"")&"" ->  | I201: =IF($I$185=24,ROUND($I$20,0),"")&"" ->  | J201: =IF($J$185=24,ROUND($J$20,0),"")&"" ->  | K201: =IF($K$185=24,ROUND($K$20,0),"")&"" ->  | L201: =IF($L$185=24,ROUND($L$20,0),"")&"" ->  | M201: =IF($M$185=24,ROUND($M$20,0),"")&"" ->  | N201: =IF($N$185=24,ROUND($N$20,0),"")&"" ->  | O201: =IF($O$185=24,ROUND($O$20,0),"")&"" ->  | P201: =IF($P$185=24,ROUND($P$20,0),"")&"" ->  | Q201: =IF($Q$185=24,ROUND($Q$20,0),"")&"" ->  | R201: =IF($R$185=24,ROUND($R$20,0),"")&"" ->  | S201: =IF($S$185=24,ROUND($S$20,0),"")&"" ->  | T201: =IF($T$185=24,ROUND($T$20,0),"")&"" ->  | U201: =IF($U$185=24,ROUND($U$20,0),"")&"" ->  | V201: =IF($V$185=24,ROUND($V$20,0),"")&"" ->  | W201: =IF($W$185=24,ROUND($W$20,0),"")&"" ->  | X201: =IF($X$185=24,ROUND($X$20,0),"")&"" ->  | Y201: =IF($Y$185=24,ROUND($Y$20,0),"")&"" ->  | Z201: =IF($Z$185=24,ROUND($Z$20,0),"")&"" ->  | AA201: =IF($AA$185=24,ROUND($AA$20,0),"")&"" ->  | AB201: 12
C202: 1 | D202: =IF($D$186=24,ROUND($D$21,0),"")&"" ->  | E202: =IF($E$186=24,ROUND($E$21,0),"")&"" ->  | F202: =IF($F$186=24,ROUND($F$21,0),"")&"" ->  | G202: =IF($G$186=24,ROUND($G$21,0),"")&"" ->  | H202: =IF($H$186=24,ROUND($H$21,0),"")&"" ->  | I202: =IF($I$186=24,ROUND($I$21,0),"")&"" ->  | J202: =IF($J$186=24,ROUND($J$21,0),"")&"" ->  | K202: =IF($K$186=24,ROUND($K$21,0),"")&"" ->  | L202: =IF($L$186=24,ROUND($L$21,0),"")&"" ->  | M202: =IF($M$186=24,ROUND($M$21,0),"")&"" ->  | N202: =IF($N$186=24,ROUND($N$21,0),"")&"" ->  | O202: =IF($O$186=24,ROUND($O$21,0),"")&"" ->  | P202: =IF($P$186=24,ROUND($P$21,0),"")&"" ->  | Q202: =IF($Q$186=24,ROUND($Q$21,0),"")&"" ->  | R202: =IF($R$186=24,ROUND($R$21,0),"")&"" ->  | S202: =IF($S$186=24,ROUND($S$21,0),"")&"" ->  | T202: =IF($T$186=24,ROUND($T$21,0),"")&"" ->  | U202: =IF($U$186=24,ROUND($U$21,0),"")&"" ->  | V202: =IF($V$186=24,ROUND($V$21,0),"")&"" ->  | W202: =IF($W$186=24,ROUND($W$21,0),"")&"" ->  | X202: =IF($X$186=24,ROUND($X$21,0),"")&"" ->  | Y202: =IF($Y$186=24,ROUND($Y$21,0),"")&"" ->  | Z202: =IF($Z$186=24,ROUND($Z$21,0),"")&"" ->  | AA202: =IF($AA$186=24,ROUND($AA$21,0),"")&"" ->  | AB202: 1
C203: 2 | D203: =IF($D$187=24,ROUND($D$22,0),"")&"" ->  | E203: =IF($E$187=24,ROUND($E$22,0),"")&"" ->  | F203: =IF($F$187=24,ROUND($F$22,0),"")&"" ->  | G203: =IF($G$187=24,ROUND($G$22,0),"")&"" ->  | H203: =IF($H$187=24,ROUND($H$22,0),"")&"" ->  | I203: =IF($I$187=24,ROUND($I$22,0),"")&"" ->  | J203: =IF($J$187=24,ROUND($J$22,0),"")&"" ->  | K203: =IF($K$187=24,ROUND($K$22,0),"")&"" ->  | L203: =IF($L$187=24,ROUND($L$22,0),"")&"" ->  | M203: =IF($M$187=24,ROUND($M$22,0),"")&"" ->  | N203: =IF($N$187=24,ROUND($N$22,0),"")&"" ->  | O203: =IF($O$187=24,ROUND($O$22,0),"")&"" ->  | P203: =IF($P$187=24,ROUND($P$22,0),"")&"" ->  | Q203: =IF($Q$187=24,ROUND($Q$22,0),"")&"" ->  | R203: =IF($R$187=24,ROUND($R$22,0),"")&"" ->  | S203: =IF($S$187=24,ROUND($S$22,0),"")&"" ->  | T203: =IF($T$187=24,ROUND($T$22,0),"")&"" ->  | U203: =IF($U$187=24,ROUND($U$22,0),"")&"" ->  | V203: =IF($V$187=24,ROUND($V$22,0),"")&"" ->  | W203: =IF($W$187=24,ROUND($W$22,0),"")&"" ->  | X203: =IF($X$187=24,ROUND($X$22,0),"")&"" ->  | Y203: =IF($Y$187=24,ROUND($Y$22,0),"")&"" ->  | Z203: =IF($Z$187=24,ROUND($Z$22,0),"")&"" ->  | AA203: =IF($AA$187=24,ROUND($AA$22,0),"")&"" ->  | AB203: 2
C204: 3 | D204: =IF($D$188=24,ROUND($D$23,0),"")&"" ->  | E204: =IF($E$188=24,ROUND($E$23,0),"")&"" ->  | F204: =IF($F$188=24,ROUND($F$23,0),"")&"" ->  | G204: =IF($G$188=24,ROUND($G$23,0),"")&"" ->  | H204: =IF($H$188=24,ROUND($H$23,0),"")&"" ->  | I204: =IF($I$188=24,ROUND($I$23,0),"")&"" ->  | J204: =IF($J$188=24,ROUND($J$23,0),"")&"" ->  | K204: =IF($K$188=24,ROUND($K$23,0),"")&"" ->  | L204: =IF($L$188=24,ROUND($L$23,0),"")&"" ->  | M204: =IF($M$188=24,ROUND($M$23,0),"")&"" ->  | N204: =IF($N$188=24,ROUND($N$23,0),"")&"" ->  | O204: =IF($O$188=24,ROUND($O$23,0),"")&"" ->  | P204: =IF($P$188=24,ROUND($P$23,0),"")&"" ->  | Q204: =IF($Q$188=24,ROUND($Q$23,0),"")&"" ->  | R204: =IF($R$188=24,ROUND($R$23,0),"")&"" ->  | S204: =IF($S$188=24,ROUND($S$23,0),"")&"" ->  | T204: =IF($T$188=24,ROUND($T$23,0),"")&"" ->  | U204: =IF($U$188=24,ROUND($U$23,0),"")&"" ->  | V204: =IF($V$188=24,ROUND($V$23,0),"")&"" ->  | W204: =IF($W$188=24,ROUND($W$23,0),"")&"" ->  | X204: =IF($X$188=24,ROUND($X$23,0),"")&"" ->  | Y204: =IF($Y$188=24,ROUND($Y$23,0),"")&"" ->  | Z204: =IF($Z$188=24,ROUND($Z$23,0),"")&"" ->  | AA204: =IF($AA$188=24,ROUND($AA$23,0),"")&"" ->  | AB204: 3
C206: 作業表2-2(暖房) | E206: ●月▲時の平均気温(四捨五入で表示）
D207: 時刻
C208: 月 | D208: 0 | E208: 1 | F208: 2 | G208: 3 | H208: 4 | I208: 5 | J208: 6 | K208: 7 | L208: 8 | M208: 9 | N208: 10 | O208: 11 | P208: 12 | Q208: 13 | R208: 14 | S208: 15 | T208: 16 | U208: 17 | V208: 18 | W208: 19 | X208: 20 | Y208: 21 | Z208: 22 | AA208: 23 | AB208: 月
C209: 4 | D209: =IF($D$177=19,ROUND($D$12,0),"")&"" ->  | E209: =IF($E$177=19,ROUND($E$12,0),"")&"" ->  | F209: =IF($F$177=19,ROUND($F$12,0),"")&"" ->  | G209: =IF($G$177=19,ROUND($G$12,0),"")&"" ->  | H209: =IF($H$177=19,ROUND($H$12,0),"")&"" ->  | I209: =IF($I$177=19,ROUND($I$12,0),"")&"" ->  | J209: =IF($J$177=19,ROUND($J$12,0),"")&"" ->  | K209: =IF($K$177=19,ROUND($K$12,0),"")&"" ->  | L209: =IF($L$177=19,ROUND($L$12,0),"")&"" ->  | M209: =IF($M$177=19,ROUND($M$12,0),"")&"" ->  | N209: =IF($N$177=19,ROUND($N$12,0),"")&"" ->  | O209: =IF($O$177=19,ROUND($O$12,0),"")&"" ->  | P209: =IF($P$177=19,ROUND($P$12,0),"")&"" ->  | Q209: =IF($Q$177=19,ROUND($Q$12,0),"")&"" ->  | R209: =IF($R$177=19,ROUND($R$12,0),"")&"" ->  | S209: =IF($S$177=19,ROUND($S$12,0),"")&"" ->  | T209: =IF($T$177=19,ROUND($T$12,0),"")&"" ->  | U209: =IF($U$177=19,ROUND($U$12,0),"")&"" ->  | V209: =IF($V$177=19,ROUND($V$12,0),"")&"" ->  | W209: =IF($W$177=19,ROUND($W$12,0),"")&"" ->  | X209: =IF($X$177=19,ROUND($X$12,0),"")&"" ->  | Y209: =IF($Y$177=19,ROUND($Y$12,0),"")&"" ->  | Z209: =IF($Z$177=19,ROUND($Z$12,0),"")&"" ->  | AA209: =IF($AA$177=19,ROUND($AA$12,0),"")&"" ->  | AB209: 4
C210: 5 | D210: =IF($D$178=19,ROUND($D$13,0),"")&"" ->  | E210: =IF($E$178=19,ROUND($E$13,0),"")&"" ->  | F210: =IF($F$178=19,ROUND($F$13,0),"")&"" ->  | G210: =IF($G$178=19,ROUND($G$13,0),"")&"" ->  | H210: =IF($H$178=19,ROUND($H$13,0),"")&"" ->  | I210: =IF($I$178=19,ROUND($I$13,0),"")&"" ->  | J210: =IF($J$178=19,ROUND($J$13,0),"")&"" ->  | K210: =IF($K$178=19,ROUND($K$13,0),"")&"" ->  | L210: =IF($L$178=19,ROUND($L$13,0),"")&"" ->  | M210: =IF($M$178=19,ROUND($M$13,0),"")&"" ->  | N210: =IF($N$178=19,ROUND($N$13,0),"")&"" ->  | O210: =IF($O$178=19,ROUND($O$13,0),"")&"" ->  | P210: =IF($P$178=19,ROUND($P$13,0),"")&"" ->  | Q210: =IF($Q$178=19,ROUND($Q$13,0),"")&"" ->  | R210: =IF($R$178=19,ROUND($R$13,0),"")&"" ->  | S210: =IF($S$178=19,ROUND($S$13,0),"")&"" ->  | T210: =IF($T$178=19,ROUND($T$13,0),"")&"" ->  | U210: =IF($U$178=19,ROUND($U$13,0),"")&"" ->  | V210: =IF($V$178=19,ROUND($V$13,0),"")&"" ->  | W210: =IF($W$178=19,ROUND($W$13,0),"")&"" ->  | X210: =IF($X$178=19,ROUND($X$13,0),"")&"" ->  | Y210: =IF($Y$178=19,ROUND($Y$13,0),"")&"" ->  | Z210: =IF($Z$178=19,ROUND($Z$13,0),"")&"" ->  | AA210: =IF($AA$178=19,ROUND($AA$13,0),"")&"" ->  | AB210: 5
C211: 6 | D211: =IF($D$179=19,ROUND($D$14,0),"")&"" ->  | E211: =IF($E$179=19,ROUND($E$14,0),"")&"" ->  | F211: =IF($F$179=19,ROUND($F$14,0),"")&"" ->  | G211: =IF($G$179=19,ROUND($G$14,0),"")&"" ->  | H211: =IF($H$179=19,ROUND($H$14,0),"")&"" ->  | I211: =IF($I$179=19,ROUND($I$14,0),"")&"" ->  | J211: =IF($J$179=19,ROUND($J$14,0),"")&"" ->  | K211: =IF($K$179=19,ROUND($K$14,0),"")&"" ->  | L211: =IF($L$179=19,ROUND($L$14,0),"")&"" ->  | M211: =IF($M$179=19,ROUND($M$14,0),"")&"" ->  | N211: =IF($N$179=19,ROUND($N$14,0),"")&"" ->  | O211: =IF($O$179=19,ROUND($O$14,0),"")&"" ->  | P211: =IF($P$179=19,ROUND($P$14,0),"")&"" ->  | Q211: =IF($Q$179=19,ROUND($Q$14,0),"")&"" ->  | R211: =IF($R$179=19,ROUND($R$14,0),"")&"" ->  | S211: =IF($S$179=19,ROUND($S$14,0),"")&"" ->  | T211: =IF($T$179=19,ROUND($T$14,0),"")&"" ->  | U211: =IF($U$179=19,ROUND($U$14,0),"")&"" ->  | V211: =IF($V$179=19,ROUND($V$14,0),"")&"" ->  | W211: =IF($W$179=19,ROUND($W$14,0),"")&"" ->  | X211: =IF($X$179=19,ROUND($X$14,0),"")&"" ->  | Y211: =IF($Y$179=19,ROUND($Y$14,0),"")&"" ->  | Z211: =IF($Z$179=19,ROUND($Z$14,0),"")&"" ->  | AA211: =IF($AA$179=19,ROUND($AA$14,0),"")&"" ->  | AB211: 6
C212: 7 | D212: =IF($D$180=19,ROUND($D$15,0),"")&"" ->  | E212: =IF($E$180=19,ROUND($E$15,0),"")&"" ->  | F212: =IF($F$180=19,ROUND($F$15,0),"")&"" ->  | G212: =IF($G$180=19,ROUND($G$15,0),"")&"" ->  | H212: =IF($H$180=19,ROUND($H$15,0),"")&"" ->  | I212: =IF($I$180=19,ROUND($I$15,0),"")&"" ->  | J212: =IF($J$180=19,ROUND($J$15,0),"")&"" ->  | K212: =IF($K$180=19,ROUND($K$15,0),"")&"" ->  | L212: =IF($L$180=19,ROUND($L$15,0),"")&"" ->  | M212: =IF($M$180=19,ROUND($M$15,0),"")&"" ->  | N212: =IF($N$180=19,ROUND($N$15,0),"")&"" ->  | O212: =IF($O$180=19,ROUND($O$15,0),"")&"" ->  | P212: =IF($P$180=19,ROUND($P$15,0),"")&"" ->  | Q212: =IF($Q$180=19,ROUND($Q$15,0),"")&"" ->  | R212: =IF($R$180=19,ROUND($R$15,0),"")&"" ->  | S212: =IF($S$180=19,ROUND($S$15,0),"")&"" ->  | T212: =IF($T$180=19,ROUND($T$15,0),"")&"" ->  | U212: =IF($U$180=19,ROUND($U$15,0),"")&"" ->  | V212: =IF($V$180=19,ROUND($V$15,0),"")&"" ->  | W212: =IF($W$180=19,ROUND($W$15,0),"")&"" ->  | X212: =IF($X$180=19,ROUND($X$15,0),"")&"" ->  | Y212: =IF($Y$180=19,ROUND($Y$15,0),"")&"" ->  | Z212: =IF($Z$180=19,ROUND($Z$15,0),"")&"" ->  | AA212: =IF($AA$180=19,ROUND($AA$15,0),"")&"" ->  | AB212: 7
C213: 8 | D213: =IF($D$181=19,ROUND($D$16,0),"")&"" ->  | E213: =IF($E$181=19,ROUND($E$16,0),"")&"" ->  | F213: =IF($F$181=19,ROUND($F$16,0),"")&"" ->  | G213: =IF($G$181=19,ROUND($G$16,0),"")&"" ->  | H213: =IF($H$181=19,ROUND($H$16,0),"")&"" ->  | I213: =IF($I$181=19,ROUND($I$16,0),"")&"" ->  | J213: =IF($J$181=19,ROUND($J$16,0),"")&"" ->  | K213: =IF($K$181=19,ROUND($K$16,0),"")&"" ->  | L213: =IF($L$181=19,ROUND($L$16,0),"")&"" ->  | M213: =IF($M$181=19,ROUND($M$16,0),"")&"" ->  | N213: =IF($N$181=19,ROUND($N$16,0),"")&"" ->  | O213: =IF($O$181=19,ROUND($O$16,0),"")&"" ->  | P213: =IF($P$181=19,ROUND($P$16,0),"")&"" ->  | Q213: =IF($Q$181=19,ROUND($Q$16,0),"")&"" ->  | R213: =IF($R$181=19,ROUND($R$16,0),"")&"" ->  | S213: =IF($S$181=19,ROUND($S$16,0),"")&"" ->  | T213: =IF($T$181=19,ROUND($T$16,0),"")&"" ->  | U213: =IF($U$181=19,ROUND($U$16,0),"")&"" ->  | V213: =IF($V$181=19,ROUND($V$16,0),"")&"" ->  | W213: =IF($W$181=19,ROUND($W$16,0),"")&"" ->  | X213: =IF($X$181=19,ROUND($X$16,0),"")&"" ->  | Y213: =IF($Y$181=19,ROUND($Y$16,0),"")&"" ->  | Z213: =IF($Z$181=19,ROUND($Z$16,0),"")&"" ->  | AA213: =IF($AA$181=19,ROUND($AA$16,0),"")&"" ->  | AB213: 8
C214: 9 | D214: =IF($D$182=19,ROUND($D$17,0),"")&"" ->  | E214: =IF($E$182=19,ROUND($E$17,0),"")&"" ->  | F214: =IF($F$182=19,ROUND($F$17,0),"")&"" ->  | G214: =IF($G$182=19,ROUND($G$17,0),"")&"" ->  | H214: =IF($H$182=19,ROUND($H$17,0),"")&"" ->  | I214: =IF($I$182=19,ROUND($I$17,0),"")&"" ->  | J214: =IF($J$182=19,ROUND($J$17,0),"")&"" ->  | K214: =IF($K$182=19,ROUND($K$17,0),"")&"" ->  | L214: =IF($L$182=19,ROUND($L$17,0),"")&"" ->  | M214: =IF($M$182=19,ROUND($M$17,0),"")&"" ->  | N214: =IF($N$182=19,ROUND($N$17,0),"")&"" ->  | O214: =IF($O$182=19,ROUND($O$17,0),"")&"" ->  | P214: =IF($P$182=19,ROUND($P$17,0),"")&"" ->  | Q214: =IF($Q$182=19,ROUND($Q$17,0),"")&"" ->  | R214: =IF($R$182=19,ROUND($R$17,0),"")&"" ->  | S214: =IF($S$182=19,ROUND($S$17,0),"")&"" ->  | T214: =IF($T$182=19,ROUND($T$17,0),"")&"" ->  | U214: =IF($U$182=19,ROUND($U$17,0),"")&"" ->  | V214: =IF($V$182=19,ROUND($V$17,0),"")&"" ->  | W214: =IF($W$182=19,ROUND($W$17,0),"")&"" ->  | X214: =IF($X$182=19,ROUND($X$17,0),"")&"" ->  | Y214: =IF($Y$182=19,ROUND($Y$17,0),"")&"" ->  | Z214: =IF($Z$182=19,ROUND($Z$17,0),"")&"" ->  | AA214: =IF($AA$182=19,ROUND($AA$17,0),"")&"" ->  | AB214: 9
C215: 10 | D215: =IF($D$183=19,ROUND($D$18,0),"")&"" ->  | E215: =IF($E$183=19,ROUND($E$18,0),"")&"" ->  | F215: =IF($F$183=19,ROUND($F$18,0),"")&"" ->  | G215: =IF($G$183=19,ROUND($G$18,0),"")&"" ->  | H215: =IF($H$183=19,ROUND($H$18,0),"")&"" ->  | I215: =IF($I$183=19,ROUND($I$18,0),"")&"" ->  | J215: =IF($J$183=19,ROUND($J$18,0),"")&"" ->  | K215: =IF($K$183=19,ROUND($K$18,0),"")&"" ->  | L215: =IF($L$183=19,ROUND($L$18,0),"")&"" ->  | M215: =IF($M$183=19,ROUND($M$18,0),"")&"" ->  | N215: =IF($N$183=19,ROUND($N$18,0),"")&"" ->  | O215: =IF($O$183=19,ROUND($O$18,0),"")&"" ->  | P215: =IF($P$183=19,ROUND($P$18,0),"")&"" ->  | Q215: =IF($Q$183=19,ROUND($Q$18,0),"")&"" ->  | R215: =IF($R$183=19,ROUND($R$18,0),"")&"" ->  | S215: =IF($S$183=19,ROUND($S$18,0),"")&"" ->  | T215: =IF($T$183=19,ROUND($T$18,0),"")&"" ->  | U215: =IF($U$183=19,ROUND($U$18,0),"")&"" ->  | V215: =IF($V$183=19,ROUND($V$18,0),"")&"" ->  | W215: =IF($W$183=19,ROUND($W$18,0),"")&"" ->  | X215: =IF($X$183=19,ROUND($X$18,0),"")&"" ->  | Y215: =IF($Y$183=19,ROUND($Y$18,0),"")&"" ->  | Z215: =IF($Z$183=19,ROUND($Z$18,0),"")&"" ->  | AA215: =IF($AA$183=19,ROUND($AA$18,0),"")&"" ->  | AB215: 10
C216: 11 | D216: =IF($D$184=19,ROUND($D$19,0),"")&"" ->  | E216: =IF($E$184=19,ROUND($E$19,0),"")&"" ->  | F216: =IF($F$184=19,ROUND($F$19,0),"")&"" ->  | G216: =IF($G$184=19,ROUND($G$19,0),"")&"" ->  | H216: =IF($H$184=19,ROUND($H$19,0),"")&"" ->  | I216: =IF($I$184=19,ROUND($I$19,0),"")&"" ->  | J216: =IF($J$184=19,ROUND($J$19,0),"")&"" ->  | K216: =IF($K$184=19,ROUND($K$19,0),"")&"" ->  | L216: =IF($L$184=19,ROUND($L$19,0),"")&"" ->  | M216: =IF($M$184=19,ROUND($M$19,0),"")&"" ->  | N216: =IF($N$184=19,ROUND($N$19,0),"")&"" ->  | O216: =IF($O$184=19,ROUND($O$19,0),"")&"" ->  | P216: =IF($P$184=19,ROUND($P$19,0),"")&"" ->  | Q216: =IF($Q$184=19,ROUND($Q$19,0),"")&"" ->  | R216: =IF($R$184=19,ROUND($R$19,0),"")&"" ->  | S216: =IF($S$184=19,ROUND($S$19,0),"")&"" ->  | T216: =IF($T$184=19,ROUND($T$19,0),"")&"" ->  | U216: =IF($U$184=19,ROUND($U$19,0),"")&"" ->  | V216: =IF($V$184=19,ROUND($V$19,0),"")&"" ->  | W216: =IF($W$184=19,ROUND($W$19,0),"")&"" ->  | X216: =IF($X$184=19,ROUND($X$19,0),"")&"" ->  | Y216: =IF($Y$184=19,ROUND($Y$19,0),"")&"" ->  | Z216: =IF($Z$184=19,ROUND($Z$19,0),"")&"" ->  | AA216: =IF($AA$184=19,ROUND($AA$19,0),"")&"" ->  | AB216: 11
C217: 12 | D217: =IF($D$185=19,ROUND($D$20,0),"")&"" ->  | E217: =IF($E$185=19,ROUND($E$20,0),"")&"" ->  | F217: =IF($F$185=19,ROUND($F$20,0),"")&"" ->  | G217: =IF($G$185=19,ROUND($G$20,0),"")&"" ->  | H217: =IF($H$185=19,ROUND($H$20,0),"")&"" ->  | I217: =IF($I$185=19,ROUND($I$20,0),"")&"" ->  | J217: =IF($J$185=19,ROUND($J$20,0),"")&"" ->  | K217: =IF($K$185=19,ROUND($K$20,0),"")&"" ->  | L217: =IF($L$185=19,ROUND($L$20,0),"")&"" ->  | M217: =IF($M$185=19,ROUND($M$20,0),"")&"" ->  | N217: =IF($N$185=19,ROUND($N$20,0),"")&"" ->  | O217: =IF($O$185=19,ROUND($O$20,0),"")&"" ->  | P217: =IF($P$185=19,ROUND($P$20,0),"")&"" ->  | Q217: =IF($Q$185=19,ROUND($Q$20,0),"")&"" ->  | R217: =IF($R$185=19,ROUND($R$20,0),"")&"" ->  | S217: =IF($S$185=19,ROUND($S$20,0),"")&"" ->  | T217: =IF($T$185=19,ROUND($T$20,0),"")&"" ->  | U217: =IF($U$185=19,ROUND($U$20,0),"")&"" ->  | V217: =IF($V$185=19,ROUND($V$20,0),"")&"" ->  | W217: =IF($W$185=19,ROUND($W$20,0),"")&"" ->  | X217: =IF($X$185=19,ROUND($X$20,0),"")&"" ->  | Y217: =IF($Y$185=19,ROUND($Y$20,0),"")&"" ->  | Z217: =IF($Z$185=19,ROUND($Z$20,0),"")&"" ->  | AA217: =IF($AA$185=19,ROUND($AA$20,0),"")&"" ->  | AB217: 12
C218: 1 | D218: =IF($D$186=19,ROUND($D$21,0),"")&"" ->  | E218: =IF($E$186=19,ROUND($E$21,0),"")&"" ->  | F218: =IF($F$186=19,ROUND($F$21,0),"")&"" ->  | G218: =IF($G$186=19,ROUND($G$21,0),"")&"" ->  | H218: =IF($H$186=19,ROUND($H$21,0),"")&"" ->  | I218: =IF($I$186=19,ROUND($I$21,0),"")&"" ->  | J218: =IF($J$186=19,ROUND($J$21,0),"")&"" ->  | K218: =IF($K$186=19,ROUND($K$21,0),"")&"" ->  | L218: =IF($L$186=19,ROUND($L$21,0),"")&"" ->  | M218: =IF($M$186=19,ROUND($M$21,0),"")&"" ->  | N218: =IF($N$186=19,ROUND($N$21,0),"")&"" ->  | O218: =IF($O$186=19,ROUND($O$21,0),"")&"" ->  | P218: =IF($P$186=19,ROUND($P$21,0),"")&"" ->  | Q218: =IF($Q$186=19,ROUND($Q$21,0),"")&"" ->  | R218: =IF($R$186=19,ROUND($R$21,0),"")&"" ->  | S218: =IF($S$186=19,ROUND($S$21,0),"")&"" ->  | T218: =IF($T$186=19,ROUND($T$21,0),"")&"" ->  | U218: =IF($U$186=19,ROUND($U$21,0),"")&"" ->  | V218: =IF($V$186=19,ROUND($V$21,0),"")&"" ->  | W218: =IF($W$186=19,ROUND($W$21,0),"")&"" ->  | X218: =IF($X$186=19,ROUND($X$21,0),"")&"" ->  | Y218: =IF($Y$186=19,ROUND($Y$21,0),"")&"" ->  | Z218: =IF($Z$186=19,ROUND($Z$21,0),"")&"" ->  | AA218: =IF($AA$186=19,ROUND($AA$21,0),"")&"" ->  | AB218: 1
